Workbook

Sheet Liste
A1: Résid.Tartampion
A2: 13 Rue de l' espoir | AB2: 3
A3: 75016 | B3: PARIS
C4: 20/06/21
A6: LISTE DES COPROPRIETAIRES
G7: Total Tantièmes | H7: =SUM($H$10:$H$159) -> 10000
A9: N° | B9: Civ, | C9: Civilité | D9: NOMS | E9: Adresse | F9: Code Postal | G9: Ville | H9: Tantièmes | I9: N° lot | J9: Nature | K9: Tant, | L9: N° lot | M9: Nature | N9: Tant, | O9: N° lot | P9: Nature | Q9: Tant, | R9: N° lot | S9: Nature | T9: Tant, | U9: N° lot | V9: Nature | W9: Tant, | X9: N° | Y9: Nom | Z9: Messagerie
A10: 1 | B10: M | C10: Monsieur | D10: ALEXANDRINI André | E10: 13 rue de l' espoir | F10: 75016 | G10: Paris | H10: =IF(K10+N10+Q10+W10>0,K10+N10+Q10+T10+W10,"") -> 10 | I10: 1 | J10: Appart, | K10: 5 | L10: 151 | M10: Cave | N10: 5 | X10: =A10 -> 1 | Y10: =D10 -> ALEXANDRINI André | Z10: Alex,A@free,fr
A11: 2 | B11: Mme | C11: Madame | D11: ANNINOS Henri | E11: 13 rue de l' espoir | F11: 75016 | G11: Paris | H11: =IF(K11+N11+Q11+W11>0,K11+N11+Q11+T11+W11,"") -> 70 | I11: 2 | J11: Appart, | K11: 65 | L11: 152 | M11: Cave | N11: 5 | X11: =A11 -> 2 | Y11: =D11 -> ANNINOS Henri
A12: 3 | B12: M,Mme | C12: Mr et Mme | D12: BALDACCHINO Laurence | E12: 13 rue de l' espoir | F12: 75016 | G12: Paris | H12: =IF(K12+N12+Q12+W12>0,K12+N12+Q12+T12+W12,"") -> 100 | I12: 3 | J12: Appart, | K12: 95 | L12: 153 | M12: Cave | N12: 5 | X12: 3 | Y12: BALDACCHINO Laurence | Z12: BALDAC@Outlook
A13: 4 | B13: M. | C13: Monsieur | D13: BANCHET Joseph | E13: 14 rue de l' espoir | F13: 75016 | G13: Paris | H13: =IF(K13+N13+Q13+W13>0,K13+N13+Q13+T13+W13,"") -> 60 | I13: 4 | J13: Appart, | K13: 55 | L13: 154 | M13: Cave | N13: 5 | X13: 4 | Y13: BANCHET Joseph
A14: 5 | B14: M. | C14: Madame | D14: BARDIN Andrée | E14: 15 rue de l' espoir | F14: 75016 | G14: Paris | H14: =IF(K14+N14+Q18+W18>0,K14+N14+Q18+T18+W18,"") -> 50 | I14: 5 | J14: Appart, | K14: 45 | L14: 155 | M14: Cave | N14: 5 | X14: 5 | Y14: BARDIN Andrée
A15: 6 | B15: M,Mme | C15: Mr et Mme | D15: BARDIN-BENARD Louis | E15: 16 rue de l' espoir | F15: 75016 | G15: Paris | H15: =IF(K15+N15+Q19+W19>0,K15+N15+Q19+T19+W19,"") -> 45 | I15: 6 | J15: Appart, | K15: 40 | L15: 156 | M15: Cave | N15: 5 | X15: 6 | Y15: BARDIN-BENARD Louis
A16: 7 | B16: M,Mme | C16: Mr et Mme | D16: BARDOUILLE Hermine | E16: 13 rue de l' espoir | F16: 75016 | G16: Paris | H16: =IF(K16+N16+Q16+W16>0,K16+N16+Q16+T16+W16,"") -> 70 | I16: 7 | J16: Appart, | K16: 65 | L16: 157 | M16: Cave | N16: 5 | X16: 7 | Y16: BARDOUILLE Hermine
A17: 8 | B17: M,Mme | C17: Mr et Mme | D17: BARDOUILLE Jean Yves | E17: 13 rue de l' espoir | F17: 75016 | G17: Paris | H17: 100 | I17: 8 | J17: Appart, | K17: 95 | L17: 158 | M17: Cave | N17: 5 | X17: 8 | Y17: BARDOUILLE Jean Yves
A18: 9 | B18: M,Mme | C18: Mr et Mme | D18: BAUDINO | E18: 13 rue de l' espoir | F18: 75016 | G18: Paris | H18: 84 | I18: 9 | J18: Appart, | K18: 79 | L18: 159 | M18: Cave | N18: 5 | X18: 9 | Y18: BAUDINO
A19: 10 | B19: M,Mme | C19: Mr et Mme | D19: BAUGUIL André | E19: 13 rue de l' espoir | F19: 75016 | G19: Paris | H19: 63 | I19: 10 | J19: Appart, | K19: 58 | L19: 160 | M19: Cave | N19: 5 | X19: 10 | Y19: BAUGUIL André
A20: 11 | B20: M,Mme | C20: Mr et Mme | D20: BAUMGARTNER Peter | E20: 13 rue de l' espoir | F20: 75016 | G20: Paris | H20: 70 | I20: 11 | J20: Appart, | K20: 65 | L20: 161 | M20: Cave | N20: 5 | X20: 11 | Y20: BAUMGARTNER Peter
A21: 12 | B21: M,Mme | C21: Mr et Mme | D21: BECH Monique | E21: 13 rue de l' espoir | F21: 75016 | G21: Paris | H21: 100 | I21: 12 | J21: Appart, | K21: 95 | L21: 162 | M21: Cave | N21: 5 | X21: 12 | Y21: BECH Monique
A22: 13 | B22: M. | C22: Monsieur | D22: BERGET Jean François | E22: 13 rue de l' espoir | F22: 75016 | G22: Paris | H22: 70 | I22: 13 | J22: Appart, | K22: 65 | L22: 163 | M22: Cave | N22: 5 | X22: 13 | Y22: BERGET Jean François
A23: 14 | B23: M. | C23: Monsieur | D23: BERLIER David | E23: 13 rue de l' espoir | F23: 75016 | G23: Paris | H23: 70 | I23: 14 | J23: Appart, | K23: 65 | L23: 164 | M23: Cave | N23: 5 | X23: 14 | Y23: BERLIER David
A24: 15 | B24: M. | C24: Mmadame | D24: BESSON Gabriel | E24: 13 rue de l' espoir | F24: 75016 | G24: Paris | H24: 91 | I24: 15 | J24: Appart, | K24: 86 | L24: 165 | M24: Cave | N24: 5 | X24: 15 | Y24: BESSON Gabriel
A25: 16 | B25: M. | C25: Monsieur | D25: BILLY Grégoire | E25: 13 rue de l' espoir | F25: 75016 | G25: Paris | H25: 80 | I25: 16 | J25: Appart, | K25: 75 | L25: 166 | M25: Cave | N25: 5 | X25: 16 | Y25: BILLY Grégoire
A26: 17 | B26: M. | C26: Monsieur | D26: BLOT Alain | E26: 13 rue de l' espoir | F26: 75016 | G26: Paris | H26: 75 | I26: 17 | J26: Appart, | K26: 70 | L26: 167 | M26: Cave | N26: 5 | X26: 17 | Y26: BLOT Alain
A27: 18 | B27: M. | C27: Madame | D27: BODIGER | E27: 13 rue de l' espoir | F27: 75016 | G27: Paris | H27: 55 | I27: 18 | J27: Appart, | K27: 50 | L27: 168 | M27: Cave | N27: 5 | X27: 18 | Y27: BODIGER
A28: 19 | B28: M. | C28: Monsieur | D28: BODIN - BUGEJA | E28: 13 rue de l' espoir | F28: 75016 | G28: Paris | H28: 101 | I28: 19 | J28: Appart, | K28: 96 | L28: 169 | M28: Cave | N28: 5 | X28: 19 | Y28: BODIN - BUGEJA
A29: 20 | B29: M. | C29: Madame | D29: BOISSON Franck | E29: 13 rue de l' espoir | F29: 75016 | G29: Paris | H29: 73 | I29: 20 | J29: Appart, | K29: 68 | L29: 170 | M29: Cave | N29: 5 | X29: 20 | Y29: BOISSON Franck
A30: 21 | B30: M. | C30: Monsieur | D30: BOQUET Marcel | E30: 19 Rue du Paradis | F30: 33000 | G30: Bordeaux | H30: =IF(K30+N30+Q34+W34>0,K30+N30+Q34+T34+W34,"") -> 55 | I30: 21 | J30: Appart, | K30: 50 | L30: 171 | M30: Cave | N30: 5 | X30: 21 | Y30: BOQUET Marcel
A31: 22 | B31: M. | C31: Monsieur | D31: BOREL | E31: 13 rue de l' espoir | F31: 75016 | G31: Paris | H31: =IF(K31+N31+Q31+W31>0,K31+N31+Q31+T31+W31,"") -> 59 | I31: 22 | J31: Appart, | K31: 54 | L31: 172 | M31: Cave | N31: 5 | X31: 22 | Y31: BOREL
A32: 23 | B32: M. | C32: Monsieur | D32: BOUBRED | E32: 13 rue de l' espoir | F32: 75016 | G32: Paris | H32: =IF(K32+N32+Q32+W32>0,K32+N32+Q32+T32+W32,"") -> 63 | I32: 23 | J32: Appart, | K32: 58 | L32: 173 | M32: Cave | N32: 5 | X32: 23 | Y32: BOUBRED
A33: 24 | B33: M. | C33: Monsieur | D33: BRASSEUR Gérard | E33: 19 Rue du Paradis | F33: 33000 | G33: Bordeaux | H33: =IF(K33+N33+Q37+W37>0,K33+N33+Q37+T37+W37,"") -> 60 | I33: 24 | J33: Appart, | K33: 55 | L33: 174 | M33: Cave | N33: 5 | X33: 24 | Y33: BRASSEUR Gérard
A34: 25 | B34: M,Mme | C34: Mr et Mme | D34: BRAUD-COLLET G. | E34: 19 Rue du Paradis | F34: 33000 | G34: Bordeaux | H34: =IF(K34+N34+Q38+W38>0,K34+N34+Q38+T38+W38,"") -> 70 | I34: 25 | J34: Appart, | K34: 65 | L34: 175 | M34: Cave | N34: 5 | X34: 25 | Y34: BRAUD-COLLET G.
A35: 26 | B35: M. | C35: Monsieur | D35: BRICARD Mar'c | E35: 19 Rue du Paradis | F35: 33000 | G35: Bordeaux | H35: =IF(K35+N35+Q39+W39>0,K35+N35+Q39+T39+W39,"") -> 50 | I35: 26 | J35: Appart, | K35: 45 | L35: 176 | M35: Cave | N35: 5 | X35: 26 | Y35: BRICARD Mar'c
A36: 27 | B36: M, | C36: Monsieur | D36: BRIOLLE Marthe | E36: 13 rue de l' espoir | F36: 75016 | G36: Paris | H36: =IF(K36+N36+Q36+W36>0,K36+N36+Q36+T36+W36,"") -> 60 | I36: 27 | J36: Appart, | K36: 55 | L36: 177 | M36: Cave | N36: 5 | X36: 27 | Y36: BRIOLLE Marthe
A37: 28 | B37: M,Mme | C37: Mr et Mme | D37: BRUCHET Elisabeth | E37: 13 rue de l' espoir | F37: 75016 | G37: Paris | H37: 53 | I37: 28 | J37: Appart, | K37: 48 | L37: 178 | M37: Cave | N37: 5 | X37: 28 | Y37: BRUCHET Elisabeth
A38: 29 | B38: M,Mme | C38: Mr et Mme | D38: BUKVIC | E38: 13 rue de l' espoir | F38: 75016 | G38: Paris | H38: 68 | I38: 29 | J38: Appart, | K38: 63 | L38: 179 | M38: Cave | N38: 5 | X38: 29 | Y38: BUKVIC
A39: 30 | B39: M. | C39: Madame | D39: BURILLE Richard | E39: 13 rue de l' espoir | F39: 75016 | G39: Paris | H39: 60 | I39: 30 | J39: Appart, | K39: 55 | L39: 180 | M39: Cave | N39: 5 | X39: 30 | Y39: BURILLE Richard
A40: 31 | B40: M. | C40: Monsieur | D40: CARANTA Jean P. | E40: 13 rue de l' espoir | F40: 75016 | G40: Paris | H40: 60 | I40: 31 | J40: Appart, | K40: 55 | L40: 181 | M40: Cave | N40: 5 | X40: 31 | Y40: CARANTA Jean P.
A41: 32 | B41: M. | C41: Monsieur | D41: CARBONE Isabelle | E41: 13 rue de l' espoir | F41: 75016 | G41: Paris | H41: 50 | I41: 32 | J41: Appart, | K41: 45 | L41: 182 | M41: Cave | N41: 5 | X41: 32 | Y41: CARBONE Isabelle
A42: 33 | B42: M. | C42: Monsieur | D42: CASTAN Max | E42: 13 rue de l' espoir | F42: 75016 | G42: Paris | H42: 85 | I42: 33 | J42: Appart, | K42: 80 | L42: 183 | M42: Cave | N42: 5 | X42: 33 | Y42: CASTAN Max
A43: 34 | B43: M. | C43: Monsieur | D43: CAVALIERI Alain | E43: 13 rue de l' espoir | F43: 75016 | G43: Paris | H43: 80 | I43: 34 | J43: Appart, | K43: 75 | L43: 184 | M43: Cave | N43: 5 | X43: 34 | Y43: CAVALIERI Alain
A44: 35 | B44: Mme | C44: Madame | D44: CAVALIERI Christine | E44: 13 rue de l' espoir | F44: 75016 | G44: Paris | H44: 60 | I44: 35 | J44: Appart, | K44: 55 | L44: 185 | M44: Cave | N44: 5 | X44: 35 | Y44: CAVALIERI Christine
A45: 36 | B45: Mr | C45: Monsieur | D45: CIABATTINI Dante | E45: 13 rue de l' espoir | F45: 75016 | G45: Paris | H45: 70 | I45: 36 | J45: Appart, | K45: 65 | L45: 186 | M45: Cave | N45: 5 | X45: 36 | Y45: CIABATTINI Dante
A46: 37 | B46: Me | C46: Madame | D46: CIULLI - DREANO Jeanine | E46: 13 rue de l' espoir | F46: 75016 | G46: Paris | H46: 50 | I46: 37 | J46: Appart, | K46: 45 | L46: 187 | M46: Cave | N46: 5 | X46: 37 | Y46: CIULLI - DREANO Jeanine
A47: 38 | B47: M | C47: Monieur | D47: COLOM | E47: 13 rue de l' espoir | F47: 75016 | G47: Paris | H47: 45 | I47: 38 | J47: Appart, | K47: 40 | L47: 188 | M47: Cave | N47: 5 | X47: 38 | Y47: COLOM
A48: 39 | B48: M | C48: Monieur | D48: COLOMBANI Georges | E48: 13 rue de l' espoir | F48: 75016 | G48: Paris | H48: 50 | I48: 39 | J48: Appart, | K48: 45 | L48: 189 | M48: Cave | N48: 5 | X48: 39 | Y48: COLOMBANI Georges
A49: 40 | B49: M | C49: Monieur | D49: COLONNA Michel | E49: 13 rue de l' espoir | F49: 75016 | G49: Paris | H49: 60 | I49: 40 | J49: Appart, | K49: 55 | L49: 190 | M49: Cave | N49: 5 | X49: 40 | Y49: COLONNA Michel
A50: 41 | B50: Me | C50: Madame | D50: COMA Marie | E50: 13 rue de l' espoir | F50: 75016 | G50: Paris | H50: 55 | I50: 41 | J50: Appart, | K50: 50 | L50: 191 | M50: Cave | N50: 5 | X50: 41 | Y50: COMA Marie
A51: 42 | B51: M | C51: Monieur | D51: DANAUD Jean René | E51: 13 rue de l' espoir | F51: 75016 | G51: Paris | H51: 50 | I51: 42 | J51: Appart, | K51: 45 | L51: 192 | M51: Cave | N51: 5 | X51: 42 | Y51: DANAUD Jean René
A52: 43 | B52: M | C52: Monieur | D52: DAUGA Cédric | E52: 13 rue de l' espoir | F52: 75016 | G52: Paris | H52: 50 | I52: 43 | J52: Appart, | K52: 45 | L52: 193 | M52: Cave | N52: 5 | X52: 43 | Y52: DAUGA Cédric
A53: 44 | B53: Me | C53: Madame | D53: DE LAPRADE Yvette | E53: 13 rue de l' espoir | F53: 75016 | G53: Paris | H53: 55 | I53: 44 | J53: Appart, | K53: 50 | L53: 194 | M53: Cave | N53: 5 | X53: 44 | Y53: DE LAPRADE Yvette
A54: 45 | B54: M | C54: Monieur | D54: DENEUX Pierre | E54: 13 rue de l' espoir | F54: 75016 | G54: Paris | H54: 60 | I54: 45 | J54: Appart, | K54: 55 | L54: 195 | M54: Cave | N54: 5 | X54: 45 | Y54: DENEUX Pierre
A55: 46 | B55: M | C55: Monieur | D55: DENIS Jacques | E55: 13 rue de l' espoir | F55: 75016 | G55: Paris | H55: 55 | I55: 46 | J55: Appart, | K55: 50 | L55: 196 | M55: Cave | N55: 5 | X55: 46 | Y55: DENIS Jacques
A56: 47 | B56: Me | C56: Madame | D56: DI JORIO Brigitte | E56: 13 rue de l' espoir | F56: 75016 | G56: Paris | H56: 60 | I56: 47 | J56: Appart, | K56: 55 | L56: 197 | M56: Cave | N56: 5 | X56: 47 | Y56: DI JORIO Brigitte
A57: 48 | B57: M | C57: Monieur | D57: DI JORIO Marcel | E57: 13 rue de l' espoir | F57: 75016 | G57: Paris | H57: 61 | I57: 48 | J57: Appart, | K57: 56 | L57: 198 | M57: Cave | N57: 5 | X57: 48 | Y57: DI JORIO Marcel
A58: 49 | B58: M | C58: Monieur | D58: DI MEGLIO Laurent | E58: 13 rue de l' espoir | F58: 75016 | G58: Paris | H58: 45 | I58: 49 | J58: Appart, | K58: 40 | L58: 199 | M58: Cave | N58: 5 | X58: 49 | Y58: DI MEGLIO Laurent
A59: 50 | B59: M | C59: Monieur | D59: DRAGOTTA Michel | E59: 13 rue de l' espoir | F59: 75016 | G59: Paris | H59: 50 | I59: 50 | J59: Appart, | K59: 45 | L59: 200 | M59: Cave | N59: 5 | X59: 50 | Y59: DRAGOTTA Michel
A60: 51 | B60: M. | C60: Monsieur | D60: DUBOURG Pierre | E60: 14 rue de l' espoir | F60: 75016 | G60: Paris | H60: =IF(K60+N60+Q64+W64>0,K60+N60+Q64+T64+W64,"") -> 60 | I60: 51 | J60: Appart, | K60: 55 | L60: 201 | M60: Cave | N60: 5 | X60: 51 | Y60: DUBOURG Pierre
A61: 52 | B61: Me | C61: Madame | D61: FIGUERAS Annie | E61: 15 rue de l' espoir | F61: 75016 | G61: Paris | H61: =IF(K61+N61+Q65+W65>0,K61+N61+Q65+T65+W65,"") -> 70 | I61: 52 | J61: Appart, | K61: 65 | L61: 202 | M61: Cave | N61: 5 | X61: 52 | Y61: FIGUERAS Annie
A62: 53 | B62: M | C62: Monieur | D62: FONTANA Georges | E62: 13 rue de l' espoir | F62: 75016 | G62: Paris | H62: =IF(K62+N62+Q62+W62>0,K62+N62+Q62+T62+W62,"") -> 60 | I62: 53 | J62: Appart, | K62: 55 | L62: 203 | M62: Cave | N62: 5 | X62: 53 | Y62: FONTANA Georges
A63: 54 | B63: M | C63: Monieur | D63: FORGET Valéry | E63: 13 rue de l' espoir | F63: 75016 | G63: Paris | H63: 65 | I63: 54 | J63: Appart, | K63: 60 | L63: 204 | M63: Cave | N63: 5 | X63: 54 | Y63: FORGET Valéry
A64: 55 | B64: Me | C64: Madame | D64: FOURNIER Nicole | E64: 13 rue de l' espoir | F64: 75016 | G64: Paris | H64: 51 | I64: 55 | J64: Appart, | K64: 46 | L64: 205 | M64: Cave | N64: 5 | X64: 55 | Y64: FOURNIER Nicole
A65: 56 | B65: M | C65: Monieur | D65: GARCIA Christophe | E65: 13 rue de l' espoir | F65: 75016 | G65: Paris | H65: 50 | I65: 56 | J65: Appart, | K65: 45 | L65: 206 | M65: Cave | N65: 5 | X65: 56 | Y65: GARCIA Christophe
A66: 57 | B66: M | C66: Monieur | D66: GARRELON Jacques | E66: 13 rue de l' espoir | F66: 75016 | G66: Paris | H66: 70 | I66: 57 | J66: Appart, | K66: 65 | L66: 207 | M66: Cave | N66: 5 | X66: 57 | Y66: GARRELON Jacques
A67: 58 | B67: Me | C67: Madame | D67: GAUNET Mireille | E67: 13 rue de l' espoir | F67: 75016 | G67: Paris | H67: 60 | I67: 58 | J67: Appart, | K67: 55 | L67: 208 | M67: Cave | N67: 5 | X67: 58 | Y67: GAUNET Mireille
A68: 59 | B68: M | C68: Monieur | D68: GERTOSIO | E68: 13 rue de l' espoir | F68: 75016 | G68: Paris | H68: 62 | I68: 59 | J68: Appart, | K68: 57 | L68: 209 | M68: Cave | N68: 5 | X68: 59 | Y68: GERTOSIO
A69: 60 | B69: Me | C69: Madame | D69: GERVASI Jacqueline | E69: 13 rue de l' espoir | F69: 75016 | G69: Paris | H69: 83 | I69: 60 | J69: Appart, | K69: 78 | L69: 210 | M69: Cave | N69: 5 | X69: 60 | Y69: GERVASI Jacqueline
A70: 61 | B70: Me | C70: Madame | D70: GINESTOUS Maryvonne | E70: 13 rue de l' espoir | F70: 75016 | G70: Paris | H70: 58 | I70: 61 | J70: Appart, | K70: 53 | L70: 211 | M70: Cave | N70: 5 | X70: 61 | Y70: GINESTOUS Maryvonne
A71: 62 | B71: Me | C71: Madame | D71: GIRARDOT Michèle | E71: 13 rue de l' espoir | F71: 75016 | G71: Paris | H71: 55 | I71: 62 | J71: Appart, | K71: 50 | L71: 212 | M71: Cave | N71: 5 | X71: 62 | Y71: GIRARDOT Michèle
A72: 63 | B72: M | C72: Monieur | D72: GIRAUDEAU Marcel | E72: 13 rue de l' espoir | F72: 75016 | G72: Paris | H72: 63 | I72: 63 | J72: Appart, | K72: 58 | L72: 213 | M72: Cave | N72: 5 | X72: 63 | Y72: GIRAUDEAU Marcel
A73: 64 | B73: M, | C73: Monsieur | D73: GLADIEU Marc | E73: 19 Rue du Paradis | F73: 33000 | G73: Bordeaux | H73: =IF(K73+N73+Q77+W77>0,K73+N73+Q77+T77+W77,"") -> 65 | I73: 64 | J73: Appart, | K73: 60 | L73: 214 | M73: Cave | N73: 5 | X73: 64 | Y73: GLADIEU Marc
A74: 65 | B74: M Me | C74: onsieur Madame | D74: GOURRIER - JAFFELIN | E74: 13 rue de l' espoir | F74: 75016 | G74: Paris | H74: =IF(K74+N74+Q74+W74>0,K74+N74+Q74+T74+W74,"") -> 70 | I74: 65 | J74: Appart, | K74: 65 | L74: 215 | M74: Cave | N74: 5 | X74: 65 | Y74: GOURRIER - JAFFELIN
A75: 66 | B75: M | C75: Monieur | D75: GRAO Guy | E75: 13 rue de l' espoir | F75: 75016 | G75: Paris | H75: =IF(K75+N75+Q75+W75>0,K75+N75+Q75+T75+W75,"") -> 72 | I75: 66 | J75: Appart, | K75: 67 | L75: 216 | M75: Cave | N75: 5 | X75: =A75 -> 66 | Y75: =D75 -> GRAO Guy
A76: 67 | B76: Me | C76: Madame | D76: GROLLEAU Chantal | E76: 13 rue de l' espoir | F76: 75016 | G76: Paris | H76: =IF(K76+N76+Q76+W76>0,K76+N76+Q76+T76+W76,"") -> 66 | I76: 67 | J76: Appart, | K76: 61 | L76: 217 | M76: Cave | N76: 5 | X76: 67 | Y76: GROLLEAU Chantal
A77: 68 | B77: M | C77: Monieur | D77: HALADO | E77: 13 rue de l' espoir | F77: 75016 | G77: Paris | H77: =IF(K77+N77+Q77+W77>0,K77+N77+Q77+T77+W77,"") -> 55 | I77: 68 | J77: Appart, | K77: 50 | L77: 218 | M77: Cave | N77: 5 | X77: 68 | Y77: HALADO
A78: 69 | B78: M | C78: Monieur | D78: HONNORAT Georges | E78: 13 rue de l' espoir | F78: 75016 | G78: Paris | H78: =IF(K78+N78+Q78+W78>0,K78+N78+Q78+T78+W78,"") -> 56 | I78: 69 | J78: Appart, | K78: 51 | L78: 219 | M78: Cave | N78: 5 | X78: 69 | Y78: HONNORAT Georges
A79: 70 | B79: Mme | C79: Madame | D79: IMGRAM Simone | E79: 19 Rue du Paradis | F79: 33000 | G79: Bordeaux | H79: =IF(K79+N79+Q83+W83>0,K79+N79+Q83+T83+W83,"") -> 60 | I79: 70 | J79: Appart, | K79: 55 | L79: 220 | M79: Cave | N79: 5 | X79: 70 | Y79: IMGRAM Simone
A80: 71 | B80: Me | C80: Madame | D80: IRACANE Rosalie | E80: 13 rue de l' espoir | F80: 75016 | G80: Paris | H80: =IF(K80+N80+Q80+W80>0,K80+N80+Q80+T80+W80,"") -> 70 | I80: 71 | J80: Appart, | K80: 65 | L80: 221 | M80: Cave | N80: 5 | X80: 71 | Y80: IRACANE Rosalie
A81: 72 | B81: Me | C81: Madame | D81: JACQUET Sylvie | E81: 13 rue de l' espoir | F81: 75016 | G81: Paris | H81: =IF(K81+N81+Q81+W81>0,K81+N81+Q81+T81+W81,"") -> 71 | I81: 72 | J81: Appart, | K81: 66 | L81: 222 | M81: Cave | N81: 5 | X81: 72 | Y81: JACQUET Sylvie
A82: 73 | B82: M | C82: Monieur | D82: JAYET Christian | E82: 13 rue de l' espoir | F82: 75016 | G82: Paris | H82: =IF(K82+N82+Q82+W82>0,K82+N82+Q82+T82+W82,"") -> 62 | I82: 73 | J82: Appart, | K82: 57 | L82: 223 | M82: Cave | N82: 5 | X82: 73 | Y82: JAYET Christian
A83: 74 | B83: M | C83: Monieur | D83: JOB | E83: 13 rue de l' espoir | F83: 75016 | G83: Paris | H83: =IF(K83+N83+Q83+W83>0,K83+N83+Q83+T83+W83,"") -> 60 | I83: 74 | J83: Appart, | K83: 55 | L83: 224 | M83: Cave | N83: 5 | X83: 74 | Y83: JOB
A84: 75 | B84: Mme | C84: Madame | D84: JOFFE Françoise | E84: 19 Rue du Paradis | F84: 33000 | G84: Bordeaux | H84: =IF(K84+N84+Q88+W88>0,K84+N84+Q88+T88+W88,"") -> 80 | I84: 75 | J84: Appart, | K84: 75 | L84: 225 | M84: Cave | N84: 5 | X84: 75 | Y84: JOFFE Françoise
A85: 76 | B85: Mr | C85: Monsieur | D85: KARNAC Marcel | E85: 19 Rue du Paradis | F85: 33000 | G85: Bordeaux | H85: =IF(K85+N85+Q89+W89>0,K85+N85+Q89+T89+W89,"") -> 60 | I85: 76 | J85: Appart, | K85: 55 | L85: 226 | M85: Cave | N85: 5 | X85: 76 | Y85: KARNAC Marcel
A86: 77 | B86: Me | C86: Madame | D86: LAGRANGE Pierrette | E86: 19 Rue du Paradis | F86: 33000 | G86: Bordeaux | H86: =IF(K86+N86+Q90+W90>0,K86+N86+Q90+T90+W90,"") -> 70 | I86: 77 | J86: Appart, | K86: 65 | L86: 227 | M86: Cave | N86: 5 | X86: 77 | Y86: LAGRANGE Pierrette
A87: 78 | B87: Mr | C87: Monsieur | D87: LANVIN Christophe | E87: 19 Rue du Paradis | F87: 33000 | G87: Bordeaux | H87: =IF(K87+N87+Q91+W91>0,K87+N87+Q91+T91+W91,"") -> 50 | I87: 78 | J87: Appart, | K87: 45 | L87: 228 | M87: Cave | N87: 5 | X87: 78 | Y87: LANVIN Christophe
A88: 79 | B88: M. | C88: Madame | D88: LARDENOIS Pierrette | E88: 19 Rue du Paradis | F88: 33000 | G88: Bordeaux | H88: =IF(K88+N88+Q92+W92>0,K88+N88+Q92+T92+W92,"") -> 40 | I88: 79 | J88: Appart, | K88: 35 | L88: 229 | M88: Cave | N88: 5 | X88: 79 | Y88: LARDENOIS Pierrette
A89: 80 | B89: Me | C89: Madame | D89: LATTION Evelyne | E89: 13 rue de l' espoir | F89: 75016 | G89: Paris | H89: =IF(K89+N89+Q89+W89>0,K89+N89+Q89+T89+W89,"") -> 47 | I89: 80 | J89: Appart, | K89: 42 | L89: 230 | M89: Cave | N89: 5 | X89: 80 | Y89: LATTION Evelyne
A90: 81 | B90: M. | C90: Madame | D90: LATTION Evelyne | E90: 19 Rue du Paradis | F90: 33000 | G90: Bordeaux | H90: =IF(K90+N90+Q94+W94>0,K90+N90+Q94+T94+W94,"") -> 55 | I90: 81 | J90: Appart, | K90: 50 | L90: 231 | M90: Cave | N90: 5 | X90: 81 | Y90: LATTION Evelyne
A91: 82 | B91: Me | C91: Madame | D91: LE SCAVARREC Aline | E91: 13 rue de l' espoir | F91: 75016 | G91: Paris | H91: =IF(K91+N91+Q91+W91>0,K91+N91+Q91+T91+W91,"") -> 56 | I91: 82 | J91: Appart, | K91: 51 | L91: 232 | M91: Cave | N91: 5 | X91: 82 | Y91: LE SCAVARREC Aline
A92: 83 | B92: M Me | C92: Monsieur Madame | D92: LEBON - BOUIC | E92: 13 rue de l' espoir | F92: 75016 | G92: Paris | H92: =IF(K92+N92+Q92+W92>0,K92+N92+Q92+T92+W92,"") -> 72 | I92: 83 | J92: Appart, | K92: 67 | L92: 233 | M92: Cave | N92: 5 | X92: 83 | Y92: LEBON - BOUIC
A93: 84 | B93: Me | C93: Madame | D93: LEBON Elisabeth | E93: 13 rue de l' espoir | F93: 75016 | G93: Paris | H93: =IF(K93+N93+Q93+W93>0,K93+N93+Q93+T93+W93,"") -> 90 | I93: 84 | J93: Appart, | K93: 85 | L93: 234 | M93: Cave | N93: 5 | X93: 84 | Y93: LEBON Elisabeth
A94: 85 | B94: Me | C94: Madame | D94: LEBORGNE Claudine | E94: 13 rue de l' espoir | F94: 75016 | G94: Paris | H94: =IF(K94+N94+Q94+W94>0,K94+N94+Q94+T94+W94,"") -> 87 | I94: 85 | J94: Appart, | K94: 82 | L94: 235 | M94: Cave | N94: 5 | X94: 85 | Y94: LEBORGNE Claudine
A95: 86 | B95: M,Mme | C95: Mr et Mme | D95: LEFOLLET-LANGLET | E95: 19 Rue du Paradis | F95: 33000 | G95: Bordeaux | H95: =IF(K95+N95+Q99+W99>0,K95+N95+Q99+T99+W99,"") -> 70 | I95: 86 | J95: Appart, | K95: 65 | L95: 236 | M95: Cave | N95: 5 | X95: 86 | Y95: LEFOLLET-LANGLET
A96: 87 | B96: Me | C96: Madame | D96: LEGRAS Simone | E96: 13 rue de l' espoir | F96: 75016 | G96: Paris | H96: =IF(K96+N96+Q96+W96>0,K96+N96+Q96+T96+W96,"") -> 100 | I96: 87 | J96: Appart, | K96: 95 | L96: 237 | M96: Cave | N96: 5 | X96: 87 | Y96: LEGRAS Simone
A97: 88 | B97: Me | C97: Madame | D97: LESTOURNELLE | E97: 13 rue de l' espoir | F97: 75016 | G97: Paris | H97: =IF(K97+N97+Q97+W97>0,K97+N97+Q97+T97+W97,"") -> 86 | I97: 88 | J97: Appart, | K97: 81 | L97: 238 | M97: Cave | N97: 5 | X97: 88 | Y97: LESTOURNELLE
A98: 89 | B98: M. | C98: Monsieur | D98: LIGOT Jacques | E98: 19 Rue du Paradis | F98: 33000 | G98: Bordeaux | H98: =IF(K98+N98+Q102+W102>0,K98+N98+Q102+T102+W102,"") -> 50 | I98: 89 | J98: Appart, | K98: 45 | L98: 239 | M98: Cave | N98: 5 | X98: 89 | Y98: LIGOT Jacques
A99: 90 | B99: M | C99: Monieur | D99: LOPEZ Pierre | E99: 13 rue de l' espoir | F99: 75016 | G99: Paris | H99: =IF(K99+N99+Q99+W99>0,K99+N99+Q99+T99+W99,"") -> 40 | I99: 90 | J99: Appart, | K99: 35 | L99: 240 | M99: Cave | N99: 5 | X99: 90 | Y99: LOPEZ Pierre
A100: 91 | B100: Me | C100: Madame | D100: LOUNES Jeannette | E100: 13 rue de l' espoir | F100: 75016 | G100: Paris | H100: 96 | I100: 91 | J100: Appart, | K100: 91 | L100: 241 | M100: Cave | N100: 5 | X100: 91 | Y100: LOUNES Jeannette
A101: 92 | B101: M | C101: Monieur | D101: MAACK - BRUNETEAU Dominique | E101: 13 rue de l' espoir | F101: 75016 | G101: Paris | H101: 50 | I101: 92 | J101: Appart, | K101: 45 | L101: 242 | M101: Cave | N101: 5 | X101: 92 | Y101: MAACK - BRUNETEAU Dominique
A102: 93 | B102: Me | C102: Madame | D102: MAACK - BUREU Denise | E102: 13 rue de l' espoir | F102: 75016 | G102: Paris | H102: 80 | I102: 93 | J102: Appart, | K102: 75 | L102: 243 | M102: Cave | N102: 5 | X102: 93 | Y102: MAACK - BUREU Denise
A103: 94 | B103: M | C103: Monieur | D103: MACQUET | E103: 13 rue de l' espoir | F103: 75016 | G103: Paris | H103: 62 | I103: 94 | J103: Appart, | K103: 57 | L103: 244 | M103: Cave | N103: 5 | X103: 94 | Y103: MACQUET
A104: 95 | B104: Me | C104: Madame | D104: MALARTIC Odile | E104: 13 rue de l' espoir | F104: 75016 | G104: Paris | H104: 63 | I104: 95 | J104: Appart, | K104: 58 | L104: 245 | M104: Cave | N104: 5 | X104: 95 | Y104: MALARTIC Odile | Z104: Malartic@Free,fr
A105: 96 | B105: M. | C105: Madame | D105: MANDARD Jacqueline | E105: 19 Rue du Paradis | F105: 33000 | G105: Bordeaux | H105: =IF(K105+N105+Q109+W109>0,K105+N105+Q109+T109+W109,"") -> 70 | I105: 96 | J105: Appart, | K105: 65 | L105: 246 | M105: Cave | N105: 5 | X105: 96 | Y105: MANDARD Jacqueline
A106: 97 | B106: M | C106: Monieur | D106: Marinacce - Chatain Jeanne | E106: 13 rue de l' espoir | F106: 75016 | G106: Paris | H106: =IF(K106+N106+Q106+W106>0,K106+N106+Q106+T106+W106,"") -> 76 | I106: 97 | J106: Appart, | K106: 71 | L106: 247 | M106: Cave | N106: 5 | X106: 97 | Y106: Marinacce - Chatain Jeanne
A107: 98 | B107: Me | C107: Madame | D107: MATTEI Andrée | E107: 13 rue de l' espoir | F107: 75016 | G107: Paris | H107: =IF(K107+N107+Q107+W107>0,K107+N107+Q107+T107+W107,"") -> 103 | I107: 98 | J107: Appart, | K107: 98 | L107: 248 | M107: Cave | N107: 5 | X107: 98 | Y107: MATTEI Andrée
A108: 99 | B108: M. | C108: Monsieur | D108: MAUDUIT Trobert | E108: 19 Rue du Paradis | F108: 33000 | G108: Bordeaux | H108: =IF(K108+N108+Q112+W112>0,K108+N108+Q112+T112+W112,"") -> 50 | I108: 99 | J108: Appart, | K108: 45 | L108: 249 | M108: Cave | N108: 5 | X108: 99 | Y108: MAUDUIT Trobert
A109: 100 | B109: Me | C109: Madame | D109: MEAILLE Simone | E109: 13 rue de l' espoir | F109: 75016 | G109: Paris | H109: =IF(K109+N109+Q109+W109>0,K109+N109+Q109+T109+W109,"") -> 63 | I109: 101 | J109: Appart, | K109: 58 | L109: 251 | M109: Cave | N109: 5 | R109: 1500 | S109: APP | X109: 100 | Y109: MEAILLE Simone
A110: 101 | B110: Me | C110: Madame | D110: MEISSONNIER Josiane | E110: 13 rue de l' espoir | F110: 75016 | G110: Paris | H110: 100 | I110: 102 | J110: Appart, | K110: 95 | L110: 252 | M110: Cave | N110: 5 | X110: 101 | Y110: MEISSONNIER Josiane
A111: 102 | B111: Me | C111: Madame | D111: MEYNARD Armande | E111: 13 rue de l' espoir | F111: 75016 | G111: Paris | H111: 62 | I111: 103 | J111: Appart, | K111: 57 | L111: 253 | M111: Cave | N111: 5 | X111: 102 | Y111: MEYNARD Armande
A112: 103 | B112: M | C112: Monieur | D112: MIALHE André | E112: 13 rue de l' espoir | F112: 75016 | G112: Paris | H112: 97 | I112: 104 | J112: Appart, | K112: 92 | L112: 254 | M112: Cave | N112: 5 | X112: 103 | Y112: MIALHE André
A113: 104 | B113: M | C113: Monieur | D113: MICHEL Gérard | E113: 13 rue de l' espoir | F113: 75016 | G113: Paris | H113: 100 | I113: 105 | J113: Appart, | K113: 95 | L113: 255 | M113: Cave | N113: 5 | X113: 104 | Y113: MICHEL Gérard
A114: 105 | B114: Me | C114: Madame | D114: MORERA Suzanne | E114: 13 rue de l' espoir | F114: 75016 | G114: Paris | H114: 100 | I114: 106 | J114: Appart, | K114: 95 | L114: 256 | M114: Cave | N114: 5 | X114: 105 | Y114: MORERA Suzanne
A115: 106 | B115: M. | C115: Monsieur | D115: MOTTIN Marcel | E115: 19 Rue du Paradis | F115: 33000 | G115: Bordeaux | H115: =IF(K115+N115+Q119+W119>0,K115+N115+Q119+T119+W119,"") -> 50 | I115: 107 | J115: Appart, | K115: 45 | L115: 257 | M115: Cave | N115: 5 | X115: 106 | Y115: MOTTIN Marcel
A116: 107 | B116: M. | C116: Madame | D116: MOURRE Jeanine | E116: 19 Rue du Paradis | F116: 33000 | G116: Bordeaux | H116: =IF(K116+N116+Q120+W120>0,K116+N116+Q120+T120+W120,"") -> 49 | I116: 108 | J116: Appart, | K116: 44 | L116: 258 | M116: Cave | N116: 5 | X116: 107 | Y116: MOURRE Jeanine
A117: 108 | B117: M. | C117: Monsieur | D117: MULARDEC Paul | E117: 19 Rue du Paradis | F117: 33000 | G117: Bordeaux | H117: =IF(K117+N117+Q121+W121>0,K117+N117+Q121+T121+W121,"") -> 64 | I117: 109 | J117: Appart, | K117: 59 | L117: 259 | M117: Cave | N117: 5 | X117: 108 | Y117: MULARDEC Paul
A118: 109 | B118: M | C118: Monieur | D118: NICOLAS Jean | E118: 13 rue de l' espoir | F118: 75016 | G118: Paris | H118: =IF(K118+N118+Q118+W118>0,K118+N118+Q118+T118+W118,"") -> 93 | I118: 110 | J118: Appart, | K118: 88 | L118: 260 | M118: Cave | N118: 5 | X118: 109 | Y118: NICOLAS Jean
A119: 110 | B119: Me | C119: Madame | D119: NICOLE Solange | E119: 13 rue de l' espoir | F119: 75016 | G119: Paris | H119: =IF(K119+N119+Q119+W119>0,K119+N119+Q119+T119+W119,"") -> 90 | I119: 111 | J119: Appart, | K119: 85 | L119: 261 | M119: Cave | N119: 5 | X119: 110 | Y119: NICOLE Solange
A120: 111 | B120: M. | C120: Monsieur | D120: NOGER Pierre | E120: 19 Rue du Paradis | F120: 33000 | G120: Bordeaux | H120: =IF(K120+N120+Q124+W124>0,K120+N120+Q124+T124+W124,"") -> 60 | I120: 112 | J120: Appart, | K120: 55 | L120: 262 | M120: Cave | N120: 5 | X120: 111 | Y120: NOGER Pierre
A121: 112 | B121: M | C121: Monieur | D121: OLIVA | E121: 13 rue de l' espoir | F121: 75016 | G121: Paris | H121: =IF(K121+N121+Q121+W121>0,K121+N121+Q121+T121+W121,"") -> 80 | I121: 113 | J121: Appart, | K121: 75 | L121: 263 | M121: Cave | N121: 5 | X121: 112 | Y121: OLIVA
A122: 113 | B122: M | C122: Monieur | D122: OLIVA Stéphane | E122: 13 rue de l' espoir | F122: 75016 | G122: Paris | H122: =IF(K122+N122+Q122+W122>0,K122+N122+Q122+T122+W122,"") -> 59 | I122: 114 | J122: Appart, | K122: 54 | L122: 264 | M122: Cave | N122: 5 | X122: 113 | Y122: OLIVA Stéphane
A123: 114 | B123: Me | C123: Madame | D123: PEIRANO Olga | E123: 13 rue de l' espoir | F123: 75016 | G123: Paris | H123: =IF(K123+N123+Q123+W123>0,K123+N123+Q123+T123+W123,"") -> 59 | I123: 115 | J123: Appart, | K123: 54 | L123: 265 | M123: Cave | N123: 5 | X123: 114 | Y123: PEIRANO Olga
A124: 115 | B124: Me | C124: Madame | D124: PELLEGRIN Jean ierre | E124: 19 Rue du Paradis | F124: 33000 | G124: Bordeaux | H124: =IF(K124+N124+Q128+W128>0,K124+N124+Q128+T128+W128,"") -> 40 | I124: 116 | J124: Appart, | K124: 35 | L124: 266 | M124: Cave | N124: 5 | X124: 115 | Y124: PELLEGRIN Jean ierre
A125: 116 | B125: M. | C125: Monsieur | D125: PETROV Nicolas | E125: 19 Rue du Paradis | F125: 33000 | G125: Bordeaux | H125: =IF(K125+N125+Q129+W129>0,K125+N125+Q129+T129+W129,"") -> 60 | I125: 117 | J125: Appart, | K125: 55 | L125: 267 | M125: Cave | N125: 5 | X125: 116 | Y125: PETROV Nicolas
A126: 117 | B126: M. | C126: Monsieur | D126: PEZTITON René | E126: 19 Rue du Paradis | F126: 33000 | G126: Bordeaux | H126: =IF(K126+N126+Q130+W130>0,K126+N126+Q130+T130+W130,"") -> 47 | I126: 118 | J126: Appart, | K126: 42 | L126: 268 | M126: Cave | N126: 5 | X126: 117 | Y126: PEZTITON René
A127: 118 | B127: M | C127: Monieur | D127: PISTONE Georges | E127: 13 rue de l' espoir | F127: 75016 | G127: Paris | H127: =IF(K127+N127+Q127+W127>0,K127+N127+Q127+T127+W127,"") -> 70 | I127: 119 | J127: Appart, | K127: 65 | L127: 269 | M127: Cave | N127: 5 | X127: 118 | Y127: PISTONE Georges
A128: 119 | B128: M | C128: Monieur | D128: PONCELET Didier | E128: 13 rue de l' espoir | F128: 75016 | G128: Paris | H128: 52 | I128: 120 | J128: Appart, | K128: 47 | L128: 270 | M128: Cave | N128: 5 | X128: 119 | Y128: PONCELET Didier
A129: 120 | B129: M | C129: Monieur | D129: PROUVOST Jean | E129: 13 rue de l' espoir | F129: 75016 | G129: Paris | H129: 90 | I129: 121 | J129: Appart, | K129: 85 | L129: 271 | M129: Cave | N129: 5 | X129: 120 | Y129: PROUVOST Jean
A130: 121 | B130: M | C130: Monieur | D130: PUONS René | E130: 13 rue de l' espoir | F130: 75016 | G130: Paris | H130: 103 | I130: 122 | J130: Appart, | K130: 98 | L130: 272 | M130: Cave | N130: 5 | X130: 121 | Y130: PUONS René
A131: 122 | B131: M | C131: Monieur | D131: RAYNAUD Laurence | E131: 13 rue de l' espoir | F131: 75016 | G131: Paris | H131: 83 | I131: 123 | J131: Appart, | K131: 78 | L131: 273 | M131: Cave | N131: 5 | X131: 122 | Y131: RAYNAUD Laurence
A132: 123 | B132: Me | C132: Madame | D132: RENAUD Cécile | E132: 13 rue de l' espoir | F132: 75016 | G132: Paris | H132: 91 | I132: 124 | J132: Appart, | K132: 86 | L132: 274 | M132: Cave | N132: 5 | X132: 123 | Y132: RENAUD Cécile
A133: 124 | B133: Me | C133: Madame | D133: RICHOUX Alexandra | E133: 13 rue de l' espoir | F133: 75016 | G133: Paris | H133: 55 | I133: 125 | J133: Appart, | K133: 50 | L133: 275 | M133: Cave | N133: 5 | X133: 124 | Y133: RICHOUX Alexandra
A134: 125 | B134: Me | C134: Madame | D134: ROBERT MARMO Josiane | E134: 13 rue de l' espoir | F134: 75016 | G134: Paris | H134: 92 | I134: 126 | J134: Appart, | K134: 87 | L134: 276 | M134: Cave | N134: 5 | X134: 125 | Y134: ROBERT MARMO Josiane
A135: 126 | B135: Mr Me | C135: Monsieur Madame | D135: ROCHETEAU-SOONEKINDT | E135: 13 rue de l' espoir | F135: 75016 | G135: Paris | H135: 100 | I135: 127 | J135: Appart, | K135: 95 | L135: 277 | M135: Cave | N135: 5 | X135: 126 | Y135: ROCHETEAU-SOONEKINDT
A136: 127 | B136: M | C136: Monieur | D136: RUIZ José | E136: 13 rue de l' espoir | F136: 75016 | G136: Paris | H136: 98 | I136: 128 | J136: Appart, | K136: 93 | L136: 278 | M136: Cave | N136: 5 | X136: 127 | Y136: RUIZ José
A137: 128 | B137: M | C137: Monieur | D137: RUIZ Marcel | E137: 13 rue de l' espoir | F137: 75016 | G137: Paris | H137: 91 | I137: 129 | J137: Appart, | K137: 86 | L137: 279 | M137: Cave | N137: 5 | X137: 128 | Y137: RUIZ Marcel
A138: 129 | B138: M | C138: Monieur | D138: RUSSEAU Thomas | E138: 13 rue de l' espoir | F138: 75016 | G138: Paris | H138: 101 | I138: 130 | J138: Appart, | K138: 96 | L138: 280 | M138: Cave | N138: 5 | X138: 129 | Y138: RUSSEAU Thomas
A139: 130 | B139: Me | C139: Madame | D139: SALDOT Sylviane | E139: 13 rue de l' espoir | F139: 75016 | G139: Paris | H139: 53 | I139: 131 | J139: Appart, | K139: 48 | L139: 281 | M139: Cave | N139: 5 | X139: =A139 -> 130 | Y139: =D139 -> SALDOT Sylviane
A140: 131 | B140: M | C140: Monieur | D140: SAMUELIAN Charles | E140: 13 rue de l' espoir | F140: 75016 | G140: Paris | H140: 57 | I140: 132 | J140: Appart, | K140: 52 | L140: 282 | M140: Cave | N140: 5 | X140: 131 | Y140: SAMUELIAN Charles
A141: 132 | B141: M | C141: Monieur | D141: SANNA - DVORAK Laurent - Isabel | E141: 13 rue de l' espoir | F141: 75016 | G141: Paris | H141: 92 | I141: 133 | J141: Appart, | K141: 87 | L141: 283 | M141: Cave | N141: 5 | X141: 132 | Y141: SANNA - DVORAK Laurent - Isabel
A142: 133 | B142: Me | C142: Madame | D142: SARLIN / MAUREL Jocelyne | E142: 13 rue de l' espoir | F142: 75016 | G142: Paris | H142: 94 | I142: 100 | J142: Appart, | K142: 89 | L142: 250 | M142: Cave | N142: 5 | X142: 133 | Y142: SARLIN / MAUREL Jocelyne
A143: 134 | B143: M | C143: Monieur | D143: SCALIA Serge | E143: 13 rue de l' espoir | F143: 75016 | G143: Paris | H143: 53 | I143: 134 | J143: Appart, | K143: 48 | L143: 284 | M143: Cave | N143: 5 | X143: 134 | Y143: SCALIA Serge
A144: 135 | B144: Mme | C144: Madame | D144: SCHMIT Isabelle | E144: 19 Rue du Paradis | F144: 33000 | G144: Bordeaux | H144: =IF(K144+N144+Q148+W148>0,K144+N144+Q148+T148+W148,"") -> 40 | I144: 135 | J144: Appart, | K144: 35 | L144: 285 | M144: Cave | N144: 5 | X144: 135 | Y144: SCHMIT Isabelle
A145: 136 | B145: Mr | C145: Monsieur | D145: SCIALON Victor | E145: 19 Rue du Paradis | F145: 33000 | G145: Bordeaux | H145: =IF(K145+N145+Q149+W149>0,K145+N145+Q149+T149+W149,"") -> 48 | I145: 136 | J145: Appart, | K145: 43 | L145: 286 | M145: Cave | N145: 5 | X145: 136 | Y145: SCIALON Victor
A146: 137 | B146: M | C146: Monieur | D146: SERREE Patrick | E146: 13 rue de l' espoir | F146: 75016 | G146: Paris | H146: =IF(K146+N146+Q146+W146>0,K146+N146+Q146+T146+W146,"") -> 56 | I146: 137 | J146: Appart, | K146: 51 | L146: 287 | M146: Cave | N146: 5 | X146: 137 | Y146: SERREE Patrick
A147: 138 | B147: M | C147: Monieur | D147: SIEURAC Philippe | E147: 13 rue de l' espoir | F147: 75016 | G147: Paris | H147: =IF(K147+N147+Q147+W147>0,K147+N147+Q147+T147+W147,"") -> 60 | I147: 138 | J147: Appart, | K147: 55 | L147: 288 | M147: Cave | N147: 5 | X147: 138 | Y147: SIEURAC Philippe
A148: 139 | B148: Me | C148: Madame | D148: SIMON Josette | E148: 13 rue de l' espoir | F148: 75016 | G148: Paris | H148: =IF(K148+N148+Q148+W148>0,K148+N148+Q148+T148+W148,"") -> 51 | I148: 139 | J148: Appart, | K148: 46 | L148: 289 | M148: Cave | N148: 5 | X148: 139 | Y148: SIMON Josette
A149: 140 | B149: M. | C149: Monsieur | D149: SIMON Piaul | E149: 19 Rue du Paradis | F149: 33000 | G149: Bordeaux | H149: =IF(K149+N149+Q153+W153>0,K149+N149+Q153+T153+W153,"") -> 53 | I149: 140 | J149: Appart, | K149: 48 | L149: 290 | M149: Cave | N149: 5 | X149: 140 | Y149: SIMON Piaul
A150: 141 | B150: Mr Me | C150: Monsieur Madame | D150: SOLVEZ-BOUCHER | E150: 13 rue de l' espoir | F150: 75016 | G150: Paris | H150: =IF(K150+N150+Q150+W150>0,K150+N150+Q150+T150+W150,"") -> 93 | I150: 141 | J150: Appart, | K150: 88 | L150: 291 | M150: Cave | N150: 5 | X150: 141 | Y150: SOLVEZ-BOUCHER
A151: 142 | B151: Mr | C151: Monsieur | D151: STURM Philippe | E151: 13 rue de l' espoir | F151: 75016 | G151: Paris | H151: =IF(K151+N151+Q151+W151>0,K151+N151+Q151+T151+W151,"") -> 90 | I151: 142 | J151: Appart, | K151: 85 | L151: 292 | M151: Cave | N151: 5 | X151: 142 | Y151: STURM Philippe
A152: 143 | B152: M. | C152: Monsieur | D152: TANDY G&érard | E152: 19 Rue du Paradis | F152: 33000 | G152: Bordeaux | H152: =IF(K152+N152+Q156+W156>0,K152+N152+Q156+T156+W156,"") -> 40 | I152: 143 | J152: Appart, | K152: 35 | L152: 293 | M152: Cave | N152: 5 | X152: 143 | Y152: TANDY G&érard
A153: 144 | B153: Mr | C153: Monsieur | D153: THUMERELLE Sébastien | E153: 13 rue de l' espoir | F153: 75016 | G153: Paris | H153: =IF(K153+N153+Q153+W153>0,K153+N153+Q153+T153+W153,"") -> 80 | I153: 144 | J153: Appart, | K153: 75 | L153: 294 | M153: Cave | N153: 5 | X153: 144 | Y153: THUMERELLE Sébastien
A154: 145 | B154: M. | C154: Monsieur | D154: TONDU Simon | E154: 19 Rue du Paradis | F154: 33000 | G154: Bordeaux | H154: =IF(K154+N154+Q158+W158>0,K154+N154+Q158+T158+W158,"") -> 40 | I154: 145 | J154: Appart, | K154: 35 | L154: 295 | M154: Cave | N154: 5 | X154: 145 | Y154: TONDU Simon
A155: 146 | B155: M. | C155: Monsieur | D155: VERMONT André | E155: 19 Rue du Paradis | F155: 33000 | G155: Bordeaux | H155: =IF(K155+N155+Q159+W159>0,K155+N155+Q159+T159+W159,"") -> 52 | I155: 146 | J155: Appart, | K155: 47 | L155: 296 | M155: Cave | N155: 5 | X155: 146 | Y155: VERMONT André
A156: 147 | B156: Me | C156: Madame | D156: VIGLIONE Léa | E156: 13 rue de l' espoir | F156: 75016 | G156: Paris | H156: =IF(K156+N156+Q156+W156>0,K156+N156+Q156+T156+W156,"") -> 61 | I156: 147 | J156: Appart, | K156: 56 | L156: 297 | M156: Cave | N156: 5 | X156: 147 | Y156: VIGLIONE Léa | Z156: Viglione-L@free,fr
A157: 148 | B157: Mr | C157: Monsieur | D157: WINGERT Philippe | E157: 13 rue de l' espoir | F157: 75016 | G157: Paris | H157: =IF(K157+N157+Q157+W157>0,K157+N157+Q157+T157+W157,"") -> 80 | I157: 148 | J157: Appart, | K157: 75 | L157: 298 | M157: Cave | N157: 5 | X157: 148 | Y157: WINGERT Philippe
A158: 149 | B158: M. | C158: Monsieur | D158: YOUSEF Amed | E158: 19 Rue du Paradis | F158: 33000 | G158: Bordeaux | H158: =IF(K158+N158+Q162+W162>0,K158+N158+Q162+T162+W162,"") -> 52 | I158: 149 | J158: Appart, | K158: 47 | L158: 299 | M158: Cave | N158: 5 | X158: 149 | Y158: YOUSEF Amed
A159: 150 | B159: Mr | C159: Monsieur | D159: ZIADI MONGI | E159: 13 rue de l' espoir | F159: 75016 | G159: Paris | H159: =IF(K159+N159+Q163+W163>0,K159+N159+Q163+T163+W163,"") -> 53 | I159: 150 | J159: Appart, | K159: 48 | L159: 300 | M159: Cave | N159: 5 | X159: 150 | Y159: ZIADI MONGI | Z159: Ziadi-Mongi@free,fr
H160: =SUM(H10:H159) -> 10000 | J160: =IF(H160-K160-N160-Q160-T160-W160=0,"","ERREUR") ->  | K160: =SUM(K10:K159) -> 9250 | N160: =SUM(N10:N159) -> 750 | Q160: =SUM(Q10:Q159) -> 0 | T160: =SUM(T10:T159) -> 0 | W160: =SUM(W10:W159) -> 0

Sheet F.P.8
D2: A S S E M B L E E G E N E R A L E | K2: Page | L2: 1
F3: du | G3: =IF(A6>0,Liste!C1,"") -> 00:00:00
D4: Résidence Le Paradis; Rue de l' espoir 75016 PARIS
A6: 1 | G6: Par correspondance reçu le
A7: =IF($A6<>0,VLOOKUP($A6,Liste!$A$10:$W$459,3,FALSE),"") -> Monsieur | B7: =IF($A6<>0,VLOOKUP($A6,Liste!$A$10:$W$459,4,FALSE),"") -> ALEXANDRINI André | E7: =IF($A6<>0,VLOOKUP($A6,Liste!$A$10:$W$459,8,FALSE),"") -> 10 | G7: Par visio, audio conférence,,,,
A8: =IF($A6<>0,VLOOKUP($A6,Liste!$A$10:$W$459,5,FALSE),"") -> 13 rue de l' espoir | G8: Signature/ Mandataire :
A9: =IF($A6<>0,VLOOKUP($A6,Liste!$A$10:$W$459,6,FALSE),"") -> 75016 | B9: =IF($A6<>0,VLOOKUP($A6,Liste!$A$10:$W$459,7,FALSE),"") -> Paris
A10: =IF($A6<>0, "Lot " & VLOOKUP($A6,Liste!$A$10:$W$459,9,FALSE),"") -> Lot 1 | B10: =IF($A6<>0,VLOOKUP($A6,Liste!$A$10:$W$459,10,FALSE),"") -> Appart, | C10: =IF($A6<>0,VLOOKUP($A6,Liste!$A$10:$W$459,11,FALSE),"") -> 5
A11: =IF($A6<>0,"Lot " & VLOOKUP($A6,Liste!$A$10:$W$459,12,FALSE),"") -> Lot 151 | B11: =IF($A6<>0,VLOOKUP($A6,Liste!$A$10:$W$459,13,FALSE),"") -> Cave | C11: =IF($A6<>0,VLOOKUP($A6,Liste!$A$10:$W$459,14,FALSE),"") -> 5
A12: =IF($A6<>0,"Lot " & VLOOKUP($A6,Liste!$A$10:$W$459,15,FALSE),"") -> Lot | B12: =IF($A6<>0,VLOOKUP($A6,Liste!$A$10:$W$459,16,FALSE),"") -> 0 | C12: =IF($A6<>0,VLOOKUP($A6,Liste!$A$10:$W$459,17,FALSE),"") -> 0 | G12: Arrivé à | H12: après vote de la Résolution N°
A13: =IF($A6<>0,"Lot " & VLOOKUP($A6,Liste!$A$10:$W$459,18,FALSE),"") -> Lot | B13: 0 | C13: =IF($A6<>0,VLOOKUP($A6,Liste!$A$10:$W$459,19,FALSE),"") -> 0 | G13: Départ à | H13: après vote de la Résolution N°
A14: =IF($A6<>0,"Lot " & VLOOKUP($A6,Liste!$A$10:$W$459,21,FALSE),"") -> Lot | B14: =IF($A6<>0,VLOOKUP($A6,Liste!$A$10:$W$459,22,FALSE),"") -> 0 | C14: =IF($A6<>0,VLOOKUP($A6,Liste!$A$10:$W$459,23,FALSE),"") -> 0 | G14: =IF(OR(B7=0,VLOOKUP(A6,Liste!$A$10:'Liste'!$Z$459,26)<>""),"", "Voir autorisation messages électroniques") -> 
A15: =A6+1 -> 2 | G15: Par correspondance reçu le
A16: =IF($A15<>0,VLOOKUP($A15,Liste!$A$10:$W$459,3,FALSE),"") -> Madame | B16: =IF($A15<>0,VLOOKUP($A15,Liste!$A$10:$W$459,4,FALSE),"") -> ANNINOS Henri | E16: =IF($A15<>0,VLOOKUP($A15,Liste!$A$10:$W$459,8,FALSE),"") -> 70 | G16: Par visio, audio conférence,,,,
A17: =IF($A15<>0,VLOOKUP($A15,Liste!$A$10:$W$459,5,FALSE),"") -> 13 rue de l' espoir | G17: Signature/ Mandataire :
A18: =IF($A15<>0,VLOOKUP($A15,Liste!$A$10:$W$459,6,FALSE),"") -> 75016 | B18: =IF($A15<>0,VLOOKUP($A15,Liste!$A$10:$W$459,7,FALSE),"") -> Paris
A19: =IF($A15<>0, "Lot " & VLOOKUP($A15,Liste!$A$10:$W$459,9,FALSE),"") -> Lot 2 | B19: =IF($A15<>0,VLOOKUP($A15,Liste!$A$10:$W$459,10,FALSE),"") -> Appart, | C19: =IF($A15<>0,VLOOKUP($A15,Liste!$A$10:$W$459,11,FALSE),"") -> 65
A20: =IF($A15<>0,"Lot " & VLOOKUP($A15,Liste!$A$10:$W$459,12,FALSE),"") -> Lot 152 | B20: =IF($A15<>0,VLOOKUP($A15,Liste!$A$10:$W$459,13,FALSE),"") -> Cave | C20: =IF($A15<>0,VLOOKUP($A15,Liste!$A$10:$W$459,14,FALSE),"") -> 5
A21: =IF($A15<>0,"Lot " & VLOOKUP($A15,Liste!$A$10:$W$459,15,FALSE),"") -> Lot | B21: =IF($A15<>0,VLOOKUP($A15,Liste!$A$10:$W$459,16,FALSE),"") -> 0 | C21: =IF($A15<>0,VLOOKUP($A15,Liste!$A$10:$W$459,17,FALSE),"") -> 0 | G21: Arrivé à | H21: après vote de la Résolution N°
A22: =IF($A15<>0,"Lot " & VLOOKUP($A15,Liste!$A$10:$W$459,18,FALSE),"") -> Lot | B22: 0 | C22: =IF($A15<>0,VLOOKUP($A15,Liste!$A$10:$W$459,19,FALSE),"") -> 0 | G22: Départ à | H22: après vote de la Résolution N°
A23: =IF($A15<>0,"Lot " & VLOOKUP($A15,Liste!$A$10:$W$459,21,FALSE),"") -> Lot | B23: =IF($A15<>0,VLOOKUP($A15,Liste!$A$10:$W$459,22,FALSE),"") -> 0 | C23: =IF($A15<>0,VLOOKUP($A15,Liste!$A$10:$W$459,23,FALSE),"") -> 0 | G23: =IF(OR(B16=0,VLOOKUP(A15,Liste!$A$10:'Liste'!$Z$459,26)<>""),"", "Voir autorisation messages électroniques") -> Voir autorisation messages électroniques
A24: =A15+1 -> 3 | G24: Par correspondance reçu le
A25: =IF($A24<>0,VLOOKUP($A24,Liste!$A$10:$W$459,3,FALSE),"") -> Mr et Mme | B25: =IF($A24<>0,VLOOKUP($A24,Liste!$A$10:$W$459,4,FALSE),"") -> BALDACCHINO Laurence | E25: =IF($A24<>0,VLOOKUP($A24,Liste!$A$10:$W$459,8,FALSE),"") -> 100 | G25: Par visio, audio conférence,,,,
A26: =IF($A24<>0,VLOOKUP($A24,Liste!$A$10:$W$459,5,FALSE),"") -> 13 rue de l' espoir | G26: Signature/ Mandataire :
A27: =IF($A24<>0,VLOOKUP($A24,Liste!$A$10:$W$459,6,FALSE),"") -> 75016 | B27: =IF($A24<>0,VLOOKUP($A24,Liste!$A$10:$W$459,7,FALSE),"") -> Paris
A28: =IF($A24<>0, "Lot " & VLOOKUP($A24,Liste!$A$10:$W$459,9,FALSE),"") -> Lot 3 | B28: =IF($A24<>0,VLOOKUP($A24,Liste!$A$10:$W$459,10,FALSE),"") -> Appart, | C28: =IF($A24<>0,VLOOKUP($A24,Liste!$A$10:$W$459,11,FALSE),"") -> 95
A29: =IF($A24<>0,"Lot " & VLOOKUP($A24,Liste!$A$10:$W$459,12,FALSE),"") -> Lot 153 | B29: =IF($A24<>0,VLOOKUP($A24,Liste!$A$10:$W$459,13,FALSE),"") -> Cave | C29: =IF($A24<>0,VLOOKUP($A24,Liste!$A$10:$W$459,14,FALSE),"") -> 5
A30: =IF($A24<>0,"Lot " & VLOOKUP($A24,Liste!$A$10:$W$459,15,FALSE),"") -> Lot | B30: =IF($A24<>0,VLOOKUP($A24,Liste!$A$10:$W$459,16,FALSE),"") -> 0 | C30: =IF($A24<>0,VLOOKUP($A24,Liste!$A$10:$W$459,17,FALSE),"") -> 0 | G30: Arrivé à | H30: après vote de la Résolution N°
A31: =IF($A24<>0,"Lot " & VLOOKUP($A24,Liste!$A$10:$W$459,18,FALSE),"") -> Lot | B31: 0 | C31: =IF($A24<>0,VLOOKUP($A24,Liste!$A$10:$W$459,19,FALSE),"") -> 0 | G31: Départ à | H31: après vote de la Résolution N°
A32: =IF($A24<>0,"Lot " & VLOOKUP($A24,Liste!$A$10:$W$459,21,FALSE),"") -> Lot | B32: =IF($A24<>0,VLOOKUP($A24,Liste!$A$10:$W$459,22,FALSE),"") -> 0 | C32: =IF($A24<>0,VLOOKUP($A24,Liste!$A$10:$W$459,23,FALSE),"") -> 0 | G32: =IF(OR(B25=0,VLOOKUP(A24,Liste!$A$10:'Liste'!$Z$459,26)<>""),"", "Voir autorisation messages électroniques") -> 
A33: =A24+1 -> 4 | G33: Par correspondance reçu le
A34: =IF($A33<>0,VLOOKUP($A33,Liste!$A$10:$W$459,3,FALSE),"") -> Monsieur | B34: =IF($A33<>0,VLOOKUP($A33,Liste!$A$10:$W$459,4,FALSE),"") -> BANCHET Joseph | E34: =IF($A33<>0,VLOOKUP($A33,Liste!$A$10:$W$459,8,FALSE),"") -> 60 | G34: Par visio, audio conférence,,,,
A35: =IF($A33<>0,VLOOKUP($A33,Liste!$A$10:$W$459,5,FALSE),"") -> 14 rue de l' espoir | G35: Signature/ Mandataire :
A36: =IF($A33<>0,VLOOKUP($A33,Liste!$A$10:$W$459,6,FALSE),"") -> 75016 | B36: =IF($A33<>0,VLOOKUP($A33,Liste!$A$10:$W$459,7,FALSE),"") -> Paris
A37: =IF($A33<>0, "Lot " & VLOOKUP($A33,Liste!$A$10:$W$459,9,FALSE),"") -> Lot 4 | B37: =IF($A33<>0,VLOOKUP($A33,Liste!$A$10:$W$459,10,FALSE),"") -> Appart, | C37: =IF($A33<>0,VLOOKUP($A33,Liste!$A$10:$W$459,11,FALSE),"") -> 55
A38: =IF($A33<>0,"Lot " & VLOOKUP($A33,Liste!$A$10:$W$459,12,FALSE),"") -> Lot 154 | B38: =IF($A33<>0,VLOOKUP($A33,Liste!$A$10:$W$459,13,FALSE),"") -> Cave | C38: =IF($A33<>0,VLOOKUP($A33,Liste!$A$10:$W$459,14,FALSE),"") -> 5
A39: =IF($A33<>0,"Lot " & VLOOKUP($A33,Liste!$A$10:$W$459,15,FALSE),"") -> Lot | B39: =IF($A33<>0,VLOOKUP($A33,Liste!$A$10:$W$459,16,FALSE),"") -> 0 | C39: =IF($A33<>0,VLOOKUP($A33,Liste!$A$10:$W$459,17,FALSE),"") -> 0 | G39: Arrivé à | H39: après vote de la Résolution N°
A40: =IF($A33<>0,"Lot " & VLOOKUP($A33,Liste!$A$10:$W$459,18,FALSE),"") -> Lot | B40: 0 | C40: =IF($A33<>0,VLOOKUP($A33,Liste!$A$10:$W$459,19,FALSE),"") -> 0 | G40: Départ à | H40: après vote de la Résolution N°
A41: =IF($A33<>0,"Lot " & VLOOKUP($A33,Liste!$A$10:$W$459,21,FALSE),"") -> Lot | B41: =IF($A33<>0,VLOOKUP($A33,Liste!$A$10:$W$459,22,FALSE),"") -> 0 | C41: =IF($A33<>0,VLOOKUP($A33,Liste!$A$10:$W$459,23,FALSE),"") -> 0 | G41: =IF(OR(B34=0,VLOOKUP(A33,Liste!$A$10:'Liste'!$Z$459,26)<>""),"", "Voir autorisation messages électroniques") -> Voir autorisation messages électroniques
A42: =A33+1 -> 5 | G42: Par correspondance reçu le
A43: =IF($A42<>0,VLOOKUP($A42,Liste!$A$10:$W$459,3,FALSE),"") -> Madame | B43: =IF($A42<>0,VLOOKUP($A42,Liste!$A$10:$W$459,4,FALSE),"") -> BARDIN Andrée | E43: =IF($A42<>0,VLOOKUP($A42,Liste!$A$10:$W$459,8,FALSE),"") -> 50 | G43: Par visio, audio conférence,,,,
A44: =IF($A42<>0,VLOOKUP($A42,Liste!$A$10:$W$459,5,FALSE),"") -> 15 rue de l' espoir | G44: Signature/ Mandataire :
A45: =IF($A42<>0,VLOOKUP($A42,Liste!$A$10:$W$459,6,FALSE),"") -> 75016 | B45: =IF($A42<>0,VLOOKUP($A42,Liste!$A$10:$W$459,7,FALSE),"") -> Paris
A46: =IF($A42<>0, "Lot " & VLOOKUP($A42,Liste!$A$10:$W$459,9,FALSE),"") -> Lot 5 | B46: =IF($A42<>0,VLOOKUP($A42,Liste!$A$10:$W$459,10,FALSE),"") -> Appart, | C46: =IF($A42<>0,VLOOKUP($A42,Liste!$A$10:$W$459,11,FALSE),"") -> 45
A47: =IF($A42<>0,"Lot " & VLOOKUP($A42,Liste!$A$10:$W$459,12,FALSE),"") -> Lot 155 | B47: =IF($A42<>0,VLOOKUP($A42,Liste!$A$10:$W$459,13,FALSE),"") -> Cave | C47: =IF($A42<>0,VLOOKUP($A42,Liste!$A$10:$W$459,14,FALSE),"") -> 5
A48: =IF($A42<>0,"Lot " & VLOOKUP($A42,Liste!$A$10:$W$459,15,FALSE),"") -> Lot | B48: =IF($A42<>0,VLOOKUP($A42,Liste!$A$10:$W$459,16,FALSE),"") -> 0 | C48: =IF($A42<>0,VLOOKUP($A42,Liste!$A$10:$W$459,17,FALSE),"") -> 0 | G48: Arrivé à | H48: après vote de la Résolution N°
A49: =IF($A42<>0,"Lot " & VLOOKUP($A42,Liste!$A$10:$W$459,18,FALSE),"") -> Lot | B49: 0 | C49: =IF($A42<>0,VLOOKUP($A42,Liste!$A$10:$W$459,19,FALSE),"") -> 0 | G49: Départ à | H49: après vote de la Résolution N°
A50: =IF($A42<>0,"Lot " & VLOOKUP($A42,Liste!$A$10:$W$459,21,FALSE),"") -> Lot | B50: =IF($A42<>0,VLOOKUP($A42,Liste!$A$10:$W$459,22,FALSE),"") -> 0 | C50: =IF($A42<>0,VLOOKUP($A42,Liste!$A$10:$W$459,23,FALSE),"") -> 0 | G50: =IF(OR(B43=0,VLOOKUP(A42,Liste!$A$10:'Liste'!$Z$459,26)<>""),"", "Voir autorisation messages électroniques") -> Voir autorisation messages électroniques
A51: =A42+1 -> 6 | G51: Par correspondance reçu le
A52: =IF($A51<>0,VLOOKUP($A51,Liste!$A$10:$W$459,3,FALSE),"") -> Mr et Mme | B52: =IF($A51<>0,VLOOKUP($A51,Liste!$A$10:$W$459,4,FALSE),"") -> BARDIN-BENARD Louis | E52: =IF($A51<>0,VLOOKUP($A51,Liste!$A$10:$W$459,8,FALSE),"") -> 45 | G52: Par visio, audio conférence,,,,
A53: =IF($A51<>0,VLOOKUP($A51,Liste!$A$10:$W$459,5,FALSE),"") -> 16 rue de l' espoir | G53: Signature/ Mandataire :
A54: =IF($A51<>0,VLOOKUP($A51,Liste!$A$10:$W$459,6,FALSE),"") -> 75016 | B54: =IF($A51<>0,VLOOKUP($A51,Liste!$A$10:$W$459,7,FALSE),"") -> Paris
A55: =IF($A51<>0, "Lot " & VLOOKUP($A51,Liste!$A$10:$W$459,9,FALSE),"") -> Lot 6 | B55: =IF($A51<>0,VLOOKUP($A51,Liste!$A$10:$W$459,10,FALSE),"") -> Appart, | C55: =IF($A51<>0,VLOOKUP($A51,Liste!$A$10:$W$459,11,FALSE),"") -> 40
A56: =IF($A51<>0,"Lot " & VLOOKUP($A51,Liste!$A$10:$W$459,12,FALSE),"") -> Lot 156 | B56: =IF($A51<>0,VLOOKUP($A51,Liste!$A$10:$W$459,13,FALSE),"") -> Cave | C56: =IF($A51<>0,VLOOKUP($A51,Liste!$A$10:$W$459,14,FALSE),"") -> 5
A57: =IF($A51<>0,"Lot " & VLOOKUP($A51,Liste!$A$10:$W$459,15,FALSE),"") -> Lot | B57: =IF($A51<>0,VLOOKUP($A51,Liste!$A$10:$W$459,16,FALSE),"") -> 0 | C57: =IF($A51<>0,VLOOKUP($A51,Liste!$A$10:$W$459,17,FALSE),"") -> 0 | G57: Arrivé à | H57: après vote de la Résolution N°
A58: =IF($A51<>0,"Lot " & VLOOKUP($A51,Liste!$A$10:$W$459,18,FALSE),"") -> Lot | B58: 0 | C58: =IF($A51<>0,VLOOKUP($A51,Liste!$A$10:$W$459,19,FALSE),"") -> 0 | G58: Départ à | H58: après vote de la Résolution N°
A59: =IF($A51<>0,"Lot " & VLOOKUP($A51,Liste!$A$10:$W$459,21,FALSE),"") -> Lot | B59: =IF($A51<>0,VLOOKUP($A51,Liste!$A$10:$W$459,22,FALSE),"") -> 0 | C59: =IF($A51<>0,VLOOKUP($A51,Liste!$A$10:$W$459,23,FALSE),"") -> 0 | G59: =IF(OR(B52=0,VLOOKUP(A51,Liste!$A$10:'Liste'!$Z$459,26)<>""),"", "Voir autorisation messages électroniques") -> Voir autorisation messages électroniques
A60: =A51+1 -> 7 | G60: Par correspondance reçu le
A61: =IF($A60<>0,VLOOKUP($A60,Liste!$A$10:$W$459,3,FALSE),"") -> Mr et Mme | B61: =IF($A60<>0,VLOOKUP($A60,Liste!$A$10:$W$459,4,FALSE),"") -> BARDOUILLE Hermine | E61: =IF($A60<>0,VLOOKUP($A60,Liste!$A$10:$W$459,8,FALSE),"") -> 70 | G61: Par visio, audio conférence,,,,
A62: =IF($A60<>0,VLOOKUP($A60,Liste!$A$10:$W$459,5,FALSE),"") -> 13 rue de l' espoir | G62: Signature/ Mandataire :
A63: =IF($A60<>0,VLOOKUP($A60,Liste!$A$10:$W$459,6,FALSE),"") -> 75016 | B63: =IF($A60<>0,VLOOKUP($A60,Liste!$A$10:$W$459,7,FALSE),"") -> Paris
A64: =IF($A60<>0, "Lot " & VLOOKUP($A60,Liste!$A$10:$W$459,9,FALSE),"") -> Lot 7 | B64: =IF($A60<>0,VLOOKUP($A60,Liste!$A$10:$W$459,10,FALSE),"") -> Appart, | C64: =IF($A60<>0,VLOOKUP($A60,Liste!$A$10:$W$459,11,FALSE),"") -> 65
A65: =IF($A60<>0,"Lot " & VLOOKUP($A60,Liste!$A$10:$W$459,12,FALSE),"") -> Lot 157 | B65: =IF($A60<>0,VLOOKUP($A60,Liste!$A$10:$W$459,13,FALSE),"") -> Cave | C65: =IF($A60<>0,VLOOKUP($A60,Liste!$A$10:$W$459,14,FALSE),"") -> 5
A66: =IF($A60<>0,"Lot " & VLOOKUP($A60,Liste!$A$10:$W$459,15,FALSE),"") -> Lot | B66: =IF($A60<>0,VLOOKUP($A60,Liste!$A$10:$W$459,16,FALSE),"") -> 0 | C66: =IF($A60<>0,VLOOKUP($A60,Liste!$A$10:$W$459,17,FALSE),"") -> 0 | G66: Arrivé à | H66: après vote de la Résolution N°
A67: =IF($A60<>0,"Lot " & VLOOKUP($A60,Liste!$A$10:$W$459,18,FALSE),"") -> Lot | B67: 0 | C67: =IF($A60<>0,VLOOKUP($A60,Liste!$A$10:$W$459,19,FALSE),"") -> 0 | G67: Départ à | H67: après vote de la Résolution N°
A68: =IF($A60<>0,"Lot " & VLOOKUP($A60,Liste!$A$10:$W$459,21,FALSE),"") -> Lot | B68: =IF($A60<>0,VLOOKUP($A60,Liste!$A$10:$W$459,22,FALSE),"") -> 0 | C68: =IF($A60<>0,VLOOKUP($A60,Liste!$A$10:$W$459,23,FALSE),"") -> 0 | G68: =IF(OR(B61=0,VLOOKUP(A60,Liste!$A$10:'Liste'!$Z$459,26)<>""),"", "Voir autorisation messages électroniques") -> Voir autorisation messages électroniques
A69: =A60+1 -> 8 | G69: Par correspondance reçu le
A70: =IF($A69<>0,VLOOKUP($A69,Liste!$A$10:$W$459,3,FALSE),"") -> Mr et Mme | B70: =IF($A69<>0,VLOOKUP($A69,Liste!$A$10:$W$459,4,FALSE),"") -> BARDOUILLE Jean Yves | E70: =IF($A69<>0,VLOOKUP($A69,Liste!$A$10:$W$459,8,FALSE),"") -> 100 | G70: Par visio, audio conférence,,,,
A71: =IF($A69<>0,VLOOKUP($A69,Liste!$A$10:$W$459,5,FALSE),"") -> 13 rue de l' espoir | G71: Signature/ Mandataire :
A72: =IF($A69<>0,VLOOKUP($A69,Liste!$A$10:$W$459,6,FALSE),"") -> 75016 | B72: =IF($A69<>0,VLOOKUP($A69,Liste!$A$10:$W$459,7,FALSE),"") -> Paris
A73: =IF($A69<>0, "Lot " & VLOOKUP($A69,Liste!$A$10:$W$459,9,FALSE),"") -> Lot 8 | B73: =IF($A69<>0,VLOOKUP($A69,Liste!$A$10:$W$459,10,FALSE),"") -> Appart, | C73: =IF($A69<>0,VLOOKUP($A69,Liste!$A$10:$W$459,11,FALSE),"") -> 95
A74: =IF($A69<>0,"Lot " & VLOOKUP($A69,Liste!$A$10:$W$459,12,FALSE),"") -> Lot 158 | B74: =IF($A69<>0,VLOOKUP($A69,Liste!$A$10:$W$459,13,FALSE),"") -> Cave | C74: =IF($A69<>0,VLOOKUP($A69,Liste!$A$10:$W$459,14,FALSE),"") -> 5
A75: =IF($A69<>0,"Lot " & VLOOKUP($A69,Liste!$A$10:$W$459,15,FALSE),"") -> Lot | B75: =IF($A69<>0,VLOOKUP($A69,Liste!$A$10:$W$459,16,FALSE),"") -> 0 | C75: =IF($A69<>0,VLOOKUP($A69,Liste!$A$10:$W$459,17,FALSE),"") -> 0 | G75: Arrivé à | H75: après vote de la Résolution N°
A76: =IF($A69<>0,"Lot " & VLOOKUP($A69,Liste!$A$10:$W$459,18,FALSE),"") -> Lot | B76: 0 | C76: =IF($A69<>0,VLOOKUP($A69,Liste!$A$10:$W$459,19,FALSE),"") -> 0 | G76: Départ à | H76: après vote de la Résolution N°
A77: =IF($A69<>0,"Lot " & VLOOKUP($A69,Liste!$A$10:$W$459,21,FALSE),"") -> Lot | B77: =IF($A69<>0,VLOOKUP($A69,Liste!$A$10:$W$459,22,FALSE),"") -> 0 | C77: =IF($A69<>0,VLOOKUP($A69,Liste!$A$10:$W$459,23,FALSE),"") -> 0 | G77: =IF(OR(B70=0,VLOOKUP(A69,Liste!$A$10:'Liste'!$Z$459,26)<>""),"", "Voir autorisation messages électroniques") -> Voir autorisation messages électroniques
D79: A S S E M B L E E G E N E R A L E | K79: Page | L79: =L2+1 -> 2
F80: du | G80: 2019-12-20
D81: Résidence Le Paradis; Rue de l' espoir 75016 PARIS
A83: =A69+1 -> 9 | G83: Par correspondance reçu le
A84: =IF($A83<>0,VLOOKUP($A83,Liste!$A$10:$W$459,3,FALSE),"") -> Mr et Mme | B84: =IF($A83<>0,VLOOKUP($A83,Liste!$A$10:$W$459,4,FALSE),"") -> BAUDINO | E84: =IF($A83<>0,VLOOKUP($A83,Liste!$A$10:$W$459,8,FALSE),"") -> 84 | G84: Par visio, audio conférence,,,,
A85: =IF($A83<>0,VLOOKUP($A83,Liste!$A$10:$W$459,5,FALSE),"") -> 13 rue de l' espoir | G85: Signature/ Mandataire :
A86: =IF($A83<>0,VLOOKUP($A83,Liste!$A$10:$W$459,6,FALSE),"") -> 75016 | B86: =IF($A83<>0,VLOOKUP($A83,Liste!$A$10:$W$459,7,FALSE),"") -> Paris
A87: =IF($A83<>0, "Lot " & VLOOKUP($A83,Liste!$A$10:$W$459,9,FALSE),"") -> Lot 9 | B87: =IF($A83<>0,VLOOKUP($A83,Liste!$A$10:$W$459,10,FALSE),"") -> Appart, | C87: =IF($A83<>0,VLOOKUP($A83,Liste!$A$10:$W$459,11,FALSE),"") -> 79
A88: =IF($A83<>0,"Lot " & VLOOKUP($A83,Liste!$A$10:$W$459,12,FALSE),"") -> Lot 159 | B88: =IF($A83<>0,VLOOKUP($A83,Liste!$A$10:$W$459,13,FALSE),"") -> Cave | C88: =IF($A83<>0,VLOOKUP($A83,Liste!$A$10:$W$459,14,FALSE),"") -> 5
A89: =IF($A83<>0,"Lot " & VLOOKUP($A83,Liste!$A$10:$W$459,15,FALSE),"") -> Lot | B89: =IF($A83<>0,VLOOKUP($A83,Liste!$A$10:$W$459,16,FALSE),"") -> 0 | C89: =IF($A83<>0,VLOOKUP($A83,Liste!$A$10:$W$459,17,FALSE),"") -> 0 | G89: Arrivé à | H89: après vote de la Résolution N°
A90: =IF($A83<>0,"Lot " & VLOOKUP($A83,Liste!$A$10:$W$459,18,FALSE),"") -> Lot | B90: 0 | C90: =IF($A83<>0,VLOOKUP($A83,Liste!$A$10:$W$459,19,FALSE),"") -> 0 | G90: Départ à | H90: après vote de la Résolution N°
A91: =IF($A83<>0,"Lot " & VLOOKUP($A83,Liste!$A$10:$W$459,21,FALSE),"") -> Lot | B91: =IF($A83<>0,VLOOKUP($A83,Liste!$A$10:$W$459,22,FALSE),"") -> 0 | C91: =IF($A83<>0,VLOOKUP($A83,Liste!$A$10:$W$459,23,FALSE),"") -> 0 | G91: =IF(OR(B84=0,VLOOKUP(A83,Liste!$A$10:'Liste'!$Z$459,26)<>""),"", "Voir autorisation messages électroniques") -> Voir autorisation messages électroniques
A92: =A83+1 -> 10 | G92: Par correspondance reçu le
A93: =IF($A92<>0,VLOOKUP($A92,Liste!$A$10:$W$459,3,FALSE),"") -> Mr et Mme | B93: =IF($A92<>0,VLOOKUP($A92,Liste!$A$10:$W$459,4,FALSE),"") -> BAUGUIL André | E93: =IF($A92<>0,VLOOKUP($A92,Liste!$A$10:$W$459,8,FALSE),"") -> 63 | G93: Par visio, audio conférence,,,,
A94: =IF($A92<>0,VLOOKUP($A92,Liste!$A$10:$W$459,5,FALSE),"") -> 13 rue de l' espoir | G94: Signature/ Mandataire :
A95: =IF($A92<>0,VLOOKUP($A92,Liste!$A$10:$W$459,6,FALSE),"") -> 75016 | B95: =IF($A92<>0,VLOOKUP($A92,Liste!$A$10:$W$459,7,FALSE),"") -> Paris
A96: =IF($A92<>0, "Lot " & VLOOKUP($A92,Liste!$A$10:$W$459,9,FALSE),"") -> Lot 10 | B96: =IF($A92<>0,VLOOKUP($A92,Liste!$A$10:$W$459,10,FALSE),"") -> Appart, | C96: =IF($A92<>0,VLOOKUP($A92,Liste!$A$10:$W$459,11,FALSE),"") -> 58
A97: =IF($A92<>0,"Lot " & VLOOKUP($A92,Liste!$A$10:$W$459,12,FALSE),"") -> Lot 160 | B97: =IF($A92<>0,VLOOKUP($A92,Liste!$A$10:$W$459,13,FALSE),"") -> Cave | C97: =IF($A92<>0,VLOOKUP($A92,Liste!$A$10:$W$459,14,FALSE),"") -> 5
A98: =IF($A92<>0,"Lot " & VLOOKUP($A92,Liste!$A$10:$W$459,15,FALSE),"") -> Lot | B98: =IF($A92<>0,VLOOKUP($A92,Liste!$A$10:$W$459,16,FALSE),"") -> 0 | C98: =IF($A92<>0,VLOOKUP($A92,Liste!$A$10:$W$459,17,FALSE),"") -> 0 | G98: Arrivé à | H98: après vote de la Résolution N°
A99: =IF($A92<>0,"Lot " & VLOOKUP($A92,Liste!$A$10:$W$459,18,FALSE),"") -> Lot | B99: 0 | C99: =IF($A92<>0,VLOOKUP($A92,Liste!$A$10:$W$459,19,FALSE),"") -> 0 | G99: Départ à | H99: après vote de la Résolution N°
A100: =IF($A92<>0,"Lot " & VLOOKUP($A92,Liste!$A$10:$W$459,21,FALSE),"") -> Lot | B100: =IF($A92<>0,VLOOKUP($A92,Liste!$A$10:$W$459,22,FALSE),"") -> 0 | C100: =IF($A92<>0,VLOOKUP($A92,Liste!$A$10:$W$459,23,FALSE),"") -> 0 | G100: =IF(OR(B93=0,VLOOKUP(A92,Liste!$A$10:'Liste'!$Z$459,26)<>""),"", "Voir autorisation messages électroniques") -> Voir autorisation messages électroniques
A101: =A92+1 -> 11 | G101: Par correspondance reçu le
A102: =IF($A101<>0,VLOOKUP($A101,Liste!$A$10:$W$459,3,FALSE),"") -> Mr et Mme | B102: =IF($A101<>0,VLOOKUP($A101,Liste!$A$10:$W$459,4,FALSE),"") -> BAUMGARTNER Peter | E102: =IF($A101<>0,VLOOKUP($A101,Liste!$A$10:$W$459,8,FALSE),"") -> 70 | G102: Par visio, audio conférence,,,,
A103: =IF($A101<>0,VLOOKUP($A101,Liste!$A$10:$W$459,5,FALSE),"") -> 13 rue de l' espoir | G103: Signature/ Mandataire :
A104: =IF($A101<>0,VLOOKUP($A101,Liste!$A$10:$W$459,6,FALSE),"") -> 75016 | B104: =IF($A101<>0,VLOOKUP($A101,Liste!$A$10:$W$459,7,FALSE),"") -> Paris
A105: =IF($A101<>0, "Lot " & VLOOKUP($A101,Liste!$A$10:$W$459,9,FALSE),"") -> Lot 11 | B105: =IF($A101<>0,VLOOKUP($A101,Liste!$A$10:$W$459,10,FALSE),"") -> Appart, | C105: =IF($A101<>0,VLOOKUP($A101,Liste!$A$10:$W$459,11,FALSE),"") -> 65
A106: =IF($A101<>0,"Lot " & VLOOKUP($A101,Liste!$A$10:$W$459,12,FALSE),"") -> Lot 161 | B106: =IF($A101<>0,VLOOKUP($A101,Liste!$A$10:$W$459,13,FALSE),"") -> Cave | C106: =IF($A101<>0,VLOOKUP($A101,Liste!$A$10:$W$459,14,FALSE),"") -> 5
A107: =IF($A101<>0,"Lot " & VLOOKUP($A101,Liste!$A$10:$W$459,15,FALSE),"") -> Lot | B107: =IF($A101<>0,VLOOKUP($A101,Liste!$A$10:$W$459,16,FALSE),"") -> 0 | C107: =IF($A101<>0,VLOOKUP($A101,Liste!$A$10:$W$459,17,FALSE),"") -> 0 | G107: Arrivé à | H107: après vote de la Résolution N°
A108: =IF($A101<>0,"Lot " & VLOOKUP($A101,Liste!$A$10:$W$459,18,FALSE),"") -> Lot | B108: 0 | C108: =IF($A101<>0,VLOOKUP($A101,Liste!$A$10:$W$459,19,FALSE),"") -> 0 | G108: Départ à | H108: après vote de la Résolution N°
A109: =IF($A101<>0,"Lot " & VLOOKUP($A101,Liste!$A$10:$W$459,21,FALSE),"") -> Lot | B109: =IF($A101<>0,VLOOKUP($A101,Liste!$A$10:$W$459,22,FALSE),"") -> 0 | C109: =IF($A101<>0,VLOOKUP($A101,Liste!$A$10:$W$459,23,FALSE),"") -> 0 | G109: =IF(OR(B102=0,VLOOKUP(A101,Liste!$A$10:'Liste'!$Z$459,26)<>""),"", "Voir autorisation messages électroniques") -> Voir autorisation messages électroniques
A110: =A101+1 -> 12 | G110: Par correspondance reçu le
A111: =IF($A110<>0,VLOOKUP($A110,Liste!$A$10:$W$459,3,FALSE),"") -> Mr et Mme | B111: =IF($A110<>0,VLOOKUP($A110,Liste!$A$10:$W$459,4,FALSE),"") -> BECH Monique | E111: =IF($A110<>0,VLOOKUP($A110,Liste!$A$10:$W$459,8,FALSE),"") -> 100 | G111: Par visio, audio conférence,,,,
A112: =IF($A110<>0,VLOOKUP($A110,Liste!$A$10:$W$459,5,FALSE),"") -> 13 rue de l' espoir | G112: Signature/ Mandataire :
A113: =IF($A110<>0,VLOOKUP($A110,Liste!$A$10:$W$459,6,FALSE),"") -> 75016 | B113: =IF($A110<>0,VLOOKUP($A110,Liste!$A$10:$W$459,7,FALSE),"") -> Paris
A114: =IF($A110<>0, "Lot " & VLOOKUP($A110,Liste!$A$10:$W$459,9,FALSE),"") -> Lot 12 | B114: =IF($A110<>0,VLOOKUP($A110,Liste!$A$10:$W$459,10,FALSE),"") -> Appart, | C114: =IF($A110<>0,VLOOKUP($A110,Liste!$A$10:$W$459,11,FALSE),"") -> 95
A115: =IF($A110<>0,"Lot " & VLOOKUP($A110,Liste!$A$10:$W$459,12,FALSE),"") -> Lot 162 | B115: =IF($A110<>0,VLOOKUP($A110,Liste!$A$10:$W$459,13,FALSE),"") -> Cave | C115: =IF($A110<>0,VLOOKUP($A110,Liste!$A$10:$W$459,14,FALSE),"") -> 5
A116: =IF($A110<>0,"Lot " & VLOOKUP($A110,Liste!$A$10:$W$459,15,FALSE),"") -> Lot | B116: =IF($A110<>0,VLOOKUP($A110,Liste!$A$10:$W$459,16,FALSE),"") -> 0 | C116: =IF($A110<>0,VLOOKUP($A110,Liste!$A$10:$W$459,17,FALSE),"") -> 0 | G116: Arrivé à | H116: après vote de la Résolution N°
A117: =IF($A110<>0,"Lot " & VLOOKUP($A110,Liste!$A$10:$W$459,18,FALSE),"") -> Lot | B117: 0 | C117: =IF($A110<>0,VLOOKUP($A110,Liste!$A$10:$W$459,19,FALSE),"") -> 0 | G117: Départ à | H117: après vote de la Résolution N°
A118: =IF($A110<>0,"Lot " & VLOOKUP($A110,Liste!$A$10:$W$459,21,FALSE),"") -> Lot | B118: =IF($A110<>0,VLOOKUP($A110,Liste!$A$10:$W$459,22,FALSE),"") -> 0 | C118: =IF($A110<>0,VLOOKUP($A110,Liste!$A$10:$W$459,23,FALSE),"") -> 0 | G118: =IF(OR(B111=0,VLOOKUP(A110,Liste!$A$10:'Liste'!$Z$459,26)<>""),"", "Voir autorisation messages électroniques") -> Voir autorisation messages électroniques
A119: =A110+1 -> 13 | G119: Par correspondance reçu le
A120: =IF($A119<>0,VLOOKUP($A119,Liste!$A$10:$W$459,3,FALSE),"") -> Monsieur | B120: =IF($A119<>0,VLOOKUP($A119,Liste!$A$10:$W$459,4,FALSE),"") -> BERGET Jean François | E120: =IF($A119<>0,VLOOKUP($A119,Liste!$A$10:$W$459,8,FALSE),"") -> 70 | G120: Par visio, audio conférence,,,,
A121: =IF($A119<>0,VLOOKUP($A119,Liste!$A$10:$W$459,5,FALSE),"") -> 13 rue de l' espoir | G121: Signature/ Mandataire :
A122: =IF($A119<>0,VLOOKUP($A119,Liste!$A$10:$W$459,6,FALSE),"") -> 75016 | B122: =IF($A119<>0,VLOOKUP($A119,Liste!$A$10:$W$459,7,FALSE),"") -> Paris
A123: =IF($A119<>0, "Lot " & VLOOKUP($A119,Liste!$A$10:$W$459,9,FALSE),"") -> Lot 13 | B123: =IF($A119<>0,VLOOKUP($A119,Liste!$A$10:$W$459,10,FALSE),"") -> Appart, | C123: =IF($A119<>0,VLOOKUP($A119,Liste!$A$10:$W$459,11,FALSE),"") -> 65
A124: =IF($A119<>0,"Lot " & VLOOKUP($A119,Liste!$A$10:$W$459,12,FALSE),"") -> Lot 163 | B124: =IF($A119<>0,VLOOKUP($A119,Liste!$A$10:$W$459,13,FALSE),"") -> Cave | C124: =IF($A119<>0,VLOOKUP($A119,Liste!$A$10:$W$459,14,FALSE),"") -> 5
A125: =IF($A119<>0,"Lot " & VLOOKUP($A119,Liste!$A$10:$W$459,15,FALSE),"") -> Lot | B125: =IF($A119<>0,VLOOKUP($A119,Liste!$A$10:$W$459,16,FALSE),"") -> 0 | C125: =IF($A119<>0,VLOOKUP($A119,Liste!$A$10:$W$459,17,FALSE),"") -> 0 | G125: Arrivé à | H125: après vote de la Résolution N°
A126: =IF($A119<>0,"Lot " & VLOOKUP($A119,Liste!$A$10:$W$459,18,FALSE),"") -> Lot | B126: 0 | C126: =IF($A119<>0,VLOOKUP($A119,Liste!$A$10:$W$459,19,FALSE),"") -> 0 | G126: Départ à | H126: après vote de la Résolution N°
A127: =IF($A119<>0,"Lot " & VLOOKUP($A119,Liste!$A$10:$W$459,21,FALSE),"") -> Lot | B127: =IF($A119<>0,VLOOKUP($A119,Liste!$A$10:$W$459,22,FALSE),"") -> 0 | C127: =IF($A119<>0,VLOOKUP($A119,Liste!$A$10:$W$459,23,FALSE),"") -> 0 | G127: =IF(OR(B120=0,VLOOKUP(A119,Liste!$A$10:'Liste'!$Z$459,26)<>""),"", "Voir autorisation messages électroniques") -> Voir autorisation messages électroniques
A128: =A119+1 -> 14 | G128: Par correspondance reçu le
A129: =IF($A128<>0,VLOOKUP($A128,Liste!$A$10:$W$459,3,FALSE),"") -> Monsieur | B129: =IF($A128<>0,VLOOKUP($A128,Liste!$A$10:$W$459,4,FALSE),"") -> BERLIER David | E129: =IF($A128<>0,VLOOKUP($A128,Liste!$A$10:$W$459,8,FALSE),"") -> 70 | G129: Par visio, audio conférence,,,,
A130: =IF($A128<>0,VLOOKUP($A128,Liste!$A$10:$W$459,5,FALSE),"") -> 13 rue de l' espoir | G130: Signature/ Mandataire :
A131: =IF($A128<>0,VLOOKUP($A128,Liste!$A$10:$W$459,6,FALSE),"") -> 75016 | B131: =IF($A128<>0,VLOOKUP($A128,Liste!$A$10:$W$459,7,FALSE),"") -> Paris
A132: =IF($A128<>0, "Lot " & VLOOKUP($A128,Liste!$A$10:$W$459,9,FALSE),"") -> Lot 14 | B132: =IF($A128<>0,VLOOKUP($A128,Liste!$A$10:$W$459,10,FALSE),"") -> Appart, | C132: =IF($A128<>0,VLOOKUP($A128,Liste!$A$10:$W$459,11,FALSE),"") -> 65
A133: =IF($A128<>0,"Lot " & VLOOKUP($A128,Liste!$A$10:$W$459,12,FALSE),"") -> Lot 164 | B133: =IF($A128<>0,VLOOKUP($A128,Liste!$A$10:$W$459,13,FALSE),"") -> Cave | C133: =IF($A128<>0,VLOOKUP($A128,Liste!$A$10:$W$459,14,FALSE),"") -> 5
A134: =IF($A128<>0,"Lot " & VLOOKUP($A128,Liste!$A$10:$W$459,15,FALSE),"") -> Lot | B134: =IF($A128<>0,VLOOKUP($A128,Liste!$A$10:$W$459,16,FALSE),"") -> 0 | C134: =IF($A128<>0,VLOOKUP($A128,Liste!$A$10:$W$459,17,FALSE),"") -> 0 | G134: Arrivé à | H134: après vote de la Résolution N°
A135: =IF($A128<>0,"Lot " & VLOOKUP($A128,Liste!$A$10:$W$459,18,FALSE),"") -> Lot | B135: 0 | C135: =IF($A128<>0,VLOOKUP($A128,Liste!$A$10:$W$459,19,FALSE),"") -> 0 | G135: Départ à | H135: après vote de la Résolution N°
A136: =IF($A128<>0,"Lot " & VLOOKUP($A128,Liste!$A$10:$W$459,21,FALSE),"") -> Lot | B136: =IF($A128<>0,VLOOKUP($A128,Liste!$A$10:$W$459,22,FALSE),"") -> 0 | C136: =IF($A128<>0,VLOOKUP($A128,Liste!$A$10:$W$459,23,FALSE),"") -> 0 | G136: =IF(OR(B129=0,VLOOKUP(A128,Liste!$A$10:'Liste'!$Z$459,26)<>""),"", "Voir autorisation messages électroniques") -> Voir autorisation messages électroniques
A137: =A128+1 -> 15 | G137: Par correspondance reçu le
A138: =IF($A137<>0,VLOOKUP($A137,Liste!$A$10:$W$459,3,FALSE),"") -> Mmadame | B138: =IF($A137<>0,VLOOKUP($A137,Liste!$A$10:$W$459,4,FALSE),"") -> BESSON Gabriel | E138: =IF($A137<>0,VLOOKUP($A137,Liste!$A$10:$W$459,8,FALSE),"") -> 91 | G138: Par visio, audio conférence,,,,
A139: =IF($A137<>0,VLOOKUP($A137,Liste!$A$10:$W$459,5,FALSE),"") -> 13 rue de l' espoir | G139: Signature/ Mandataire :
A140: =IF($A137<>0,VLOOKUP($A137,Liste!$A$10:$W$459,6,FALSE),"") -> 75016 | B140: =IF($A137<>0,VLOOKUP($A137,Liste!$A$10:$W$459,7,FALSE),"") -> Paris
A141: =IF($A137<>0, "Lot " & VLOOKUP($A137,Liste!$A$10:$W$459,9,FALSE),"") -> Lot 15 | B141: =IF($A137<>0,VLOOKUP($A137,Liste!$A$10:$W$459,10,FALSE),"") -> Appart, | C141: =IF($A137<>0,VLOOKUP($A137,Liste!$A$10:$W$459,11,FALSE),"") -> 86
A142: =IF($A137<>0,"Lot " & VLOOKUP($A137,Liste!$A$10:$W$459,12,FALSE),"") -> Lot 165 | B142: =IF($A137<>0,VLOOKUP($A137,Liste!$A$10:$W$459,13,FALSE),"") -> Cave | C142: =IF($A137<>0,VLOOKUP($A137,Liste!$A$10:$W$459,14,FALSE),"") -> 5
A143: =IF($A137<>0,"Lot " & VLOOKUP($A137,Liste!$A$10:$W$459,15,FALSE),"") -> Lot | B143: =IF($A137<>0,VLOOKUP($A137,Liste!$A$10:$W$459,16,FALSE),"") -> 0 | C143: =IF($A137<>0,VLOOKUP($A137,Liste!$A$10:$W$459,17,FALSE),"") -> 0 | G143: Arrivé à | H143: après vote de la Résolution N°
A144: =IF($A137<>0,"Lot " & VLOOKUP($A137,Liste!$A$10:$W$459,18,FALSE),"") -> Lot | B144: 0 | C144: =IF($A137<>0,VLOOKUP($A137,Liste!$A$10:$W$459,19,FALSE),"") -> 0 | G144: Départ à | H144: après vote de la Résolution N°
A145: =IF($A137<>0,"Lot " & VLOOKUP($A137,Liste!$A$10:$W$459,21,FALSE),"") -> Lot | B145: =IF($A137<>0,VLOOKUP($A137,Liste!$A$10:$W$459,22,FALSE),"") -> 0 | C145: =IF($A137<>0,VLOOKUP($A137,Liste!$A$10:$W$459,23,FALSE),"") -> 0 | G145: =IF(OR(B138=0,VLOOKUP(A137,Liste!$A$10:'Liste'!$Z$459,26)<>""),"", "Voir autorisation messages électroniques") -> Voir autorisation messages électroniques
A146: =A137+1 -> 16 | G146: Par correspondance reçu le
A147: =IF($A146<>0,VLOOKUP($A146,Liste!$A$10:$W$459,3,FALSE),"") -> Monsieur | B147: =IF($A146<>0,VLOOKUP($A146,Liste!$A$10:$W$459,4,FALSE),"") -> BILLY Grégoire | E147: =IF($A146<>0,VLOOKUP($A146,Liste!$A$10:$W$459,8,FALSE),"") -> 80 | G147: Par visio, audio conférence,,,,
A148: =IF($A146<>0,VLOOKUP($A146,Liste!$A$10:$W$459,5,FALSE),"") -> 13 rue de l' espoir | G148: Signature/ Mandataire :
A149: =IF($A146<>0,VLOOKUP($A146,Liste!$A$10:$W$459,6,FALSE),"") -> 75016 | B149: =IF($A146<>0,VLOOKUP($A146,Liste!$A$10:$W$459,7,FALSE),"") -> Paris
A150: =IF($A146<>0, "Lot " & VLOOKUP($A146,Liste!$A$10:$W$459,9,FALSE),"") -> Lot 16 | B150: =IF($A146<>0,VLOOKUP($A146,Liste!$A$10:$W$459,10,FALSE),"") -> Appart, | C150: =IF($A146<>0,VLOOKUP($A146,Liste!$A$10:$W$459,11,FALSE),"") -> 75
A151: =IF($A146<>0,"Lot " & VLOOKUP($A146,Liste!$A$10:$W$459,12,FALSE),"") -> Lot 166 | B151: =IF($A146<>0,VLOOKUP($A146,Liste!$A$10:$W$459,13,FALSE),"") -> Cave | C151: =IF($A146<>0,VLOOKUP($A146,Liste!$A$10:$W$459,14,FALSE),"") -> 5
A152: =IF($A146<>0,"Lot " & VLOOKUP($A146,Liste!$A$10:$W$459,15,FALSE),"") -> Lot | B152: =IF($A146<>0,VLOOKUP($A146,Liste!$A$10:$W$459,16,FALSE),"") -> 0 | C152: =IF($A146<>0,VLOOKUP($A146,Liste!$A$10:$W$459,17,FALSE),"") -> 0 | G152: Arrivé à | H152: après vote de la Résolution N°
A153: =IF($A146<>0,"Lot " & VLOOKUP($A146,Liste!$A$10:$W$459,18,FALSE),"") -> Lot | B153: 0 | C153: =IF($A146<>0,VLOOKUP($A146,Liste!$A$10:$W$459,19,FALSE),"") -> 0 | G153: Départ à | H153: après vote de la Résolution N°
A154: =IF($A146<>0,"Lot " & VLOOKUP($A146,Liste!$A$10:$W$459,21,FALSE),"") -> Lot | B154: =IF($A146<>0,VLOOKUP($A146,Liste!$A$10:$W$459,22,FALSE),"") -> 0 | C154: =IF($A146<>0,VLOOKUP($A146,Liste!$A$10:$W$459,23,FALSE),"") -> 0 | G154: =IF(OR(B147=0,VLOOKUP(A146,Liste!$A$10:'Liste'!$Z$459,26)<>""),"", "Voir autorisation messages électroniques") -> Voir autorisation messages électroniques
D156: A S S E M B L E E G E N E R A L E | K156: Page | L156: =L79+1 -> 3
F157: du | G157: 2019-12-20
D158: Résidence Le Paradis; Rue de l' espoir 75016 PARIS
A160: =A146+1 -> 17 | G160: Par correspondance reçu le
A161: =IF($A160<>0,VLOOKUP($A160,Liste!$A$10:$W$459,3,FALSE),"") -> Monsieur | B161: =IF($A160<>0,VLOOKUP($A160,Liste!$A$10:$W$459,4,FALSE),"") -> BLOT Alain | E161: =IF($A160<>0,VLOOKUP($A160,Liste!$A$10:$W$459,8,FALSE),"") -> 75 | G161: Par visio, audio conférence,,,,
A162: =IF($A160<>0,VLOOKUP($A160,Liste!$A$10:$W$459,5,FALSE),"") -> 13 rue de l' espoir | G162: Signature/ Mandataire :
A163: =IF($A160<>0,VLOOKUP($A160,Liste!$A$10:$W$459,6,FALSE),"") -> 75016 | B163: =IF($A160<>0,VLOOKUP($A160,Liste!$A$10:$W$459,7,FALSE),"") -> Paris
A164: =IF($A160<>0, "Lot " & VLOOKUP($A160,Liste!$A$10:$W$459,9,FALSE),"") -> Lot 17 | B164: =IF($A160<>0,VLOOKUP($A160,Liste!$A$10:$W$459,10,FALSE),"") -> Appart, | C164: =IF($A160<>0,VLOOKUP($A160,Liste!$A$10:$W$459,11,FALSE),"") -> 70
A165: =IF($A160<>0,"Lot " & VLOOKUP($A160,Liste!$A$10:$W$459,12,FALSE),"") -> Lot 167 | B165: =IF($A160<>0,VLOOKUP($A160,Liste!$A$10:$W$459,13,FALSE),"") -> Cave | C165: =IF($A160<>0,VLOOKUP($A160,Liste!$A$10:$W$459,14,FALSE),"") -> 5
A166: =IF($A160<>0,"Lot " & VLOOKUP($A160,Liste!$A$10:$W$459,15,FALSE),"") -> Lot | B166: =IF($A160<>0,VLOOKUP($A160,Liste!$A$10:$W$459,16,FALSE),"") -> 0 | C166: =IF($A160<>0,VLOOKUP($A160,Liste!$A$10:$W$459,17,FALSE),"") -> 0 | G166: Arrivé à | H166: après vote de la Résolution N°
A167: =IF($A160<>0,"Lot " & VLOOKUP($A160,Liste!$A$10:$W$459,18,FALSE),"") -> Lot | B167: 0 | C167: =IF($A160<>0,VLOOKUP($A160,Liste!$A$10:$W$459,19,FALSE),"") -> 0 | G167: Départ à | H167: après vote de la Résolution N°
A168: =IF($A160<>0,"Lot " & VLOOKUP($A160,Liste!$A$10:$W$459,21,FALSE),"") -> Lot | B168: =IF($A160<>0,VLOOKUP($A160,Liste!$A$10:$W$459,22,FALSE),"") -> 0 | C168: =IF($A160<>0,VLOOKUP($A160,Liste!$A$10:$W$459,23,FALSE),"") -> 0 | G168: =IF(OR(B161=0,VLOOKUP(A160,Liste!$A$10:'Liste'!$Z$459,26)<>""),"", "Voir autorisation messages électroniques") -> Voir autorisation messages électroniques
A169: =A160+1 -> 18 | G169: Par correspondance reçu le
A170: =IF($A169<>0,VLOOKUP($A169,Liste!$A$10:$W$459,3,FALSE),"") -> Madame | B170: =IF($A169<>0,VLOOKUP($A169,Liste!$A$10:$W$459,4,FALSE),"") -> BODIGER | E170: =IF($A169<>0,VLOOKUP($A169,Liste!$A$10:$W$459,8,FALSE),"") -> 55 | G170: Par visio, audio conférence,,,,
A171: =IF($A169<>0,VLOOKUP($A169,Liste!$A$10:$W$459,5,FALSE),"") -> 13 rue de l' espoir | G171: Signature/ Mandataire :
A172: =IF($A169<>0,VLOOKUP($A169,Liste!$A$10:$W$459,6,FALSE),"") -> 75016 | B172: =IF($A169<>0,VLOOKUP($A169,Liste!$A$10:$W$459,7,FALSE),"") -> Paris
A173: =IF($A169<>0, "Lot " & VLOOKUP($A169,Liste!$A$10:$W$459,9,FALSE),"") -> Lot 18 | B173: =IF($A169<>0,VLOOKUP($A169,Liste!$A$10:$W$459,10,FALSE),"") -> Appart, | C173: =IF($A169<>0,VLOOKUP($A169,Liste!$A$10:$W$459,11,FALSE),"") -> 50
A174: =IF($A169<>0,"Lot " & VLOOKUP($A169,Liste!$A$10:$W$459,12,FALSE),"") -> Lot 168 | B174: =IF($A169<>0,VLOOKUP($A169,Liste!$A$10:$W$459,13,FALSE),"") -> Cave | C174: =IF($A169<>0,VLOOKUP($A169,Liste!$A$10:$W$459,14,FALSE),"") -> 5
A175: =IF($A169<>0,"Lot " & VLOOKUP($A169,Liste!$A$10:$W$459,15,FALSE),"") -> Lot | B175: =IF($A169<>0,VLOOKUP($A169,Liste!$A$10:$W$459,16,FALSE),"") -> 0 | C175: =IF($A169<>0,VLOOKUP($A169,Liste!$A$10:$W$459,17,FALSE),"") -> 0 | G175: Arrivé à | H175: après vote de la Résolution N°
A176: =IF($A169<>0,"Lot " & VLOOKUP($A169,Liste!$A$10:$W$459,18,FALSE),"") -> Lot | B176: 0 | C176: =IF($A169<>0,VLOOKUP($A169,Liste!$A$10:$W$459,19,FALSE),"") -> 0 | G176: Départ à | H176: après vote de la Résolution N°
A177: =IF($A169<>0,"Lot " & VLOOKUP($A169,Liste!$A$10:$W$459,21,FALSE),"") -> Lot | B177: =IF($A169<>0,VLOOKUP($A169,Liste!$A$10:$W$459,22,FALSE),"") -> 0 | C177: =IF($A169<>0,VLOOKUP($A169,Liste!$A$10:$W$459,23,FALSE),"") -> 0 | G177: =IF(OR(B170=0,VLOOKUP(A169,Liste!$A$10:'Liste'!$Z$459,26)<>""),"", "Voir autorisation messages électroniques") -> Voir autorisation messages électroniques
A178: =A169+1 -> 19 | G178: Par correspondance reçu le
A179: =IF($A178<>0,VLOOKUP($A178,Liste!$A$10:$W$459,3,FALSE),"") -> Monsieur | B179: =IF($A178<>0,VLOOKUP($A178,Liste!$A$10:$W$459,4,FALSE),"") -> BODIN - BUGEJA | E179: =IF($A178<>0,VLOOKUP($A178,Liste!$A$10:$W$459,8,FALSE),"") -> 101 | G179: Par visio, audio conférence,,,,
A180: =IF($A178<>0,VLOOKUP($A178,Liste!$A$10:$W$459,5,FALSE),"") -> 13 rue de l' espoir | G180: Signature/ Mandataire :
A181: =IF($A178<>0,VLOOKUP($A178,Liste!$A$10:$W$459,6,FALSE),"") -> 75016 | B181: =IF($A178<>0,VLOOKUP($A178,Liste!$A$10:$W$459,7,FALSE),"") -> Paris
A182: =IF($A178<>0, "Lot " & VLOOKUP($A178,Liste!$A$10:$W$459,9,FALSE),"") -> Lot 19 | B182: =IF($A178<>0,VLOOKUP($A178,Liste!$A$10:$W$459,10,FALSE),"") -> Appart, | C182: =IF($A178<>0,VLOOKUP($A178,Liste!$A$10:$W$459,11,FALSE),"") -> 96
A183: =IF($A178<>0,"Lot " & VLOOKUP($A178,Liste!$A$10:$W$459,12,FALSE),"") -> Lot 169 | B183: =IF($A178<>0,VLOOKUP($A178,Liste!$A$10:$W$459,13,FALSE),"") -> Cave | C183: =IF($A178<>0,VLOOKUP($A178,Liste!$A$10:$W$459,14,FALSE),"") -> 5
A184: =IF($A178<>0,"Lot " & VLOOKUP($A178,Liste!$A$10:$W$459,15,FALSE),"") -> Lot | B184: =IF($A178<>0,VLOOKUP($A178,Liste!$A$10:$W$459,16,FALSE),"") -> 0 | C184: =IF($A178<>0,VLOOKUP($A178,Liste!$A$10:$W$459,17,FALSE),"") -> 0 | G184: Arrivé à | H184: après vote de la Résolution N°
A185: =IF($A178<>0,"Lot " & VLOOKUP($A178,Liste!$A$10:$W$459,18,FALSE),"") -> Lot | B185: 0 | C185: =IF($A178<>0,VLOOKUP($A178,Liste!$A$10:$W$459,19,FALSE),"") -> 0 | G185: Départ à | H185: après vote de la Résolution N°
A186: =IF($A178<>0,"Lot " & VLOOKUP($A178,Liste!$A$10:$W$459,21,FALSE),"") -> Lot | B186: =IF($A178<>0,VLOOKUP($A178,Liste!$A$10:$W$459,22,FALSE),"") -> 0 | C186: =IF($A178<>0,VLOOKUP($A178,Liste!$A$10:$W$459,23,FALSE),"") -> 0 | G186: =IF(OR(B179=0,VLOOKUP(A178,Liste!$A$10:'Liste'!$Z$459,26)<>""),"", "Voir autorisation messages électroniques") -> Voir autorisation messages électroniques
A187: =A178+1 -> 20 | G187: Par correspondance reçu le
A188: =IF($A187<>0,VLOOKUP($A187,Liste!$A$10:$W$459,3,FALSE),"") -> Madame | B188: =IF($A187<>0,VLOOKUP($A187,Liste!$A$10:$W$459,4,FALSE),"") -> BOISSON Franck | E188: =IF($A187<>0,VLOOKUP($A187,Liste!$A$10:$W$459,8,FALSE),"") -> 73 | G188: Par visio, audio conférence,,,,
A189: =IF($A187<>0,VLOOKUP($A187,Liste!$A$10:$W$459,5,FALSE),"") -> 13 rue de l' espoir | G189: Signature/ Mandataire :
A190: =IF($A187<>0,VLOOKUP($A187,Liste!$A$10:$W$459,6,FALSE),"") -> 75016 | B190: =IF($A187<>0,VLOOKUP($A187,Liste!$A$10:$W$459,7,FALSE),"") -> Paris
A191: =IF($A187<>0, "Lot " & VLOOKUP($A187,Liste!$A$10:$W$459,9,FALSE),"") -> Lot 20 | B191: =IF($A187<>0,VLOOKUP($A187,Liste!$A$10:$W$459,10,FALSE),"") -> Appart, | C191: =IF($A187<>0,VLOOKUP($A187,Liste!$A$10:$W$459,11,FALSE),"") -> 68
A192: =IF($A187<>0,"Lot " & VLOOKUP($A187,Liste!$A$10:$W$459,12,FALSE),"") -> Lot 170 | B192: =IF($A187<>0,VLOOKUP($A187,Liste!$A$10:$W$459,13,FALSE),"") -> Cave | C192: =IF($A187<>0,VLOOKUP($A187,Liste!$A$10:$W$459,14,FALSE),"") -> 5
A193: =IF($A187<>0,"Lot " & VLOOKUP($A187,Liste!$A$10:$W$459,15,FALSE),"") -> Lot | B193: =IF($A187<>0,VLOOKUP($A187,Liste!$A$10:$W$459,16,FALSE),"") -> 0 | C193: =IF($A187<>0,VLOOKUP($A187,Liste!$A$10:$W$459,17,FALSE),"") -> 0 | G193: Arrivé à | H193: après vote de la Résolution N°
A194: =IF($A187<>0,"Lot " & VLOOKUP($A187,Liste!$A$10:$W$459,18,FALSE),"") -> Lot | B194: 0 | C194: =IF($A187<>0,VLOOKUP($A187,Liste!$A$10:$W$459,19,FALSE),"") -> 0 | G194: Départ à | H194: après vote de la Résolution N°
A195: =IF($A187<>0,"Lot " & VLOOKUP($A187,Liste!$A$10:$W$459,21,FALSE),"") -> Lot | B195: =IF($A187<>0,VLOOKUP($A187,Liste!$A$10:$W$459,22,FALSE),"") -> 0 | C195: =IF($A187<>0,VLOOKUP($A187,Liste!$A$10:$W$459,23,FALSE),"") -> 0 | G195: =IF(OR(B188=0,VLOOKUP(A187,Liste!$A$10:'Liste'!$Z$459,26)<>""),"", "Voir autorisation messages électroniques") -> Voir autorisation messages électroniques
A196: =A187+1 -> 21 | G196: Par correspondance reçu le
A197: =IF($A196<>0,VLOOKUP($A196,Liste!$A$10:$W$459,3,FALSE),"") -> Monsieur | B197: =IF($A196<>0,VLOOKUP($A196,Liste!$A$10:$W$459,4,FALSE),"") -> BOQUET Marcel | E197: =IF($A196<>0,VLOOKUP($A196,Liste!$A$10:$W$459,8,FALSE),"") -> 55 | G197: Par visio, audio conférence,,,,
A198: =IF($A196<>0,VLOOKUP($A196,Liste!$A$10:$W$459,5,FALSE),"") -> 19 Rue du Paradis | G198: Signature/ Mandataire :
A199: =IF($A196<>0,VLOOKUP($A196,Liste!$A$10:$W$459,6,FALSE),"") -> 33000 | B199: =IF($A196<>0,VLOOKUP($A196,Liste!$A$10:$W$459,7,FALSE),"") -> Bordeaux
A200: =IF($A196<>0, "Lot " & VLOOKUP($A196,Liste!$A$10:$W$459,9,FALSE),"") -> Lot 21 | B200: =IF($A196<>0,VLOOKUP($A196,Liste!$A$10:$W$459,10,FALSE),"") -> Appart, | C200: =IF($A196<>0,VLOOKUP($A196,Liste!$A$10:$W$459,11,FALSE),"") -> 50
A201: =IF($A196<>0,"Lot " & VLOOKUP($A196,Liste!$A$10:$W$459,12,FALSE),"") -> Lot 171 | B201: =IF($A196<>0,VLOOKUP($A196,Liste!$A$10:$W$459,13,FALSE),"") -> Cave | C201: =IF($A196<>0,VLOOKUP($A196,Liste!$A$10:$W$459,14,FALSE),"") -> 5
A202: =IF($A196<>0,"Lot " & VLOOKUP($A196,Liste!$A$10:$W$459,15,FALSE),"") -> Lot | B202: =IF($A196<>0,VLOOKUP($A196,Liste!$A$10:$W$459,16,FALSE),"") -> 0 | C202: =IF($A196<>0,VLOOKUP($A196,Liste!$A$10:$W$459,17,FALSE),"") -> 0 | G202: Arrivé à | H202: après vote de la Résolution N°
A203: =IF($A196<>0,"Lot " & VLOOKUP($A196,Liste!$A$10:$W$459,18,FALSE),"") -> Lot | B203: 0 | C203: =IF($A196<>0,VLOOKUP($A196,Liste!$A$10:$W$459,19,FALSE),"") -> 0 | G203: Départ à | H203: après vote de la Résolution N°
A204: =IF($A196<>0,"Lot " & VLOOKUP($A196,Liste!$A$10:$W$459,21,FALSE),"") -> Lot | B204: =IF($A196<>0,VLOOKUP($A196,Liste!$A$10:$W$459,22,FALSE),"") -> 0 | C204: =IF($A196<>0,VLOOKUP($A196,Liste!$A$10:$W$459,23,FALSE),"") -> 0 | G204: =IF(OR(B197=0,VLOOKUP(A196,Liste!$A$10:'Liste'!$Z$459,26)<>""),"", "Voir autorisation messages électroniques") -> Voir autorisation messages électroniques
A205: =A196+1 -> 22 | G205: Par correspondance reçu le
A206: =IF($A205<>0,VLOOKUP($A205,Liste!$A$10:$W$459,3,FALSE),"") -> Monsieur | B206: =IF($A205<>0,VLOOKUP($A205,Liste!$A$10:$W$459,4,FALSE),"") -> BOREL | E206: =IF($A205<>0,VLOOKUP($A205,Liste!$A$10:$W$459,8,FALSE),"") -> 59 | G206: Par visio, audio conférence,,,,
... 1207 more rows

Sheet VPC
D1: VOTES PAR CORRESPONDANCE.
D2: TRI PAR QUESTION
D3: Collage spécial des valeurs dans feuilles de votes
A5: Question | B5: CLES | C5: N°Ordre | D5: NOMS | E5: POUR | F5: CONTRE | G5: ABBST | H5: VERIF
A6: 1 | B6: 1 | C6: 11 | D6: =IF(C6>0,VLOOKUP(C6,Liste!$A$10:$D$159,4),"") -> BAUMGARTNER Peter | E6: 1
A7: 1 | B7: 1 | C7: 21 | D7: =IF(C7>0,VLOOKUP(C7,Liste!$A$10:$D$159,4),"") -> BOQUET Marcel
A8: 1 | B8: 1 | C8: 31 | D8: =IF(C8>0,VLOOKUP(C8,Liste!$A$10:$D$159,4),"") -> CARANTA Jean P.
A9: 1 | B9: 1 | C9: 41 | D9: =IF(C9>0,VLOOKUP(C9,Liste!$A$10:$D$159,4),"") -> COMA Marie
A10: 1 | B10: 1 | C10: 101 | D10: =IF(C10>0,VLOOKUP(C10,Liste!$A$10:$D$159,4),"") -> MEISSONNIER Josiane
A11: 1 | B11: 1 | C11: 111 | D11: =IF(C11>0,VLOOKUP(C11,Liste!$A$10:$D$159,4),"") -> NOGER Pierre
A12: 1 | B12: 1 | C12: 121 | D12: =IF(C12>0,VLOOKUP(C12,Liste!$A$10:$D$159,4),"") -> PUONS René
A13: 1 | B13: 1 | C13: 131 | D13: =IF(C13>0,VLOOKUP(C13,Liste!$A$10:$D$159,4),"") -> SAMUELIAN Charles
A14: Total 1 | H14: =SUBTOTAL(9,H6:H13) -> 0
A15: 2 | B15: 1 | C15: 11 | D15: =IF(C15>0,VLOOKUP(C15,Liste!$A$10:$D$159,4),"") -> BAUMGARTNER Peter | F15: 1
A16: 2 | B16: 1 | C16: 21 | D16: =IF(C16>0,VLOOKUP(C16,Liste!$A$10:$D$159,4),"") -> BOQUET Marcel
A17: 2 | B17: 1 | C17: 31 | D17: =IF(C17>0,VLOOKUP(C17,Liste!$A$10:$D$159,4),"") -> CARANTA Jean P.
A18: 2 | B18: 1 | C18: 41 | D18: =IF(C18>0,VLOOKUP(C18,Liste!$A$10:$D$159,4),"") -> COMA Marie
A19: 2 | B19: 1 | C19: 101 | D19: =IF(C19>0,VLOOKUP(C19,Liste!$A$10:$D$159,4),"") -> MEISSONNIER Josiane
A20: 2 | B20: 1 | C20: 111 | D20: =IF(C20>0,VLOOKUP(C20,Liste!$A$10:$D$159,4),"") -> NOGER Pierre
A21: 2 | B21: 1 | C21: 121 | D21: =IF(C21>0,VLOOKUP(C21,Liste!$A$10:$D$159,4),"") -> PUONS René
A22: 2 | B22: 1 | C22: 131 | D22: =IF(C22>0,VLOOKUP(C22,Liste!$A$10:$D$159,4),"") -> SAMUELIAN Charles
A23: 2 | B23: 1 | C23: 141 | D23: =IF(C23>0,VLOOKUP(C23,Liste!$A$10:$D$159,4),"") -> SOLVEZ-BOUCHER
A24: 2 | B24: 1 | C24: 141 | D24: =IF(C24>0,VLOOKUP(C24,Liste!$A$10:$D$159,4),"") -> SOLVEZ-BOUCHER
A25: Total 2 | H25: =SUBTOTAL(9,H15:H24) -> 0
A26: 3 | B26: 2 | C26: 11 | D26: =IF(C26>0,VLOOKUP(C26,Liste!$A$10:$D$159,4),"") -> BAUMGARTNER Peter | G26: 1
A27: 3 | B27: 2 | C27: 21 | D27: =IF(C27>0,VLOOKUP(C27,Liste!$A$10:$D$159,4),"") -> BOQUET Marcel
A28: 3 | B28: 2 | C28: 31 | D28: =IF(C28>0,VLOOKUP(C28,Liste!$A$10:$D$159,4),"") -> CARANTA Jean P.
A29: 3 | B29: 3 | C29: 41 | D29: =IF(C29>0,VLOOKUP(C29,Liste!$A$10:$D$159,4),"") -> COMA Marie
A30: Total 3 | H30: =SUBTOTAL(9,H26:H29) -> 0
D31: =IF(C31>0,VLOOKUP(C31,Liste!$A$10:$D$159,4),"") -> 
D32: =IF(C32>0,VLOOKUP(C32,Liste!$A$10:$D$159,4),"") -> 
D33: =IF(C33>0,VLOOKUP(C33,Liste!$A$10:$D$159,4),"") -> 
D34: =IF(C34>0,VLOOKUP(C34,Liste!$A$10:$D$159,4),"") -> 
D35: =IF(C35>0,VLOOKUP(C35,Liste!$A$10:$D$159,4),"") -> 
D36: =IF(C36>0,VLOOKUP(C36,Liste!$A$10:$D$159,4),"") -> 
D37: =IF(C37>0,VLOOKUP(C37,Liste!$A$10:$D$159,4),"") -> 
D38: =IF(C38>0,VLOOKUP(C38,Liste!$A$10:$D$159,4),"") -> 
D39: =IF(C39>0,VLOOKUP(C39,Liste!$A$10:$D$159,4),"") -> 
D40: =IF(C40>0,VLOOKUP(C40,Liste!$A$10:$D$159,4),"") -> 
D41: =IF(C41>0,VLOOKUP(C41,Liste!$A$10:$D$159,4),"") -> 
D42: =IF(C42>0,VLOOKUP(C42,Liste!$A$10:$D$159,4),"") -> 
D43: =IF(C43>0,VLOOKUP(C43,Liste!$A$10:$D$159,4),"") -> 
D44: =IF(C44>0,VLOOKUP(C44,Liste!$A$10:$D$159,4),"") -> 
D45: =IF(C45>0,VLOOKUP(C45,Liste!$A$10:$D$159,4),"") -> 
D46: =IF(C46>0,VLOOKUP(C46,Liste!$A$10:$D$159,4),"") -> 
D47: =IF(C47>0,VLOOKUP(C47,Liste!$A$10:$D$159,4),"") -> 
D48: =IF(C48>0,VLOOKUP(C48,Liste!$A$10:$D$159,4),"") -> 
D49: =IF(C49>0,VLOOKUP(C49,Liste!$A$10:$D$159,4),"") -> 
D50: =IF(C50>0,VLOOKUP(C50,Liste!$A$10:$D$159,4),"") -> 
D51: =IF(C51>0,VLOOKUP(C51,Liste!$A$10:$D$159,4),"") -> 
D52: =IF(C52>0,VLOOKUP(C52,Liste!$A$10:$D$159,4),"") -> 
D53: =IF(C53>0,VLOOKUP(C53,Liste!$A$10:$D$159,4),"") -> 
D54: =IF(C54>0,VLOOKUP(C54,Liste!$A$10:$D$159,4),"") -> 
D55: =IF(C55>0,VLOOKUP(C55,Liste!$A$10:$D$159,4),"") -> 
D56: =IF(C56>0,VLOOKUP(C56,Liste!$A$10:$D$159,4),"") -> 
D57: =IF(C57>0,VLOOKUP(C57,Liste!$A$10:$D$159,4),"") -> 
D58: =IF(C58>0,VLOOKUP(C58,Liste!$A$10:$D$159,4),"") -> 
D59: =IF(C59>0,VLOOKUP(C59,Liste!$A$10:$D$159,4),"") -> 
D60: =IF(C60>0,VLOOKUP(C60,Liste!$A$10:$D$159,4),"") -> 
D61: =IF(C61>0,VLOOKUP(C61,Liste!$A$10:$D$159,4),"") -> 
D62: =IF(C62>0,VLOOKUP(C62,Liste!$A$10:$D$159,4),"") -> 
D63: =IF(C63>0,VLOOKUP(C63,Liste!$A$10:$D$159,4),"") -> 
D64: =IF(C64>0,VLOOKUP(C64,Liste!$A$10:$D$159,4),"") -> 
D65: =IF(C65>0,VLOOKUP(C65,Liste!$A$10:$D$159,4),"") -> 
D66: =IF(C66>0,VLOOKUP(C66,Liste!$A$10:$D$159,4),"") -> 
D67: =IF(C67>0,VLOOKUP(C67,Liste!$A$10:$D$159,4),"") -> 
D68: =IF(C68>0,VLOOKUP(C68,Liste!$A$10:$D$159,4),"") -> 
D69: =IF(C69>0,VLOOKUP(C69,Liste!$A$10:$D$159,4),"") -> 
D70: =IF(C70>0,VLOOKUP(C70,Liste!$A$10:$D$159,4),"") -> 
D71: =IF(C71>0,VLOOKUP(C71,Liste!$A$10:$D$159,4),"") -> 
D72: =IF(C72>0,VLOOKUP(C72,Liste!$A$10:$D$159,4),"") -> 
D73: =IF(C73>0,VLOOKUP(C73,Liste!$A$10:$D$159,4),"") -> 
D74: =IF(C74>0,VLOOKUP(C74,Liste!$A$10:$D$159,4),"") -> 
D75: =IF(C75>0,VLOOKUP(C75,Liste!$A$10:$D$159,4),"") -> 
D76: =IF(C76>0,VLOOKUP(C76,Liste!$A$10:$D$159,4),"") -> 
D77: =IF(C77>0,VLOOKUP(C77,Liste!$A$10:$D$159,4),"") -> 
D78: =IF(C78>0,VLOOKUP(C78,Liste!$A$10:$D$159,4),"") -> 
D79: =IF(C79>0,VLOOKUP(C79,Liste!$A$10:$D$159,4),"") -> 
D80: =IF(C80>0,VLOOKUP(C80,Liste!$A$10:$D$159,4),"") -> 
D81: =IF(C81>0,VLOOKUP(C81,Liste!$A$10:$D$159,4),"") -> 
D82: =IF(C82>0,VLOOKUP(C82,Liste!$A$10:$D$159,4),"") -> 
D83: =IF(C83>0,VLOOKUP(C83,Liste!$A$10:$D$159,4),"") -> 
D84: =IF(C84>0,VLOOKUP(C84,Liste!$A$10:$D$159,4),"") -> 
D85: =IF(C85>0,VLOOKUP(C85,Liste!$A$10:$D$159,4),"") -> 
D86: =IF(C86>0,VLOOKUP(C86,Liste!$A$10:$D$159,4),"") -> 
D87: =IF(C87>0,VLOOKUP(C87,Liste!$A$10:$D$159,4),"") -> 
D88: =IF(C88>0,VLOOKUP(C88,Liste!$A$10:$D$159,4),"") -> 
D89: =IF(C89>0,VLOOKUP(C89,Liste!$A$10:$D$159,4),"") -> 
D90: =IF(C90>0,VLOOKUP(C90,Liste!$A$10:$D$159,4),"") -> 
D91: =IF(C91>0,VLOOKUP(C91,Liste!$A$10:$D$159,4),"") -> 
D92: =IF(C92>0,VLOOKUP(C92,Liste!$A$10:$D$159,4),"") -> 
D93: =IF(C93>0,VLOOKUP(C93,Liste!$A$10:$D$159,4),"") -> 
D94: =IF(C94>0,VLOOKUP(C94,Liste!$A$10:$D$159,4),"") -> 
D95: =IF(C95>0,VLOOKUP(C95,Liste!$A$10:$D$159,4),"") -> 
D96: =IF(C96>0,VLOOKUP(C96,Liste!$A$10:$D$159,4),"") -> 
D97: =IF(C97>0,VLOOKUP(C97,Liste!$A$10:$D$159,4),"") -> 
D98: =IF(C98>0,VLOOKUP(C98,Liste!$A$10:$D$159,4),"") -> 
D99: =IF(C99>0,VLOOKUP(C99,Liste!$A$10:$D$159,4),"") -> 
D100: =IF(C100>0,VLOOKUP(C100,Liste!$A$10:$D$159,4),"") -> 
D101: =IF(C101>0,VLOOKUP(C101,Liste!$A$10:$D$159,4),"") -> 
D102: =IF(C102>0,VLOOKUP(C102,Liste!$A$10:$D$159,4),"") -> 
D103: =IF(C103>0,VLOOKUP(C103,Liste!$A$10:$D$159,4),"") -> 
D104: =IF(C104>0,VLOOKUP(C104,Liste!$A$10:$D$159,4),"") -> 
D105: =IF(C105>0,VLOOKUP(C105,Liste!$A$10:$D$159,4),"") -> 
D106: =IF(C106>0,VLOOKUP(C106,Liste!$A$10:$D$159,4),"") -> 
D107: =IF(C107>0,VLOOKUP(C107,Liste!$A$10:$D$159,4),"") -> 
D108: =IF(C108>0,VLOOKUP(C108,Liste!$A$10:$D$159,4),"") -> 
D109: =IF(C109>0,VLOOKUP(C109,Liste!$A$10:$D$159,4),"") -> 
D110: =IF(C110>0,VLOOKUP(C110,Liste!$A$10:$D$159,4),"") -> 
D111: =IF(C111>0,VLOOKUP(C111,Liste!$A$10:$D$159,4),"") -> 
D112: =IF(C112>0,VLOOKUP(C112,Liste!$A$10:$D$159,4),"") -> 
D113: =IF(C113>0,VLOOKUP(C113,Liste!$A$10:$D$159,4),"") -> 
D114: =IF(C114>0,VLOOKUP(C114,Liste!$A$10:$D$159,4),"") -> 
D115: =IF(C115>0,VLOOKUP(C115,Liste!$A$10:$D$159,4),"") -> 
D116: =IF(C116>0,VLOOKUP(C116,Liste!$A$10:$D$159,4),"") -> 
D117: =IF(C117>0,VLOOKUP(C117,Liste!$A$10:$D$159,4),"") -> 
D118: =IF(C118>0,VLOOKUP(C118,Liste!$A$10:$D$159,4),"") -> 
D119: =IF(C119>0,VLOOKUP(C119,Liste!$A$10:$D$159,4),"") -> 
D120: =IF(C120>0,VLOOKUP(C120,Liste!$A$10:$D$159,4),"") -> 
D121: =IF(C121>0,VLOOKUP(C121,Liste!$A$10:$D$159,4),"") -> 
D122: =IF(C122>0,VLOOKUP(C122,Liste!$A$10:$D$159,4),"") -> 
D123: =IF(C123>0,VLOOKUP(C123,Liste!$A$10:$D$159,4),"") -> 
D124: =IF(C124>0,VLOOKUP(C124,Liste!$A$10:$D$159,4),"") -> 
D125: =IF(C125>0,VLOOKUP(C125,Liste!$A$10:$D$159,4),"") -> 
D126: =IF(C126>0,VLOOKUP(C126,Liste!$A$10:$D$159,4),"") -> 
D127: =IF(C127>0,VLOOKUP(C127,Liste!$A$10:$D$159,4),"") -> 
D128: =IF(C128>0,VLOOKUP(C128,Liste!$A$10:$D$159,4),"") -> 
D129: =IF(C129>0,VLOOKUP(C129,Liste!$A$10:$D$159,4),"") -> 
D130: =IF(C130>0,VLOOKUP(C130,Liste!$A$10:$D$159,4),"") -> 
D131: =IF(C131>0,VLOOKUP(C131,Liste!$A$10:$D$159,4),"") -> 
D132: =IF(C132>0,VLOOKUP(C132,Liste!$A$10:$D$159,4),"") -> 
D133: =IF(C133>0,VLOOKUP(C133,Liste!$A$10:$D$159,4),"") -> 
D134: =IF(C134>0,VLOOKUP(C134,Liste!$A$10:$D$159,4),"") -> 
D135: =IF(C135>0,VLOOKUP(C135,Liste!$A$10:$D$159,4),"") -> 
D136: =IF(C136>0,VLOOKUP(C136,Liste!$A$10:$D$159,4),"") -> 
D137: =IF(C137>0,VLOOKUP(C137,Liste!$A$10:$D$159,4),"") -> 
D138: =IF(C138>0,VLOOKUP(C138,Liste!$A$10:$D$159,4),"") -> 
D139: =IF(C139>0,VLOOKUP(C139,Liste!$A$10:$D$159,4),"") -> 
D140: =IF(C140>0,VLOOKUP(C140,Liste!$A$10:$D$159,4),"") -> 
D141: =IF(C141>0,VLOOKUP(C141,Liste!$A$10:$D$159,4),"") -> 
D142: =IF(C142>0,VLOOKUP(C142,Liste!$A$10:$D$159,4),"") -> 
D143: =IF(C143>0,VLOOKUP(C143,Liste!$A$10:$D$159,4),"") -> 
D144: =IF(C144>0,VLOOKUP(C144,Liste!$A$10:$D$159,4),"") -> 
D145: =IF(C145>0,VLOOKUP(C145,Liste!$A$10:$D$159,4),"") -> 
D146: =IF(C146>0,VLOOKUP(C146,Liste!$A$10:$D$159,4),"") -> 
D147: =IF(C147>0,VLOOKUP(C147,Liste!$A$10:$D$159,4),"") -> 
D148: =IF(C148>0,VLOOKUP(C148,Liste!$A$10:$D$159,4),"") -> 
D149: =IF(C149>0,VLOOKUP(C149,Liste!$A$10:$D$159,4),"") -> 
D150: =IF(C150>0,VLOOKUP(C150,Liste!$A$10:$D$159,4),"") -> 
D151: =IF(C151>0,VLOOKUP(C151,Liste!$A$10:$D$159,4),"") -> 
D152: =IF(C152>0,VLOOKUP(C152,Liste!$A$10:$D$159,4),"") -> 
D153: =IF(C153>0,VLOOKUP(C153,Liste!$A$10:$D$159,4),"") -> 
D154: =IF(C154>0,VLOOKUP(C154,Liste!$A$10:$D$159,4),"") -> 
D155: =IF(C155>0,VLOOKUP(C155,Liste!$A$10:$D$159,4),"") -> 
D156: =IF(C156>0,VLOOKUP(C156,Liste!$A$10:$D$159,4),"") -> 
D157: =IF(C157>0,VLOOKUP(C157,Liste!$A$10:$D$159,4),"") -> 
D158: =IF(C158>0,VLOOKUP(C158,Liste!$A$10:$D$159,4),"") -> 
D159: =IF(C159>0,VLOOKUP(C159,Liste!$A$10:$D$159,4),"") -> 
D160: =IF(C160>0,VLOOKUP(C160,Liste!$A$10:$D$159,4),"") -> 
D161: =IF(C161>0,VLOOKUP(C161,Liste!$A$10:$D$159,4),"") -> 
D162: =IF(C162>0,VLOOKUP(C162,Liste!$A$10:$D$159,4),"") -> 
D163: =IF(C163>0,VLOOKUP(C163,Liste!$A$10:$D$159,4),"") -> 
D164: =IF(C164>0,VLOOKUP(C164,Liste!$A$10:$D$159,4),"") -> 
D165: =IF(C165>0,VLOOKUP(C165,Liste!$A$10:$D$159,4),"") -> 
D166: =IF(C166>0,VLOOKUP(C166,Liste!$A$10:$D$159,4),"") -> 
D167: =IF(C167>0,VLOOKUP(C167,Liste!$A$10:$D$159,4),"") -> 
D168: =IF(C168>0,VLOOKUP(C168,Liste!$A$10:$D$159,4),"") -> 
D169: =IF(C169>0,VLOOKUP(C169,Liste!$A$10:$D$159,4),"") -> 
D170: =IF(C170>0,VLOOKUP(C170,Liste!$A$10:$D$159,4),"") -> 
D171: =IF(C171>0,VLOOKUP(C171,Liste!$A$10:$D$159,4),"") -> 
D172: =IF(C172>0,VLOOKUP(C172,Liste!$A$10:$D$159,4),"") -> 
D173: =IF(C173>0,VLOOKUP(C173,Liste!$A$10:$D$159,4),"") -> 
D174: =IF(C174>0,VLOOKUP(C174,Liste!$A$10:$D$159,4),"") -> 
D175: =IF(C175>0,VLOOKUP(C175,Liste!$A$10:$D$159,4),"") -> 
D176: =IF(C176>0,VLOOKUP(C176,Liste!$A$10:$D$159,4),"") -> 
D177: =IF(C177>0,VLOOKUP(C177,Liste!$A$10:$D$159,4),"") -> 
D178: =IF(C178>0,VLOOKUP(C178,Liste!$A$10:$D$159,4),"") -> 
D179: =IF(C179>0,VLOOKUP(C179,Liste!$A$10:$D$159,4),"") -> 
D180: =IF(C180>0,VLOOKUP(C180,Liste!$A$10:$D$159,4),"") -> 
D181: =IF(C181>0,VLOOKUP(C181,Liste!$A$10:$D$159,4),"") -> 
D182: =IF(C182>0,VLOOKUP(C182,Liste!$A$10:$D$159,4),"") -> 
D183: =IF(C183>0,VLOOKUP(C183,Liste!$A$10:$D$159,4),"") -> 
D184: =IF(C184>0,VLOOKUP(C184,Liste!$A$10:$D$159,4),"") -> 
D185: =IF(C185>0,VLOOKUP(C185,Liste!$A$10:$D$159,4),"") -> 
D186: =IF(C186>0,VLOOKUP(C186,Liste!$A$10:$D$159,4),"") -> 
D187: =IF(C187>0,VLOOKUP(C187,Liste!$A$10:$D$159,4),"") -> 
D188: =IF(C188>0,VLOOKUP(C188,Liste!$A$10:$D$159,4),"") -> 
D189: =IF(C189>0,VLOOKUP(C189,Liste!$A$10:$D$159,4),"") -> 
D190: =IF(C190>0,VLOOKUP(C190,Liste!$A$10:$D$159,4),"") -> 
D191: =IF(C191>0,VLOOKUP(C191,Liste!$A$10:$D$159,4),"") -> 
D192: =IF(C192>0,VLOOKUP(C192,Liste!$A$10:$D$159,4),"") -> 
D193: =IF(C193>0,VLOOKUP(C193,Liste!$A$10:$D$159,4),"") -> 
D194: =IF(C194>0,VLOOKUP(C194,Liste!$A$10:$D$159,4),"") -> 
D195: =IF(C195>0,VLOOKUP(C195,Liste!$A$10:$D$159,4),"") -> 
D196: =IF(C196>0,VLOOKUP(C196,Liste!$A$10:$D$159,4),"") -> 
D197: =IF(C197>0,VLOOKUP(C197,Liste!$A$10:$D$159,4),"") -> 
D198: =IF(C198>0,VLOOKUP(C198,Liste!$A$10:$D$159,4),"") -> 
D199: =IF(C199>0,VLOOKUP(C199,Liste!$A$10:$D$159,4),"") -> 
D200: =IF(C200>0,VLOOKUP(C200,Liste!$A$10:$D$159,4),"") -> 
D201: =IF(C201>0,VLOOKUP(C201,Liste!$A$10:$D$159,4),"") -> 
... 2806 more rows

Sheet F.MERE
A1: =Liste!C4 -> 20/06/21 | C1: =$AI$10&$AJ$10 ->  | K1: =$AI$10&$AJ$10 ->  | Q1: 1 | R1: 2 | S1: 3 | T1: 4
C2: POUR | D2: CONTRE | E2: ABSTENT | F2: Total TANT. | G2: P. R | H2: x | I2: PRES. Votants | J2: Tant. Repré. | K2: POUR | L2: CONTRE | M2: ABSTENT | N2: TOTAL | Q2: 1 | R2: BAT,A | S2: BAT,B | T2: TANT 4 | U2: TANT.5 | V2: TANT.6 | W2: TANT. | X2: TANT. | Y2: TANT. | Z2: TANT. | AA2: TANT. | AC2: =240*(A2=24)*(L3>K3)+241*(A2=24)*(K3>L3) -> 0 | AD2: =250*(A2=25)*(K3<L3)+252*(A2=25)*(K3>=AI7) -> 0 | AE2: =250*(A2=25.1)*(L3<K3)+2*(A2=25.1)*(K3>L3)+250*(A2=25.1)*(K3<L3) -> 0 | AF2: =260*(A2=26)*((K3<AJ7)*(K7<AJ8)*(K3<=AK7))+(262*(A2=26)*((K3>=AJ7)*+(K7>=AJ8)))+1*(A2=26)*(K7>=AJ8)*(K3>=AK7) -> 0 | AG2: =262*(A2=26.1)*(K3>=AI7)+260*(A2=26.1)*(K3<AI7) -> 0 | AJ2: =SUM(AC2:AI2) -> 0 | AN2: 240 | AO2: =IF($AJ$2=240,CONCATENATE("Résolution REFUSEE par ",D3, " voix CONTRE et ",C3," voix POUR."),"") -> 
A3: Nom | C3: =SUM($C$14:$C$163) -> 0 | D3: =SUM($D$14:$D$163) -> 0 | E3: =SUM($E$14:$E163) -> 0 | F3: =SUM($F$14:$F$163) -> 653 | G3: =E11 -> 9 | I3: =SUM($I$14:$I$163) -> 9 | J3: =SUM($J$14:$J$163) -> 653 | K3: =SUM($C$14:$C$163) -> 0 | L3: =SUM($D$14:$D$163) -> 0 | M3: =SUM($E$14:$E163) -> 0 | N3: =K3+L3+M3 -> 0 | O3: =IF(N3=E10,"","EN ATTENTE") -> EN ATTENTE | Q3: =SUM(Q14:Q163) -> 10000 | R3: =SUM(R14:R163) -> 9977 | S3: =SUM(S14:S163) -> 10126 | T3: =SUM(T14:T163) -> 0 | U3: =SUM(U14:U163) -> 0 | V3: =SUM(V14:V63) -> 0 | W3: =SUM(W14:W163) -> 0 | X3: 0 | Y3: =SUM(Y14:Y163) -> 0 | Z3: 0 | AA3: =SUM(AA14:AA163) -> 0 | AH3: 1 | AN3: 241 | AO3: =IF($AJ$2=241,CONCATENATE("Résolution ADOPTEE par ",C3," voix POUR et ",D3," voix CONTRE."),"") -> 
A4: Clé | B4: 1 | Q4: =COUNTIF(Q14:Q163,">0") -> 150 | R4: =COUNTIF(R14:R163,">0") -> 69 | S4: =COUNTIF(S14:S163,">0") -> 81 | T4: =COUNTIF(T14:T163,">0") -> 0 | U4: =COUNTIF(U14:U163,">0") -> 0 | V4: =COUNTIF(V13:V14,">0") -> 0 | W4: =COUNTIF(W14:W163,">0") -> 0 | X4: =COUNTIF(X14:X163,">0") -> 0 | Y4: =COUNTIF(Y14:Y163,">0") -> 0 | Z4: =COUNTIF(Z14:Z163,">0") -> 0 | AA4: =COUNTIF(AA14:AA163,">0") -> 0 | AN4: 250 | AO4: =IF($AJ$2=250,CONCATENATE("Résolution REFUSEE,Pas de possibilité de 2e vote","")) -> FALSE
C5: =VLOOKUP($AJ$2,$AN$2:$AO$13,2,FALSE) ->  | K5: =IF(A2=26, AJ11,"") ->  | AE5: K3 Voix | AF5: 3230 | AI5: 25 Maj; Voix | AJ5: 26 Maj.2/3 Voix | AK5: 26 Maj 1/3 voix | AN5: 251 | AO5: =IF($AJ$2=251,CONCATENATE("Possibilité d'un deuxième vote à l'article 25,1, majorité 24, "),"") -> 
J6: NOMBRE : | K6: POUR | L6: CONTRE | M6: ABSTENT | N6: VOTANTS | AE6: K7 Copros | AF6: 8 | AI6: Tous Copros | AJ6: Tous Copros | AK6: Tous copros | AN6: 252 | AO6: =IF($AJ$2=252,CONCATENATE("Résolution adoptée par ",C3," voix POUR et ",D3," voix CONTRE"),"") -> 
G7: =IF(SUM($O$14:$O$163)>0,"LIMITES DEPASSEES","") ->  | K7: =SUM($K$14:$K$163) -> 0 | L7: =SUM($L$14:$L$163) -> 0 | M7: =SUM($M$14:$M$163) -> 0 | N7: =K7+L7+M7 -> 0 | O7: =IF(N7=E11,"","EN ATTENTE") -> EN ATTENTE | AI7: =ROUNDDOWN((D10)/2+1,0) -> 5001 | AJ7: =ROUNDDOWN((D10)*2/3+1,0) -> 6667 | AK7: =ROUNDDOWN((D10)*1/3+1,0) -> 3334 | AN7: 260 | AO7: =IF($AJ$2=260,CONCATENATE("Résolution REJETEE ."),"") -> 
C8: Total | D8: Total | E8: Prés.Repr | AD8: Art,25 | AE8: =2*(A2=25)*(K3>=AK7) -> 0 | AF8: =IF(AE8=2,"Possibilité de deuxième vote","") ->  | AJ8: =ROUNDUP(($D$11+0.1)/2,0) -> 76 | AN8: 262 | AO8: =IF($AJ$2=262,CONCATENATE("Résolution ADOPTEE par ",C3," voix POUR et ",D3," voix CONTRE")) -> FALSE
C9: Syndicat | D9: CLE | E9: Tot.Votants | K9: =VLOOKUP($AJ$2,$AN$2:$AO$13,2,FALSE) ->  | AD9: Art,26 | AE9: =2*(A2=26)*(K7>=AJ8)*(K3>=AK7) -> 0 | AF9: =IF(AE9=2,"Possibilité de deuxième vote","") -> 
C10: =HLOOKUP(1,$Q$1:$AA$4,3,FALSE) -> 10000 | D10: =HLOOKUP($B$4,$Q$1:$AA$4,3,FALSE) -> 10000 | E10: =SUM($F$14:$F$163) -> 653 | F10: VOIX | AI10: =IF($A$2=25,">= " & $AI$7,"") ->  | AJ10: =IF($A$2=26,">= " & $AJ$7,"") ->  | AK10: =IF($A$2=26.1,">= " & $AK7,"") -> 
C11: =HLOOKUP(1,$Q$1:$AA$4,4,FALSE) -> 150 | D11: =HLOOKUP($B$4,$Q$1:$AA$4,4,FALSE) -> 150 | E11: =SUM($I$14:$I$163) -> 9 | F11: NOMBRE | AC11: =SUM($O$14:$O$163) -> 0 | AD11: Nombre de dépassemnts | AJ11: =IF($A$2=26,">= " & $AJ$8,"") -> 
M12: =IF(COUNTIF($N$14:$N$163,"ERREUR")>0,"ERREUR","") ->  | N12: =IF(COUNTIF($N$14:$N$163,"EN ATTENTE")>0,"EN ATTENTE","") -> EN ATTENTE | O12: 0.1 | Q12: 1 | R12: 2 | S12: 3 | T12: 4 | U12: 5 | V12: 6 | W12: 7 | X12: 8 | Y12: 9 | Z12: 10 | AA12: 11
A13: N° Ordre | B13: NOMS | C13: Voix POUR | D13: Voix CONTRE | E13: Voix Abst. | F13: Total TANT. | G13: P. R | H13: Rep.par | I13: PRES. Votants | J13: Tant. Repré. | K13: Votes POUR | L13: Votes CONTRE | M13: Votes ABST, | N13: VERIF | O13: LIMITES | P13: Votes | Q13: TANT.GEN | R13: =R2 -> BAT,A | S13: BAT,B | T13: TANT 4 | U13: TANT.5 | V13: TANT.6 | W13: TANT. | X13: TANT. | Y13: TANT. | Z13: TANT. | AA13: TANT. | AB13: X | AC13: Nombre Représentés | AD13: Total Voix | AE13: XX
A14: 1 | B14: =IF(A14<>0,VLOOKUP(A14,Liste!$A$10:$D$159,4,FALSE),"") -> ALEXANDRINI André | C14: =F14*(K14=1) -> 0 | D14: =F14*(L14=1) -> 0 | E14: =F14*(M14=1) -> 0 | F14: =IF(I14=1,VLOOKUP(A14,$A$14:$AA$163,16+$B$4,0),0) -> 0 | I14: =1*(IF(G14>=1,VLOOKUP(A14,$A$14:$AA$163,16+$B$4,0)>0)) -> 0 | J14: =IF(F14>0,F14,0) -> 0 | K14: =IF(AND($I14=1,$H14>0),VLOOKUP($H14,$A$14:AD$63,11,FALSE),0) -> 0 | L14: =IF(AND($I14=1,$H14>0),VLOOKUP($H14,$A$14:AE$63,12,FALSE),0) -> 0 | M14: =IF(AND($I14=1,$H14>0),VLOOKUP($H14,$A$14:AF$63,13,FALSE),0) -> 0 | N14: =IF(AND(I14>0,K14+L14+M14=0),"EN ATTENTE",IF(K14+L14+M14>1,"ERREUR","")) ->  | O14: =IF(AND(AC14>3,AD14>$D$10*$O$12),1,"") ->  | P14: =IF(I14=1,K14*(K14=1)+L14*2*(L14=1)+M14*3*(M14=1),"") ->  | Q14: =IF(A14<>0,VLOOKUP(A14,Liste!$A$10:$K$159,8,FALSE),"") -> 10 | S14: 126 | AB14: =(H14+I14)*(J14>0) -> 0 | AC14: =COUNTIF($H$14:$H$163,A14) -> 0 | AD14: =SUMIF($H$14:$H$163,A14,$J$14:$J$163)+(J14*(AC14>0)) -> 0 | AE14: =IF(H14>0,H14+0.5*(I14=1),A14*(I14=1))+(1000*(I14<1)) -> 1000
A15: 2 | B15: =IF(A15<>0,VLOOKUP(A15,Liste!$A$10:$D$159,4,FALSE),"") -> ANNINOS Henri | C15: 0 | D15: 0 | E15: 0 | F15: =IF(I15=1,VLOOKUP(A15,$A$14:$AA$163,16+$B$4,0),0) -> 0 | I15: 0 | J15: 0 | K15: =IF(AND($I15=1,$H15>0),VLOOKUP($H15,$A$14:AD$63,11,FALSE),0) -> 0 | L15: =IF(AND($I15=1,$H15>0),VLOOKUP($H15,$A$14:AE$63,12,FALSE),0) -> 0 | M15: =IF(AND($I15=1,$H15>0),VLOOKUP($H15,$A$14:AF$63,13,FALSE),0) -> 0 | N15: =IF(AND(I15>0,K15+L15+M15=0),"EN ATTENTE",IF(K15+L15+M15>1,"ERREUR","")) ->  | Q15: =IF(A15<>0,VLOOKUP(A15,Liste!$A$10:$K$159,8,FALSE),"") -> 70 | R15: 158 | AB15: =(H15+I15)*(J15>0) -> 0 | AC15: =COUNTIF($H$14:$H$163,A15) -> 0 | AD15: =SUMIF($H$14:$H$163,A15,$J$14:$J$163)+(J15*(AC15>0)) -> 0 | AE15: =IF(H15>0,H15+0.5*(I15=1),A15*(I15=1))+(1000*(I15<1)) -> 1000
A16: 3 | B16: =IF(A16<>0,VLOOKUP(A16,Liste!$A$10:$D$159,4,FALSE),"") -> BALDACCHINO Laurence | C16: 0 | D16: 0 | E16: 0 | F16: 0 | I16: 0 | J16: 0 | K16: =IF(AND($I16=1,$H16>0),VLOOKUP($H16,$A$14:AD$63,11,FALSE),0) -> 0 | L16: =IF(AND($I16=1,$H16>0),VLOOKUP($H16,$A$14:AE$63,12,FALSE),0) -> 0 | M16: =IF(AND($I16=1,$H16>0),VLOOKUP($H16,$A$14:AF$63,13,FALSE),0) -> 0 | Q16: =IF(A16<>0,VLOOKUP(A16,Liste!$A$10:$K$159,8,FALSE),"") -> 100 | R16: 225 | AB16: 0 | AC16: 0 | AD16: 0 | AE16: 1000
A17: 4 | B17: =IF(A17<>0,VLOOKUP(A17,Liste!$A$10:$D$159,4,FALSE),"") -> BANCHET Joseph | C17: 0 | D17: 0 | E17: 0 | F17: 0 | I17: 0 | J17: 0 | K17: =IF(AND($I17=1,$H17>0),VLOOKUP($H17,$A$14:AD$63,11,FALSE),0) -> 0 | L17: =IF(AND($I17=1,$H17>0),VLOOKUP($H17,$A$14:AE$63,12,FALSE),0) -> 0 | M17: =IF(AND($I17=1,$H17>0),VLOOKUP($H17,$A$14:AF$63,13,FALSE),0) -> 0 | Q17: =IF(A17<>0,VLOOKUP(A17,Liste!$A$10:$K$159,8,FALSE),"") -> 60 | R17: 135 | AB17: 0 | AC17: 0 | AD17: 0 | AE17: 1000
A18: 5 | B18: =IF(A18<>0,VLOOKUP(A18,Liste!$A$10:$D$159,4,FALSE),"") -> BARDIN Andrée | C18: 0 | D18: 0 | E18: 0 | F18: 0 | I18: 0 | J18: 0 | K18: =IF(AND($I18=1,$H18>0),VLOOKUP($H18,$A$14:AD$63,11,FALSE),0) -> 0 | L18: =IF(AND($I18=1,$H18>0),VLOOKUP($H18,$A$14:AE$63,12,FALSE),0) -> 0 | M18: =IF(AND($I18=1,$H18>0),VLOOKUP($H18,$A$14:AF$63,13,FALSE),0) -> 0 | Q18: =IF(A18<>0,VLOOKUP(A18,Liste!$A$10:$K$159,8,FALSE),"") -> 50 | R18: 113 | AB18: 0 | AC18: 0 | AD18: 0 | AE18: 1000
A19: 6 | B19: =IF(A19<>0,VLOOKUP(A19,Liste!$A$10:$D$159,4,FALSE),"") -> BARDIN-BENARD Louis | C19: 0 | D19: 0 | E19: 0 | F19: 0 | I19: 0 | J19: 0 | K19: =IF(AND($I19=1,$H19>0),VLOOKUP($H19,$A$14:AD$63,11,FALSE),0) -> 0 | L19: =IF(AND($I19=1,$H19>0),VLOOKUP($H19,$A$14:AE$63,12,FALSE),0) -> 0 | M19: =IF(AND($I19=1,$H19>0),VLOOKUP($H19,$A$14:AF$63,13,FALSE),0) -> 0 | Q19: =IF(A19<>0,VLOOKUP(A19,Liste!$A$10:$K$159,8,FALSE),"") -> 45 | R19: 101 | AB19: 0 | AC19: 0 | AD19: 0 | AE19: 1000
A20: 7 | B20: =IF(A20<>0,VLOOKUP(A20,Liste!$A$10:$D$159,4,FALSE),"") -> BARDOUILLE Hermine | C20: 0 | D20: 0 | E20: 0 | F20: 0 | I20: 0 | J20: 0 | K20: =IF(AND($I20=1,$H20>0),VLOOKUP($H20,$A$14:AD$63,11,FALSE),0) -> 0 | L20: =IF(AND($I20=1,$H20>0),VLOOKUP($H20,$A$14:AE$63,12,FALSE),0) -> 0 | M20: =IF(AND($I20=1,$H20>0),VLOOKUP($H20,$A$14:AF$63,13,FALSE),0) -> 0 | Q20: =IF(A20<>0,VLOOKUP(A20,Liste!$A$10:$K$159,8,FALSE),"") -> 70 | R20: 158 | AB20: 0 | AC20: 0 | AD20: 0 | AE20: 1000
A21: 8 | B21: =IF(A21<>0,VLOOKUP(A21,Liste!$A$10:$D$159,4,FALSE),"") -> BARDOUILLE Jean Yves | C21: 0 | D21: 0 | E21: 0 | F21: 0 | I21: 0 | J21: 0 | K21: =IF(AND($I21=1,$H21>0),VLOOKUP($H21,$A$14:AD$63,11,FALSE),0) -> 0 | L21: =IF(AND($I21=1,$H21>0),VLOOKUP($H21,$A$14:AE$63,12,FALSE),0) -> 0 | M21: =IF(AND($I21=1,$H21>0),VLOOKUP($H21,$A$14:AF$63,13,FALSE),0) -> 0 | Q21: =IF(A21<>0,VLOOKUP(A21,Liste!$A$10:$K$159,8,FALSE),"") -> 100 | R21: 225 | AB21: 0 | AC21: 0 | AD21: 0 | AE21: 1000
A22: 9 | B22: =IF(A22<>0,VLOOKUP(A22,Liste!$A$10:$D$159,4,FALSE),"") -> BAUDINO | C22: 0 | D22: 0 | E22: 0 | F22: 0 | I22: 0 | J22: 0 | K22: =IF(AND($I22=1,$H22>0),VLOOKUP($H22,$A$14:AD$63,11,FALSE),0) -> 0 | L22: =IF(AND($I22=1,$H22>0),VLOOKUP($H22,$A$14:AE$63,12,FALSE),0) -> 0 | M22: =IF(AND($I22=1,$H22>0),VLOOKUP($H22,$A$14:AF$63,13,FALSE),0) -> 0 | Q22: =IF(A22<>0,VLOOKUP(A22,Liste!$A$10:$K$159,8,FALSE),"") -> 84 | R22: 190 | AB22: 0 | AC22: 0 | AD22: 0 | AE22: 1000
A23: 10 | B23: =IF(A23<>0,VLOOKUP(A23,Liste!$A$10:$D$159,4,FALSE),"") -> BAUGUIL André | C23: 0 | D23: 0 | E23: 0 | F23: 0 | I23: 0 | J23: 0 | K23: =IF(AND($I23=1,$H23>0),VLOOKUP($H23,$A$14:AD$63,11,FALSE),0) -> 0 | L23: =IF(AND($I23=1,$H23>0),VLOOKUP($H23,$A$14:AE$63,12,FALSE),0) -> 0 | M23: =IF(AND($I23=1,$H23>0),VLOOKUP($H23,$A$14:AF$63,13,FALSE),0) -> 0 | Q23: =IF(A23<>0,VLOOKUP(A23,Liste!$A$10:$K$159,8,FALSE),"") -> 63 | R23: 142 | AB23: 0 | AC23: 0 | AD23: 0 | AE23: 1000
A24: 11 | B24: =IF(A24<>0,VLOOKUP(A24,Liste!$A$10:$D$159,4,FALSE),"") -> BAUMGARTNER Peter | C24: 0 | D24: 0 | E24: 0 | F24: 70 | G24: 3 | I24: 1 | J24: 70 | K24: =IF(AND($I24=1,$H24>0),VLOOKUP($H24,$A$14:AD$63,11,FALSE),0) -> 0 | L24: =IF(AND($I24=1,$H24>0),VLOOKUP($H24,$A$14:AE$63,12,FALSE),0) -> 0 | M24: =IF(AND($I24=1,$H24>0),VLOOKUP($H24,$A$14:AF$63,13,FALSE),0) -> 0 | N24: EN ATTENTE | P24: 0 | Q24: =IF(A24<>0,VLOOKUP(A24,Liste!$A$10:$K$159,8,FALSE),"") -> 70 | R24: 158 | AB24: 1 | AC24: 0 | AD24: 0 | AE24: 11
A25: 12 | B25: =IF(A25<>0,VLOOKUP(A25,Liste!$A$10:$D$159,4,FALSE),"") -> BECH Monique | C25: 0 | D25: 0 | E25: 0 | F25: 0 | I25: 0 | J25: 0 | K25: =IF(AND($I25=1,$H25>0),VLOOKUP($H25,$A$14:AD$63,11,FALSE),0) -> 0 | L25: =IF(AND($I25=1,$H25>0),VLOOKUP($H25,$A$14:AE$63,12,FALSE),0) -> 0 | M25: =IF(AND($I25=1,$H25>0),VLOOKUP($H25,$A$14:AF$63,13,FALSE),0) -> 0 | Q25: =IF(A25<>0,VLOOKUP(A25,Liste!$A$10:$K$159,8,FALSE),"") -> 100 | R25: 225 | AB25: 0 | AC25: 0 | AD25: 0 | AE25: 1000
A26: 13 | B26: =IF(A26<>0,VLOOKUP(A26,Liste!$A$10:$D$159,4,FALSE),"") -> BERGET Jean François | C26: 0 | D26: 0 | E26: 0 | F26: 0 | I26: 0 | J26: 0 | K26: =IF(AND($I26=1,$H26>0),VLOOKUP($H26,$A$14:AD$63,11,FALSE),0) -> 0 | L26: =IF(AND($I26=1,$H26>0),VLOOKUP($H26,$A$14:AE$63,12,FALSE),0) -> 0 | M26: =IF(AND($I26=1,$H26>0),VLOOKUP($H26,$A$14:AF$63,13,FALSE),0) -> 0 | Q26: =IF(A26<>0,VLOOKUP(A26,Liste!$A$10:$K$159,8,FALSE),"") -> 70 | R26: 158 | AB26: 0 | AC26: 0 | AD26: 0 | AE26: 1000
A27: 14 | B27: =IF(A27<>0,VLOOKUP(A27,Liste!$A$10:$D$159,4,FALSE),"") -> BERLIER David | C27: 0 | D27: 0 | E27: 0 | F27: 0 | I27: 0 | J27: 0 | K27: =IF(AND($I27=1,$H27>0),VLOOKUP($H27,$A$14:AD$63,11,FALSE),0) -> 0 | L27: =IF(AND($I27=1,$H27>0),VLOOKUP($H27,$A$14:AE$63,12,FALSE),0) -> 0 | M27: =IF(AND($I27=1,$H27>0),VLOOKUP($H27,$A$14:AF$63,13,FALSE),0) -> 0 | Q27: =IF(A27<>0,VLOOKUP(A27,Liste!$A$10:$K$159,8,FALSE),"") -> 70 | R27: 158 | AB27: 0 | AC27: 0 | AD27: 0 | AE27: 1000
A28: 15 | B28: =IF(A28<>0,VLOOKUP(A28,Liste!$A$10:$D$159,4,FALSE),"") -> BESSON Gabriel | C28: 0 | D28: 0 | E28: 0 | F28: 0 | I28: 0 | J28: 0 | K28: =IF(AND($I28=1,$H28>0),VLOOKUP($H28,$A$14:AD$63,11,FALSE),0) -> 0 | L28: =IF(AND($I28=1,$H28>0),VLOOKUP($H28,$A$14:AE$63,12,FALSE),0) -> 0 | M28: =IF(AND($I28=1,$H28>0),VLOOKUP($H28,$A$14:AF$63,13,FALSE),0) -> 0 | Q28: =IF(A28<>0,VLOOKUP(A28,Liste!$A$10:$K$159,8,FALSE),"") -> 91 | R28: 205 | AB28: 0 | AC28: 0 | AD28: 0 | AE28: 1000
A29: 16 | B29: =IF(A29<>0,VLOOKUP(A29,Liste!$A$10:$D$159,4,FALSE),"") -> BILLY Grégoire | C29: 0 | D29: 0 | E29: 0 | F29: 0 | I29: 0 | J29: 0 | K29: =IF(AND($I29=1,$H29>0),VLOOKUP($H29,$A$14:AD$63,11,FALSE),0) -> 0 | L29: =IF(AND($I29=1,$H29>0),VLOOKUP($H29,$A$14:AE$63,12,FALSE),0) -> 0 | M29: =IF(AND($I29=1,$H29>0),VLOOKUP($H29,$A$14:AF$63,13,FALSE),0) -> 0 | Q29: =IF(A29<>0,VLOOKUP(A29,Liste!$A$10:$K$159,8,FALSE),"") -> 80 | R29: 180 | AB29: 0 | AC29: 0 | AD29: 0 | AE29: 1000
A30: 17 | B30: =IF(A30<>0,VLOOKUP(A30,Liste!$A$10:$D$159,4,FALSE),"") -> BLOT Alain | C30: 0 | D30: 0 | E30: 0 | F30: 0 | I30: 0 | J30: 0 | K30: =IF(AND($I30=1,$H30>0),VLOOKUP($H30,$A$14:AD$63,11,FALSE),0) -> 0 | L30: =IF(AND($I30=1,$H30>0),VLOOKUP($H30,$A$14:AE$63,12,FALSE),0) -> 0 | M30: =IF(AND($I30=1,$H30>0),VLOOKUP($H30,$A$14:AF$63,13,FALSE),0) -> 0 | Q30: =IF(A30<>0,VLOOKUP(A30,Liste!$A$10:$K$159,8,FALSE),"") -> 75 | R30: 169 | AB30: 0 | AC30: 0 | AD30: 0 | AE30: 1000
A31: 18 | B31: =IF(A31<>0,VLOOKUP(A31,Liste!$A$10:$D$159,4,FALSE),"") -> BODIGER | C31: 0 | D31: 0 | E31: 0 | F31: 0 | I31: 0 | J31: 0 | K31: =IF(AND($I31=1,$H31>0),VLOOKUP($H31,$A$14:AD$63,11,FALSE),0) -> 0 | L31: =IF(AND($I31=1,$H31>0),VLOOKUP($H31,$A$14:AE$63,12,FALSE),0) -> 0 | M31: =IF(AND($I31=1,$H31>0),VLOOKUP($H31,$A$14:AF$63,13,FALSE),0) -> 0 | Q31: =IF(A31<>0,VLOOKUP(A31,Liste!$A$10:$K$159,8,FALSE),"") -> 55 | R31: 124 | AB31: 0 | AC31: 0 | AD31: 0 | AE31: 1000
A32: 19 | B32: =IF(A32<>0,VLOOKUP(A32,Liste!$A$10:$D$159,4,FALSE),"") -> BODIN - BUGEJA | C32: 0 | D32: 0 | E32: 0 | F32: 0 | I32: 0 | J32: 0 | K32: =IF(AND($I32=1,$H32>0),VLOOKUP($H32,$A$14:AD$63,11,FALSE),0) -> 0 | L32: =IF(AND($I32=1,$H32>0),VLOOKUP($H32,$A$14:AE$63,12,FALSE),0) -> 0 | M32: =IF(AND($I32=1,$H32>0),VLOOKUP($H32,$A$14:AF$63,13,FALSE),0) -> 0 | Q32: =IF(A32<>0,VLOOKUP(A32,Liste!$A$10:$K$159,8,FALSE),"") -> 101 | R32: 228 | AB32: 0 | AC32: 0 | AD32: 0 | AE32: 1000
A33: 20 | B33: =IF(A33<>0,VLOOKUP(A33,Liste!$A$10:$D$159,4,FALSE),"") -> BOISSON Franck | C33: 0 | D33: 0 | E33: 0 | F33: 0 | I33: 0 | J33: 0 | K33: =IF(AND($I33=1,$H33>0),VLOOKUP($H33,$A$14:AD$63,11,FALSE),0) -> 0 | L33: =IF(AND($I33=1,$H33>0),VLOOKUP($H33,$A$14:AE$63,12,FALSE),0) -> 0 | M33: =IF(AND($I33=1,$H33>0),VLOOKUP($H33,$A$14:AF$63,13,FALSE),0) -> 0 | Q33: =IF(A33<>0,VLOOKUP(A33,Liste!$A$10:$K$159,8,FALSE),"") -> 73 | R33: 165 | AB33: 0 | AC33: 0 | AD33: 0 | AE33: 1000
A34: 21 | B34: =IF(A34<>0,VLOOKUP(A34,Liste!$A$10:$D$159,4,FALSE),"") -> BOQUET Marcel | C34: 0 | D34: 0 | E34: 0 | F34: 55 | G34: 3 | I34: 1 | J34: 55 | K34: =IF(AND($I34=1,$H34>0),VLOOKUP($H34,$A$14:AD$63,11,FALSE),0) -> 0 | L34: =IF(AND($I34=1,$H34>0),VLOOKUP($H34,$A$14:AE$63,12,FALSE),0) -> 0 | M34: =IF(AND($I34=1,$H34>0),VLOOKUP($H34,$A$14:AF$63,13,FALSE),0) -> 0 | N34: EN ATTENTE | P34: 0 | Q34: =IF(A34<>0,VLOOKUP(A34,Liste!$A$10:$K$159,8,FALSE),"") -> 55 | R34: 124 | AB34: 1 | AC34: 0 | AD34: 0 | AE34: 21
A35: 22 | B35: =IF(A35<>0,VLOOKUP(A35,Liste!$A$10:$D$159,4,FALSE),"") -> BOREL | C35: 0 | D35: 0 | E35: 0 | F35: 0 | I35: 0 | J35: 0 | K35: =IF(AND($I35=1,$H35>0),VLOOKUP($H35,$A$14:AD$63,11,FALSE),0) -> 0 | L35: =IF(AND($I35=1,$H35>0),VLOOKUP($H35,$A$14:AE$63,12,FALSE),0) -> 0 | M35: =IF(AND($I35=1,$H35>0),VLOOKUP($H35,$A$14:AF$63,13,FALSE),0) -> 0 | Q35: =IF(A35<>0,VLOOKUP(A35,Liste!$A$10:$K$159,8,FALSE),"") -> 59 | R35: 133 | AB35: 0 | AC35: 0 | AD35: 0 | AE35: 1000
A36: 23 | B36: =IF(A36<>0,VLOOKUP(A36,Liste!$A$10:$D$159,4,FALSE),"") -> BOUBRED | C36: 0 | D36: 0 | E36: 0 | F36: 0 | I36: 0 | J36: 0 | K36: =IF(AND($I36=1,$H36>0),VLOOKUP($H36,$A$14:AD$63,11,FALSE),0) -> 0 | L36: =IF(AND($I36=1,$H36>0),VLOOKUP($H36,$A$14:AE$63,12,FALSE),0) -> 0 | M36: =IF(AND($I36=1,$H36>0),VLOOKUP($H36,$A$14:AF$63,13,FALSE),0) -> 0 | Q36: =IF(A36<>0,VLOOKUP(A36,Liste!$A$10:$K$159,8,FALSE),"") -> 63 | R36: 142 | AB36: 0 | AC36: 0 | AD36: 0 | AE36: 1000
A37: 24 | B37: =IF(A37<>0,VLOOKUP(A37,Liste!$A$10:$D$159,4,FALSE),"") -> BRASSEUR Gérard | C37: 0 | D37: 0 | E37: 0 | F37: 0 | I37: 0 | J37: 0 | K37: =IF(AND($I37=1,$H37>0),VLOOKUP($H37,$A$14:AD$63,11,FALSE),0) -> 0 | L37: =IF(AND($I37=1,$H37>0),VLOOKUP($H37,$A$14:AE$63,12,FALSE),0) -> 0 | M37: =IF(AND($I37=1,$H37>0),VLOOKUP($H37,$A$14:AF$63,13,FALSE),0) -> 0 | Q37: =IF(A37<>0,VLOOKUP(A37,Liste!$A$10:$K$159,8,FALSE),"") -> 60 | R37: 135 | AB37: 0 | AC37: 0 | AD37: 0 | AE37: 1000
A38: 25 | B38: =IF(A38<>0,VLOOKUP(A38,Liste!$A$10:$D$159,4,FALSE),"") -> BRAUD-COLLET G. | C38: 0 | D38: 0 | E38: 0 | F38: 0 | I38: 0 | J38: 0 | K38: =IF(AND($I38=1,$H38>0),VLOOKUP($H38,$A$14:AD$63,11,FALSE),0) -> 0 | L38: =IF(AND($I38=1,$H38>0),VLOOKUP($H38,$A$14:AE$63,12,FALSE),0) -> 0 | M38: =IF(AND($I38=1,$H38>0),VLOOKUP($H38,$A$14:AF$63,13,FALSE),0) -> 0 | Q38: =IF(A38<>0,VLOOKUP(A38,Liste!$A$10:$K$159,8,FALSE),"") -> 70 | R38: 158 | AB38: 0 | AC38: 0 | AD38: 0 | AE38: 1000
A39: 26 | B39: =IF(A39<>0,VLOOKUP(A39,Liste!$A$10:$D$159,4,FALSE),"") -> BRICARD Mar'c | C39: 0 | D39: 0 | E39: 0 | F39: 0 | I39: 0 | J39: 0 | K39: =IF(AND($I39=1,$H39>0),VLOOKUP($H39,$A$14:AD$63,11,FALSE),0) -> 0 | L39: =IF(AND($I39=1,$H39>0),VLOOKUP($H39,$A$14:AE$63,12,FALSE),0) -> 0 | M39: =IF(AND($I39=1,$H39>0),VLOOKUP($H39,$A$14:AF$63,13,FALSE),0) -> 0 | Q39: =IF(A39<>0,VLOOKUP(A39,Liste!$A$10:$K$159,8,FALSE),"") -> 50 | R39: 113 | AB39: 0 | AC39: 0 | AD39: 0 | AE39: 1000
A40: 27 | B40: =IF(A40<>0,VLOOKUP(A40,Liste!$A$10:$D$159,4,FALSE),"") -> BRIOLLE Marthe | C40: 0 | D40: 0 | E40: 0 | F40: 0 | I40: 0 | J40: 0 | K40: =IF(AND($I40=1,$H40>0),VLOOKUP($H40,$A$14:AD$63,11,FALSE),0) -> 0 | L40: =IF(AND($I40=1,$H40>0),VLOOKUP($H40,$A$14:AE$63,12,FALSE),0) -> 0 | M40: =IF(AND($I40=1,$H40>0),VLOOKUP($H40,$A$14:AF$63,13,FALSE),0) -> 0 | Q40: =IF(A40<>0,VLOOKUP(A40,Liste!$A$10:$K$159,8,FALSE),"") -> 60 | R40: 135 | AB40: 0 | AC40: 0 | AD40: 0 | AE40: 1000
A41: 28 | B41: =IF(A41<>0,VLOOKUP(A41,Liste!$A$10:$D$159,4,FALSE),"") -> BRUCHET Elisabeth | C41: 0 | D41: 0 | E41: 0 | F41: 0 | I41: 0 | J41: 0 | K41: =IF(AND($I41=1,$H41>0),VLOOKUP($H41,$A$14:AD$63,11,FALSE),0) -> 0 | L41: =IF(AND($I41=1,$H41>0),VLOOKUP($H41,$A$14:AE$63,12,FALSE),0) -> 0 | M41: =IF(AND($I41=1,$H41>0),VLOOKUP($H41,$A$14:AF$63,13,FALSE),0) -> 0 | Q41: =IF(A41<>0,VLOOKUP(A41,Liste!$A$10:$K$159,8,FALSE),"") -> 53 | R41: 119 | AB41: 0 | AC41: 0 | AD41: 0 | AE41: 1000
A42: 29 | B42: =IF(A42<>0,VLOOKUP(A42,Liste!$A$10:$D$159,4,FALSE),"") -> BUKVIC | C42: 0 | D42: 0 | E42: 0 | F42: 0 | I42: 0 | J42: 0 | K42: =IF(AND($I42=1,$H42>0),VLOOKUP($H42,$A$14:AD$63,11,FALSE),0) -> 0 | L42: =IF(AND($I42=1,$H42>0),VLOOKUP($H42,$A$14:AE$63,12,FALSE),0) -> 0 | M42: =IF(AND($I42=1,$H42>0),VLOOKUP($H42,$A$14:AF$63,13,FALSE),0) -> 0 | Q42: =IF(A42<>0,VLOOKUP(A42,Liste!$A$10:$K$159,8,FALSE),"") -> 68 | R42: 153 | AB42: 0 | AC42: 0 | AD42: 0 | AE42: 1000
A43: 30 | B43: =IF(A43<>0,VLOOKUP(A43,Liste!$A$10:$D$159,4,FALSE),"") -> BURILLE Richard | C43: 0 | D43: 0 | E43: 0 | F43: 0 | I43: 0 | J43: 0 | K43: =IF(AND($I43=1,$H43>0),VLOOKUP($H43,$A$14:AD$63,11,FALSE),0) -> 0 | L43: =IF(AND($I43=1,$H43>0),VLOOKUP($H43,$A$14:AE$63,12,FALSE),0) -> 0 | M43: =IF(AND($I43=1,$H43>0),VLOOKUP($H43,$A$14:AF$63,13,FALSE),0) -> 0 | Q43: =IF(A43<>0,VLOOKUP(A43,Liste!$A$10:$K$159,8,FALSE),"") -> 60 | R43: 135 | AB43: 0 | AC43: 0 | AD43: 0 | AE43: 1000
A44: 31 | B44: =IF(A44<>0,VLOOKUP(A44,Liste!$A$10:$D$159,4,FALSE),"") -> CARANTA Jean P. | C44: 0 | D44: 0 | E44: 0 | F44: 60 | G44: 3 | I44: 1 | J44: 60 | K44: =IF(AND($I44=1,$H44>0),VLOOKUP($H44,$A$14:AD$63,11,FALSE),0) -> 0 | L44: =IF(AND($I44=1,$H44>0),VLOOKUP($H44,$A$14:AE$63,12,FALSE),0) -> 0 | M44: =IF(AND($I44=1,$H44>0),VLOOKUP($H44,$A$14:AF$63,13,FALSE),0) -> 0 | N44: EN ATTENTE | P44: 0 | Q44: =IF(A44<>0,VLOOKUP(A44,Liste!$A$10:$K$159,8,FALSE),"") -> 60 | R44: 135 | AB44: 1 | AC44: 0 | AD44: 0 | AE44: 31
A45: 32 | B45: =IF(A45<>0,VLOOKUP(A45,Liste!$A$10:$D$159,4,FALSE),"") -> CARBONE Isabelle | C45: 0 | D45: 0 | E45: 0 | F45: 0 | I45: 0 | J45: 0 | K45: =IF(AND($I45=1,$H45>0),VLOOKUP($H45,$A$14:AD$63,11,FALSE),0) -> 0 | L45: =IF(AND($I45=1,$H45>0),VLOOKUP($H45,$A$14:AE$63,12,FALSE),0) -> 0 | M45: =IF(AND($I45=1,$H45>0),VLOOKUP($H45,$A$14:AF$63,13,FALSE),0) -> 0 | Q45: =IF(A45<>0,VLOOKUP(A45,Liste!$A$10:$K$159,8,FALSE),"") -> 50 | R45: 113 | AB45: 0 | AC45: 0 | AD45: 0 | AE45: 1000
A46: 33 | B46: =IF(A46<>0,VLOOKUP(A46,Liste!$A$10:$D$159,4,FALSE),"") -> CASTAN Max | C46: 0 | D46: 0 | E46: 0 | F46: 0 | I46: 0 | J46: 0 | K46: =IF(AND($I46=1,$H46>0),VLOOKUP($H46,$A$14:AD$63,11,FALSE),0) -> 0 | L46: =IF(AND($I46=1,$H46>0),VLOOKUP($H46,$A$14:AE$63,12,FALSE),0) -> 0 | M46: =IF(AND($I46=1,$H46>0),VLOOKUP($H46,$A$14:AF$63,13,FALSE),0) -> 0 | Q46: =IF(A46<>0,VLOOKUP(A46,Liste!$A$10:$K$159,8,FALSE),"") -> 85 | R46: 192 | AB46: 0 | AC46: 0 | AD46: 0 | AE46: 1000
A47: 34 | B47: =IF(A47<>0,VLOOKUP(A47,Liste!$A$10:$D$159,4,FALSE),"") -> CAVALIERI Alain | C47: 0 | D47: 0 | E47: 0 | F47: 0 | I47: 0 | J47: 0 | K47: =IF(AND($I47=1,$H47>0),VLOOKUP($H47,$A$14:AD$63,11,FALSE),0) -> 0 | L47: =IF(AND($I47=1,$H47>0),VLOOKUP($H47,$A$14:AE$63,12,FALSE),0) -> 0 | M47: =IF(AND($I47=1,$H47>0),VLOOKUP($H47,$A$14:AF$63,13,FALSE),0) -> 0 | Q47: =IF(A47<>0,VLOOKUP(A47,Liste!$A$10:$K$159,8,FALSE),"") -> 80 | R47: 180 | AB47: 0 | AC47: 0 | AD47: 0 | AE47: 1000
A48: 35 | B48: =IF(A48<>0,VLOOKUP(A48,Liste!$A$10:$D$159,4,FALSE),"") -> CAVALIERI Christine | C48: 0 | D48: 0 | E48: 0 | F48: 0 | I48: 0 | J48: 0 | K48: =IF(AND($I48=1,$H48>0),VLOOKUP($H48,$A$14:AD$63,11,FALSE),0) -> 0 | L48: =IF(AND($I48=1,$H48>0),VLOOKUP($H48,$A$14:AE$63,12,FALSE),0) -> 0 | M48: =IF(AND($I48=1,$H48>0),VLOOKUP($H48,$A$14:AF$63,13,FALSE),0) -> 0 | Q48: =IF(A48<>0,VLOOKUP(A48,Liste!$A$10:$K$159,8,FALSE),"") -> 60 | R48: 135 | AB48: 0 | AC48: 0 | AD48: 0 | AE48: 1000
A49: 36 | B49: =IF(A49<>0,VLOOKUP(A49,Liste!$A$10:$D$159,4,FALSE),"") -> CIABATTINI Dante | C49: 0 | D49: 0 | E49: 0 | F49: 0 | I49: 0 | J49: 0 | K49: =IF(AND($I49=1,$H49>0),VLOOKUP($H49,$A$14:AD$63,11,FALSE),0) -> 0 | L49: =IF(AND($I49=1,$H49>0),VLOOKUP($H49,$A$14:AE$63,12,FALSE),0) -> 0 | M49: =IF(AND($I49=1,$H49>0),VLOOKUP($H49,$A$14:AF$63,13,FALSE),0) -> 0 | Q49: =IF(A49<>0,VLOOKUP(A49,Liste!$A$10:$K$159,8,FALSE),"") -> 70 | R49: 158 | AB49: 0 | AC49: 0 | AD49: 0 | AE49: 1000
A50: 37 | B50: =IF(A50<>0,VLOOKUP(A50,Liste!$A$10:$D$159,4,FALSE),"") -> CIULLI - DREANO Jeanine | C50: 0 | D50: 0 | E50: 0 | F50: 0 | I50: 0 | J50: 0 | K50: =IF(AND($I50=1,$H50>0),VLOOKUP($H50,$A$14:AD$63,11,FALSE),0) -> 0 | L50: =IF(AND($I50=1,$H50>0),VLOOKUP($H50,$A$14:AE$63,12,FALSE),0) -> 0 | M50: =IF(AND($I50=1,$H50>0),VLOOKUP($H50,$A$14:AF$63,13,FALSE),0) -> 0 | Q50: =IF(A50<>0,VLOOKUP(A50,Liste!$A$10:$K$159,8,FALSE),"") -> 50 | R50: 113 | AB50: 0 | AC50: 0 | AD50: 0 | AE50: 1000
A51: 38 | B51: =IF(A51<>0,VLOOKUP(A51,Liste!$A$10:$D$159,4,FALSE),"") -> COLOM | C51: 0 | D51: 0 | E51: 0 | F51: 0 | I51: 0 | J51: 0 | K51: =IF(AND($I51=1,$H51>0),VLOOKUP($H51,$A$14:AD$63,11,FALSE),0) -> 0 | L51: =IF(AND($I51=1,$H51>0),VLOOKUP($H51,$A$14:AE$63,12,FALSE),0) -> 0 | M51: =IF(AND($I51=1,$H51>0),VLOOKUP($H51,$A$14:AF$63,13,FALSE),0) -> 0 | Q51: =IF(A51<>0,VLOOKUP(A51,Liste!$A$10:$K$159,8,FALSE),"") -> 45 | R51: 101 | AB51: 0 | AC51: 0 | AD51: 0 | AE51: 1000
A52: 39 | B52: =IF(A52<>0,VLOOKUP(A52,Liste!$A$10:$D$159,4,FALSE),"") -> COLOMBANI Georges | C52: 0 | D52: 0 | E52: 0 | F52: 0 | I52: 0 | J52: 0 | K52: =IF(AND($I52=1,$H52>0),VLOOKUP($H52,$A$14:AD$63,11,FALSE),0) -> 0 | L52: =IF(AND($I52=1,$H52>0),VLOOKUP($H52,$A$14:AE$63,12,FALSE),0) -> 0 | M52: =IF(AND($I52=1,$H52>0),VLOOKUP($H52,$A$14:AF$63,13,FALSE),0) -> 0 | Q52: =IF(A52<>0,VLOOKUP(A52,Liste!$A$10:$K$159,8,FALSE),"") -> 50 | R52: 113 | AB52: 0 | AC52: 0 | AD52: 0 | AE52: 1000
A53: 40 | B53: =IF(A53<>0,VLOOKUP(A53,Liste!$A$10:$D$159,4,FALSE),"") -> COLONNA Michel | C53: 0 | D53: 0 | E53: 0 | F53: 0 | I53: 0 | J53: 0 | K53: =IF(AND($I53=1,$H53>0),VLOOKUP($H53,$A$14:AD$63,11,FALSE),0) -> 0 | L53: =IF(AND($I53=1,$H53>0),VLOOKUP($H53,$A$14:AE$63,12,FALSE),0) -> 0 | M53: =IF(AND($I53=1,$H53>0),VLOOKUP($H53,$A$14:AF$63,13,FALSE),0) -> 0 | Q53: =IF(A53<>0,VLOOKUP(A53,Liste!$A$10:$K$159,8,FALSE),"") -> 60 | R53: 135 | AB53: 0 | AC53: 0 | AD53: 0 | AE53: 1000
A54: 41 | B54: =IF(A54<>0,VLOOKUP(A54,Liste!$A$10:$D$159,4,FALSE),"") -> COMA Marie | C54: 0 | D54: 0 | E54: 0 | F54: 55 | G54: 3 | I54: 1 | J54: 55 | K54: =IF(AND($I54=1,$H54>0),VLOOKUP($H54,$A$14:AD$63,11,FALSE),0) -> 0 | L54: =IF(AND($I54=1,$H54>0),VLOOKUP($H54,$A$14:AE$63,12,FALSE),0) -> 0 | M54: =IF(AND($I54=1,$H54>0),VLOOKUP($H54,$A$14:AF$63,13,FALSE),0) -> 0 | N54: EN ATTENTE | P54: 0 | Q54: =IF(A54<>0,VLOOKUP(A54,Liste!$A$10:$K$159,8,FALSE),"") -> 55 | R54: 124 | AB54: 1 | AC54: 0 | AD54: 0 | AE54: 41
A55: 42 | B55: =IF(A55<>0,VLOOKUP(A55,Liste!$A$10:$D$159,4,FALSE),"") -> DANAUD Jean René | C55: 0 | D55: 0 | E55: 0 | F55: 0 | I55: 0 | J55: 0 | K55: =IF(AND($I55=1,$H55>0),VLOOKUP($H55,$A$14:AD$63,11,FALSE),0) -> 0 | L55: =IF(AND($I55=1,$H55>0),VLOOKUP($H55,$A$14:AE$63,12,FALSE),0) -> 0 | M55: =IF(AND($I55=1,$H55>0),VLOOKUP($H55,$A$14:AF$63,13,FALSE),0) -> 0 | Q55: =IF(A55<>0,VLOOKUP(A55,Liste!$A$10:$K$159,8,FALSE),"") -> 50 | R55: 113 | AB55: 0 | AC55: 0 | AD55: 0 | AE55: 1000
A56: 43 | B56: =IF(A56<>0,VLOOKUP(A56,Liste!$A$10:$D$159,4,FALSE),"") -> DAUGA Cédric | C56: 0 | D56: 0 | E56: 0 | F56: 0 | I56: 0 | J56: 0 | K56: =IF(AND($I56=1,$H56>0),VLOOKUP($H56,$A$14:AD$63,11,FALSE),0) -> 0 | L56: =IF(AND($I56=1,$H56>0),VLOOKUP($H56,$A$14:AE$63,12,FALSE),0) -> 0 | M56: =IF(AND($I56=1,$H56>0),VLOOKUP($H56,$A$14:AF$63,13,FALSE),0) -> 0 | Q56: =IF(A56<>0,VLOOKUP(A56,Liste!$A$10:$K$159,8,FALSE),"") -> 50 | R56: 113 | AB56: 0 | AC56: 0 | AD56: 0 | AE56: 1000
A57: 44 | B57: =IF(A57<>0,VLOOKUP(A57,Liste!$A$10:$D$159,4,FALSE),"") -> DE LAPRADE Yvette | C57: 0 | D57: 0 | E57: 0 | F57: 0 | I57: 0 | J57: 0 | K57: =IF(AND($I57=1,$H57>0),VLOOKUP($H57,$A$14:AD$63,11,FALSE),0) -> 0 | L57: =IF(AND($I57=1,$H57>0),VLOOKUP($H57,$A$14:AE$63,12,FALSE),0) -> 0 | M57: =IF(AND($I57=1,$H57>0),VLOOKUP($H57,$A$14:AF$63,13,FALSE),0) -> 0 | Q57: =IF(A57<>0,VLOOKUP(A57,Liste!$A$10:$K$159,8,FALSE),"") -> 55 | R57: 124 | AB57: 0 | AC57: 0 | AD57: 0 | AE57: 1000
A58: 45 | B58: =IF(A58<>0,VLOOKUP(A58,Liste!$A$10:$D$159,4,FALSE),"") -> DENEUX Pierre | C58: 0 | D58: 0 | E58: 0 | F58: 0 | I58: 0 | J58: 0 | K58: =IF(AND($I58=1,$H58>0),VLOOKUP($H58,$A$14:AD$63,11,FALSE),0) -> 0 | L58: =IF(AND($I58=1,$H58>0),VLOOKUP($H58,$A$14:AE$63,12,FALSE),0) -> 0 | M58: =IF(AND($I58=1,$H58>0),VLOOKUP($H58,$A$14:AF$63,13,FALSE),0) -> 0 | Q58: =IF(A58<>0,VLOOKUP(A58,Liste!$A$10:$K$159,8,FALSE),"") -> 60 | R58: 135 | AB58: 0 | AC58: 0 | AD58: 0 | AE58: 1000
A59: 46 | B59: =IF(A59<>0,VLOOKUP(A59,Liste!$A$10:$D$159,4,FALSE),"") -> DENIS Jacques | C59: 0 | D59: 0 | E59: 0 | F59: 0 | I59: 0 | J59: 0 | K59: =IF(AND($I59=1,$H59>0),VLOOKUP($H59,$A$14:AD$63,11,FALSE),0) -> 0 | L59: =IF(AND($I59=1,$H59>0),VLOOKUP($H59,$A$14:AE$63,12,FALSE),0) -> 0 | M59: =IF(AND($I59=1,$H59>0),VLOOKUP($H59,$A$14:AF$63,13,FALSE),0) -> 0 | Q59: =IF(A59<>0,VLOOKUP(A59,Liste!$A$10:$K$159,8,FALSE),"") -> 55 | R59: 124 | AB59: 0 | AC59: 0 | AD59: 0 | AE59: 1000
A60: 47 | B60: =IF(A60<>0,VLOOKUP(A60,Liste!$A$10:$D$159,4,FALSE),"") -> DI JORIO Brigitte | C60: 0 | D60: 0 | E60: 0 | F60: 0 | I60: 0 | J60: 0 | K60: =IF(AND($I60=1,$H60>0),VLOOKUP($H60,$A$14:AD$63,11,FALSE),0) -> 0 | L60: =IF(AND($I60=1,$H60>0),VLOOKUP($H60,$A$14:AE$63,12,FALSE),0) -> 0 | M60: =IF(AND($I60=1,$H60>0),VLOOKUP($H60,$A$14:AF$63,13,FALSE),0) -> 0 | Q60: =IF(A60<>0,VLOOKUP(A60,Liste!$A$10:$K$159,8,FALSE),"") -> 60 | R60: 135 | AB60: 0 | AC60: 0 | AD60: 0 | AE60: 1000
A61: 48 | B61: =IF(A61<>0,VLOOKUP(A61,Liste!$A$10:$D$159,4,FALSE),"") -> DI JORIO Marcel | C61: 0 | D61: 0 | E61: 0 | F61: 0 | I61: 0 | J61: 0 | K61: =IF(AND($I61=1,$H61>0),VLOOKUP($H61,$A$14:AD$63,11,FALSE),0) -> 0 | L61: =IF(AND($I61=1,$H61>0),VLOOKUP($H61,$A$14:AE$63,12,FALSE),0) -> 0 | M61: =IF(AND($I61=1,$H61>0),VLOOKUP($H61,$A$14:AF$63,13,FALSE),0) -> 0 | Q61: =IF(A61<>0,VLOOKUP(A61,Liste!$A$10:$K$159,8,FALSE),"") -> 61 | R61: 137 | AB61: 0 | AC61: 0 | AD61: 0 | AE61: 1000
A62: 49 | B62: =IF(A62<>0,VLOOKUP(A62,Liste!$A$10:$D$159,4,FALSE),"") -> DI MEGLIO Laurent | C62: 0 | D62: 0 | E62: 0 | F62: 0 | I62: 0 | J62: 0 | K62: =IF(AND($I62=1,$H62>0),VLOOKUP($H62,$A$14:AD$63,11,FALSE),0) -> 0 | L62: =IF(AND($I62=1,$H62>0),VLOOKUP($H62,$A$14:AE$63,12,FALSE),0) -> 0 | M62: =IF(AND($I62=1,$H62>0),VLOOKUP($H62,$A$14:AF$63,13,FALSE),0) -> 0 | Q62: =IF(A62<>0,VLOOKUP(A62,Liste!$A$10:$K$159,8,FALSE),"") -> 45 | R62: 101 | AB62: 0 | AC62: 0 | AD62: 0 | AE62: 1000
A63: 50 | B63: =IF(A63<>0,VLOOKUP(A63,Liste!$A$10:$D$159,4,FALSE),"") -> DRAGOTTA Michel | C63: 0 | D63: 0 | E63: 0 | F63: 0 | I63: 0 | J63: 0 | K63: =IF(AND($I63=1,$H63>0),VLOOKUP($H63,$A$14:AD$63,11,FALSE),0) -> 0 | L63: =IF(AND($I63=1,$H63>0),VLOOKUP($H63,$A$14:AE$63,12,FALSE),0) -> 0 | M63: =IF(AND($I63=1,$H63>0),VLOOKUP($H63,$A$14:AF$63,13,FALSE),0) -> 0 | Q63: =IF(A63<>0,VLOOKUP(A63,Liste!$A$10:$K$159,8,FALSE),"") -> 50 | R63: 113 | AB63: 0 | AC63: 0 | AD63: 0 | AE63: 1000
A64: 51 | B64: =IF(A64<>0,VLOOKUP(A64,Liste!$A$10:$D$159,4,FALSE),"") -> DUBOURG Pierre | C64: 0 | D64: 0 | E64: 0 | F64: 0 | I64: 0 | J64: 0 | K64: =IF(AND($I64=1,$H64>0),VLOOKUP($H64,$A$14:AD$63,11,FALSE),0) -> 0 | L64: =IF(AND($I64=1,$H64>0),VLOOKUP($H64,$A$14:AE$63,12,FALSE),0) -> 0 | M64: =IF(AND($I64=1,$H64>0),VLOOKUP($H64,$A$14:AF$63,13,FALSE),0) -> 0 | Q64: =IF(A64<>0,VLOOKUP(A64,Liste!$A$10:$K$159,8,FALSE),"") -> 60 | R64: 135 | AB64: =(H64+I64)*(J64>0) -> 0 | AC64: 0 | AD64: 0 | AE64: =IF(H64>0,H64+0.5*(I64=1),A64*(I64=1))+(1000*(I64<1)) -> 1000
A65: 52 | B65: =IF(A65<>0,VLOOKUP(A65,Liste!$A$10:$D$159,4,FALSE),"") -> FIGUERAS Annie | C65: 0 | D65: 0 | E65: 0 | F65: 0 | I65: 0 | J65: 0 | K65: =IF(AND($I65=1,$H65>0),VLOOKUP($H65,$A$14:AD$63,11,FALSE),0) -> 0 | L65: =IF(AND($I65=1,$H65>0),VLOOKUP($H65,$A$14:AE$63,12,FALSE),0) -> 0 | M65: =IF(AND($I65=1,$H65>0),VLOOKUP($H65,$A$14:AF$63,13,FALSE),0) -> 0 | Q65: =IF(A65<>0,VLOOKUP(A65,Liste!$A$10:$K$159,8,FALSE),"") -> 70 | R65: 158 | AB65: 0 | AC65: 0 | AD65: 0 | AE65: 1000
A66: 53 | B66: =IF(A66<>0,VLOOKUP(A66,Liste!$A$10:$D$159,4,FALSE),"") -> FONTANA Georges | C66: 0 | D66: 0 | E66: 0 | F66: 0 | I66: 0 | J66: 0 | K66: =IF(AND($I66=1,$H66>0),VLOOKUP($H66,$A$14:AD$63,11,FALSE),0) -> 0 | L66: =IF(AND($I66=1,$H66>0),VLOOKUP($H66,$A$14:AE$63,12,FALSE),0) -> 0 | M66: =IF(AND($I66=1,$H66>0),VLOOKUP($H66,$A$14:AF$63,13,FALSE),0) -> 0 | Q66: =IF(A66<>0,VLOOKUP(A66,Liste!$A$10:$K$159,8,FALSE),"") -> 60 | R66: 135 | AB66: 0 | AC66: 0 | AD66: 0 | AE66: 1000
A67: 54 | B67: =IF(A67<>0,VLOOKUP(A67,Liste!$A$10:$D$159,4,FALSE),"") -> FORGET Valéry | C67: 0 | D67: 0 | E67: 0 | F67: 0 | I67: 0 | J67: 0 | K67: =IF(AND($I67=1,$H67>0),VLOOKUP($H67,$A$14:AD$63,11,FALSE),0) -> 0 | L67: =IF(AND($I67=1,$H67>0),VLOOKUP($H67,$A$14:AE$63,12,FALSE),0) -> 0 | M67: =IF(AND($I67=1,$H67>0),VLOOKUP($H67,$A$14:AF$63,13,FALSE),0) -> 0 | Q67: =IF(A67<>0,VLOOKUP(A67,Liste!$A$10:$K$159,8,FALSE),"") -> 65 | R67: 146 | AB67: 0 | AC67: 0 | AD67: 0 | AE67: 1000
A68: 55 | B68: =IF(A68<>0,VLOOKUP(A68,Liste!$A$10:$D$159,4,FALSE),"") -> FOURNIER Nicole | C68: 0 | D68: 0 | E68: 0 | F68: 0 | I68: 0 | J68: 0 | K68: =IF(AND($I68=1,$H68>0),VLOOKUP($H68,$A$14:AD$63,11,FALSE),0) -> 0 | L68: =IF(AND($I68=1,$H68>0),VLOOKUP($H68,$A$14:AE$63,12,FALSE),0) -> 0 | M68: =IF(AND($I68=1,$H68>0),VLOOKUP($H68,$A$14:AF$63,13,FALSE),0) -> 0 | Q68: =IF(A68<>0,VLOOKUP(A68,Liste!$A$10:$K$159,8,FALSE),"") -> 51 | R68: 115 | AB68: 0 | AC68: 0 | AD68: 0 | AE68: 1000
A69: 56 | B69: =IF(A69<>0,VLOOKUP(A69,Liste!$A$10:$D$159,4,FALSE),"") -> GARCIA Christophe | C69: 0 | D69: 0 | E69: 0 | F69: 0 | I69: 0 | J69: 0 | K69: =IF(AND($I69=1,$H69>0),VLOOKUP($H69,$A$14:AD$63,11,FALSE),0) -> 0 | L69: =IF(AND($I69=1,$H69>0),VLOOKUP($H69,$A$14:AE$63,12,FALSE),0) -> 0 | M69: =IF(AND($I69=1,$H69>0),VLOOKUP($H69,$A$14:AF$63,13,FALSE),0) -> 0 | Q69: =IF(A69<>0,VLOOKUP(A69,Liste!$A$10:$K$159,8,FALSE),"") -> 50 | R69: 113 | AB69: 0 | AC69: 0 | AD69: 0 | AE69: 1000
A70: 57 | B70: =IF(A70<>0,VLOOKUP(A70,Liste!$A$10:$D$159,4,FALSE),"") -> GARRELON Jacques | C70: 0 | D70: 0 | E70: 0 | F70: 0 | I70: 0 | J70: 0 | K70: =IF(AND($I70=1,$H70>0),VLOOKUP($H70,$A$14:AD$63,11,FALSE),0) -> 0 | L70: =IF(AND($I70=1,$H70>0),VLOOKUP($H70,$A$14:AE$63,12,FALSE),0) -> 0 | M70: =IF(AND($I70=1,$H70>0),VLOOKUP($H70,$A$14:AF$63,13,FALSE),0) -> 0 | Q70: =IF(A70<>0,VLOOKUP(A70,Liste!$A$10:$K$159,8,FALSE),"") -> 70 | R70: 158 | AB70: 0 | AC70: 0 | AD70: 0 | AE70: 1000
A71: 58 | B71: =IF(A71<>0,VLOOKUP(A71,Liste!$A$10:$D$159,4,FALSE),"") -> GAUNET Mireille | C71: 0 | D71: 0 | E71: 0 | F71: 0 | I71: 0 | J71: 0 | K71: =IF(AND($I71=1,$H71>0),VLOOKUP($H71,$A$14:AD$63,11,FALSE),0) -> 0 | L71: =IF(AND($I71=1,$H71>0),VLOOKUP($H71,$A$14:AE$63,12,FALSE),0) -> 0 | M71: =IF(AND($I71=1,$H71>0),VLOOKUP($H71,$A$14:AF$63,13,FALSE),0) -> 0 | Q71: =IF(A71<>0,VLOOKUP(A71,Liste!$A$10:$K$159,8,FALSE),"") -> 60 | R71: 135 | AB71: 0 | AC71: 0 | AD71: 0 | AE71: 1000
A72: 59 | B72: =IF(A72<>0,VLOOKUP(A72,Liste!$A$10:$D$159,4,FALSE),"") -> GERTOSIO | C72: 0 | D72: 0 | E72: 0 | F72: 0 | I72: 0 | J72: 0 | K72: =IF(AND($I72=1,$H72>0),VLOOKUP($H72,$A$14:AD$63,11,FALSE),0) -> 0 | L72: =IF(AND($I72=1,$H72>0),VLOOKUP($H72,$A$14:AE$63,12,FALSE),0) -> 0 | M72: =IF(AND($I72=1,$H72>0),VLOOKUP($H72,$A$14:AF$63,13,FALSE),0) -> 0 | Q72: =IF(A72<>0,VLOOKUP(A72,Liste!$A$10:$K$159,8,FALSE),"") -> 62 | R72: 140 | AB72: 0 | AC72: 0 | AD72: 0 | AE72: 1000
A73: 60 | B73: =IF(A73<>0,VLOOKUP(A73,Liste!$A$10:$D$159,4,FALSE),"") -> GERVASI Jacqueline | C73: 0 | D73: 0 | E73: 0 | F73: 0 | I73: 0 | J73: 0 | K73: =IF(AND($I73=1,$H73>0),VLOOKUP($H73,$A$14:AD$63,11,FALSE),0) -> 0 | L73: =IF(AND($I73=1,$H73>0),VLOOKUP($H73,$A$14:AE$63,12,FALSE),0) -> 0 | M73: =IF(AND($I73=1,$H73>0),VLOOKUP($H73,$A$14:AF$63,13,FALSE),0) -> 0 | Q73: =IF(A73<>0,VLOOKUP(A73,Liste!$A$10:$K$159,8,FALSE),"") -> 83 | R73: 187 | AB73: 0 | AC73: 0 | AD73: 0 | AE73: 1000
A74: 61 | B74: =IF(A74<>0,VLOOKUP(A74,Liste!$A$10:$D$159,4,FALSE),"") -> GINESTOUS Maryvonne | C74: 0 | D74: 0 | E74: 0 | F74: 0 | I74: 0 | J74: 0 | K74: =IF(AND($I74=1,$H74>0),VLOOKUP($H74,$A$14:AD$63,11,FALSE),0) -> 0 | L74: =IF(AND($I74=1,$H74>0),VLOOKUP($H74,$A$14:AE$63,12,FALSE),0) -> 0 | M74: =IF(AND($I74=1,$H74>0),VLOOKUP($H74,$A$14:AF$63,13,FALSE),0) -> 0 | Q74: =IF(A74<>0,VLOOKUP(A74,Liste!$A$10:$K$159,8,FALSE),"") -> 58 | R74: 131 | AB74: 0 | AC74: 0 | AD74: 0 | AE74: 1000
A75: 62 | B75: =IF(A75<>0,VLOOKUP(A75,Liste!$A$10:$D$159,4,FALSE),"") -> GIRARDOT Michèle | C75: 0 | D75: 0 | E75: 0 | F75: 0 | I75: 0 | J75: 0 | K75: =IF(AND($I75=1,$H75>0),VLOOKUP($H75,$A$14:AD$63,11,FALSE),0) -> 0 | L75: =IF(AND($I75=1,$H75>0),VLOOKUP($H75,$A$14:AE$63,12,FALSE),0) -> 0 | M75: =IF(AND($I75=1,$H75>0),VLOOKUP($H75,$A$14:AF$63,13,FALSE),0) -> 0 | Q75: =IF(A75<>0,VLOOKUP(A75,Liste!$A$10:$K$159,8,FALSE),"") -> 55 | R75: 124 | AB75: 0 | AC75: 0 | AD75: 0 | AE75: 1000
A76: 63 | B76: =IF(A76<>0,VLOOKUP(A76,Liste!$A$10:$D$159,4,FALSE),"") -> GIRAUDEAU Marcel | C76: 0 | D76: 0 | E76: 0 | F76: 0 | I76: 0 | J76: 0 | K76: =IF(AND($I76=1,$H76>0),VLOOKUP($H76,$A$14:AD$63,11,FALSE),0) -> 0 | L76: =IF(AND($I76=1,$H76>0),VLOOKUP($H76,$A$14:AE$63,12,FALSE),0) -> 0 | M76: =IF(AND($I76=1,$H76>0),VLOOKUP($H76,$A$14:AF$63,13,FALSE),0) -> 0 | Q76: =IF(A76<>0,VLOOKUP(A76,Liste!$A$10:$K$159,8,FALSE),"") -> 63 | R76: 142 | AB76: 0 | AC76: 0 | AD76: 0 | AE76: 1000
A77: 64 | B77: =IF(A77<>0,VLOOKUP(A77,Liste!$A$10:$D$159,4,FALSE),"") -> GLADIEU Marc | C77: 0 | D77: 0 | E77: 0 | F77: 0 | I77: 0 | J77: 0 | K77: =IF(AND($I77=1,$H77>0),VLOOKUP($H77,$A$14:AD$63,11,FALSE),0) -> 0 | L77: =IF(AND($I77=1,$H77>0),VLOOKUP($H77,$A$14:AE$63,12,FALSE),0) -> 0 | M77: =IF(AND($I77=1,$H77>0),VLOOKUP($H77,$A$14:AF$63,13,FALSE),0) -> 0 | Q77: =IF(A77<>0,VLOOKUP(A77,Liste!$A$10:$K$159,8,FALSE),"") -> 65 | R77: 146 | AB77: 0 | AC77: 0 | AD77: 0 | AE77: 1000
A78: 65 | B78: =IF(A78<>0,VLOOKUP(A78,Liste!$A$10:$D$159,4,FALSE),"") -> GOURRIER - JAFFELIN | C78: =F78*(K78=1) -> 0 | D78: =F78*(L78=1) -> 0 | E78: =F78*(M78=1) -> 0 | F78: 0 | I78: 0 | J78: =IF(F78>0,F78,0) -> 0 | K78: =IF(AND($I78=1,$H78>0),VLOOKUP($H78,$A$14:AD$63,11,FALSE),0) -> 0 | L78: =IF(AND($I78=1,$H78>0),VLOOKUP($H78,$A$14:AE$63,12,FALSE),0) -> 0 | M78: =IF(AND($I78=1,$H78>0),VLOOKUP($H78,$A$14:AF$63,13,FALSE),0) -> 0 | P78: =IF(I78=1,K78*(K78=1)+L78*2*(L78=1)+M78*3*(M78=1),"") ->  | Q78: =IF(A78<>0,VLOOKUP(A78,Liste!$A$10:$K$159,8,FALSE),"") -> 70 | R78: 158 | AB78: 0 | AC78: 0 | AD78: 0 | AE78: 1000
A79: 66 | B79: =IF(A79<>0,VLOOKUP(A79,Liste!$A$10:$D$159,4,FALSE),"") -> GRAO Guy | C79: 0 | D79: 0 | E79: 0 | F79: =IF(I79=1,VLOOKUP(A79,$A$14:$AA$163,16+$B$4,0),0) -> 0 | I79: =1*(IF(G79>=1,VLOOKUP(A79,$A$14:$AA$163,16+$B$4,0)>0)) -> 0 | J79: 0 | K79: =IF(AND($I79=1,$H79>0),VLOOKUP($H79,$A$14:AD$63,11,FALSE),0) -> 0 | L79: =IF(AND($I79=1,$H79>0),VLOOKUP($H79,$A$14:AE$63,12,FALSE),0) -> 0 | M79: =IF(AND($I79=1,$H79>0),VLOOKUP($H79,$A$14:AF$63,13,FALSE),0) -> 0 | N79: =IF(AND(I79>0,K79+L79+M79=0),"EN ATTENTE",IF(K79+L79+M79>1,"ERREUR","")) ->  | O79: =IF(AND(AC79>3,AD79>$D$10*$O$12),1,"") ->  | Q79: =IF(A79<>0,VLOOKUP(A79,Liste!$A$10:$K$159,8,FALSE),"") -> 72 | R79: 162 | AB79: 0 | AC79: =COUNTIF($H$14:$H$163,A79) -> 0 | AD79: =SUMIF($H$14:$H$163,A79,$J$14:$J$163)+(J79*(AC79>0)) -> 0 | AE79: 1000
A80: 67 | B80: =IF(A80<>0,VLOOKUP(A80,Liste!$A$10:$D$159,4,FALSE),"") -> GROLLEAU Chantal | C80: 0 | D80: 0 | E80: 0 | F80: 0 | I80: 0 | J80: 0 | K80: =IF(AND($I80=1,$H80>0),VLOOKUP($H80,$A$14:AD$63,11,FALSE),0) -> 0 | L80: =IF(AND($I80=1,$H80>0),VLOOKUP($H80,$A$14:AE$63,12,FALSE),0) -> 0 | M80: =IF(AND($I80=1,$H80>0),VLOOKUP($H80,$A$14:AF$63,13,FALSE),0) -> 0 | Q80: =IF(A80<>0,VLOOKUP(A80,Liste!$A$10:$K$159,8,FALSE),"") -> 66 | R80: 149 | AB80: 0 | AC80: 0 | AD80: 0 | AE80: 1000
A81: 68 | B81: =IF(A81<>0,VLOOKUP(A81,Liste!$A$10:$D$159,4,FALSE),"") -> HALADO | C81: 0 | D81: 0 | E81: 0 | F81: 0 | I81: 0 | J81: 0 | K81: =IF(AND($I81=1,$H81>0),VLOOKUP($H81,$A$14:AD$63,11,FALSE),0) -> 0 | L81: =IF(AND($I81=1,$H81>0),VLOOKUP($H81,$A$14:AE$63,12,FALSE),0) -> 0 | M81: =IF(AND($I81=1,$H81>0),VLOOKUP($H81,$A$14:AF$63,13,FALSE),0) -> 0 | Q81: =IF(A81<>0,VLOOKUP(A81,Liste!$A$10:$K$159,8,FALSE),"") -> 55 | R81: 124 | AB81: 0 | AC81: 0 | AD81: 0 | AE81: 1000
A82: 69 | B82: =IF(A82<>0,VLOOKUP(A82,Liste!$A$10:$D$159,4,FALSE),"") -> HONNORAT Georges | C82: 0 | D82: 0 | E82: 0 | F82: 0 | I82: 0 | J82: 0 | K82: =IF(AND($I82=1,$H82>0),VLOOKUP($H82,$A$14:AD$63,11,FALSE),0) -> 0 | L82: =IF(AND($I82=1,$H82>0),VLOOKUP($H82,$A$14:AE$63,12,FALSE),0) -> 0 | M82: =IF(AND($I82=1,$H82>0),VLOOKUP($H82,$A$14:AF$63,13,FALSE),0) -> 0 | Q82: =IF(A82<>0,VLOOKUP(A82,Liste!$A$10:$K$159,8,FALSE),"") -> 56 | R82: 126 | AB82: 0 | AC82: 0 | AD82: 0 | AE82: 1000
A83: 70 | B83: =IF(A83<>0,VLOOKUP(A83,Liste!$A$10:$D$159,4,FALSE),"") -> IMGRAM Simone | C83: 0 | D83: 0 | E83: 0 | F83: 0 | I83: 0 | J83: 0 | K83: =IF(AND($I83=1,$H83>0),VLOOKUP($H83,$A$14:AD$63,11,FALSE),0) -> 0 | L83: =IF(AND($I83=1,$H83>0),VLOOKUP($H83,$A$14:AE$63,12,FALSE),0) -> 0 | M83: =IF(AND($I83=1,$H83>0),VLOOKUP($H83,$A$14:AF$63,13,FALSE),0) -> 0 | Q83: =IF(A83<>0,VLOOKUP(A83,Liste!$A$10:$K$159,8,FALSE),"") -> 60 | R83: 135 | AB83: 0 | AC83: 0 | AD83: 0 | AE83: 1000
A84: 71 | B84: =IF(A84<>0,VLOOKUP(A84,Liste!$A$10:$D$159,4,FALSE),"") -> IRACANE Rosalie | C84: 0 | D84: 0 | E84: 0 | F84: 0 | I84: 0 | J84: 0 | K84: =IF(AND($I84=1,$H84>0),VLOOKUP($H84,$A$14:AD$63,11,FALSE),0) -> 0 | L84: =IF(AND($I84=1,$H84>0),VLOOKUP($H84,$A$14:AE$63,12,FALSE),0) -> 0 | M84: =IF(AND($I84=1,$H84>0),VLOOKUP($H84,$A$14:AF$63,13,FALSE),0) -> 0 | Q84: =IF(A84<>0,VLOOKUP(A84,Liste!$A$10:$K$159,8,FALSE),"") -> 70 | S84: 125 | AB84: 0 | AC84: 0 | AD84: 0 | AE84: 1000
A85: 72 | B85: =IF(A85<>0,VLOOKUP(A85,Liste!$A$10:$D$159,4,FALSE),"") -> JACQUET Sylvie | C85: 0 | D85: 0 | E85: 0 | F85: 0 | I85: 0 | J85: 0 | K85: =IF(AND($I85=1,$H85>0),VLOOKUP($H85,$A$14:AD$63,11,FALSE),0) -> 0 | L85: =IF(AND($I85=1,$H85>0),VLOOKUP($H85,$A$14:AE$63,12,FALSE),0) -> 0 | M85: =IF(AND($I85=1,$H85>0),VLOOKUP($H85,$A$14:AF$63,13,FALSE),0) -> 0 | Q85: =IF(A85<>0,VLOOKUP(A85,Liste!$A$10:$K$159,8,FALSE),"") -> 71 | S85: 128 | AB85: 0 | AC85: 0 | AD85: 0 | AE85: 1000
A86: 73 | B86: =IF(A86<>0,VLOOKUP(A86,Liste!$A$10:$D$159,4,FALSE),"") -> JAYET Christian | C86: 0 | D86: 0 | E86: 0 | F86: 0 | I86: 0 | J86: 0 | K86: =IF(AND($I86=1,$H86>0),VLOOKUP($H86,$A$14:AD$63,11,FALSE),0) -> 0 | L86: =IF(AND($I86=1,$H86>0),VLOOKUP($H86,$A$14:AE$63,12,FALSE),0) -> 0 | M86: =IF(AND($I86=1,$H86>0),VLOOKUP($H86,$A$14:AF$63,13,FALSE),0) -> 0 | Q86: =IF(A86<>0,VLOOKUP(A86,Liste!$A$10:$K$159,8,FALSE),"") -> 62 | S86: 111 | AB86: 0 | AC86: 0 | AD86: 0 | AE86: 1000
A87: 74 | B87: =IF(A87<>0,VLOOKUP(A87,Liste!$A$10:$D$159,4,FALSE),"") -> JOB | C87: 0 | D87: 0 | E87: 0 | F87: 0 | I87: 0 | J87: 0 | K87: =IF(AND($I87=1,$H87>0),VLOOKUP($H87,$A$14:AD$63,11,FALSE),0) -> 0 | L87: =IF(AND($I87=1,$H87>0),VLOOKUP($H87,$A$14:AE$63,12,FALSE),0) -> 0 | M87: =IF(AND($I87=1,$H87>0),VLOOKUP($H87,$A$14:AF$63,13,FALSE),0) -> 0 | Q87: =IF(A87<>0,VLOOKUP(A87,Liste!$A$10:$K$159,8,FALSE),"") -> 60 | S87: 108 | AB87: 0 | AC87: 0 | AD87: 0 | AE87: 1000
A88: 75 | B88: =IF(A88<>0,VLOOKUP(A88,Liste!$A$10:$D$159,4,FALSE),"") -> JOFFE Françoise | C88: 0 | D88: 0 | E88: 0 | F88: 0 | I88: 0 | J88: 0 | K88: =IF(AND($I88=1,$H88>0),VLOOKUP($H88,$A$14:AD$63,11,FALSE),0) -> 0 | L88: =IF(AND($I88=1,$H88>0),VLOOKUP($H88,$A$14:AE$63,12,FALSE),0) -> 0 | M88: =IF(AND($I88=1,$H88>0),VLOOKUP($H88,$A$14:AF$63,13,FALSE),0) -> 0 | Q88: =IF(A88<>0,VLOOKUP(A88,Liste!$A$10:$K$159,8,FALSE),"") -> 80 | S88: 144 | AB88: 0 | AC88: 0 | AD88: 0 | AE88: 1000
A89: 76 | B89: =IF(A89<>0,VLOOKUP(A89,Liste!$A$10:$D$159,4,FALSE),"") -> KARNAC Marcel | C89: 0 | D89: 0 | E89: 0 | F89: 0 | I89: 0 | J89: 0 | K89: =IF(AND($I89=1,$H89>0),VLOOKUP($H89,$A$14:AD$63,11,FALSE),0) -> 0 | L89: =IF(AND($I89=1,$H89>0),VLOOKUP($H89,$A$14:AE$63,12,FALSE),0) -> 0 | M89: =IF(AND($I89=1,$H89>0),VLOOKUP($H89,$A$14:AF$63,13,FALSE),0) -> 0 | Q89: =IF(A89<>0,VLOOKUP(A89,Liste!$A$10:$K$159,8,FALSE),"") -> 60 | S89: 108 | AB89: 0 | AC89: 0 | AD89: 0 | AE89: 1000
A90: 77 | B90: =IF(A90<>0,VLOOKUP(A90,Liste!$A$10:$D$159,4,FALSE),"") -> LAGRANGE Pierrette | C90: 0 | D90: 0 | E90: 0 | F90: 0 | I90: 0 | J90: 0 | K90: =IF(AND($I90=1,$H90>0),VLOOKUP($H90,$A$14:AD$63,11,FALSE),0) -> 0 | L90: =IF(AND($I90=1,$H90>0),VLOOKUP($H90,$A$14:AE$63,12,FALSE),0) -> 0 | M90: =IF(AND($I90=1,$H90>0),VLOOKUP($H90,$A$14:AF$63,13,FALSE),0) -> 0 | Q90: =IF(A90<>0,VLOOKUP(A90,Liste!$A$10:$K$159,8,FALSE),"") -> 70 | S90: 126 | AB90: 0 | AC90: 0 | AD90: 0 | AE90: 1000
A91: 78 | B91: =IF(A91<>0,VLOOKUP(A91,Liste!$A$10:$D$159,4,FALSE),"") -> LANVIN Christophe | C91: 0 | D91: 0 | E91: 0 | F91: 0 | I91: 0 | J91: 0 | K91: =IF(AND($I91=1,$H91>0),VLOOKUP($H91,$A$14:AD$63,11,FALSE),0) -> 0 | L91: =IF(AND($I91=1,$H91>0),VLOOKUP($H91,$A$14:AE$63,12,FALSE),0) -> 0 | M91: =IF(AND($I91=1,$H91>0),VLOOKUP($H91,$A$14:AF$63,13,FALSE),0) -> 0 | Q91: =IF(A91<>0,VLOOKUP(A91,Liste!$A$10:$K$159,8,FALSE),"") -> 50 | S91: 90 | AB91: 0 | AC91: 0 | AD91: 0 | AE91: 1000
A92: 79 | B92: =IF(A92<>0,VLOOKUP(A92,Liste!$A$10:$D$159,4,FALSE),"") -> LARDENOIS Pierrette | C92: 0 | D92: 0 | E92: 0 | F92: 0 | I92: 0 | J92: 0 | K92: =IF(AND($I92=1,$H92>0),VLOOKUP($H92,$A$14:AD$63,11,FALSE),0) -> 0 | L92: =IF(AND($I92=1,$H92>0),VLOOKUP($H92,$A$14:AE$63,12,FALSE),0) -> 0 | M92: =IF(AND($I92=1,$H92>0),VLOOKUP($H92,$A$14:AF$63,13,FALSE),0) -> 0 | Q92: =IF(A92<>0,VLOOKUP(A92,Liste!$A$10:$K$159,8,FALSE),"") -> 40 | S92: 72 | AB92: 0 | AC92: 0 | AD92: 0 | AE92: 1000
A93: 80 | B93: =IF(A93<>0,VLOOKUP(A93,Liste!$A$10:$D$159,4,FALSE),"") -> LATTION Evelyne | C93: 0 | D93: 0 | E93: 0 | F93: 0 | I93: 0 | J93: 0 | K93: =IF(AND($I93=1,$H93>0),VLOOKUP($H93,$A$14:AD$63,11,FALSE),0) -> 0 | L93: =IF(AND($I93=1,$H93>0),VLOOKUP($H93,$A$14:AE$63,12,FALSE),0) -> 0 | M93: =IF(AND($I93=1,$H93>0),VLOOKUP($H93,$A$14:AF$63,13,FALSE),0) -> 0 | Q93: =IF(A93<>0,VLOOKUP(A93,Liste!$A$10:$K$159,8,FALSE),"") -> 47 | S93: 84 | AB93: 0 | AC93: 0 | AD93: 0 | AE93: 1000
A94: 81 | B94: =IF(A94<>0,VLOOKUP(A94,Liste!$A$10:$D$159,4,FALSE),"") -> LATTION Evelyne | C94: 0 | D94: 0 | E94: 0 | F94: 0 | I94: 0 | J94: 0 | K94: =IF(AND($I94=1,$H94>0),VLOOKUP($H94,$A$14:AD$63,11,FALSE),0) -> 0 | L94: =IF(AND($I94=1,$H94>0),VLOOKUP($H94,$A$14:AE$63,12,FALSE),0) -> 0 | M94: =IF(AND($I94=1,$H94>0),VLOOKUP($H94,$A$14:AF$63,13,FALSE),0) -> 0 | Q94: =IF(A94<>0,VLOOKUP(A94,Liste!$A$10:$K$159,8,FALSE),"") -> 55 | S94: 99 | AB94: 0 | AC94: 0 | AD94: 0 | AE94: 1000
A95: 82 | B95: =IF(A95<>0,VLOOKUP(A95,Liste!$A$10:$D$159,4,FALSE),"") -> LE SCAVARREC Aline | C95: 0 | D95: 0 | E95: 0 | F95: 0 | I95: 0 | J95: 0 | K95: =IF(AND($I95=1,$H95>0),VLOOKUP($H95,$A$14:AD$63,11,FALSE),0) -> 0 | L95: =IF(AND($I95=1,$H95>0),VLOOKUP($H95,$A$14:AE$63,12,FALSE),0) -> 0 | M95: =IF(AND($I95=1,$H95>0),VLOOKUP($H95,$A$14:AF$63,13,FALSE),0) -> 0 | Q95: =IF(A95<>0,VLOOKUP(A95,Liste!$A$10:$K$159,8,FALSE),"") -> 56 | S95: 101 | AB95: 0 | AC95: 0 | AD95: 0 | AE95: 1000
A96: 83 | B96: =IF(A96<>0,VLOOKUP(A96,Liste!$A$10:$D$159,4,FALSE),"") -> LEBON - BOUIC | C96: 0 | D96: 0 | E96: 0 | F96: 0 | I96: 0 | J96: 0 | K96: =IF(AND($I96=1,$H96>0),VLOOKUP($H96,$A$14:AD$63,11,FALSE),0) -> 0 | L96: =IF(AND($I96=1,$H96>0),VLOOKUP($H96,$A$14:AE$63,12,FALSE),0) -> 0 | M96: =IF(AND($I96=1,$H96>0),VLOOKUP($H96,$A$14:AF$63,13,FALSE),0) -> 0 | Q96: =IF(A96<>0,VLOOKUP(A96,Liste!$A$10:$K$159,8,FALSE),"") -> 72 | S96: 129 | AB96: 0 | AC96: 0 | AD96: 0 | AE96: 1000
A97: 84 | B97: =IF(A97<>0,VLOOKUP(A97,Liste!$A$10:$D$159,4,FALSE),"") -> LEBON Elisabeth | C97: 0 | D97: 0 | E97: 0 | F97: 0 | I97: 0 | J97: 0 | K97: =IF(AND($I97=1,$H97>0),VLOOKUP($H97,$A$14:AD$63,11,FALSE),0) -> 0 | L97: =IF(AND($I97=1,$H97>0),VLOOKUP($H97,$A$14:AE$63,12,FALSE),0) -> 0 | M97: =IF(AND($I97=1,$H97>0),VLOOKUP($H97,$A$14:AF$63,13,FALSE),0) -> 0 | Q97: =IF(A97<>0,VLOOKUP(A97,Liste!$A$10:$K$159,8,FALSE),"") -> 90 | S97: 162 | AB97: 0 | AC97: 0 | AD97: 0 | AE97: 1000
A98: 85 | B98: =IF(A98<>0,VLOOKUP(A98,Liste!$A$10:$D$159,4,FALSE),"") -> LEBORGNE Claudine | C98: 0 | D98: 0 | E98: 0 | F98: 0 | I98: 0 | J98: 0 | K98: =IF(AND($I98=1,$H98>0),VLOOKUP($H98,$A$14:AD$63,11,FALSE),0) -> 0 | L98: =IF(AND($I98=1,$H98>0),VLOOKUP($H98,$A$14:AE$63,12,FALSE),0) -> 0 | M98: =IF(AND($I98=1,$H98>0),VLOOKUP($H98,$A$14:AF$63,13,FALSE),0) -> 0 | Q98: =IF(A98<>0,VLOOKUP(A98,Liste!$A$10:$K$159,8,FALSE),"") -> 87 | S98: 156 | AB98: 0 | AC98: 0 | AD98: 0 | AE98: 1000
A99: 86 | B99: =IF(A99<>0,VLOOKUP(A99,Liste!$A$10:$D$159,4,FALSE),"") -> LEFOLLET-LANGLET | C99: 0 | D99: 0 | E99: 0 | F99: 0 | I99: 0 | J99: 0 | K99: =IF(AND($I99=1,$H99>0),VLOOKUP($H99,$A$14:AD$63,11,FALSE),0) -> 0 | L99: =IF(AND($I99=1,$H99>0),VLOOKUP($H99,$A$14:AE$63,12,FALSE),0) -> 0 | M99: =IF(AND($I99=1,$H99>0),VLOOKUP($H99,$A$14:AF$63,13,FALSE),0) -> 0 | Q99: =IF(A99<>0,VLOOKUP(A99,Liste!$A$10:$K$159,8,FALSE),"") -> 70 | S99: 126 | AB99: 0 | AC99: 0 | AD99: 0 | AE99: 1000
A100: 87 | B100: =IF(A100<>0,VLOOKUP(A100,Liste!$A$10:$D$159,4,FALSE),"") -> LEGRAS Simone | C100: 0 | D100: 0 | E100: 0 | F100: 0 | I100: 0 | J100: 0 | K100: =IF(AND($I100=1,$H100>0),VLOOKUP($H100,$A$14:AD$63,11,FALSE),0) -> 0 | L100: =IF(AND($I100=1,$H100>0),VLOOKUP($H100,$A$14:AE$63,12,FALSE),0) -> 0 | M100: =IF(AND($I100=1,$H100>0),VLOOKUP($H100,$A$14:AF$63,13,FALSE),0) -> 0 | Q100: =IF(A100<>0,VLOOKUP(A100,Liste!$A$10:$K$159,8,FALSE),"") -> 100 | S100: 180 | AB100: 0 | AC100: 0 | AD100: 0 | AE100: 1000
A101: 88 | B101: =IF(A101<>0,VLOOKUP(A101,Liste!$A$10:$D$159,4,FALSE),"") -> LESTOURNELLE | C101: 0 | D101: 0 | E101: 0 | F101: 0 | I101: 0 | J101: 0 | K101: =IF(AND($I101=1,$H101>0),VLOOKUP($H101,$A$14:AD$63,11,FALSE),0) -> 0 | L101: =IF(AND($I101=1,$H101>0),VLOOKUP($H101,$A$14:AE$63,12,FALSE),0) -> 0 | M101: =IF(AND($I101=1,$H101>0),VLOOKUP($H101,$A$14:AF$63,13,FALSE),0) -> 0 | Q101: =IF(A101<>0,VLOOKUP(A101,Liste!$A$10:$K$159,8,FALSE),"") -> 86 | S101: 155 | AB101: 0 | AC101: 0 | AD101: 0 | AE101: 1000
A102: 89 | B102: =IF(A102<>0,VLOOKUP(A102,Liste!$A$10:$D$159,4,FALSE),"") -> LIGOT Jacques | C102: 0 | D102: 0 | E102: 0 | F102: 0 | I102: 0 | J102: 0 | K102: =IF(AND($I102=1,$H102>0),VLOOKUP($H102,$A$14:AD$63,11,FALSE),0) -> 0 | L102: =IF(AND($I102=1,$H102>0),VLOOKUP($H102,$A$14:AE$63,12,FALSE),0) -> 0 | M102: =IF(AND($I102=1,$H102>0),VLOOKUP($H102,$A$14:AF$63,13,FALSE),0) -> 0 | Q102: =IF(A102<>0,VLOOKUP(A102,Liste!$A$10:$K$159,8,FALSE),"") -> 50 | S102: 90 | AB102: 0 | AC102: 0 | AD102: 0 | AE102: 1000
A103: 90 | B103: =IF(A103<>0,VLOOKUP(A103,Liste!$A$10:$D$159,4,FALSE),"") -> LOPEZ Pierre | C103: 0 | D103: 0 | E103: 0 | F103: 0 | I103: 0 | J103: 0 | K103: =IF(AND($I103=1,$H103>0),VLOOKUP($H103,$A$14:AD$63,11,FALSE),0) -> 0 | L103: =IF(AND($I103=1,$H103>0),VLOOKUP($H103,$A$14:AE$63,12,FALSE),0) -> 0 | M103: =IF(AND($I103=1,$H103>0),VLOOKUP($H103,$A$14:AF$63,13,FALSE),0) -> 0 | Q103: =IF(A103<>0,VLOOKUP(A103,Liste!$A$10:$K$159,8,FALSE),"") -> 40 | S103: 72 | AB103: 0 | AC103: 0 | AD103: 0 | AE103: 1000
A104: 91 | B104: =IF(A104<>0,VLOOKUP(A104,Liste!$A$10:$D$159,4,FALSE),"") -> LOUNES Jeannette | C104: 0 | D104: 0 | E104: 0 | F104: 0 | I104: 0 | J104: 0 | K104: =IF(AND($I104=1,$H104>0),VLOOKUP($H104,$A$14:AD$63,11,FALSE),0) -> 0 | L104: =IF(AND($I104=1,$H104>0),VLOOKUP($H104,$A$14:AE$63,12,FALSE),0) -> 0 | M104: =IF(AND($I104=1,$H104>0),VLOOKUP($H104,$A$14:AF$63,13,FALSE),0) -> 0 | Q104: =IF(A104<>0,VLOOKUP(A104,Liste!$A$10:$K$159,8,FALSE),"") -> 96 | S104: 173 | AB104: 0 | AC104: 0 | AD104: 0 | AE104: 1000
A105: 92 | B105: =IF(A105<>0,VLOOKUP(A105,Liste!$A$10:$D$159,4,FALSE),"") -> MAACK - BRUNETEAU Dominique | C105: 0 | D105: 0 | E105: 0 | F105: 0 | I105: 0 | J105: 0 | K105: =IF(AND($I105=1,$H105>0),VLOOKUP($H105,$A$14:AD$63,11,FALSE),0) -> 0 | L105: =IF(AND($I105=1,$H105>0),VLOOKUP($H105,$A$14:AE$63,12,FALSE),0) -> 0 | M105: =IF(AND($I105=1,$H105>0),VLOOKUP($H105,$A$14:AF$63,13,FALSE),0) -> 0 | Q105: =IF(A105<>0,VLOOKUP(A105,Liste!$A$10:$K$159,8,FALSE),"") -> 50 | S105: 90 | AB105: 0 | AC105: 0 | AD105: 0 | AE105: 1000
A106: 93 | B106: =IF(A106<>0,VLOOKUP(A106,Liste!$A$10:$D$159,4,FALSE),"") -> MAACK - BUREU Denise | C106: 0 | D106: 0 | E106: 0 | F106: 0 | I106: 0 | J106: 0 | K106: =IF(AND($I106=1,$H106>0),VLOOKUP($H106,$A$14:AD$63,11,FALSE),0) -> 0 | L106: =IF(AND($I106=1,$H106>0),VLOOKUP($H106,$A$14:AE$63,12,FALSE),0) -> 0 | M106: =IF(AND($I106=1,$H106>0),VLOOKUP($H106,$A$14:AF$63,13,FALSE),0) -> 0 | Q106: =IF(A106<>0,VLOOKUP(A106,Liste!$A$10:$K$159,8,FALSE),"") -> 80 | S106: 144 | AB106: 0 | AC106: 0 | AD106: 0 | AE106: 1000
A107: 94 | B107: =IF(A107<>0,VLOOKUP(A107,Liste!$A$10:$D$159,4,FALSE),"") -> MACQUET | C107: 0 | D107: 0 | E107: 0 | F107: 0 | I107: 0 | J107: 0 | K107: =IF(AND($I107=1,$H107>0),VLOOKUP($H107,$A$14:AD$63,11,FALSE),0) -> 0 | L107: =IF(AND($I107=1,$H107>0),VLOOKUP($H107,$A$14:AE$63,12,FALSE),0) -> 0 | M107: =IF(AND($I107=1,$H107>0),VLOOKUP($H107,$A$14:AF$63,13,FALSE),0) -> 0 | Q107: =IF(A107<>0,VLOOKUP(A107,Liste!$A$10:$K$159,8,FALSE),"") -> 62 | S107: 111 | AB107: 0 | AC107: 0 | AD107: 0 | AE107: 1000
A108: 95 | B108: =IF(A108<>0,VLOOKUP(A108,Liste!$A$10:$D$159,4,FALSE),"") -> MALARTIC Odile | C108: 0 | D108: 0 | E108: 0 | F108: 0 | I108: 0 | J108: 0 | K108: =IF(AND($I108=1,$H108>0),VLOOKUP($H108,$A$14:AD$63,11,FALSE),0) -> 0 | L108: =IF(AND($I108=1,$H108>0),VLOOKUP($H108,$A$14:AE$63,12,FALSE),0) -> 0 | M108: =IF(AND($I108=1,$H108>0),VLOOKUP($H108,$A$14:AF$63,13,FALSE),0) -> 0 | Q108: =IF(A108<>0,VLOOKUP(A108,Liste!$A$10:$K$159,8,FALSE),"") -> 63 | S108: 113 | AB108: 0 | AC108: 0 | AD108: 0 | AE108: 1000
A109: 96 | B109: =IF(A109<>0,VLOOKUP(A109,Liste!$A$10:$D$159,4,FALSE),"") -> MANDARD Jacqueline | C109: 0 | D109: 0 | E109: 0 | F109: 0 | I109: 0 | J109: 0 | K109: =IF(AND($I109=1,$H109>0),VLOOKUP($H109,$A$14:AD$63,11,FALSE),0) -> 0 | L109: =IF(AND($I109=1,$H109>0),VLOOKUP($H109,$A$14:AE$63,12,FALSE),0) -> 0 | M109: =IF(AND($I109=1,$H109>0),VLOOKUP($H109,$A$14:AF$63,13,FALSE),0) -> 0 | Q109: =IF(A109<>0,VLOOKUP(A109,Liste!$A$10:$K$159,8,FALSE),"") -> 70 | S109: 126 | AB109: 0 | AC109: 0 | AD109: 0 | AE109: 1000
A110: 97 | B110: =IF(A110<>0,VLOOKUP(A110,Liste!$A$10:$D$159,4,FALSE),"") -> Marinacce - Chatain Jeanne | C110: 0 | D110: 0 | E110: 0 | F110: 0 | I110: 0 | J110: 0 | K110: =IF(AND($I110=1,$H110>0),VLOOKUP($H110,$A$14:AD$63,11,FALSE),0) -> 0 | L110: =IF(AND($I110=1,$H110>0),VLOOKUP($H110,$A$14:AE$63,12,FALSE),0) -> 0 | M110: =IF(AND($I110=1,$H110>0),VLOOKUP($H110,$A$14:AF$63,13,FALSE),0) -> 0 | Q110: =IF(A110<>0,VLOOKUP(A110,Liste!$A$10:$K$159,8,FALSE),"") -> 76 | S110: 137 | AB110: 0 | AC110: 0 | AD110: 0 | AE110: 1000
A111: 98 | B111: =IF(A111<>0,VLOOKUP(A111,Liste!$A$10:$D$159,4,FALSE),"") -> MATTEI Andrée | C111: 0 | D111: 0 | E111: 0 | F111: 0 | I111: 0 | J111: 0 | K111: =IF(AND($I111=1,$H111>0),VLOOKUP($H111,$A$14:AD$63,11,FALSE),0) -> 0 | L111: =IF(AND($I111=1,$H111>0),VLOOKUP($H111,$A$14:AE$63,12,FALSE),0) -> 0 | M111: =IF(AND($I111=1,$H111>0),VLOOKUP($H111,$A$14:AF$63,13,FALSE),0) -> 0 | Q111: =IF(A111<>0,VLOOKUP(A111,Liste!$A$10:$K$159,8,FALSE),"") -> 103 | S111: 185 | AB111: 0 | AC111: 0 | AD111: 0 | AE111: 1000
A112: 99 | B112: =IF(A112<>0,VLOOKUP(A112,Liste!$A$10:$D$159,4,FALSE),"") -> MAUDUIT Trobert | C112: 0 | D112: 0 | E112: 0 | F112: 0 | I112: 0 | J112: 0 | K112: =IF(AND($I112=1,$H112>0),VLOOKUP($H112,$A$14:AD$63,11,FALSE),0) -> 0 | L112: =IF(AND($I112=1,$H112>0),VLOOKUP($H112,$A$14:AE$63,12,FALSE),0) -> 0 | M112: =IF(AND($I112=1,$H112>0),VLOOKUP($H112,$A$14:AF$63,13,FALSE),0) -> 0 | Q112: =IF(A112<>0,VLOOKUP(A112,Liste!$A$10:$K$159,8,FALSE),"") -> 50 | S112: 90 | AB112: 0 | AC112: 0 | AD112: 0 | AE112: 1000
A113: 100 | B113: =IF(A113<>0,VLOOKUP(A113,Liste!$A$10:$D$159,4,FALSE),"") -> MEAILLE Simone | C113: 0 | D113: 0 | E113: 0 | F113: 0 | I113: 0 | J113: 0 | K113: =IF(AND($I113=1,$H113>0),VLOOKUP($H113,$A$14:AD$63,11,FALSE),0) -> 0 | L113: =IF(AND($I113=1,$H113>0),VLOOKUP($H113,$A$14:AE$63,12,FALSE),0) -> 0 | M113: =IF(AND($I113=1,$H113>0),VLOOKUP($H113,$A$14:AF$63,13,FALSE),0) -> 0 | Q113: =IF(A113<>0,VLOOKUP(A113,Liste!$A$10:$K$159,8,FALSE),"") -> 63 | S113: 169 | AB113: 0 | AC113: 0 | AD113: 0 | AE113: 1000
A114: 101 | B114: =IF(A114<>0,VLOOKUP(A114,Liste!$A$10:$D$159,4,FALSE),"") -> MEISSONNIER Josiane | C114: 0 | D114: 0 | E114: 0 | F114: 100 | G114: 3 | I114: 1 | J114: 100 | K114: =IF(AND($I114=1,$H114>0),VLOOKUP($H114,$A$14:AD$63,11,FALSE),0) -> 0 | L114: =IF(AND($I114=1,$H114>0),VLOOKUP($H114,$A$14:AE$63,12,FALSE),0) -> 0 | M114: =IF(AND($I114=1,$H114>0),VLOOKUP($H114,$A$14:AF$63,13,FALSE),0) -> 0 | N114: EN ATTENTE | P114: 0 | Q114: =IF(A114<>0,VLOOKUP(A114,Liste!$A$10:$K$159,8,FALSE),"") -> 100 | S114: 113 | AB114: 1 | AC114: 0 | AD114: 0 | AE114: 101
A115: 102 | B115: =IF(A115<>0,VLOOKUP(A115,Liste!$A$10:$D$159,4,FALSE),"") -> MEYNARD Armande | C115: 0 | D115: 0 | E115: 0 | F115: 0 | I115: 0 | J115: 0 | K115: =IF(AND($I115=1,$H115>0),VLOOKUP($H115,$A$14:AD$63,11,FALSE),0) -> 0 | L115: =IF(AND($I115=1,$H115>0),VLOOKUP($H115,$A$14:AE$63,12,FALSE),0) -> 0 | M115: =IF(AND($I115=1,$H115>0),VLOOKUP($H115,$A$14:AF$63,13,FALSE),0) -> 0 | Q115: =IF(A115<>0,VLOOKUP(A115,Liste!$A$10:$K$159,8,FALSE),"") -> 62 | S115: 180 | AB115: 0 | AC115: 0 | AD115: 0 | AE115: 1000
A116: 103 | B116: =IF(A116<>0,VLOOKUP(A116,Liste!$A$10:$D$159,4,FALSE),"") -> MIALHE André | C116: 0 | D116: 0 | E116: 0 | F116: 0 | I116: 0 | J116: 0 | K116: =IF(AND($I116=1,$H116>0),VLOOKUP($H116,$A$14:AD$63,11,FALSE),0) -> 0 | L116: =IF(AND($I116=1,$H116>0),VLOOKUP($H116,$A$14:AE$63,12,FALSE),0) -> 0 | M116: =IF(AND($I116=1,$H116>0),VLOOKUP($H116,$A$14:AF$63,13,FALSE),0) -> 0 | Q116: =IF(A116<>0,VLOOKUP(A116,Liste!$A$10:$K$159,8,FALSE),"") -> 97 | S116: 111 | AB116: 0 | AC116: 0 | AD116: 0 | AE116: 1000
A117: 104 | B117: =IF(A117<>0,VLOOKUP(A117,Liste!$A$10:$D$159,4,FALSE),"") -> MICHEL Gérard | C117: 0 | D117: 0 | E117: 0 | F117: 0 | I117: 0 | J117: 0 | K117: =IF(AND($I117=1,$H117>0),VLOOKUP($H117,$A$14:AD$63,11,FALSE),0) -> 0 | L117: =IF(AND($I117=1,$H117>0),VLOOKUP($H117,$A$14:AE$63,12,FALSE),0) -> 0 | M117: =IF(AND($I117=1,$H117>0),VLOOKUP($H117,$A$14:AF$63,13,FALSE),0) -> 0 | Q117: =IF(A117<>0,VLOOKUP(A117,Liste!$A$10:$K$159,8,FALSE),"") -> 100 | S117: 174 | AB117: 0 | AC117: 0 | AD117: 0 | AE117: 1000
A118: 105 | B118: =IF(A118<>0,VLOOKUP(A118,Liste!$A$10:$D$159,4,FALSE),"") -> MORERA Suzanne | C118: 0 | D118: 0 | E118: 0 | F118: 0 | I118: 0 | J118: 0 | K118: =IF(AND($I118=1,$H118>0),VLOOKUP($H118,$A$14:AD$63,11,FALSE),0) -> 0 | L118: =IF(AND($I118=1,$H118>0),VLOOKUP($H118,$A$14:AE$63,12,FALSE),0) -> 0 | M118: =IF(AND($I118=1,$H118>0),VLOOKUP($H118,$A$14:AF$63,13,FALSE),0) -> 0 | Q118: =IF(A118<>0,VLOOKUP(A118,Liste!$A$10:$K$159,8,FALSE),"") -> 100 | S118: 180 | AB118: 0 | AC118: 0 | AD118: 0 | AE118: 1000
A119: 106 | B119: =IF(A119<>0,VLOOKUP(A119,Liste!$A$10:$D$159,4,FALSE),"") -> MOTTIN Marcel | C119: 0 | D119: 0 | E119: 0 | F119: 0 | I119: 0 | J119: 0 | K119: =IF(AND($I119=1,$H119>0),VLOOKUP($H119,$A$14:AD$63,11,FALSE),0) -> 0 | L119: =IF(AND($I119=1,$H119>0),VLOOKUP($H119,$A$14:AE$63,12,FALSE),0) -> 0 | M119: =IF(AND($I119=1,$H119>0),VLOOKUP($H119,$A$14:AF$63,13,FALSE),0) -> 0 | Q119: =IF(A119<>0,VLOOKUP(A119,Liste!$A$10:$K$159,8,FALSE),"") -> 50 | S119: 180 | AB119: 0 | AC119: 0 | AD119: 0 | AE119: 1000
A120: 107 | B120: =IF(A120<>0,VLOOKUP(A120,Liste!$A$10:$D$159,4,FALSE),"") -> MOURRE Jeanine | C120: 0 | D120: 0 | E120: 0 | F120: 0 | I120: 0 | J120: 0 | K120: =IF(AND($I120=1,$H120>0),VLOOKUP($H120,$A$14:AD$63,11,FALSE),0) -> 0 | L120: =IF(AND($I120=1,$H120>0),VLOOKUP($H120,$A$14:AE$63,12,FALSE),0) -> 0 | M120: =IF(AND($I120=1,$H120>0),VLOOKUP($H120,$A$14:AF$63,13,FALSE),0) -> 0 | Q120: =IF(A120<>0,VLOOKUP(A120,Liste!$A$10:$K$159,8,FALSE),"") -> 49 | S120: 90 | AB120: 0 | AC120: 0 | AD120: 0 | AE120: 1000
A121: 108 | B121: =IF(A121<>0,VLOOKUP(A121,Liste!$A$10:$D$159,4,FALSE),"") -> MULARDEC Paul | C121: 0 | D121: 0 | E121: 0 | F121: 0 | I121: 0 | J121: 0 | K121: =IF(AND($I121=1,$H121>0),VLOOKUP($H121,$A$14:AD$63,11,FALSE),0) -> 0 | L121: =IF(AND($I121=1,$H121>0),VLOOKUP($H121,$A$14:AE$63,12,FALSE),0) -> 0 | M121: =IF(AND($I121=1,$H121>0),VLOOKUP($H121,$A$14:AF$63,13,FALSE),0) -> 0 | Q121: =IF(A121<>0,VLOOKUP(A121,Liste!$A$10:$K$159,8,FALSE),"") -> 64 | S121: 88 | AB121: 0 | AC121: 0 | AD121: 0 | AE121: 1000
A122: 109 | B122: =IF(A122<>0,VLOOKUP(A122,Liste!$A$10:$D$159,4,FALSE),"") -> NICOLAS Jean | C122: 0 | D122: 0 | E122: 0 | F122: 0 | I122: 0 | J122: 0 | K122: =IF(AND($I122=1,$H122>0),VLOOKUP($H122,$A$14:AD$63,11,FALSE),0) -> 0 | L122: =IF(AND($I122=1,$H122>0),VLOOKUP($H122,$A$14:AE$63,12,FALSE),0) -> 0 | M122: =IF(AND($I122=1,$H122>0),VLOOKUP($H122,$A$14:AF$63,13,FALSE),0) -> 0 | Q122: =IF(A122<>0,VLOOKUP(A122,Liste!$A$10:$K$159,8,FALSE),"") -> 93 | S122: 115 | AB122: 0 | AC122: 0 | AD122: 0 | AE122: 1000
A123: 110 | B123: =IF(A123<>0,VLOOKUP(A123,Liste!$A$10:$D$159,4,FALSE),"") -> NICOLE Solange | C123: 0 | D123: 0 | E123: 0 | F123: 0 | I123: 0 | J123: 0 | K123: =IF(AND($I123=1,$H123>0),VLOOKUP($H123,$A$14:AD$63,11,FALSE),0) -> 0 | L123: =IF(AND($I123=1,$H123>0),VLOOKUP($H123,$A$14:AE$63,12,FALSE),0) -> 0 | M123: =IF(AND($I123=1,$H123>0),VLOOKUP($H123,$A$14:AF$63,13,FALSE),0) -> 0 | Q123: =IF(A123<>0,VLOOKUP(A123,Liste!$A$10:$K$159,8,FALSE),"") -> 90 | S123: 167 | AB123: 0 | AC123: 0 | AD123: 0 | AE123: 1000
A124: 111 | B124: =IF(A124<>0,VLOOKUP(A124,Liste!$A$10:$D$159,4,FALSE),"") -> NOGER Pierre | C124: 0 | D124: 0 | E124: 0 | F124: 60 | G124: 3 | I124: 1 | J124: 60 | K124: =IF(AND($I124=1,$H124>0),VLOOKUP($H124,$A$14:AD$63,11,FALSE),0) -> 0 | L124: =IF(AND($I124=1,$H124>0),VLOOKUP($H124,$A$14:AE$63,12,FALSE),0) -> 0 | M124: =IF(AND($I124=1,$H124>0),VLOOKUP($H124,$A$14:AF$63,13,FALSE),0) -> 0 | N124: EN ATTENTE | P124: 0 | Q124: =IF(A124<>0,VLOOKUP(A124,Liste!$A$10:$K$159,8,FALSE),"") -> 60 | S124: 162 | AB124: 1 | AC124: 0 | AD124: 0 | AE124: 111
A125: 112 | B125: =IF(A125<>0,VLOOKUP(A125,Liste!$A$10:$D$159,4,FALSE),"") -> OLIVA | C125: 0 | D125: 0 | E125: 0 | F125: 0 | I125: 0 | J125: 0 | K125: =IF(AND($I125=1,$H125>0),VLOOKUP($H125,$A$14:AD$63,11,FALSE),0) -> 0 | L125: =IF(AND($I125=1,$H125>0),VLOOKUP($H125,$A$14:AE$63,12,FALSE),0) -> 0 | M125: =IF(AND($I125=1,$H125>0),VLOOKUP($H125,$A$14:AF$63,13,FALSE),0) -> 0 | Q125: =IF(A125<>0,VLOOKUP(A125,Liste!$A$10:$K$159,8,FALSE),"") -> 80 | S125: 108 | AB125: 0 | AC125: 0 | AD125: 0 | AE125: 1000
A126: 113 | B126: =IF(A126<>0,VLOOKUP(A126,Liste!$A$10:$D$159,4,FALSE),"") -> OLIVA Stéphane | C126: 0 | D126: 0 | E126: 0 | F126: 0 | I126: 0 | J126: 0 | K126: =IF(AND($I126=1,$H126>0),VLOOKUP($H126,$A$14:AD$63,11,FALSE),0) -> 0 | L126: =IF(AND($I126=1,$H126>0),VLOOKUP($H126,$A$14:AE$63,12,FALSE),0) -> 0 | M126: =IF(AND($I126=1,$H126>0),VLOOKUP($H126,$A$14:AF$63,13,FALSE),0) -> 0 | Q126: =IF(A126<>0,VLOOKUP(A126,Liste!$A$10:$K$159,8,FALSE),"") -> 59 | S126: 144 | AB126: 0 | AC126: 0 | AD126: 0 | AE126: 1000
A127: 114 | B127: =IF(A127<>0,VLOOKUP(A127,Liste!$A$10:$D$159,4,FALSE),"") -> PEIRANO Olga | C127: 0 | D127: 0 | E127: 0 | F127: 0 | I127: 0 | J127: 0 | K127: =IF(AND($I127=1,$H127>0),VLOOKUP($H127,$A$14:AD$63,11,FALSE),0) -> 0 | L127: =IF(AND($I127=1,$H127>0),VLOOKUP($H127,$A$14:AE$63,12,FALSE),0) -> 0 | M127: =IF(AND($I127=1,$H127>0),VLOOKUP($H127,$A$14:AF$63,13,FALSE),0) -> 0 | Q127: =IF(A127<>0,VLOOKUP(A127,Liste!$A$10:$K$159,8,FALSE),"") -> 59 | S127: 106 | AB127: 0 | AC127: 0 | AD127: 0 | AE127: 1000
A128: 115 | B128: =IF(A128<>0,VLOOKUP(A128,Liste!$A$10:$D$159,4,FALSE),"") -> PELLEGRIN Jean ierre | C128: 0 | D128: 0 | E128: 0 | F128: 0 | I128: 0 | J128: 0 | K128: =IF(AND($I128=1,$H128>0),VLOOKUP($H128,$A$14:AD$63,11,FALSE),0) -> 0 | L128: =IF(AND($I128=1,$H128>0),VLOOKUP($H128,$A$14:AE$63,12,FALSE),0) -> 0 | M128: =IF(AND($I128=1,$H128>0),VLOOKUP($H128,$A$14:AF$63,13,FALSE),0) -> 0 | Q128: =IF(A128<>0,VLOOKUP(A128,Liste!$A$10:$K$159,8,FALSE),"") -> 40 | S128: 106 | AB128: =(H128+I128)*(J128>0) -> 0 | AC128: 0 | AD128: 0 | AE128: =IF(H128>0,H128+0.5*(I128=1),A128*(I128=1))+(1000*(I128<1)) -> 1000
A129: 116 | B129: =IF(A129<>0,VLOOKUP(A129,Liste!$A$10:$D$159,4,FALSE),"") -> PETROV Nicolas | C129: 0 | D129: 0 | E129: 0 | F129: 0 | I129: 0 | J129: 0 | K129: =IF(AND($I129=1,$H129>0),VLOOKUP($H129,$A$14:AD$63,11,FALSE),0) -> 0 | L129: =IF(AND($I129=1,$H129>0),VLOOKUP($H129,$A$14:AE$63,12,FALSE),0) -> 0 | M129: =IF(AND($I129=1,$H129>0),VLOOKUP($H129,$A$14:AF$63,13,FALSE),0) -> 0 | Q129: =IF(A129<>0,VLOOKUP(A129,Liste!$A$10:$K$159,8,FALSE),"") -> 60 | S129: 72 | AB129: 0 | AC129: 0 | AD129: 0 | AE129: 1000
A130: 117 | B130: =IF(A130<>0,VLOOKUP(A130,Liste!$A$10:$D$159,4,FALSE),"") -> PEZTITON René | C130: 0 | D130: 0 | E130: 0 | F130: 0 | I130: 0 | J130: 0 | K130: =IF(AND($I130=1,$H130>0),VLOOKUP($H130,$A$14:AD$63,11,FALSE),0) -> 0 | L130: =IF(AND($I130=1,$H130>0),VLOOKUP($H130,$A$14:AE$63,12,FALSE),0) -> 0 | M130: =IF(AND($I130=1,$H130>0),VLOOKUP($H130,$A$14:AF$63,13,FALSE),0) -> 0 | Q130: =IF(A130<>0,VLOOKUP(A130,Liste!$A$10:$K$159,8,FALSE),"") -> 47 | S130: 108 | AB130: 0 | AC130: 0 | AD130: 0 | AE130: 1000
A131: 118 | B131: =IF(A131<>0,VLOOKUP(A131,Liste!$A$10:$D$159,4,FALSE),"") -> PISTONE Georges | C131: 0 | D131: 0 | E131: 0 | F131: 0 | I131: 0 | J131: 0 | K131: =IF(AND($I131=1,$H131>0),VLOOKUP($H131,$A$14:AD$63,11,FALSE),0) -> 0 | L131: =IF(AND($I131=1,$H131>0),VLOOKUP($H131,$A$14:AE$63,12,FALSE),0) -> 0 | M131: =IF(AND($I131=1,$H131>0),VLOOKUP($H131,$A$14:AF$63,13,FALSE),0) -> 0 | Q131: =IF(A131<>0,VLOOKUP(A131,Liste!$A$10:$K$159,8,FALSE),"") -> 70 | S131: 84 | AB131: 0 | AC131: 0 | AD131: 0 | AE131: 1000
A132: 119 | B132: =IF(A132<>0,VLOOKUP(A132,Liste!$A$10:$D$159,4,FALSE),"") -> PONCELET Didier | C132: 0 | D132: 0 | E132: 0 | F132: 0 | I132: 0 | J132: 0 | K132: =IF(AND($I132=1,$H132>0),VLOOKUP($H132,$A$14:AD$63,11,FALSE),0) -> 0 | L132: =IF(AND($I132=1,$H132>0),VLOOKUP($H132,$A$14:AE$63,12,FALSE),0) -> 0 | M132: =IF(AND($I132=1,$H132>0),VLOOKUP($H132,$A$14:AF$63,13,FALSE),0) -> 0 | Q132: =IF(A132<>0,VLOOKUP(A132,Liste!$A$10:$K$159,8,FALSE),"") -> 52 | S132: 126 | AB132: 0 | AC132: 0 | AD132: 0 | AE132: 1000
A133: 120 | B133: =IF(A133<>0,VLOOKUP(A133,Liste!$A$10:$D$159,4,FALSE),"") -> PROUVOST Jean | C133: 0 | D133: 0 | E133: 0 | F133: 0 | I133: 0 | J133: 0 | K133: =IF(AND($I133=1,$H133>0),VLOOKUP($H133,$A$14:AD$63,11,FALSE),0) -> 0 | L133: =IF(AND($I133=1,$H133>0),VLOOKUP($H133,$A$14:AE$63,12,FALSE),0) -> 0 | M133: =IF(AND($I133=1,$H133>0),VLOOKUP($H133,$A$14:AF$63,13,FALSE),0) -> 0 | Q133: =IF(A133<>0,VLOOKUP(A133,Liste!$A$10:$K$159,8,FALSE),"") -> 90 | S133: 93 | AB133: 0 | AC133: 0 | AD133: 0 | AE133: 1000
A134: 121 | B134: =IF(A134<>0,VLOOKUP(A134,Liste!$A$10:$D$159,4,FALSE),"") -> PUONS René | C134: 0 | D134: 0 | E134: 0 | F134: 103 | G134: 3 | I134: 1 | J134: 103 | K134: =IF(AND($I134=1,$H134>0),VLOOKUP($H134,$A$14:AD$63,11,FALSE),0) -> 0 | L134: =IF(AND($I134=1,$H134>0),VLOOKUP($H134,$A$14:AE$63,12,FALSE),0) -> 0 | M134: =IF(AND($I134=1,$H134>0),VLOOKUP($H134,$A$14:AF$63,13,FALSE),0) -> 0 | N134: EN ATTENTE | P134: 0 | Q134: =IF(A134<>0,VLOOKUP(A134,Liste!$A$10:$K$159,8,FALSE),"") -> 103 | S134: 162 | AB134: 1 | AC134: 0 | AD134: 0 | AE134: 121
A135: 122 | B135: =IF(A135<>0,VLOOKUP(A135,Liste!$A$10:$D$159,4,FALSE),"") -> RAYNAUD Laurence | C135: 0 | D135: 0 | E135: 0 | F135: 0 | I135: 0 | J135: 0 | K135: =IF(AND($I135=1,$H135>0),VLOOKUP($H135,$A$14:AD$63,11,FALSE),0) -> 0 | L135: =IF(AND($I135=1,$H135>0),VLOOKUP($H135,$A$14:AE$63,12,FALSE),0) -> 0 | M135: =IF(AND($I135=1,$H135>0),VLOOKUP($H135,$A$14:AF$63,13,FALSE),0) -> 0 | Q135: =IF(A135<>0,VLOOKUP(A135,Liste!$A$10:$K$159,8,FALSE),"") -> 83 | S135: 185 | AB135: 0 | AC135: 0 | AD135: 0 | AE135: 1000
A136: 123 | B136: =IF(A136<>0,VLOOKUP(A136,Liste!$A$10:$D$159,4,FALSE),"") -> RENAUD Cécile | C136: 0 | D136: 0 | E136: 0 | F136: 0 | I136: 0 | J136: 0 | K136: =IF(AND($I136=1,$H136>0),VLOOKUP($H136,$A$14:AD$63,11,FALSE),0) -> 0 | L136: =IF(AND($I136=1,$H136>0),VLOOKUP($H136,$A$14:AE$63,12,FALSE),0) -> 0 | M136: =IF(AND($I136=1,$H136>0),VLOOKUP($H136,$A$14:AF$63,13,FALSE),0) -> 0 | Q136: =IF(A136<>0,VLOOKUP(A136,Liste!$A$10:$K$159,8,FALSE),"") -> 91 | S136: 149 | AB136: 0 | AC136: 0 | AD136: 0 | AE136: 1000
A137: 124 | B137: =IF(A137<>0,VLOOKUP(A137,Liste!$A$10:$D$159,4,FALSE),"") -> RICHOUX Alexandra | C137: 0 | D137: 0 | E137: 0 | F137: 0 | I137: 0 | J137: 0 | K137: =IF(AND($I137=1,$H137>0),VLOOKUP($H137,$A$14:AD$63,11,FALSE),0) -> 0 | L137: =IF(AND($I137=1,$H137>0),VLOOKUP($H137,$A$14:AE$63,12,FALSE),0) -> 0 | M137: =IF(AND($I137=1,$H137>0),VLOOKUP($H137,$A$14:AF$63,13,FALSE),0) -> 0 | Q137: =IF(A137<>0,VLOOKUP(A137,Liste!$A$10:$K$159,8,FALSE),"") -> 55 | S137: 164 | AB137: 0 | AC137: 0 | AD137: 0 | AE137: 1000
A138: 125 | B138: =IF(A138<>0,VLOOKUP(A138,Liste!$A$10:$D$159,4,FALSE),"") -> ROBERT MARMO Josiane | C138: 0 | D138: 0 | E138: 0 | F138: 0 | I138: 0 | J138: 0 | K138: =IF(AND($I138=1,$H138>0),VLOOKUP($H138,$A$14:AD$63,11,FALSE),0) -> 0 | L138: =IF(AND($I138=1,$H138>0),VLOOKUP($H138,$A$14:AE$63,12,FALSE),0) -> 0 | M138: =IF(AND($I138=1,$H138>0),VLOOKUP($H138,$A$14:AF$63,13,FALSE),0) -> 0 | Q138: =IF(A138<>0,VLOOKUP(A138,Liste!$A$10:$K$159,8,FALSE),"") -> 92 | S138: 99 | AB138: 0 | AC138: 0 | AD138: 0 | AE138: 1000
A139: 126 | B139: =IF(A139<>0,VLOOKUP(A139,Liste!$A$10:$D$159,4,FALSE),"") -> ROCHETEAU-SOONEKINDT | C139: 0 | D139: 0 | E139: 0 | F139: 0 | I139: 0 | J139: 0 | K139: =IF(AND($I139=1,$H139>0),VLOOKUP($H139,$A$14:AD$63,11,FALSE),0) -> 0 | L139: =IF(AND($I139=1,$H139>0),VLOOKUP($H139,$A$14:AE$63,12,FALSE),0) -> 0 | M139: =IF(AND($I139=1,$H139>0),VLOOKUP($H139,$A$14:AF$63,13,FALSE),0) -> 0 | Q139: =IF(A139<>0,VLOOKUP(A139,Liste!$A$10:$K$159,8,FALSE),"") -> 100 | S139: 165 | AB139: 0 | AC139: 0 | AD139: 0 | AE139: 1000
A140: 127 | B140: =IF(A140<>0,VLOOKUP(A140,Liste!$A$10:$D$159,4,FALSE),"") -> RUIZ José | C140: 0 | D140: 0 | E140: 0 | F140: 0 | I140: 0 | J140: 0 | K140: =IF(AND($I140=1,$H140>0),VLOOKUP($H140,$A$14:AD$63,11,FALSE),0) -> 0 | L140: =IF(AND($I140=1,$H140>0),VLOOKUP($H140,$A$14:AE$63,12,FALSE),0) -> 0 | M140: =IF(AND($I140=1,$H140>0),VLOOKUP($H140,$A$14:AF$63,13,FALSE),0) -> 0 | Q140: =IF(A140<>0,VLOOKUP(A140,Liste!$A$10:$K$159,8,FALSE),"") -> 98 | S140: 180 | AB140: 0 | AC140: 0 | AD140: 0 | AE140: 1000
A141: 128 | B141: =IF(A141<>0,VLOOKUP(A141,Liste!$A$10:$D$159,4,FALSE),"") -> RUIZ Marcel | C141: 0 | D141: 0 | E141: 0 | F141: 0 | I141: 0 | J141: 0 | K141: =IF(AND($I141=1,$H141>0),VLOOKUP($H141,$A$14:AD$63,11,FALSE),0) -> 0 | L141: =IF(AND($I141=1,$H141>0),VLOOKUP($H141,$A$14:AE$63,12,FALSE),0) -> 0 | M141: =IF(AND($I141=1,$H141>0),VLOOKUP($H141,$A$14:AF$63,13,FALSE),0) -> 0 | Q141: =IF(A141<>0,VLOOKUP(A141,Liste!$A$10:$K$159,8,FALSE),"") -> 91 | S141: 176 | AB141: 0 | AC141: 0 | AD141: 0 | AE141: 1000
A142: 129 | B142: =IF(A142<>0,VLOOKUP(A142,Liste!$A$10:$D$159,4,FALSE),"") -> RUSSEAU Thomas | C142: =F142*(K142=1) -> 0 | D142: =F142*(L142=1) -> 0 | E142: =F142*(M142=1) -> 0 | F142: 0 | I142: 0 | J142: =IF(F142>0,F142,0) -> 0 | K142: =IF(AND($I142=1,$H142>0),VLOOKUP($H142,$A$14:AD$63,11,FALSE),0) -> 0 | L142: =IF(AND($I142=1,$H142>0),VLOOKUP($H142,$A$14:AE$63,12,FALSE),0) -> 0 | M142: =IF(AND($I142=1,$H142>0),VLOOKUP($H142,$A$14:AF$63,13,FALSE),0) -> 0 | P142: =IF(I142=1,K142*(K142=1)+L142*2*(L142=1)+M142*3*(M142=1),"") ->  | Q142: =IF(A142<>0,VLOOKUP(A142,Liste!$A$10:$K$159,8,FALSE),"") -> 101 | S142: 164 | AB142: 0 | AC142: 0 | AD142: 0 | AE142: 1000
A143: 130 | B143: =IF(A143<>0,VLOOKUP(A143,Liste!$A$10:$D$159,4,FALSE),"") -> SALDOT Sylviane | C143: 0 | D143: 0 | E143: 0 | F143: =IF(I143=1,VLOOKUP(A143,$A$14:$AA$163,16+$B$4,0),0) -> 0 | I143: =1*(IF(G143>=1,VLOOKUP(A143,$A$14:$AA$163,16+$B$4,0)>0)) -> 0 | J143: 0 | K143: =IF(AND($I143=1,$H143>0),VLOOKUP($H143,$A$14:AD$63,11,FALSE),0) -> 0 | L143: =IF(AND($I143=1,$H143>0),VLOOKUP($H143,$A$14:AE$63,12,FALSE),0) -> 0 | M143: =IF(AND($I143=1,$H143>0),VLOOKUP($H143,$A$14:AF$63,13,FALSE),0) -> 0 | N143: =IF(AND(I143>0,K143+L143+M143=0),"EN ATTENTE",IF(K143+L143+M143>1,"ERREUR","")) ->  | O143: =IF(AND(AC143>3,AD143>$D$10*$O$12),1,"") ->  | Q143: =IF(A143<>0,VLOOKUP(A143,Liste!$A$10:$K$159,8,FALSE),"") -> 53 | S143: 182 | AB143: 0 | AC143: =COUNTIF($H$14:$H$163,A143) -> 0 | AD143: =SUMIF($H$14:$H$163,A143,$J$14:$J$163)+(J143*(AC143>0)) -> 0 | AE143: 1000
A144: 131 | B144: =IF(A144<>0,VLOOKUP(A144,Liste!$A$10:$D$159,4,FALSE),"") -> SAMUELIAN Charles | C144: 0 | D144: 0 | E144: 0 | F144: 57 | G144: 3 | I144: 1 | J144: 57 | K144: =IF(AND($I144=1,$H144>0),VLOOKUP($H144,$A$14:AD$63,11,FALSE),0) -> 0 | L144: =IF(AND($I144=1,$H144>0),VLOOKUP($H144,$A$14:AE$63,12,FALSE),0) -> 0 | M144: =IF(AND($I144=1,$H144>0),VLOOKUP($H144,$A$14:AF$63,13,FALSE),0) -> 0 | N144: EN ATTENTE | P144: 0 | Q144: =IF(A144<>0,VLOOKUP(A144,Liste!$A$10:$K$159,8,FALSE),"") -> 57 | S144: 95 | AB144: 1 | AC144: 0 | AD144: 0 | AE144: 131
A145: 132 | B145: =IF(A145<>0,VLOOKUP(A145,Liste!$A$10:$D$159,4,FALSE),"") -> SANNA - DVORAK Laurent - Isabel | C145: 0 | D145: 0 | E145: 0 | F145: 0 | I145: 0 | J145: 0 | K145: =IF(AND($I145=1,$H145>0),VLOOKUP($H145,$A$14:AD$63,11,FALSE),0) -> 0 | L145: =IF(AND($I145=1,$H145>0),VLOOKUP($H145,$A$14:AE$63,12,FALSE),0) -> 0 | M145: =IF(AND($I145=1,$H145>0),VLOOKUP($H145,$A$14:AF$63,13,FALSE),0) -> 0 | Q145: =IF(A145<>0,VLOOKUP(A145,Liste!$A$10:$K$159,8,FALSE),"") -> 92 | S145: 102 | AB145: 0 | AC145: 0 | AD145: 0 | AE145: 1000
A146: 133 | B146: =IF(A146<>0,VLOOKUP(A146,Liste!$A$10:$D$159,4,FALSE),"") -> SARLIN / MAUREL Jocelyne | C146: 0 | D146: 0 | E146: 0 | F146: 0 | I146: 0 | J146: 0 | K146: =IF(AND($I146=1,$H146>0),VLOOKUP($H146,$A$14:AD$63,11,FALSE),0) -> 0 | L146: =IF(AND($I146=1,$H146>0),VLOOKUP($H146,$A$14:AE$63,12,FALSE),0) -> 0 | M146: =IF(AND($I146=1,$H146>0),VLOOKUP($H146,$A$14:AF$63,13,FALSE),0) -> 0 | Q146: =IF(A146<>0,VLOOKUP(A146,Liste!$A$10:$K$159,8,FALSE),"") -> 94 | S146: 165 | AB146: 0 | AC146: 0 | AD146: 0 | AE146: 1000
A147: 134 | B147: =IF(A147<>0,VLOOKUP(A147,Liste!$A$10:$D$159,4,FALSE),"") -> SCALIA Serge | C147: 0 | D147: 0 | E147: 0 | F147: 0 | I147: 0 | J147: 0 | K147: =IF(AND($I147=1,$H147>0),VLOOKUP($H147,$A$14:AD$63,11,FALSE),0) -> 0 | L147: =IF(AND($I147=1,$H147>0),VLOOKUP($H147,$A$14:AE$63,12,FALSE),0) -> 0 | M147: =IF(AND($I147=1,$H147>0),VLOOKUP($H147,$A$14:AF$63,13,FALSE),0) -> 0 | Q147: =IF(A147<>0,VLOOKUP(A147,Liste!$A$10:$K$159,8,FALSE),"") -> 53 | S147: 95 | AB147: 0 | AC147: 0 | AD147: 0 | AE147: 1000
A148: 135 | B148: =IF(A148<>0,VLOOKUP(A148,Liste!$A$10:$D$159,4,FALSE),"") -> SCHMIT Isabelle | C148: 0 | D148: 0 | E148: 0 | F148: 0 | I148: 0 | J148: 0 | K148: =IF(AND($I148=1,$H148>0),VLOOKUP($H148,$A$14:AD$63,11,FALSE),0) -> 0 | L148: =IF(AND($I148=1,$H148>0),VLOOKUP($H148,$A$14:AE$63,12,FALSE),0) -> 0 | M148: =IF(AND($I148=1,$H148>0),VLOOKUP($H148,$A$14:AF$63,13,FALSE),0) -> 0 | Q148: =IF(A148<>0,VLOOKUP(A148,Liste!$A$10:$K$159,8,FALSE),"") -> 40 | S148: 72 | AB148: 0 | AC148: 0 | AD148: 0 | AE148: 1000
A149: 136 | B149: =IF(A149<>0,VLOOKUP(A149,Liste!$A$10:$D$159,4,FALSE),"") -> SCIALON Victor | C149: 0 | D149: 0 | E149: 0 | F149: 0 | I149: 0 | J149: 0 | K149: =IF(AND($I149=1,$H149>0),VLOOKUP($H149,$A$14:AD$63,11,FALSE),0) -> 0 | L149: =IF(AND($I149=1,$H149>0),VLOOKUP($H149,$A$14:AE$63,12,FALSE),0) -> 0 | M149: =IF(AND($I149=1,$H149>0),VLOOKUP($H149,$A$14:AF$63,13,FALSE),0) -> 0 | Q149: =IF(A149<>0,VLOOKUP(A149,Liste!$A$10:$K$159,8,FALSE),"") -> 48 | S149: 86 | AB149: 0 | AC149: 0 | AD149: 0 | AE149: 1000
A150: 137 | B150: =IF(A150<>0,VLOOKUP(A150,Liste!$A$10:$D$159,4,FALSE),"") -> SERREE Patrick | C150: 0 | D150: 0 | E150: 0 | F150: 0 | I150: 0 | J150: 0 | K150: =IF(AND($I150=1,$H150>0),VLOOKUP($H150,$A$14:AD$63,11,FALSE),0) -> 0 | L150: =IF(AND($I150=1,$H150>0),VLOOKUP($H150,$A$14:AE$63,12,FALSE),0) -> 0 | M150: =IF(AND($I150=1,$H150>0),VLOOKUP($H150,$A$14:AF$63,13,FALSE),0) -> 0 | Q150: =IF(A150<>0,VLOOKUP(A150,Liste!$A$10:$K$159,8,FALSE),"") -> 56 | S150: 101 | AB150: 0 | AC150: 0 | AD150: 0 | AE150: 1000
A151: 138 | B151: =IF(A151<>0,VLOOKUP(A151,Liste!$A$10:$D$159,4,FALSE),"") -> SIEURAC Philippe | C151: 0 | D151: 0 | E151: 0 | F151: 0 | I151: 0 | J151: 0 | K151: =IF(AND($I151=1,$H151>0),VLOOKUP($H151,$A$14:AD$63,11,FALSE),0) -> 0 | L151: =IF(AND($I151=1,$H151>0),VLOOKUP($H151,$A$14:AE$63,12,FALSE),0) -> 0 | M151: =IF(AND($I151=1,$H151>0),VLOOKUP($H151,$A$14:AF$63,13,FALSE),0) -> 0 | Q151: =IF(A151<>0,VLOOKUP(A151,Liste!$A$10:$K$159,8,FALSE),"") -> 60 | S151: 108 | AB151: 0 | AC151: 0 | AD151: 0 | AE151: 1000
A152: 139 | B152: =IF(A152<>0,VLOOKUP(A152,Liste!$A$10:$D$159,4,FALSE),"") -> SIMON Josette | C152: 0 | D152: 0 | E152: 0 | F152: 0 | I152: 0 | J152: 0 | K152: =IF(AND($I152=1,$H152>0),VLOOKUP($H152,$A$14:AD$63,11,FALSE),0) -> 0 | L152: =IF(AND($I152=1,$H152>0),VLOOKUP($H152,$A$14:AE$63,12,FALSE),0) -> 0 | M152: =IF(AND($I152=1,$H152>0),VLOOKUP($H152,$A$14:AF$63,13,FALSE),0) -> 0 | Q152: =IF(A152<>0,VLOOKUP(A152,Liste!$A$10:$K$159,8,FALSE),"") -> 51 | S152: 92 | AB152: 0 | AC152: 0 | AD152: 0 | AE152: 1000
A153: 140 | B153: =IF(A153<>0,VLOOKUP(A153,Liste!$A$10:$D$159,4,FALSE),"") -> SIMON Piaul | C153: 0 | D153: 0 | E153: 0 | F153: 0 | I153: 0 | J153: 0 | K153: =IF(AND($I153=1,$H153>0),VLOOKUP($H153,$A$14:AD$63,11,FALSE),0) -> 0 | L153: =IF(AND($I153=1,$H153>0),VLOOKUP($H153,$A$14:AE$63,12,FALSE),0) -> 0 | M153: =IF(AND($I153=1,$H153>0),VLOOKUP($H153,$A$14:AF$63,13,FALSE),0) -> 0 | Q153: =IF(A153<>0,VLOOKUP(A153,Liste!$A$10:$K$159,8,FALSE),"") -> 53 | S153: 95 | AB153: 0 | AC153: 0 | AD153: 0 | AE153: 1000
A154: 141 | B154: =IF(A154<>0,VLOOKUP(A154,Liste!$A$10:$D$159,4,FALSE),"") -> SOLVEZ-BOUCHER | C154: 0 | D154: 0 | E154: 0 | F154: 93 | G154: 3 | I154: 1 | J154: 93 | K154: =IF(AND($I154=1,$H154>0),VLOOKUP($H154,$A$14:AD$63,11,FALSE),0) -> 0 | L154: =IF(AND($I154=1,$H154>0),VLOOKUP($H154,$A$14:AE$63,12,FALSE),0) -> 0 | M154: =IF(AND($I154=1,$H154>0),VLOOKUP($H154,$A$14:AF$63,13,FALSE),0) -> 0 | N154: EN ATTENTE | P154: 0 | Q154: =IF(A154<>0,VLOOKUP(A154,Liste!$A$10:$K$159,8,FALSE),"") -> 93 | S154: 167 | AB154: 1 | AC154: 0 | AD154: 0 | AE154: 141
A155: 142 | B155: =IF(A155<>0,VLOOKUP(A155,Liste!$A$10:$D$159,4,FALSE),"") -> STURM Philippe | C155: 0 | D155: 0 | E155: 0 | F155: 0 | I155: 0 | J155: 0 | K155: =IF(AND($I155=1,$H155>0),VLOOKUP($H155,$A$14:AD$63,11,FALSE),0) -> 0 | L155: =IF(AND($I155=1,$H155>0),VLOOKUP($H155,$A$14:AE$63,12,FALSE),0) -> 0 | M155: =IF(AND($I155=1,$H155>0),VLOOKUP($H155,$A$14:AF$63,13,FALSE),0) -> 0 | Q155: =IF(A155<>0,VLOOKUP(A155,Liste!$A$10:$K$159,8,FALSE),"") -> 90 | S155: 162 | AB155: 0 | AC155: 0 | AD155: 0 | AE155: 1000
A156: 143 | B156: =IF(A156<>0,VLOOKUP(A156,Liste!$A$10:$D$159,4,FALSE),"") -> TANDY G&érard | C156: 0 | D156: 0 | E156: 0 | F156: 0 | I156: 0 | J156: 0 | K156: =IF(AND($I156=1,$H156>0),VLOOKUP($H156,$A$14:AD$63,11,FALSE),0) -> 0 | L156: =IF(AND($I156=1,$H156>0),VLOOKUP($H156,$A$14:AE$63,12,FALSE),0) -> 0 | M156: =IF(AND($I156=1,$H156>0),VLOOKUP($H156,$A$14:AF$63,13,FALSE),0) -> 0 | Q156: =IF(A156<>0,VLOOKUP(A156,Liste!$A$10:$K$159,8,FALSE),"") -> 40 | S156: 72 | AB156: 0 | AC156: 0 | AD156: 0 | AE156: 1000
A157: 144 | B157: =IF(A157<>0,VLOOKUP(A157,Liste!$A$10:$D$159,4,FALSE),"") -> THUMERELLE Sébastien | C157: 0 | D157: 0 | E157: 0 | F157: 0 | I157: 0 | J157: 0 | K157: =IF(AND($I157=1,$H157>0),VLOOKUP($H157,$A$14:AD$63,11,FALSE),0) -> 0 | L157: =IF(AND($I157=1,$H157>0),VLOOKUP($H157,$A$14:AE$63,12,FALSE),0) -> 0 | M157: =IF(AND($I157=1,$H157>0),VLOOKUP($H157,$A$14:AF$63,13,FALSE),0) -> 0 | Q157: =IF(A157<>0,VLOOKUP(A157,Liste!$A$10:$K$159,8,FALSE),"") -> 80 | S157: 144 | AB157: 0 | AC157: 0 | AD157: 0 | AE157: 1000
A158: 145 | B158: =IF(A158<>0,VLOOKUP(A158,Liste!$A$10:$D$159,4,FALSE),"") -> TONDU Simon | C158: 0 | D158: 0 | E158: 0 | F158: 0 | I158: 0 | J158: 0 | K158: =IF(AND($I158=1,$H158>0),VLOOKUP($H158,$A$14:AD$63,11,FALSE),0) -> 0 | L158: =IF(AND($I158=1,$H158>0),VLOOKUP($H158,$A$14:AE$63,12,FALSE),0) -> 0 | M158: =IF(AND($I158=1,$H158>0),VLOOKUP($H158,$A$14:AF$63,13,FALSE),0) -> 0 | Q158: =IF(A158<>0,VLOOKUP(A158,Liste!$A$10:$K$159,8,FALSE),"") -> 40 | S158: 72 | AB158: 0 | AC158: 0 | AD158: 0 | AE158: 1000
A159: 146 | B159: =IF(A159<>0,VLOOKUP(A159,Liste!$A$10:$D$159,4,FALSE),"") -> VERMONT André | C159: 0 | D159: 0 | E159: 0 | F159: 0 | I159: 0 | J159: 0 | K159: =IF(AND($I159=1,$H159>0),VLOOKUP($H159,$A$14:AD$63,11,FALSE),0) -> 0 | L159: =IF(AND($I159=1,$H159>0),VLOOKUP($H159,$A$14:AE$63,12,FALSE),0) -> 0 | M159: =IF(AND($I159=1,$H159>0),VLOOKUP($H159,$A$14:AF$63,13,FALSE),0) -> 0 | Q159: =IF(A159<>0,VLOOKUP(A159,Liste!$A$10:$K$159,8,FALSE),"") -> 52 | S159: 93 | AB159: 0 | AC159: 0 | AD159: 0 | AE159: 1000
A160: 147 | B160: =IF(A160<>0,VLOOKUP(A160,Liste!$A$10:$D$159,4,FALSE),"") -> VIGLIONE Léa | C160: 0 | D160: 0 | E160: 0 | F160: 0 | I160: 0 | J160: 0 | K160: =IF(AND($I160=1,$H160>0),VLOOKUP($H160,$A$14:AD$63,11,FALSE),0) -> 0 | L160: =IF(AND($I160=1,$H160>0),VLOOKUP($H160,$A$14:AE$63,12,FALSE),0) -> 0 | M160: =IF(AND($I160=1,$H160>0),VLOOKUP($H160,$A$14:AF$63,13,FALSE),0) -> 0 | Q160: =IF(A160<>0,VLOOKUP(A160,Liste!$A$10:$K$159,8,FALSE),"") -> 61 | S160: 110 | AB160: 0 | AC160: 0 | AD160: 0 | AE160: 1000
A161: 148 | B161: =IF(A161<>0,VLOOKUP(A161,Liste!$A$10:$D$159,4,FALSE),"") -> WINGERT Philippe | C161: 0 | D161: 0 | E161: 0 | F161: 0 | I161: 0 | J161: 0 | K161: =IF(AND($I161=1,$H161>0),VLOOKUP($H161,$A$14:AD$63,11,FALSE),0) -> 0 | L161: =IF(AND($I161=1,$H161>0),VLOOKUP($H161,$A$14:AE$63,12,FALSE),0) -> 0 | M161: =IF(AND($I161=1,$H161>0),VLOOKUP($H161,$A$14:AF$63,13,FALSE),0) -> 0 | Q161: =IF(A161<>0,VLOOKUP(A161,Liste!$A$10:$K$159,8,FALSE),"") -> 80 | S161: 144 | AB161: 0 | AC161: 0 | AD161: 0 | AE161: 1000
A162: 149 | B162: =IF(A162<>0,VLOOKUP(A162,Liste!$A$10:$D$159,4,FALSE),"") -> YOUSEF Amed | C162: 0 | D162: 0 | E162: 0 | F162: 0 | I162: 0 | J162: 0 | K162: =IF(AND($I162=1,$H162>0),VLOOKUP($H162,$A$14:AD$63,11,FALSE),0) -> 0 | L162: =IF(AND($I162=1,$H162>0),VLOOKUP($H162,$A$14:AE$63,12,FALSE),0) -> 0 | M162: =IF(AND($I162=1,$H162>0),VLOOKUP($H162,$A$14:AF$63,13,FALSE),0) -> 0 | Q162: =IF(A162<>0,VLOOKUP(A162,Liste!$A$10:$K$159,8,FALSE),"") -> 52 | S162: 93 | AB162: 0 | AC162: 0 | AD162: 0 | AE162: 1000
A163: 150 | B163: =IF(A163<>0,VLOOKUP(A163,Liste!$A$10:$D$159,4,FALSE),"") -> ZIADI MONGI | C163: 0 | D163: 0 | E163: 0 | F163: 0 | I163: 0 | J163: =IF(F163>0,F163,0) -> 0 | K163: =IF(AND($I163=1,$H163>0),VLOOKUP($H163,$A$14:AD$63,11,FALSE),0) -> 0 | L163: =IF(AND($I163=1,$H163>0),VLOOKUP($H163,$A$14:AE$63,12,FALSE),0) -> 0 | M163: =IF(AND($I163=1,$H163>0),VLOOKUP($H163,$A$14:AF$63,13,FALSE),0) -> 0 | Q163: =IF(A163<>0,VLOOKUP(A163,Liste!$A$10:$K$159,8,FALSE),"") -> 53 | S163: 95 | AB163: 0 | AC163: 0 | AD163: 0 | AE163: 1000

Sheet R,999
A1: =Liste!C4 -> 20/06/21 | B1: 9 | C1: =$AI$10&$AJ$10 ->  | K1: =$AI$10&$AJ$10 ->  | Q1: 1 | R1: 2 | S1: 3 | T1: 4
C2: POUR | D2: CONTRE | E2: ABSTENT | F2: Total TANT. | G2: P. R | H2: x | I2: PRES. Votants | J2: Tant. Repré. | K2: POUR | L2: CONTRE | M2: ABSTENT | N2: TOTAL | Q2: TANT.GEN | R2: TANT 2 | S2: TANT.3 | T2: TANT 4 | U2: TANT.5 | V2: TANT.6 | W2: TANT. | X2: TANT. | Y2: TANT. | Z2: TANT. | AA2: TANT. | AC2: =240*(A2=24)*(L3>K3)+241*(A2=24)*(K3>L3) -> 0 | AD2: =250*(A2=25)*(K3<L3)+252*(A2=25)*(K3>=AI7) -> 0 | AE2: =250*(A2=25.1)*(L3<K3)+2*(A2=25.1)*(K3>L3)+250*(A2=25.1)*(K3<L3) -> 0 | AF2: =260*(A2=26)*((K3<AJ7)*(K7<AJ8)*(K3<=AK7))+(262*(A2=26)*((K3>=AJ7)*+(K7>=AJ8)))+1*(A2=26)*(K7>=AJ8)*(K3>=AK7) -> 0 | AG2: =262*(A2=26.1)*(K3>=AI7)+260*(A2=26.1)*(K3<AI7) -> 0 | AJ2: =SUM(AC2:AI2) -> 0 | AL2: 3 | AN2: 240 | AO2: =IF($AJ$2=240,CONCATENATE("Résolution REFUSEE par ",D3, " voix CONTRE et ",C3," voix POUR."),"") -> 
A3: Nom | C3: =SUM($C$14:$C$163) -> 0 | D3: =SUM($D$14:$D$163) -> 0 | E3: =SUM($E$14:$E163) -> 0 | F3: =SUM($F$14:$F$163) -> 541 | G3: =E11 -> 4 | I3: =SUM($I$14:$I$163) -> 4 | J3: =SUM($J$14:$J$163) -> 541 | K3: =SUM($C$14:$C$163) -> 0 | L3: =SUM($D$14:$D$163) -> 0 | M3: =SUM($E$14:$E163) -> 0 | N3: =K3+L3+M3 -> 0 | O3: =IF(N3=E10,"","EN ATTENTE") -> EN ATTENTE | Q3: =SUM(Q14:Q163) -> 10000 | R3: =SUM(R14:R163) -> 9977 | S3: =SUM(S14:S163) -> 10126 | T3: =SUM(T14:T163) -> 0 | U3: =SUM(U14:U163) -> 0 | V3: =SUM(V14:V63) -> 0 | W3: =SUM(W14:W163) -> 0 | X3: 0 | Y3: =SUM(Y14:Y163) -> 0 | Z3: 0 | AA3: =SUM(AA14:AA163) -> 0 | AH3: 1 | AN3: 241 | AO3: =IF($AJ$2=241,CONCATENATE("Résolution ADOPTEE par ",C3," voix POUR et ",D3," voix CONTRE."),"") -> 
A4: Clé | B4: 2 | Q4: =COUNTIF(Q14:Q163,">0") -> 150 | R4: =COUNTIF(R14:R163,">0") -> 69 | S4: =COUNTIF(S14:S163,">0") -> 81 | T4: =COUNTIF(T14:T163,">0") -> 0 | U4: =COUNTIF(U14:U163,">0") -> 0 | V4: =COUNTIF(V13:V14,">0") -> 0 | W4: =COUNTIF(W14:W163,">0") -> 0 | X4: =COUNTIF(X14:X163,">0") -> 0 | Y4: =COUNTIF(Y14:Y163,">0") -> 0 | Z4: =COUNTIF(Z14:Z163,">0") -> 0 | AA4: =COUNTIF(AA14:AA163,">0") -> 0 | AN4: 250 | AO4: =IF($AJ$2=250,CONCATENATE("Résolution REFUSEE,Pas de possibilité de 2e vote","")) -> FALSE
C5: =VLOOKUP($AJ$2,$AN$2:$AO$13,2,FALSE) ->  | K5: =IF(A2=26, AJ11,"") ->  | AE5: K3 Voix | AF5: 3230 | AI5: 25 Maj; Voix | AJ5: 26 Maj.2/3 Voix | AK5: 26 Maj 1/3 voix | AN5: 251 | AO5: =IF($AJ$2=251,CONCATENATE("Possibilité d'un deuxième vote à l'article 25,1, majorité 24, "),"") -> 
J6: NOMBRE : | K6: POUR | L6: CONTRE | M6: ABSTENT | N6: VOTANTS | AE6: K7 Copros | AF6: 8 | AI6: Tous Copros | AJ6: Tous Copros | AK6: Tous copros | AN6: 252 | AO6: =IF($AJ$2=252,CONCATENATE("Résolution adoptée par ",C3," voix POUR et ",D3," voix CONTRE"),"") -> 
G7: =IF(SUM($O$14:$O$163)>0,"LIMITES DEPASSEES","") ->  | K7: =SUM($K$14:$K$163) -> 0 | L7: =SUM($L$14:$L$163) -> 0 | M7: =SUM($M$14:$M$163) -> 0 | N7: =K7+L7+M7 -> 0 | O7: =IF(N7=E11,"","EN ATTENTE") -> EN ATTENTE | AI7: =ROUNDDOWN((D10)/2+1,0) -> 4989 | AJ7: =ROUNDDOWN((D10)*2/3+1,0) -> 6652 | AK7: =ROUNDDOWN((D10)*1/3+1,0) -> 3326 | AN7: 260 | AO7: =IF($AJ$2=260,CONCATENATE("Résolution REJETEE ."),"") -> 
C8: Total | D8: Total | E8: Prés.Repr | AD8: Art,25 | AE8: =2*(A2=25)*(K3>=AK7) -> 0 | AF8: =IF(AE8=2,"Possibilité de deuxième vote","") ->  | AJ8: =ROUNDUP(($D$11+0.1)/2,0) -> 35 | AN8: 262 | AO8: =IF($AJ$2=262,CONCATENATE("Résolution ADOPTEE par ",C3," voix POUR et ",D3," voix CONTRE")) -> FALSE
C9: Syndicat | D9: CLE | E9: Tot.Votants | K9: =VLOOKUP($AJ$2,$AN$2:$AO$13,2,FALSE) ->  | AD9: Art,26 | AE9: =2*(A2=26)*(K7>=AJ8)*(K3>=AK7) -> 0 | AF9: =IF(AE9=2,"Possibilité de deuxième vote","") -> 
C10: =HLOOKUP(1,$Q$1:$AA$4,3,FALSE) -> 10000 | D10: =HLOOKUP($B$4,$Q$1:$AA$4,3,FALSE) -> 9977 | E10: =SUM($F$14:$F$163) -> 541 | F10: VOIX | AI10: =IF($A$2=25,">= " & $AI$7,"") ->  | AJ10: =IF($A$2=26,">= " & $AJ$7,"") ->  | AK10: =IF($A$2=26.1,">= " & $AK7,"") -> 
C11: =HLOOKUP(1,$Q$1:$AA$4,4,FALSE) -> 150 | D11: =HLOOKUP($B$4,$Q$1:$AA$4,4,FALSE) -> 69 | E11: =SUM($I$14:$I$163) -> 4 | F11: NOMBRE | AC11: =SUM($O$14:$O$163) -> 0 | AD11: Nombre de dépassemnts | AJ11: =IF($A$2=26,">= " & $AJ$8,"") -> 
M12: =IF(COUNTIF($N$14:$N$163,"ERREUR")>0,"ERREUR","") ->  | N12: =IF(COUNTIF($N$14:$N$163,"EN ATTENTE")>0,"EN ATTENTE","") -> EN ATTENTE | O12: 0.1
A13: N° Ordre | B13: NOMS | C13: Voix POUR | D13: Voix CONTRE | E13: Voix Abst. | F13: Total TANT. | G13: P. R | H13: Rep.par | I13: PRES. Votants | J13: Tant. Repré. | K13: Votes POUR | L13: Votes CONTRE | M13: Votes ABST, | N13: VERIF | O13: LIMITES | P13: Votes | Q13: TANT.GEN | R13: =R2 -> TANT 2 | S13: TANT.3 | T13: TANT 4 | U13: TANT.5 | V13: TANT.6 | W13: TANT. | X13: TANT. | Y13: TANT. | Z13: TANT. | AA13: TANT. | AB13: X | AC13: Nombre Représentés | AD13: Total Voix | AE13: XX
A14: 11 | B14: =IF(A14<>0,VLOOKUP(A14,Liste!$A$10:$D$159,4,FALSE),"") -> BAUMGARTNER Peter | C14: =F14*(K14=1) -> 0 | D14: =F14*(L14=1) -> 0 | E14: =F14*(M14=1) -> 0 | F14: =IF(I14=1,VLOOKUP(A14,$A$14:$AA$163,16+$B$4,0),0) -> 158 | G14: 3 | I14: =1*(IF(G14>=1,VLOOKUP(A14,$A$14:$AA$163,16+$B$4,0)>0)) -> 1 | J14: =IF(F14>0,F14,0) -> 158 | K14: =IF(AND($I14=1,$H14>0),VLOOKUP($H14,$A$14:AD$63,11,FALSE),0) -> 0 | L14: =IF(AND($I14=1,$H14>0),VLOOKUP($H14,$A$14:AE$63,12,FALSE),0) -> 0 | M14: =IF(AND($I14=1,$H14>0),VLOOKUP($H14,$A$14:AF$63,13,FALSE),0) -> 0 | N14: =IF(AND(I14>0,K14+L14+M14=0),"EN ATTENTE",IF(K14+L14+M14>1,"ERREUR","")) -> EN ATTENTE | O14: =IF(AND(AC14>3,AD14>$D$10*$O$12),1,"") ->  | P14: =IF(I14=1,K14*(K14=1)+L14*2*(L14=1)+M14*3*(M14=1),"") -> 0 | Q14: =IF(A14<>0,VLOOKUP(A14,Liste!$A$10:$K$159,8,FALSE),"") -> 70 | R14: 158 | AB14: =(H14+I14)*(J14>0) -> 1 | AC14: =COUNTIF($H$14:$H$163,A14) -> 0 | AD14: =SUMIF($H$14:$H$163,A14,$J$14:$J$163)+(J14*(AC14>0)) -> 0 | AE14: =IF(H14>0,H14+0.5*(I14=1),A14*(I14=1))+(1000*(I14<1)) -> 11
A15: 21 | B15: =IF(A15<>0,VLOOKUP(A15,Liste!$A$10:$D$159,4,FALSE),"") -> BOQUET Marcel | C15: 0 | D15: 0 | E15: 0 | F15: 124 | G15: 3 | I15: 1 | J15: 124 | K15: =IF(AND($I15=1,$H15>0),VLOOKUP($H15,$A$14:AD$63,11,FALSE),0) -> 0 | L15: =IF(AND($I15=1,$H15>0),VLOOKUP($H15,$A$14:AE$63,12,FALSE),0) -> 0 | M15: =IF(AND($I15=1,$H15>0),VLOOKUP($H15,$A$14:AF$63,13,FALSE),0) -> 0 | N15: EN ATTENTE | P15: 0 | Q15: =IF(A15<>0,VLOOKUP(A15,Liste!$A$10:$K$159,8,FALSE),"") -> 55 | R15: 124 | AB15: 1 | AC15: 0 | AD15: 0 | AE15: 21
A16: 31 | B16: =IF(A16<>0,VLOOKUP(A16,Liste!$A$10:$D$159,4,FALSE),"") -> CARANTA Jean P. | C16: 0 | D16: 0 | E16: 0 | F16: 135 | G16: 3 | I16: 1 | J16: 135 | K16: =IF(AND($I16=1,$H16>0),VLOOKUP($H16,$A$14:AD$63,11,FALSE),0) -> 0 | L16: =IF(AND($I16=1,$H16>0),VLOOKUP($H16,$A$14:AE$63,12,FALSE),0) -> 0 | M16: =IF(AND($I16=1,$H16>0),VLOOKUP($H16,$A$14:AF$63,13,FALSE),0) -> 0 | N16: EN ATTENTE | P16: 0 | Q16: =IF(A16<>0,VLOOKUP(A16,Liste!$A$10:$K$159,8,FALSE),"") -> 60 | R16: 135 | AB16: 1 | AC16: 0 | AD16: 0 | AE16: 31
A17: 41 | B17: =IF(A17<>0,VLOOKUP(A17,Liste!$A$10:$D$159,4,FALSE),"") -> COMA Marie | C17: 0 | D17: 0 | E17: 0 | F17: 124 | G17: 3 | I17: 1 | J17: 124 | K17: =IF(AND($I17=1,$H17>0),VLOOKUP($H17,$A$14:AD$63,11,FALSE),0) -> 0 | L17: =IF(AND($I17=1,$H17>0),VLOOKUP($H17,$A$14:AE$63,12,FALSE),0) -> 0 | M17: =IF(AND($I17=1,$H17>0),VLOOKUP($H17,$A$14:AF$63,13,FALSE),0) -> 0 | N17: EN ATTENTE | P17: 0 | Q17: =IF(A17<>0,VLOOKUP(A17,Liste!$A$10:$K$159,8,FALSE),"") -> 55 | R17: 124 | AB17: 1 | AC17: 0 | AD17: 0 | AE17: 41
A18: 101 | B18: =IF(A18<>0,VLOOKUP(A18,Liste!$A$10:$D$159,4,FALSE),"") -> MEISSONNIER Josiane | C18: 0 | D18: 0 | E18: 0 | F18: 0 | G18: 3 | I18: 0 | J18: 0 | K18: =IF(AND($I18=1,$H18>0),VLOOKUP($H18,$A$14:AD$63,11,FALSE),0) -> 0 | L18: =IF(AND($I18=1,$H18>0),VLOOKUP($H18,$A$14:AE$63,12,FALSE),0) -> 0 | M18: =IF(AND($I18=1,$H18>0),VLOOKUP($H18,$A$14:AF$63,13,FALSE),0) -> 0 | Q18: =IF(A18<>0,VLOOKUP(A18,Liste!$A$10:$K$159,8,FALSE),"") -> 100 | S18: 113 | AB18: 0 | AC18: 0 | AD18: 0 | AE18: 1000
A19: 111 | B19: =IF(A19<>0,VLOOKUP(A19,Liste!$A$10:$D$159,4,FALSE),"") -> NOGER Pierre | C19: 0 | D19: 0 | E19: 0 | F19: 0 | G19: 3 | I19: 0 | J19: 0 | K19: =IF(AND($I19=1,$H19>0),VLOOKUP($H19,$A$14:AD$63,11,FALSE),0) -> 0 | L19: =IF(AND($I19=1,$H19>0),VLOOKUP($H19,$A$14:AE$63,12,FALSE),0) -> 0 | M19: =IF(AND($I19=1,$H19>0),VLOOKUP($H19,$A$14:AF$63,13,FALSE),0) -> 0 | Q19: =IF(A19<>0,VLOOKUP(A19,Liste!$A$10:$K$159,8,FALSE),"") -> 60 | S19: 162 | AB19: 0 | AC19: 0 | AD19: 0 | AE19: 1000
A20: 121 | B20: =IF(A20<>0,VLOOKUP(A20,Liste!$A$10:$D$159,4,FALSE),"") -> PUONS René | C20: 0 | D20: 0 | E20: 0 | F20: 0 | G20: 3 | I20: 0 | J20: 0 | K20: =IF(AND($I20=1,$H20>0),VLOOKUP($H20,$A$14:AD$63,11,FALSE),0) -> 0 | L20: =IF(AND($I20=1,$H20>0),VLOOKUP($H20,$A$14:AE$63,12,FALSE),0) -> 0 | M20: =IF(AND($I20=1,$H20>0),VLOOKUP($H20,$A$14:AF$63,13,FALSE),0) -> 0 | Q20: =IF(A20<>0,VLOOKUP(A20,Liste!$A$10:$K$159,8,FALSE),"") -> 103 | S20: 162 | AB20: 0 | AC20: 0 | AD20: 0 | AE20: 1000
A21: 131 | B21: =IF(A21<>0,VLOOKUP(A21,Liste!$A$10:$D$159,4,FALSE),"") -> SAMUELIAN Charles | C21: 0 | D21: 0 | E21: 0 | F21: 0 | G21: 3 | I21: 0 | J21: 0 | K21: =IF(AND($I21=1,$H21>0),VLOOKUP($H21,$A$14:AD$63,11,FALSE),0) -> 0 | L21: =IF(AND($I21=1,$H21>0),VLOOKUP($H21,$A$14:AE$63,12,FALSE),0) -> 0 | M21: =IF(AND($I21=1,$H21>0),VLOOKUP($H21,$A$14:AF$63,13,FALSE),0) -> 0 | Q21: =IF(A21<>0,VLOOKUP(A21,Liste!$A$10:$K$159,8,FALSE),"") -> 57 | S21: 95 | AB21: 0 | AC21: 0 | AD21: 0 | AE21: 1000
A22: 141 | B22: =IF(A22<>0,VLOOKUP(A22,Liste!$A$10:$D$159,4,FALSE),"") -> SOLVEZ-BOUCHER | C22: 0 | D22: 0 | E22: 0 | F22: 0 | G22: 3 | I22: 0 | J22: 0 | K22: =IF(AND($I22=1,$H22>0),VLOOKUP($H22,$A$14:AD$63,11,FALSE),0) -> 0 | L22: =IF(AND($I22=1,$H22>0),VLOOKUP($H22,$A$14:AE$63,12,FALSE),0) -> 0 | M22: =IF(AND($I22=1,$H22>0),VLOOKUP($H22,$A$14:AF$63,13,FALSE),0) -> 0 | Q22: =IF(A22<>0,VLOOKUP(A22,Liste!$A$10:$K$159,8,FALSE),"") -> 93 | S22: 167 | AB22: 0 | AC22: 0 | AD22: 0 | AE22: 1000
A23: 1 | B23: =IF(A23<>0,VLOOKUP(A23,Liste!$A$10:$D$159,4,FALSE),"") -> ALEXANDRINI André | C23: 0 | D23: 0 | E23: 0 | F23: 0 | I23: 0 | J23: 0 | K23: =IF(AND($I23=1,$H23>0),VLOOKUP($H23,$A$14:AD$63,11,FALSE),0) -> 0 | L23: =IF(AND($I23=1,$H23>0),VLOOKUP($H23,$A$14:AE$63,12,FALSE),0) -> 0 | M23: =IF(AND($I23=1,$H23>0),VLOOKUP($H23,$A$14:AF$63,13,FALSE),0) -> 0 | Q23: =IF(A23<>0,VLOOKUP(A23,Liste!$A$10:$K$159,8,FALSE),"") -> 10 | S23: 126 | AB23: 0 | AC23: 0 | AD23: 0 | AE23: 1000
A24: 2 | B24: =IF(A24<>0,VLOOKUP(A24,Liste!$A$10:$D$159,4,FALSE),"") -> ANNINOS Henri | C24: 0 | D24: 0 | E24: 0 | F24: 0 | I24: 0 | J24: 0 | K24: =IF(AND($I24=1,$H24>0),VLOOKUP($H24,$A$14:AD$63,11,FALSE),0) -> 0 | L24: =IF(AND($I24=1,$H24>0),VLOOKUP($H24,$A$14:AE$63,12,FALSE),0) -> 0 | M24: =IF(AND($I24=1,$H24>0),VLOOKUP($H24,$A$14:AF$63,13,FALSE),0) -> 0 | Q24: =IF(A24<>0,VLOOKUP(A24,Liste!$A$10:$K$159,8,FALSE),"") -> 70 | R24: 158 | AB24: 0 | AC24: 0 | AD24: 0 | AE24: 1000
A25: 3 | B25: =IF(A25<>0,VLOOKUP(A25,Liste!$A$10:$D$159,4,FALSE),"") -> BALDACCHINO Laurence | C25: 0 | D25: 0 | E25: 0 | F25: 0 | I25: 0 | J25: 0 | K25: =IF(AND($I25=1,$H25>0),VLOOKUP($H25,$A$14:AD$63,11,FALSE),0) -> 0 | L25: =IF(AND($I25=1,$H25>0),VLOOKUP($H25,$A$14:AE$63,12,FALSE),0) -> 0 | M25: =IF(AND($I25=1,$H25>0),VLOOKUP($H25,$A$14:AF$63,13,FALSE),0) -> 0 | Q25: =IF(A25<>0,VLOOKUP(A25,Liste!$A$10:$K$159,8,FALSE),"") -> 100 | R25: 225 | AB25: 0 | AC25: 0 | AD25: 0 | AE25: 1000
A26: 4 | B26: =IF(A26<>0,VLOOKUP(A26,Liste!$A$10:$D$159,4,FALSE),"") -> BANCHET Joseph | C26: 0 | D26: 0 | E26: 0 | F26: 0 | I26: 0 | J26: 0 | K26: =IF(AND($I26=1,$H26>0),VLOOKUP($H26,$A$14:AD$63,11,FALSE),0) -> 0 | L26: =IF(AND($I26=1,$H26>0),VLOOKUP($H26,$A$14:AE$63,12,FALSE),0) -> 0 | M26: =IF(AND($I26=1,$H26>0),VLOOKUP($H26,$A$14:AF$63,13,FALSE),0) -> 0 | Q26: =IF(A26<>0,VLOOKUP(A26,Liste!$A$10:$K$159,8,FALSE),"") -> 60 | R26: 135 | AB26: 0 | AC26: 0 | AD26: 0 | AE26: 1000
A27: 5 | B27: =IF(A27<>0,VLOOKUP(A27,Liste!$A$10:$D$159,4,FALSE),"") -> BARDIN Andrée | C27: 0 | D27: 0 | E27: 0 | F27: 0 | I27: 0 | J27: 0 | K27: =IF(AND($I27=1,$H27>0),VLOOKUP($H27,$A$14:AD$63,11,FALSE),0) -> 0 | L27: =IF(AND($I27=1,$H27>0),VLOOKUP($H27,$A$14:AE$63,12,FALSE),0) -> 0 | M27: =IF(AND($I27=1,$H27>0),VLOOKUP($H27,$A$14:AF$63,13,FALSE),0) -> 0 | Q27: =IF(A27<>0,VLOOKUP(A27,Liste!$A$10:$K$159,8,FALSE),"") -> 50 | R27: 113 | AB27: 0 | AC27: 0 | AD27: 0 | AE27: 1000
A28: 6 | B28: =IF(A28<>0,VLOOKUP(A28,Liste!$A$10:$D$159,4,FALSE),"") -> BARDIN-BENARD Louis | C28: 0 | D28: 0 | E28: 0 | F28: 0 | I28: 0 | J28: 0 | K28: =IF(AND($I28=1,$H28>0),VLOOKUP($H28,$A$14:AD$63,11,FALSE),0) -> 0 | L28: =IF(AND($I28=1,$H28>0),VLOOKUP($H28,$A$14:AE$63,12,FALSE),0) -> 0 | M28: =IF(AND($I28=1,$H28>0),VLOOKUP($H28,$A$14:AF$63,13,FALSE),0) -> 0 | Q28: =IF(A28<>0,VLOOKUP(A28,Liste!$A$10:$K$159,8,FALSE),"") -> 45 | R28: 101 | AB28: 0 | AC28: 0 | AD28: 0 | AE28: 1000
A29: 7 | B29: =IF(A29<>0,VLOOKUP(A29,Liste!$A$10:$D$159,4,FALSE),"") -> BARDOUILLE Hermine | C29: 0 | D29: 0 | E29: 0 | F29: 0 | I29: 0 | J29: 0 | K29: =IF(AND($I29=1,$H29>0),VLOOKUP($H29,$A$14:AD$63,11,FALSE),0) -> 0 | L29: =IF(AND($I29=1,$H29>0),VLOOKUP($H29,$A$14:AE$63,12,FALSE),0) -> 0 | M29: =IF(AND($I29=1,$H29>0),VLOOKUP($H29,$A$14:AF$63,13,FALSE),0) -> 0 | Q29: =IF(A29<>0,VLOOKUP(A29,Liste!$A$10:$K$159,8,FALSE),"") -> 70 | R29: 158 | AB29: 0 | AC29: 0 | AD29: 0 | AE29: 1000
A30: 8 | B30: =IF(A30<>0,VLOOKUP(A30,Liste!$A$10:$D$159,4,FALSE),"") -> BARDOUILLE Jean Yves | C30: 0 | D30: 0 | E30: 0 | F30: 0 | I30: 0 | J30: 0 | K30: =IF(AND($I30=1,$H30>0),VLOOKUP($H30,$A$14:AD$63,11,FALSE),0) -> 0 | L30: =IF(AND($I30=1,$H30>0),VLOOKUP($H30,$A$14:AE$63,12,FALSE),0) -> 0 | M30: =IF(AND($I30=1,$H30>0),VLOOKUP($H30,$A$14:AF$63,13,FALSE),0) -> 0 | Q30: =IF(A30<>0,VLOOKUP(A30,Liste!$A$10:$K$159,8,FALSE),"") -> 100 | R30: 225 | AB30: 0 | AC30: 0 | AD30: 0 | AE30: 1000
A31: 9 | B31: =IF(A31<>0,VLOOKUP(A31,Liste!$A$10:$D$159,4,FALSE),"") -> BAUDINO | C31: 0 | D31: 0 | E31: 0 | F31: 0 | I31: 0 | J31: 0 | K31: =IF(AND($I31=1,$H31>0),VLOOKUP($H31,$A$14:AD$63,11,FALSE),0) -> 0 | L31: =IF(AND($I31=1,$H31>0),VLOOKUP($H31,$A$14:AE$63,12,FALSE),0) -> 0 | M31: =IF(AND($I31=1,$H31>0),VLOOKUP($H31,$A$14:AF$63,13,FALSE),0) -> 0 | Q31: =IF(A31<>0,VLOOKUP(A31,Liste!$A$10:$K$159,8,FALSE),"") -> 84 | R31: 190 | AB31: 0 | AC31: 0 | AD31: 0 | AE31: 1000
A32: 10 | B32: =IF(A32<>0,VLOOKUP(A32,Liste!$A$10:$D$159,4,FALSE),"") -> BAUGUIL André | C32: 0 | D32: 0 | E32: 0 | F32: 0 | I32: 0 | J32: 0 | K32: =IF(AND($I32=1,$H32>0),VLOOKUP($H32,$A$14:AD$63,11,FALSE),0) -> 0 | L32: =IF(AND($I32=1,$H32>0),VLOOKUP($H32,$A$14:AE$63,12,FALSE),0) -> 0 | M32: =IF(AND($I32=1,$H32>0),VLOOKUP($H32,$A$14:AF$63,13,FALSE),0) -> 0 | Q32: =IF(A32<>0,VLOOKUP(A32,Liste!$A$10:$K$159,8,FALSE),"") -> 63 | R32: 142 | AB32: 0 | AC32: 0 | AD32: 0 | AE32: 1000
A33: 12 | B33: =IF(A33<>0,VLOOKUP(A33,Liste!$A$10:$D$159,4,FALSE),"") -> BECH Monique | C33: 0 | D33: 0 | E33: 0 | F33: 0 | I33: 0 | J33: 0 | K33: =IF(AND($I33=1,$H33>0),VLOOKUP($H33,$A$14:AD$63,11,FALSE),0) -> 0 | L33: =IF(AND($I33=1,$H33>0),VLOOKUP($H33,$A$14:AE$63,12,FALSE),0) -> 0 | M33: =IF(AND($I33=1,$H33>0),VLOOKUP($H33,$A$14:AF$63,13,FALSE),0) -> 0 | Q33: =IF(A33<>0,VLOOKUP(A33,Liste!$A$10:$K$159,8,FALSE),"") -> 100 | R33: 225 | AB33: 0 | AC33: 0 | AD33: 0 | AE33: 1000
A34: 13 | B34: =IF(A34<>0,VLOOKUP(A34,Liste!$A$10:$D$159,4,FALSE),"") -> BERGET Jean François | C34: 0 | D34: 0 | E34: 0 | F34: 0 | I34: 0 | J34: 0 | K34: =IF(AND($I34=1,$H34>0),VLOOKUP($H34,$A$14:AD$63,11,FALSE),0) -> 0 | L34: =IF(AND($I34=1,$H34>0),VLOOKUP($H34,$A$14:AE$63,12,FALSE),0) -> 0 | M34: =IF(AND($I34=1,$H34>0),VLOOKUP($H34,$A$14:AF$63,13,FALSE),0) -> 0 | Q34: =IF(A34<>0,VLOOKUP(A34,Liste!$A$10:$K$159,8,FALSE),"") -> 70 | R34: 158 | AB34: 0 | AC34: 0 | AD34: 0 | AE34: 1000
A35: 14 | B35: =IF(A35<>0,VLOOKUP(A35,Liste!$A$10:$D$159,4,FALSE),"") -> BERLIER David | C35: 0 | D35: 0 | E35: 0 | F35: 0 | I35: 0 | J35: 0 | K35: =IF(AND($I35=1,$H35>0),VLOOKUP($H35,$A$14:AD$63,11,FALSE),0) -> 0 | L35: =IF(AND($I35=1,$H35>0),VLOOKUP($H35,$A$14:AE$63,12,FALSE),0) -> 0 | M35: =IF(AND($I35=1,$H35>0),VLOOKUP($H35,$A$14:AF$63,13,FALSE),0) -> 0 | Q35: =IF(A35<>0,VLOOKUP(A35,Liste!$A$10:$K$159,8,FALSE),"") -> 70 | R35: 158 | AB35: 0 | AC35: 0 | AD35: 0 | AE35: 1000
A36: 15 | B36: =IF(A36<>0,VLOOKUP(A36,Liste!$A$10:$D$159,4,FALSE),"") -> BESSON Gabriel | C36: 0 | D36: 0 | E36: 0 | F36: 0 | I36: 0 | J36: 0 | K36: =IF(AND($I36=1,$H36>0),VLOOKUP($H36,$A$14:AD$63,11,FALSE),0) -> 0 | L36: =IF(AND($I36=1,$H36>0),VLOOKUP($H36,$A$14:AE$63,12,FALSE),0) -> 0 | M36: =IF(AND($I36=1,$H36>0),VLOOKUP($H36,$A$14:AF$63,13,FALSE),0) -> 0 | Q36: =IF(A36<>0,VLOOKUP(A36,Liste!$A$10:$K$159,8,FALSE),"") -> 91 | R36: 205 | AB36: 0 | AC36: 0 | AD36: 0 | AE36: 1000
A37: 16 | B37: =IF(A37<>0,VLOOKUP(A37,Liste!$A$10:$D$159,4,FALSE),"") -> BILLY Grégoire | C37: 0 | D37: 0 | E37: 0 | F37: 0 | I37: 0 | J37: 0 | K37: =IF(AND($I37=1,$H37>0),VLOOKUP($H37,$A$14:AD$63,11,FALSE),0) -> 0 | L37: =IF(AND($I37=1,$H37>0),VLOOKUP($H37,$A$14:AE$63,12,FALSE),0) -> 0 | M37: =IF(AND($I37=1,$H37>0),VLOOKUP($H37,$A$14:AF$63,13,FALSE),0) -> 0 | Q37: =IF(A37<>0,VLOOKUP(A37,Liste!$A$10:$K$159,8,FALSE),"") -> 80 | R37: 180 | AB37: 0 | AC37: 0 | AD37: 0 | AE37: 1000
A38: 17 | B38: =IF(A38<>0,VLOOKUP(A38,Liste!$A$10:$D$159,4,FALSE),"") -> BLOT Alain | C38: 0 | D38: 0 | E38: 0 | F38: 0 | I38: 0 | J38: 0 | K38: =IF(AND($I38=1,$H38>0),VLOOKUP($H38,$A$14:AD$63,11,FALSE),0) -> 0 | L38: =IF(AND($I38=1,$H38>0),VLOOKUP($H38,$A$14:AE$63,12,FALSE),0) -> 0 | M38: =IF(AND($I38=1,$H38>0),VLOOKUP($H38,$A$14:AF$63,13,FALSE),0) -> 0 | Q38: =IF(A38<>0,VLOOKUP(A38,Liste!$A$10:$K$159,8,FALSE),"") -> 75 | R38: 169 | AB38: 0 | AC38: 0 | AD38: 0 | AE38: 1000
A39: 18 | B39: =IF(A39<>0,VLOOKUP(A39,Liste!$A$10:$D$159,4,FALSE),"") -> BODIGER | C39: 0 | D39: 0 | E39: 0 | F39: 0 | I39: 0 | J39: 0 | K39: =IF(AND($I39=1,$H39>0),VLOOKUP($H39,$A$14:AD$63,11,FALSE),0) -> 0 | L39: =IF(AND($I39=1,$H39>0),VLOOKUP($H39,$A$14:AE$63,12,FALSE),0) -> 0 | M39: =IF(AND($I39=1,$H39>0),VLOOKUP($H39,$A$14:AF$63,13,FALSE),0) -> 0 | Q39: =IF(A39<>0,VLOOKUP(A39,Liste!$A$10:$K$159,8,FALSE),"") -> 55 | R39: 124 | AB39: 0 | AC39: 0 | AD39: 0 | AE39: 1000
A40: 19 | B40: =IF(A40<>0,VLOOKUP(A40,Liste!$A$10:$D$159,4,FALSE),"") -> BODIN - BUGEJA | C40: 0 | D40: 0 | E40: 0 | F40: 0 | I40: 0 | J40: 0 | K40: =IF(AND($I40=1,$H40>0),VLOOKUP($H40,$A$14:AD$63,11,FALSE),0) -> 0 | L40: =IF(AND($I40=1,$H40>0),VLOOKUP($H40,$A$14:AE$63,12,FALSE),0) -> 0 | M40: =IF(AND($I40=1,$H40>0),VLOOKUP($H40,$A$14:AF$63,13,FALSE),0) -> 0 | Q40: =IF(A40<>0,VLOOKUP(A40,Liste!$A$10:$K$159,8,FALSE),"") -> 101 | R40: 228 | AB40: 0 | AC40: 0 | AD40: 0 | AE40: 1000
A41: 20 | B41: =IF(A41<>0,VLOOKUP(A41,Liste!$A$10:$D$159,4,FALSE),"") -> BOISSON Franck | C41: 0 | D41: 0 | E41: 0 | F41: 0 | I41: 0 | J41: 0 | K41: =IF(AND($I41=1,$H41>0),VLOOKUP($H41,$A$14:AD$63,11,FALSE),0) -> 0 | L41: =IF(AND($I41=1,$H41>0),VLOOKUP($H41,$A$14:AE$63,12,FALSE),0) -> 0 | M41: =IF(AND($I41=1,$H41>0),VLOOKUP($H41,$A$14:AF$63,13,FALSE),0) -> 0 | Q41: =IF(A41<>0,VLOOKUP(A41,Liste!$A$10:$K$159,8,FALSE),"") -> 73 | R41: 165 | AB41: 0 | AC41: 0 | AD41: 0 | AE41: 1000
A42: 22 | B42: =IF(A42<>0,VLOOKUP(A42,Liste!$A$10:$D$159,4,FALSE),"") -> BOREL | C42: 0 | D42: 0 | E42: 0 | F42: 0 | I42: 0 | J42: 0 | K42: =IF(AND($I42=1,$H42>0),VLOOKUP($H42,$A$14:AD$63,11,FALSE),0) -> 0 | L42: =IF(AND($I42=1,$H42>0),VLOOKUP($H42,$A$14:AE$63,12,FALSE),0) -> 0 | M42: =IF(AND($I42=1,$H42>0),VLOOKUP($H42,$A$14:AF$63,13,FALSE),0) -> 0 | Q42: =IF(A42<>0,VLOOKUP(A42,Liste!$A$10:$K$159,8,FALSE),"") -> 59 | R42: 133 | AB42: 0 | AC42: 0 | AD42: 0 | AE42: 1000
A43: 23 | B43: =IF(A43<>0,VLOOKUP(A43,Liste!$A$10:$D$159,4,FALSE),"") -> BOUBRED | C43: 0 | D43: 0 | E43: 0 | F43: 0 | I43: 0 | J43: 0 | K43: =IF(AND($I43=1,$H43>0),VLOOKUP($H43,$A$14:AD$63,11,FALSE),0) -> 0 | L43: =IF(AND($I43=1,$H43>0),VLOOKUP($H43,$A$14:AE$63,12,FALSE),0) -> 0 | M43: =IF(AND($I43=1,$H43>0),VLOOKUP($H43,$A$14:AF$63,13,FALSE),0) -> 0 | Q43: =IF(A43<>0,VLOOKUP(A43,Liste!$A$10:$K$159,8,FALSE),"") -> 63 | R43: 142 | AB43: 0 | AC43: 0 | AD43: 0 | AE43: 1000
A44: 24 | B44: =IF(A44<>0,VLOOKUP(A44,Liste!$A$10:$D$159,4,FALSE),"") -> BRASSEUR Gérard | C44: 0 | D44: 0 | E44: 0 | F44: 0 | I44: 0 | J44: 0 | K44: =IF(AND($I44=1,$H44>0),VLOOKUP($H44,$A$14:AD$63,11,FALSE),0) -> 0 | L44: =IF(AND($I44=1,$H44>0),VLOOKUP($H44,$A$14:AE$63,12,FALSE),0) -> 0 | M44: =IF(AND($I44=1,$H44>0),VLOOKUP($H44,$A$14:AF$63,13,FALSE),0) -> 0 | Q44: =IF(A44<>0,VLOOKUP(A44,Liste!$A$10:$K$159,8,FALSE),"") -> 60 | R44: 135 | AB44: 0 | AC44: 0 | AD44: 0 | AE44: 1000
A45: 25 | B45: =IF(A45<>0,VLOOKUP(A45,Liste!$A$10:$D$159,4,FALSE),"") -> BRAUD-COLLET G. | C45: 0 | D45: 0 | E45: 0 | F45: 0 | I45: 0 | J45: 0 | K45: =IF(AND($I45=1,$H45>0),VLOOKUP($H45,$A$14:AD$63,11,FALSE),0) -> 0 | L45: =IF(AND($I45=1,$H45>0),VLOOKUP($H45,$A$14:AE$63,12,FALSE),0) -> 0 | M45: =IF(AND($I45=1,$H45>0),VLOOKUP($H45,$A$14:AF$63,13,FALSE),0) -> 0 | Q45: =IF(A45<>0,VLOOKUP(A45,Liste!$A$10:$K$159,8,FALSE),"") -> 70 | R45: 158 | AB45: 0 | AC45: 0 | AD45: 0 | AE45: 1000
A46: 26 | B46: =IF(A46<>0,VLOOKUP(A46,Liste!$A$10:$D$159,4,FALSE),"") -> BRICARD Mar'c | C46: =F46*(K46=1) -> 0 | D46: =F46*(L46=1) -> 0 | E46: =F46*(M46=1) -> 0 | F46: =IF(I46=1,VLOOKUP(A46,$A$14:$AA$163,16+$B$4,0),0) -> 0 | I46: =1*(IF(G46>=1,VLOOKUP(A46,$A$14:$AA$163,16+$B$4,0)>0)) -> 0 | J46: =IF(F46>0,F46,0) -> 0 | K46: =IF(AND($I46=1,$H46>0),VLOOKUP($H46,$A$14:AD$63,11,FALSE),0) -> 0 | L46: =IF(AND($I46=1,$H46>0),VLOOKUP($H46,$A$14:AE$63,12,FALSE),0) -> 0 | M46: =IF(AND($I46=1,$H46>0),VLOOKUP($H46,$A$14:AF$63,13,FALSE),0) -> 0 | N46: =IF(AND(I46>0,K46+L46+M46=0),"EN ATTENTE",IF(K46+L46+M46>1,"ERREUR","")) ->  | O46: =IF(AND(AC46>3,AD46>$D$10*$O$12),1,"") ->  | P46: =IF(I46=1,K46*(K46=1)+L46*2*(L46=1)+M46*3*(M46=1),"") ->  | Q46: =IF(A46<>0,VLOOKUP(A46,Liste!$A$10:$K$159,8,FALSE),"") -> 50 | R46: 113 | AB46: =(H46+I46)*(J46>0) -> 0 | AC46: =COUNTIF($H$14:$H$163,A46) -> 0 | AD46: =SUMIF($H$14:$H$163,A46,$J$14:$J$163)+(J46*(AC46>0)) -> 0 | AE46: =IF(H46>0,H46+0.5*(I46=1),A46*(I46=1))+(1000*(I46<1)) -> 1000
A47: 27 | B47: =IF(A47<>0,VLOOKUP(A47,Liste!$A$10:$D$159,4,FALSE),"") -> BRIOLLE Marthe | C47: 0 | D47: 0 | E47: 0 | F47: 0 | I47: 0 | J47: 0 | K47: =IF(AND($I47=1,$H47>0),VLOOKUP($H47,$A$14:AD$63,11,FALSE),0) -> 0 | L47: =IF(AND($I47=1,$H47>0),VLOOKUP($H47,$A$14:AE$63,12,FALSE),0) -> 0 | M47: =IF(AND($I47=1,$H47>0),VLOOKUP($H47,$A$14:AF$63,13,FALSE),0) -> 0 | Q47: =IF(A47<>0,VLOOKUP(A47,Liste!$A$10:$K$159,8,FALSE),"") -> 60 | R47: 135 | AB47: 0 | AC47: 0 | AD47: 0 | AE47: 1000
A48: 28 | B48: =IF(A48<>0,VLOOKUP(A48,Liste!$A$10:$D$159,4,FALSE),"") -> BRUCHET Elisabeth | C48: 0 | D48: 0 | E48: 0 | F48: 0 | I48: 0 | J48: 0 | K48: =IF(AND($I48=1,$H48>0),VLOOKUP($H48,$A$14:AD$63,11,FALSE),0) -> 0 | L48: =IF(AND($I48=1,$H48>0),VLOOKUP($H48,$A$14:AE$63,12,FALSE),0) -> 0 | M48: =IF(AND($I48=1,$H48>0),VLOOKUP($H48,$A$14:AF$63,13,FALSE),0) -> 0 | Q48: =IF(A48<>0,VLOOKUP(A48,Liste!$A$10:$K$159,8,FALSE),"") -> 53 | R48: 119 | AB48: 0 | AC48: 0 | AD48: 0 | AE48: 1000
A49: 29 | B49: =IF(A49<>0,VLOOKUP(A49,Liste!$A$10:$D$159,4,FALSE),"") -> BUKVIC | C49: 0 | D49: 0 | E49: 0 | F49: 0 | I49: 0 | J49: 0 | K49: =IF(AND($I49=1,$H49>0),VLOOKUP($H49,$A$14:AD$63,11,FALSE),0) -> 0 | L49: =IF(AND($I49=1,$H49>0),VLOOKUP($H49,$A$14:AE$63,12,FALSE),0) -> 0 | M49: =IF(AND($I49=1,$H49>0),VLOOKUP($H49,$A$14:AF$63,13,FALSE),0) -> 0 | Q49: =IF(A49<>0,VLOOKUP(A49,Liste!$A$10:$K$159,8,FALSE),"") -> 68 | R49: 153 | AB49: 0 | AC49: 0 | AD49: 0 | AE49: 1000
A50: 30 | B50: =IF(A50<>0,VLOOKUP(A50,Liste!$A$10:$D$159,4,FALSE),"") -> BURILLE Richard | C50: 0 | D50: 0 | E50: 0 | F50: 0 | I50: 0 | J50: 0 | K50: =IF(AND($I50=1,$H50>0),VLOOKUP($H50,$A$14:AD$63,11,FALSE),0) -> 0 | L50: =IF(AND($I50=1,$H50>0),VLOOKUP($H50,$A$14:AE$63,12,FALSE),0) -> 0 | M50: =IF(AND($I50=1,$H50>0),VLOOKUP($H50,$A$14:AF$63,13,FALSE),0) -> 0 | Q50: =IF(A50<>0,VLOOKUP(A50,Liste!$A$10:$K$159,8,FALSE),"") -> 60 | R50: 135 | AB50: 0 | AC50: 0 | AD50: 0 | AE50: 1000
A51: 32 | B51: =IF(A51<>0,VLOOKUP(A51,Liste!$A$10:$D$159,4,FALSE),"") -> CARBONE Isabelle | C51: 0 | D51: 0 | E51: 0 | F51: 0 | I51: 0 | J51: 0 | K51: =IF(AND($I51=1,$H51>0),VLOOKUP($H51,$A$14:AD$63,11,FALSE),0) -> 0 | L51: =IF(AND($I51=1,$H51>0),VLOOKUP($H51,$A$14:AE$63,12,FALSE),0) -> 0 | M51: =IF(AND($I51=1,$H51>0),VLOOKUP($H51,$A$14:AF$63,13,FALSE),0) -> 0 | Q51: =IF(A51<>0,VLOOKUP(A51,Liste!$A$10:$K$159,8,FALSE),"") -> 50 | R51: 113 | AB51: 0 | AC51: 0 | AD51: 0 | AE51: 1000
A52: 33 | B52: =IF(A52<>0,VLOOKUP(A52,Liste!$A$10:$D$159,4,FALSE),"") -> CASTAN Max | C52: 0 | D52: 0 | E52: 0 | F52: 0 | I52: 0 | J52: 0 | K52: =IF(AND($I52=1,$H52>0),VLOOKUP($H52,$A$14:AD$63,11,FALSE),0) -> 0 | L52: =IF(AND($I52=1,$H52>0),VLOOKUP($H52,$A$14:AE$63,12,FALSE),0) -> 0 | M52: =IF(AND($I52=1,$H52>0),VLOOKUP($H52,$A$14:AF$63,13,FALSE),0) -> 0 | Q52: =IF(A52<>0,VLOOKUP(A52,Liste!$A$10:$K$159,8,FALSE),"") -> 85 | R52: 192 | AB52: 0 | AC52: 0 | AD52: 0 | AE52: 1000
A53: 34 | B53: =IF(A53<>0,VLOOKUP(A53,Liste!$A$10:$D$159,4,FALSE),"") -> CAVALIERI Alain | C53: 0 | D53: 0 | E53: 0 | F53: 0 | I53: 0 | J53: 0 | K53: =IF(AND($I53=1,$H53>0),VLOOKUP($H53,$A$14:AD$63,11,FALSE),0) -> 0 | L53: =IF(AND($I53=1,$H53>0),VLOOKUP($H53,$A$14:AE$63,12,FALSE),0) -> 0 | M53: =IF(AND($I53=1,$H53>0),VLOOKUP($H53,$A$14:AF$63,13,FALSE),0) -> 0 | Q53: =IF(A53<>0,VLOOKUP(A53,Liste!$A$10:$K$159,8,FALSE),"") -> 80 | R53: 180 | AB53: 0 | AC53: 0 | AD53: 0 | AE53: 1000
A54: 35 | B54: =IF(A54<>0,VLOOKUP(A54,Liste!$A$10:$D$159,4,FALSE),"") -> CAVALIERI Christine | C54: 0 | D54: 0 | E54: 0 | F54: 0 | I54: 0 | J54: 0 | K54: =IF(AND($I54=1,$H54>0),VLOOKUP($H54,$A$14:AD$63,11,FALSE),0) -> 0 | L54: =IF(AND($I54=1,$H54>0),VLOOKUP($H54,$A$14:AE$63,12,FALSE),0) -> 0 | M54: =IF(AND($I54=1,$H54>0),VLOOKUP($H54,$A$14:AF$63,13,FALSE),0) -> 0 | Q54: =IF(A54<>0,VLOOKUP(A54,Liste!$A$10:$K$159,8,FALSE),"") -> 60 | R54: 135 | AB54: 0 | AC54: 0 | AD54: 0 | AE54: 1000
A55: 36 | B55: =IF(A55<>0,VLOOKUP(A55,Liste!$A$10:$D$159,4,FALSE),"") -> CIABATTINI Dante | C55: 0 | D55: 0 | E55: 0 | F55: 0 | I55: 0 | J55: 0 | K55: =IF(AND($I55=1,$H55>0),VLOOKUP($H55,$A$14:AD$63,11,FALSE),0) -> 0 | L55: =IF(AND($I55=1,$H55>0),VLOOKUP($H55,$A$14:AE$63,12,FALSE),0) -> 0 | M55: =IF(AND($I55=1,$H55>0),VLOOKUP($H55,$A$14:AF$63,13,FALSE),0) -> 0 | Q55: =IF(A55<>0,VLOOKUP(A55,Liste!$A$10:$K$159,8,FALSE),"") -> 70 | R55: 158 | AB55: 0 | AC55: 0 | AD55: 0 | AE55: 1000
A56: 37 | B56: =IF(A56<>0,VLOOKUP(A56,Liste!$A$10:$D$159,4,FALSE),"") -> CIULLI - DREANO Jeanine | C56: 0 | D56: 0 | E56: 0 | F56: 0 | I56: 0 | J56: 0 | K56: =IF(AND($I56=1,$H56>0),VLOOKUP($H56,$A$14:AD$63,11,FALSE),0) -> 0 | L56: =IF(AND($I56=1,$H56>0),VLOOKUP($H56,$A$14:AE$63,12,FALSE),0) -> 0 | M56: =IF(AND($I56=1,$H56>0),VLOOKUP($H56,$A$14:AF$63,13,FALSE),0) -> 0 | Q56: =IF(A56<>0,VLOOKUP(A56,Liste!$A$10:$K$159,8,FALSE),"") -> 50 | R56: 113 | AB56: 0 | AC56: 0 | AD56: 0 | AE56: 1000
A57: 38 | B57: =IF(A57<>0,VLOOKUP(A57,Liste!$A$10:$D$159,4,FALSE),"") -> COLOM | C57: 0 | D57: 0 | E57: 0 | F57: 0 | I57: 0 | J57: 0 | K57: =IF(AND($I57=1,$H57>0),VLOOKUP($H57,$A$14:AD$63,11,FALSE),0) -> 0 | L57: =IF(AND($I57=1,$H57>0),VLOOKUP($H57,$A$14:AE$63,12,FALSE),0) -> 0 | M57: =IF(AND($I57=1,$H57>0),VLOOKUP($H57,$A$14:AF$63,13,FALSE),0) -> 0 | Q57: =IF(A57<>0,VLOOKUP(A57,Liste!$A$10:$K$159,8,FALSE),"") -> 45 | R57: 101 | AB57: 0 | AC57: 0 | AD57: 0 | AE57: 1000
A58: 39 | B58: =IF(A58<>0,VLOOKUP(A58,Liste!$A$10:$D$159,4,FALSE),"") -> COLOMBANI Georges | C58: 0 | D58: 0 | E58: 0 | F58: 0 | I58: 0 | J58: 0 | K58: =IF(AND($I58=1,$H58>0),VLOOKUP($H58,$A$14:AD$63,11,FALSE),0) -> 0 | L58: =IF(AND($I58=1,$H58>0),VLOOKUP($H58,$A$14:AE$63,12,FALSE),0) -> 0 | M58: =IF(AND($I58=1,$H58>0),VLOOKUP($H58,$A$14:AF$63,13,FALSE),0) -> 0 | Q58: =IF(A58<>0,VLOOKUP(A58,Liste!$A$10:$K$159,8,FALSE),"") -> 50 | R58: 113 | AB58: 0 | AC58: 0 | AD58: 0 | AE58: 1000
A59: 40 | B59: =IF(A59<>0,VLOOKUP(A59,Liste!$A$10:$D$159,4,FALSE),"") -> COLONNA Michel | C59: 0 | D59: 0 | E59: 0 | F59: 0 | I59: 0 | J59: 0 | K59: =IF(AND($I59=1,$H59>0),VLOOKUP($H59,$A$14:AD$63,11,FALSE),0) -> 0 | L59: =IF(AND($I59=1,$H59>0),VLOOKUP($H59,$A$14:AE$63,12,FALSE),0) -> 0 | M59: =IF(AND($I59=1,$H59>0),VLOOKUP($H59,$A$14:AF$63,13,FALSE),0) -> 0 | Q59: =IF(A59<>0,VLOOKUP(A59,Liste!$A$10:$K$159,8,FALSE),"") -> 60 | R59: 135 | AB59: 0 | AC59: 0 | AD59: 0 | AE59: 1000
A60: 42 | B60: =IF(A60<>0,VLOOKUP(A60,Liste!$A$10:$D$159,4,FALSE),"") -> DANAUD Jean René | C60: 0 | D60: 0 | E60: 0 | F60: 0 | I60: 0 | J60: 0 | K60: =IF(AND($I60=1,$H60>0),VLOOKUP($H60,$A$14:AD$63,11,FALSE),0) -> 0 | L60: =IF(AND($I60=1,$H60>0),VLOOKUP($H60,$A$14:AE$63,12,FALSE),0) -> 0 | M60: =IF(AND($I60=1,$H60>0),VLOOKUP($H60,$A$14:AF$63,13,FALSE),0) -> 0 | Q60: =IF(A60<>0,VLOOKUP(A60,Liste!$A$10:$K$159,8,FALSE),"") -> 50 | R60: 113 | AB60: 0 | AC60: 0 | AD60: 0 | AE60: 1000
A61: 43 | B61: =IF(A61<>0,VLOOKUP(A61,Liste!$A$10:$D$159,4,FALSE),"") -> DAUGA Cédric | C61: 0 | D61: 0 | E61: 0 | F61: 0 | I61: 0 | J61: 0 | K61: =IF(AND($I61=1,$H61>0),VLOOKUP($H61,$A$14:AD$63,11,FALSE),0) -> 0 | L61: =IF(AND($I61=1,$H61>0),VLOOKUP($H61,$A$14:AE$63,12,FALSE),0) -> 0 | M61: =IF(AND($I61=1,$H61>0),VLOOKUP($H61,$A$14:AF$63,13,FALSE),0) -> 0 | Q61: =IF(A61<>0,VLOOKUP(A61,Liste!$A$10:$K$159,8,FALSE),"") -> 50 | R61: 113 | AB61: 0 | AC61: 0 | AD61: 0 | AE61: 1000
A62: 44 | B62: =IF(A62<>0,VLOOKUP(A62,Liste!$A$10:$D$159,4,FALSE),"") -> DE LAPRADE Yvette | C62: 0 | D62: 0 | E62: 0 | F62: 0 | I62: 0 | J62: 0 | K62: =IF(AND($I62=1,$H62>0),VLOOKUP($H62,$A$14:AD$63,11,FALSE),0) -> 0 | L62: =IF(AND($I62=1,$H62>0),VLOOKUP($H62,$A$14:AE$63,12,FALSE),0) -> 0 | M62: =IF(AND($I62=1,$H62>0),VLOOKUP($H62,$A$14:AF$63,13,FALSE),0) -> 0 | Q62: =IF(A62<>0,VLOOKUP(A62,Liste!$A$10:$K$159,8,FALSE),"") -> 55 | R62: 124 | AB62: 0 | AC62: 0 | AD62: 0 | AE62: 1000
A63: 45 | B63: =IF(A63<>0,VLOOKUP(A63,Liste!$A$10:$D$159,4,FALSE),"") -> DENEUX Pierre | C63: 0 | D63: 0 | E63: 0 | F63: 0 | I63: 0 | J63: 0 | K63: =IF(AND($I63=1,$H63>0),VLOOKUP($H63,$A$14:AD$63,11,FALSE),0) -> 0 | L63: =IF(AND($I63=1,$H63>0),VLOOKUP($H63,$A$14:AE$63,12,FALSE),0) -> 0 | M63: =IF(AND($I63=1,$H63>0),VLOOKUP($H63,$A$14:AF$63,13,FALSE),0) -> 0 | Q63: =IF(A63<>0,VLOOKUP(A63,Liste!$A$10:$K$159,8,FALSE),"") -> 60 | R63: 135 | AB63: 0 | AC63: 0 | AD63: 0 | AE63: 1000
A64: 46 | B64: =IF(A64<>0,VLOOKUP(A64,Liste!$A$10:$D$159,4,FALSE),"") -> DENIS Jacques | C64: 0 | D64: 0 | E64: 0 | F64: 0 | I64: 0 | J64: 0 | K64: =IF(AND($I64=1,$H64>0),VLOOKUP($H64,$A$14:AD$63,11,FALSE),0) -> 0 | L64: =IF(AND($I64=1,$H64>0),VLOOKUP($H64,$A$14:AE$63,12,FALSE),0) -> 0 | M64: =IF(AND($I64=1,$H64>0),VLOOKUP($H64,$A$14:AF$63,13,FALSE),0) -> 0 | Q64: =IF(A64<>0,VLOOKUP(A64,Liste!$A$10:$K$159,8,FALSE),"") -> 55 | R64: 124 | AB64: 0 | AC64: 0 | AD64: 0 | AE64: 1000
A65: 47 | B65: =IF(A65<>0,VLOOKUP(A65,Liste!$A$10:$D$159,4,FALSE),"") -> DI JORIO Brigitte | C65: 0 | D65: 0 | E65: 0 | F65: 0 | I65: 0 | J65: 0 | K65: =IF(AND($I65=1,$H65>0),VLOOKUP($H65,$A$14:AD$63,11,FALSE),0) -> 0 | L65: =IF(AND($I65=1,$H65>0),VLOOKUP($H65,$A$14:AE$63,12,FALSE),0) -> 0 | M65: =IF(AND($I65=1,$H65>0),VLOOKUP($H65,$A$14:AF$63,13,FALSE),0) -> 0 | Q65: =IF(A65<>0,VLOOKUP(A65,Liste!$A$10:$K$159,8,FALSE),"") -> 60 | R65: 135 | AB65: 0 | AC65: 0 | AD65: 0 | AE65: 1000
A66: 48 | B66: =IF(A66<>0,VLOOKUP(A66,Liste!$A$10:$D$159,4,FALSE),"") -> DI JORIO Marcel | C66: 0 | D66: 0 | E66: 0 | F66: 0 | I66: 0 | J66: 0 | K66: =IF(AND($I66=1,$H66>0),VLOOKUP($H66,$A$14:AD$63,11,FALSE),0) -> 0 | L66: =IF(AND($I66=1,$H66>0),VLOOKUP($H66,$A$14:AE$63,12,FALSE),0) -> 0 | M66: =IF(AND($I66=1,$H66>0),VLOOKUP($H66,$A$14:AF$63,13,FALSE),0) -> 0 | Q66: =IF(A66<>0,VLOOKUP(A66,Liste!$A$10:$K$159,8,FALSE),"") -> 61 | R66: 137 | AB66: 0 | AC66: 0 | AD66: 0 | AE66: 1000
A67: 49 | B67: =IF(A67<>0,VLOOKUP(A67,Liste!$A$10:$D$159,4,FALSE),"") -> DI MEGLIO Laurent | C67: 0 | D67: 0 | E67: 0 | F67: 0 | I67: 0 | J67: 0 | K67: =IF(AND($I67=1,$H67>0),VLOOKUP($H67,$A$14:AD$63,11,FALSE),0) -> 0 | L67: =IF(AND($I67=1,$H67>0),VLOOKUP($H67,$A$14:AE$63,12,FALSE),0) -> 0 | M67: =IF(AND($I67=1,$H67>0),VLOOKUP($H67,$A$14:AF$63,13,FALSE),0) -> 0 | Q67: =IF(A67<>0,VLOOKUP(A67,Liste!$A$10:$K$159,8,FALSE),"") -> 45 | R67: 101 | AB67: 0 | AC67: 0 | AD67: 0 | AE67: 1000
A68: 50 | B68: =IF(A68<>0,VLOOKUP(A68,Liste!$A$10:$D$159,4,FALSE),"") -> DRAGOTTA Michel | C68: 0 | D68: 0 | E68: 0 | F68: 0 | I68: 0 | J68: 0 | K68: =IF(AND($I68=1,$H68>0),VLOOKUP($H68,$A$14:AD$63,11,FALSE),0) -> 0 | L68: =IF(AND($I68=1,$H68>0),VLOOKUP($H68,$A$14:AE$63,12,FALSE),0) -> 0 | M68: =IF(AND($I68=1,$H68>0),VLOOKUP($H68,$A$14:AF$63,13,FALSE),0) -> 0 | Q68: =IF(A68<>0,VLOOKUP(A68,Liste!$A$10:$K$159,8,FALSE),"") -> 50 | R68: 113 | AB68: 0 | AC68: 0 | AD68: 0 | AE68: 1000
A69: 51 | B69: =IF(A69<>0,VLOOKUP(A69,Liste!$A$10:$D$159,4,FALSE),"") -> DUBOURG Pierre | C69: 0 | D69: 0 | E69: 0 | F69: 0 | I69: 0 | J69: 0 | K69: =IF(AND($I69=1,$H69>0),VLOOKUP($H69,$A$14:AD$63,11,FALSE),0) -> 0 | L69: =IF(AND($I69=1,$H69>0),VLOOKUP($H69,$A$14:AE$63,12,FALSE),0) -> 0 | M69: =IF(AND($I69=1,$H69>0),VLOOKUP($H69,$A$14:AF$63,13,FALSE),0) -> 0 | Q69: =IF(A69<>0,VLOOKUP(A69,Liste!$A$10:$K$159,8,FALSE),"") -> 60 | R69: 135 | AB69: 0 | AC69: 0 | AD69: 0 | AE69: 1000
A70: 52 | B70: =IF(A70<>0,VLOOKUP(A70,Liste!$A$10:$D$159,4,FALSE),"") -> FIGUERAS Annie | C70: 0 | D70: 0 | E70: 0 | F70: 0 | I70: 0 | J70: 0 | K70: =IF(AND($I70=1,$H70>0),VLOOKUP($H70,$A$14:AD$63,11,FALSE),0) -> 0 | L70: =IF(AND($I70=1,$H70>0),VLOOKUP($H70,$A$14:AE$63,12,FALSE),0) -> 0 | M70: =IF(AND($I70=1,$H70>0),VLOOKUP($H70,$A$14:AF$63,13,FALSE),0) -> 0 | Q70: =IF(A70<>0,VLOOKUP(A70,Liste!$A$10:$K$159,8,FALSE),"") -> 70 | R70: 158 | AB70: 0 | AC70: 0 | AD70: 0 | AE70: 1000
A71: 53 | B71: =IF(A71<>0,VLOOKUP(A71,Liste!$A$10:$D$159,4,FALSE),"") -> FONTANA Georges | C71: 0 | D71: 0 | E71: 0 | F71: 0 | I71: 0 | J71: 0 | K71: =IF(AND($I71=1,$H71>0),VLOOKUP($H71,$A$14:AD$63,11,FALSE),0) -> 0 | L71: =IF(AND($I71=1,$H71>0),VLOOKUP($H71,$A$14:AE$63,12,FALSE),0) -> 0 | M71: =IF(AND($I71=1,$H71>0),VLOOKUP($H71,$A$14:AF$63,13,FALSE),0) -> 0 | Q71: =IF(A71<>0,VLOOKUP(A71,Liste!$A$10:$K$159,8,FALSE),"") -> 60 | R71: 135 | AB71: 0 | AC71: 0 | AD71: 0 | AE71: 1000
A72: 54 | B72: =IF(A72<>0,VLOOKUP(A72,Liste!$A$10:$D$159,4,FALSE),"") -> FORGET Valéry | C72: 0 | D72: 0 | E72: 0 | F72: 0 | I72: 0 | J72: 0 | K72: =IF(AND($I72=1,$H72>0),VLOOKUP($H72,$A$14:AD$63,11,FALSE),0) -> 0 | L72: =IF(AND($I72=1,$H72>0),VLOOKUP($H72,$A$14:AE$63,12,FALSE),0) -> 0 | M72: =IF(AND($I72=1,$H72>0),VLOOKUP($H72,$A$14:AF$63,13,FALSE),0) -> 0 | Q72: =IF(A72<>0,VLOOKUP(A72,Liste!$A$10:$K$159,8,FALSE),"") -> 65 | R72: 146 | AB72: 0 | AC72: 0 | AD72: 0 | AE72: 1000
A73: 55 | B73: =IF(A73<>0,VLOOKUP(A73,Liste!$A$10:$D$159,4,FALSE),"") -> FOURNIER Nicole | C73: 0 | D73: 0 | E73: 0 | F73: 0 | I73: 0 | J73: 0 | K73: =IF(AND($I73=1,$H73>0),VLOOKUP($H73,$A$14:AD$63,11,FALSE),0) -> 0 | L73: =IF(AND($I73=1,$H73>0),VLOOKUP($H73,$A$14:AE$63,12,FALSE),0) -> 0 | M73: =IF(AND($I73=1,$H73>0),VLOOKUP($H73,$A$14:AF$63,13,FALSE),0) -> 0 | Q73: =IF(A73<>0,VLOOKUP(A73,Liste!$A$10:$K$159,8,FALSE),"") -> 51 | R73: 115 | AB73: 0 | AC73: 0 | AD73: 0 | AE73: 1000
A74: 56 | B74: =IF(A74<>0,VLOOKUP(A74,Liste!$A$10:$D$159,4,FALSE),"") -> GARCIA Christophe | C74: 0 | D74: 0 | E74: 0 | F74: 0 | I74: 0 | J74: 0 | K74: =IF(AND($I74=1,$H74>0),VLOOKUP($H74,$A$14:AD$63,11,FALSE),0) -> 0 | L74: =IF(AND($I74=1,$H74>0),VLOOKUP($H74,$A$14:AE$63,12,FALSE),0) -> 0 | M74: =IF(AND($I74=1,$H74>0),VLOOKUP($H74,$A$14:AF$63,13,FALSE),0) -> 0 | Q74: =IF(A74<>0,VLOOKUP(A74,Liste!$A$10:$K$159,8,FALSE),"") -> 50 | R74: 113 | AB74: 0 | AC74: 0 | AD74: 0 | AE74: 1000
A75: 57 | B75: =IF(A75<>0,VLOOKUP(A75,Liste!$A$10:$D$159,4,FALSE),"") -> GARRELON Jacques | C75: 0 | D75: 0 | E75: 0 | F75: 0 | I75: 0 | J75: 0 | K75: =IF(AND($I75=1,$H75>0),VLOOKUP($H75,$A$14:AD$63,11,FALSE),0) -> 0 | L75: =IF(AND($I75=1,$H75>0),VLOOKUP($H75,$A$14:AE$63,12,FALSE),0) -> 0 | M75: =IF(AND($I75=1,$H75>0),VLOOKUP($H75,$A$14:AF$63,13,FALSE),0) -> 0 | Q75: =IF(A75<>0,VLOOKUP(A75,Liste!$A$10:$K$159,8,FALSE),"") -> 70 | R75: 158 | AB75: 0 | AC75: 0 | AD75: 0 | AE75: 1000
A76: 58 | B76: =IF(A76<>0,VLOOKUP(A76,Liste!$A$10:$D$159,4,FALSE),"") -> GAUNET Mireille | C76: 0 | D76: 0 | E76: 0 | F76: 0 | I76: 0 | J76: 0 | K76: =IF(AND($I76=1,$H76>0),VLOOKUP($H76,$A$14:AD$63,11,FALSE),0) -> 0 | L76: =IF(AND($I76=1,$H76>0),VLOOKUP($H76,$A$14:AE$63,12,FALSE),0) -> 0 | M76: =IF(AND($I76=1,$H76>0),VLOOKUP($H76,$A$14:AF$63,13,FALSE),0) -> 0 | Q76: =IF(A76<>0,VLOOKUP(A76,Liste!$A$10:$K$159,8,FALSE),"") -> 60 | R76: 135 | AB76: 0 | AC76: 0 | AD76: 0 | AE76: 1000
A77: 59 | B77: =IF(A77<>0,VLOOKUP(A77,Liste!$A$10:$D$159,4,FALSE),"") -> GERTOSIO | C77: 0 | D77: 0 | E77: 0 | F77: 0 | I77: 0 | J77: 0 | K77: =IF(AND($I77=1,$H77>0),VLOOKUP($H77,$A$14:AD$63,11,FALSE),0) -> 0 | L77: =IF(AND($I77=1,$H77>0),VLOOKUP($H77,$A$14:AE$63,12,FALSE),0) -> 0 | M77: =IF(AND($I77=1,$H77>0),VLOOKUP($H77,$A$14:AF$63,13,FALSE),0) -> 0 | Q77: =IF(A77<>0,VLOOKUP(A77,Liste!$A$10:$K$159,8,FALSE),"") -> 62 | R77: 140 | AB77: 0 | AC77: 0 | AD77: 0 | AE77: 1000
A78: 60 | B78: =IF(A78<>0,VLOOKUP(A78,Liste!$A$10:$D$159,4,FALSE),"") -> GERVASI Jacqueline | C78: =F78*(K78=1) -> 0 | D78: =F78*(L78=1) -> 0 | E78: =F78*(M78=1) -> 0 | F78: =IF(I78=1,VLOOKUP(A78,$A$14:$AA$163,16+$B$4,0),0) -> 0 | I78: =1*(IF(G78>=1,VLOOKUP(A78,$A$14:$AA$163,16+$B$4,0)>0)) -> 0 | J78: =IF(F78>0,F78,0) -> 0 | K78: =IF(AND($I78=1,$H78>0),VLOOKUP($H78,$A$14:AD$63,11,FALSE),0) -> 0 | L78: =IF(AND($I78=1,$H78>0),VLOOKUP($H78,$A$14:AE$63,12,FALSE),0) -> 0 | M78: =IF(AND($I78=1,$H78>0),VLOOKUP($H78,$A$14:AF$63,13,FALSE),0) -> 0 | N78: =IF(AND(I78>0,K78+L78+M78=0),"EN ATTENTE",IF(K78+L78+M78>1,"ERREUR","")) ->  | O78: =IF(AND(AC78>3,AD78>$D$10*$O$12),1,"") ->  | P78: =IF(I78=1,K78*(K78=1)+L78*2*(L78=1)+M78*3*(M78=1),"") ->  | Q78: =IF(A78<>0,VLOOKUP(A78,Liste!$A$10:$K$159,8,FALSE),"") -> 83 | R78: 187 | AB78: =(H78+I78)*(J78>0) -> 0 | AC78: =COUNTIF($H$14:$H$163,A78) -> 0 | AD78: =SUMIF($H$14:$H$163,A78,$J$14:$J$163)+(J78*(AC78>0)) -> 0 | AE78: =IF(H78>0,H78+0.5*(I78=1),A78*(I78=1))+(1000*(I78<1)) -> 1000
A79: 61 | B79: =IF(A79<>0,VLOOKUP(A79,Liste!$A$10:$D$159,4,FALSE),"") -> GINESTOUS Maryvonne | C79: 0 | D79: 0 | E79: 0 | F79: 0 | I79: 0 | J79: 0 | K79: =IF(AND($I79=1,$H79>0),VLOOKUP($H79,$A$14:AD$63,11,FALSE),0) -> 0 | L79: =IF(AND($I79=1,$H79>0),VLOOKUP($H79,$A$14:AE$63,12,FALSE),0) -> 0 | M79: =IF(AND($I79=1,$H79>0),VLOOKUP($H79,$A$14:AF$63,13,FALSE),0) -> 0 | Q79: =IF(A79<>0,VLOOKUP(A79,Liste!$A$10:$K$159,8,FALSE),"") -> 58 | R79: 131 | AB79: 0 | AC79: 0 | AD79: 0 | AE79: 1000
A80: 62 | B80: =IF(A80<>0,VLOOKUP(A80,Liste!$A$10:$D$159,4,FALSE),"") -> GIRARDOT Michèle | C80: 0 | D80: 0 | E80: 0 | F80: 0 | I80: 0 | J80: 0 | K80: =IF(AND($I80=1,$H80>0),VLOOKUP($H80,$A$14:AD$63,11,FALSE),0) -> 0 | L80: =IF(AND($I80=1,$H80>0),VLOOKUP($H80,$A$14:AE$63,12,FALSE),0) -> 0 | M80: =IF(AND($I80=1,$H80>0),VLOOKUP($H80,$A$14:AF$63,13,FALSE),0) -> 0 | Q80: =IF(A80<>0,VLOOKUP(A80,Liste!$A$10:$K$159,8,FALSE),"") -> 55 | R80: 124 | AB80: 0 | AC80: 0 | AD80: 0 | AE80: 1000
A81: 63 | B81: =IF(A81<>0,VLOOKUP(A81,Liste!$A$10:$D$159,4,FALSE),"") -> GIRAUDEAU Marcel | C81: 0 | D81: 0 | E81: 0 | F81: 0 | I81: 0 | J81: 0 | K81: =IF(AND($I81=1,$H81>0),VLOOKUP($H81,$A$14:AD$63,11,FALSE),0) -> 0 | L81: =IF(AND($I81=1,$H81>0),VLOOKUP($H81,$A$14:AE$63,12,FALSE),0) -> 0 | M81: =IF(AND($I81=1,$H81>0),VLOOKUP($H81,$A$14:AF$63,13,FALSE),0) -> 0 | Q81: =IF(A81<>0,VLOOKUP(A81,Liste!$A$10:$K$159,8,FALSE),"") -> 63 | R81: 142 | AB81: 0 | AC81: 0 | AD81: 0 | AE81: 1000
A82: 64 | B82: =IF(A82<>0,VLOOKUP(A82,Liste!$A$10:$D$159,4,FALSE),"") -> GLADIEU Marc | C82: 0 | D82: 0 | E82: 0 | F82: 0 | I82: 0 | J82: 0 | K82: =IF(AND($I82=1,$H82>0),VLOOKUP($H82,$A$14:AD$63,11,FALSE),0) -> 0 | L82: =IF(AND($I82=1,$H82>0),VLOOKUP($H82,$A$14:AE$63,12,FALSE),0) -> 0 | M82: =IF(AND($I82=1,$H82>0),VLOOKUP($H82,$A$14:AF$63,13,FALSE),0) -> 0 | Q82: =IF(A82<>0,VLOOKUP(A82,Liste!$A$10:$K$159,8,FALSE),"") -> 65 | R82: 146 | AB82: 0 | AC82: 0 | AD82: 0 | AE82: 1000
A83: 65 | B83: =IF(A83<>0,VLOOKUP(A83,Liste!$A$10:$D$159,4,FALSE),"") -> GOURRIER - JAFFELIN | C83: 0 | D83: 0 | E83: 0 | F83: 0 | I83: 0 | J83: 0 | K83: =IF(AND($I83=1,$H83>0),VLOOKUP($H83,$A$14:AD$63,11,FALSE),0) -> 0 | L83: =IF(AND($I83=1,$H83>0),VLOOKUP($H83,$A$14:AE$63,12,FALSE),0) -> 0 | M83: =IF(AND($I83=1,$H83>0),VLOOKUP($H83,$A$14:AF$63,13,FALSE),0) -> 0 | Q83: =IF(A83<>0,VLOOKUP(A83,Liste!$A$10:$K$159,8,FALSE),"") -> 70 | R83: 158 | AB83: 0 | AC83: 0 | AD83: 0 | AE83: 1000
A84: 66 | B84: =IF(A84<>0,VLOOKUP(A84,Liste!$A$10:$D$159,4,FALSE),"") -> GRAO Guy | C84: 0 | D84: 0 | E84: 0 | F84: 0 | I84: 0 | J84: 0 | K84: =IF(AND($I84=1,$H84>0),VLOOKUP($H84,$A$14:AD$63,11,FALSE),0) -> 0 | L84: =IF(AND($I84=1,$H84>0),VLOOKUP($H84,$A$14:AE$63,12,FALSE),0) -> 0 | M84: =IF(AND($I84=1,$H84>0),VLOOKUP($H84,$A$14:AF$63,13,FALSE),0) -> 0 | Q84: =IF(A84<>0,VLOOKUP(A84,Liste!$A$10:$K$159,8,FALSE),"") -> 72 | R84: 162 | AB84: 0 | AC84: 0 | AD84: 0 | AE84: 1000
A85: 67 | B85: =IF(A85<>0,VLOOKUP(A85,Liste!$A$10:$D$159,4,FALSE),"") -> GROLLEAU Chantal | C85: 0 | D85: 0 | E85: 0 | F85: 0 | I85: 0 | J85: 0 | K85: =IF(AND($I85=1,$H85>0),VLOOKUP($H85,$A$14:AD$63,11,FALSE),0) -> 0 | L85: =IF(AND($I85=1,$H85>0),VLOOKUP($H85,$A$14:AE$63,12,FALSE),0) -> 0 | M85: =IF(AND($I85=1,$H85>0),VLOOKUP($H85,$A$14:AF$63,13,FALSE),0) -> 0 | Q85: =IF(A85<>0,VLOOKUP(A85,Liste!$A$10:$K$159,8,FALSE),"") -> 66 | R85: 149 | AB85: 0 | AC85: 0 | AD85: 0 | AE85: 1000
A86: 68 | B86: =IF(A86<>0,VLOOKUP(A86,Liste!$A$10:$D$159,4,FALSE),"") -> HALADO | C86: 0 | D86: 0 | E86: 0 | F86: 0 | I86: 0 | J86: 0 | K86: =IF(AND($I86=1,$H86>0),VLOOKUP($H86,$A$14:AD$63,11,FALSE),0) -> 0 | L86: =IF(AND($I86=1,$H86>0),VLOOKUP($H86,$A$14:AE$63,12,FALSE),0) -> 0 | M86: =IF(AND($I86=1,$H86>0),VLOOKUP($H86,$A$14:AF$63,13,FALSE),0) -> 0 | Q86: =IF(A86<>0,VLOOKUP(A86,Liste!$A$10:$K$159,8,FALSE),"") -> 55 | R86: 124 | AB86: 0 | AC86: 0 | AD86: 0 | AE86: 1000
A87: 69 | B87: =IF(A87<>0,VLOOKUP(A87,Liste!$A$10:$D$159,4,FALSE),"") -> HONNORAT Georges | C87: 0 | D87: 0 | E87: 0 | F87: 0 | I87: 0 | J87: 0 | K87: =IF(AND($I87=1,$H87>0),VLOOKUP($H87,$A$14:AD$63,11,FALSE),0) -> 0 | L87: =IF(AND($I87=1,$H87>0),VLOOKUP($H87,$A$14:AE$63,12,FALSE),0) -> 0 | M87: =IF(AND($I87=1,$H87>0),VLOOKUP($H87,$A$14:AF$63,13,FALSE),0) -> 0 | Q87: =IF(A87<>0,VLOOKUP(A87,Liste!$A$10:$K$159,8,FALSE),"") -> 56 | R87: 126 | AB87: 0 | AC87: 0 | AD87: 0 | AE87: 1000
A88: 70 | B88: =IF(A88<>0,VLOOKUP(A88,Liste!$A$10:$D$159,4,FALSE),"") -> IMGRAM Simone | C88: 0 | D88: 0 | E88: 0 | F88: 0 | I88: 0 | J88: 0 | K88: =IF(AND($I88=1,$H88>0),VLOOKUP($H88,$A$14:AD$63,11,FALSE),0) -> 0 | L88: =IF(AND($I88=1,$H88>0),VLOOKUP($H88,$A$14:AE$63,12,FALSE),0) -> 0 | M88: =IF(AND($I88=1,$H88>0),VLOOKUP($H88,$A$14:AF$63,13,FALSE),0) -> 0 | Q88: =IF(A88<>0,VLOOKUP(A88,Liste!$A$10:$K$159,8,FALSE),"") -> 60 | R88: 135 | AB88: 0 | AC88: 0 | AD88: 0 | AE88: 1000
A89: 71 | B89: =IF(A89<>0,VLOOKUP(A89,Liste!$A$10:$D$159,4,FALSE),"") -> IRACANE Rosalie | C89: 0 | D89: 0 | E89: 0 | F89: 0 | I89: 0 | J89: 0 | K89: =IF(AND($I89=1,$H89>0),VLOOKUP($H89,$A$14:AD$63,11,FALSE),0) -> 0 | L89: =IF(AND($I89=1,$H89>0),VLOOKUP($H89,$A$14:AE$63,12,FALSE),0) -> 0 | M89: =IF(AND($I89=1,$H89>0),VLOOKUP($H89,$A$14:AF$63,13,FALSE),0) -> 0 | Q89: =IF(A89<>0,VLOOKUP(A89,Liste!$A$10:$K$159,8,FALSE),"") -> 70 | S89: 125 | AB89: 0 | AC89: 0 | AD89: 0 | AE89: 1000
A90: 72 | B90: =IF(A90<>0,VLOOKUP(A90,Liste!$A$10:$D$159,4,FALSE),"") -> JACQUET Sylvie | C90: 0 | D90: 0 | E90: 0 | F90: 0 | I90: 0 | J90: 0 | K90: =IF(AND($I90=1,$H90>0),VLOOKUP($H90,$A$14:AD$63,11,FALSE),0) -> 0 | L90: =IF(AND($I90=1,$H90>0),VLOOKUP($H90,$A$14:AE$63,12,FALSE),0) -> 0 | M90: =IF(AND($I90=1,$H90>0),VLOOKUP($H90,$A$14:AF$63,13,FALSE),0) -> 0 | Q90: =IF(A90<>0,VLOOKUP(A90,Liste!$A$10:$K$159,8,FALSE),"") -> 71 | S90: 128 | AB90: 0 | AC90: 0 | AD90: 0 | AE90: 1000
A91: 73 | B91: =IF(A91<>0,VLOOKUP(A91,Liste!$A$10:$D$159,4,FALSE),"") -> JAYET Christian | C91: 0 | D91: 0 | E91: 0 | F91: 0 | I91: 0 | J91: 0 | K91: =IF(AND($I91=1,$H91>0),VLOOKUP($H91,$A$14:AD$63,11,FALSE),0) -> 0 | L91: =IF(AND($I91=1,$H91>0),VLOOKUP($H91,$A$14:AE$63,12,FALSE),0) -> 0 | M91: =IF(AND($I91=1,$H91>0),VLOOKUP($H91,$A$14:AF$63,13,FALSE),0) -> 0 | Q91: =IF(A91<>0,VLOOKUP(A91,Liste!$A$10:$K$159,8,FALSE),"") -> 62 | S91: 111 | AB91: 0 | AC91: 0 | AD91: 0 | AE91: 1000
A92: 74 | B92: =IF(A92<>0,VLOOKUP(A92,Liste!$A$10:$D$159,4,FALSE),"") -> JOB | C92: 0 | D92: 0 | E92: 0 | F92: 0 | I92: 0 | J92: 0 | K92: =IF(AND($I92=1,$H92>0),VLOOKUP($H92,$A$14:AD$63,11,FALSE),0) -> 0 | L92: =IF(AND($I92=1,$H92>0),VLOOKUP($H92,$A$14:AE$63,12,FALSE),0) -> 0 | M92: =IF(AND($I92=1,$H92>0),VLOOKUP($H92,$A$14:AF$63,13,FALSE),0) -> 0 | Q92: =IF(A92<>0,VLOOKUP(A92,Liste!$A$10:$K$159,8,FALSE),"") -> 60 | S92: 108 | AB92: 0 | AC92: 0 | AD92: 0 | AE92: 1000
A93: 75 | B93: =IF(A93<>0,VLOOKUP(A93,Liste!$A$10:$D$159,4,FALSE),"") -> JOFFE Françoise | C93: 0 | D93: 0 | E93: 0 | F93: 0 | I93: 0 | J93: 0 | K93: =IF(AND($I93=1,$H93>0),VLOOKUP($H93,$A$14:AD$63,11,FALSE),0) -> 0 | L93: =IF(AND($I93=1,$H93>0),VLOOKUP($H93,$A$14:AE$63,12,FALSE),0) -> 0 | M93: =IF(AND($I93=1,$H93>0),VLOOKUP($H93,$A$14:AF$63,13,FALSE),0) -> 0 | Q93: =IF(A93<>0,VLOOKUP(A93,Liste!$A$10:$K$159,8,FALSE),"") -> 80 | S93: 144 | AB93: 0 | AC93: 0 | AD93: 0 | AE93: 1000
A94: 76 | B94: =IF(A94<>0,VLOOKUP(A94,Liste!$A$10:$D$159,4,FALSE),"") -> KARNAC Marcel | C94: 0 | D94: 0 | E94: 0 | F94: 0 | I94: 0 | J94: 0 | K94: =IF(AND($I94=1,$H94>0),VLOOKUP($H94,$A$14:AD$63,11,FALSE),0) -> 0 | L94: =IF(AND($I94=1,$H94>0),VLOOKUP($H94,$A$14:AE$63,12,FALSE),0) -> 0 | M94: =IF(AND($I94=1,$H94>0),VLOOKUP($H94,$A$14:AF$63,13,FALSE),0) -> 0 | Q94: =IF(A94<>0,VLOOKUP(A94,Liste!$A$10:$K$159,8,FALSE),"") -> 60 | S94: 108 | AB94: 0 | AC94: 0 | AD94: 0 | AE94: 1000
A95: 77 | B95: =IF(A95<>0,VLOOKUP(A95,Liste!$A$10:$D$159,4,FALSE),"") -> LAGRANGE Pierrette | C95: 0 | D95: 0 | E95: 0 | F95: 0 | I95: 0 | J95: 0 | K95: =IF(AND($I95=1,$H95>0),VLOOKUP($H95,$A$14:AD$63,11,FALSE),0) -> 0 | L95: =IF(AND($I95=1,$H95>0),VLOOKUP($H95,$A$14:AE$63,12,FALSE),0) -> 0 | M95: =IF(AND($I95=1,$H95>0),VLOOKUP($H95,$A$14:AF$63,13,FALSE),0) -> 0 | Q95: =IF(A95<>0,VLOOKUP(A95,Liste!$A$10:$K$159,8,FALSE),"") -> 70 | S95: 126 | AB95: 0 | AC95: 0 | AD95: 0 | AE95: 1000
A96: 78 | B96: =IF(A96<>0,VLOOKUP(A96,Liste!$A$10:$D$159,4,FALSE),"") -> LANVIN Christophe | C96: 0 | D96: 0 | E96: 0 | F96: 0 | I96: 0 | J96: 0 | K96: =IF(AND($I96=1,$H96>0),VLOOKUP($H96,$A$14:AD$63,11,FALSE),0) -> 0 | L96: =IF(AND($I96=1,$H96>0),VLOOKUP($H96,$A$14:AE$63,12,FALSE),0) -> 0 | M96: =IF(AND($I96=1,$H96>0),VLOOKUP($H96,$A$14:AF$63,13,FALSE),0) -> 0 | Q96: =IF(A96<>0,VLOOKUP(A96,Liste!$A$10:$K$159,8,FALSE),"") -> 50 | S96: 90 | AB96: 0 | AC96: 0 | AD96: 0 | AE96: 1000
A97: 79 | B97: =IF(A97<>0,VLOOKUP(A97,Liste!$A$10:$D$159,4,FALSE),"") -> LARDENOIS Pierrette | C97: 0 | D97: 0 | E97: 0 | F97: 0 | I97: 0 | J97: 0 | K97: =IF(AND($I97=1,$H97>0),VLOOKUP($H97,$A$14:AD$63,11,FALSE),0) -> 0 | L97: =IF(AND($I97=1,$H97>0),VLOOKUP($H97,$A$14:AE$63,12,FALSE),0) -> 0 | M97: =IF(AND($I97=1,$H97>0),VLOOKUP($H97,$A$14:AF$63,13,FALSE),0) -> 0 | Q97: =IF(A97<>0,VLOOKUP(A97,Liste!$A$10:$K$159,8,FALSE),"") -> 40 | S97: 72 | AB97: 0 | AC97: 0 | AD97: 0 | AE97: 1000
A98: 80 | B98: =IF(A98<>0,VLOOKUP(A98,Liste!$A$10:$D$159,4,FALSE),"") -> LATTION Evelyne | C98: 0 | D98: 0 | E98: 0 | F98: 0 | I98: 0 | J98: 0 | K98: =IF(AND($I98=1,$H98>0),VLOOKUP($H98,$A$14:AD$63,11,FALSE),0) -> 0 | L98: =IF(AND($I98=1,$H98>0),VLOOKUP($H98,$A$14:AE$63,12,FALSE),0) -> 0 | M98: =IF(AND($I98=1,$H98>0),VLOOKUP($H98,$A$14:AF$63,13,FALSE),0) -> 0 | Q98: =IF(A98<>0,VLOOKUP(A98,Liste!$A$10:$K$159,8,FALSE),"") -> 47 | S98: 84 | AB98: 0 | AC98: 0 | AD98: 0 | AE98: 1000
A99: 81 | B99: =IF(A99<>0,VLOOKUP(A99,Liste!$A$10:$D$159,4,FALSE),"") -> LATTION Evelyne | C99: 0 | D99: 0 | E99: 0 | F99: 0 | I99: 0 | J99: 0 | K99: =IF(AND($I99=1,$H99>0),VLOOKUP($H99,$A$14:AD$63,11,FALSE),0) -> 0 | L99: =IF(AND($I99=1,$H99>0),VLOOKUP($H99,$A$14:AE$63,12,FALSE),0) -> 0 | M99: =IF(AND($I99=1,$H99>0),VLOOKUP($H99,$A$14:AF$63,13,FALSE),0) -> 0 | Q99: =IF(A99<>0,VLOOKUP(A99,Liste!$A$10:$K$159,8,FALSE),"") -> 55 | S99: 99 | AB99: 0 | AC99: 0 | AD99: 0 | AE99: 1000
A100: 82 | B100: =IF(A100<>0,VLOOKUP(A100,Liste!$A$10:$D$159,4,FALSE),"") -> LE SCAVARREC Aline | C100: 0 | D100: 0 | E100: 0 | F100: 0 | I100: 0 | J100: 0 | K100: =IF(AND($I100=1,$H100>0),VLOOKUP($H100,$A$14:AD$63,11,FALSE),0) -> 0 | L100: =IF(AND($I100=1,$H100>0),VLOOKUP($H100,$A$14:AE$63,12,FALSE),0) -> 0 | M100: =IF(AND($I100=1,$H100>0),VLOOKUP($H100,$A$14:AF$63,13,FALSE),0) -> 0 | Q100: =IF(A100<>0,VLOOKUP(A100,Liste!$A$10:$K$159,8,FALSE),"") -> 56 | S100: 101 | AB100: 0 | AC100: 0 | AD100: 0 | AE100: 1000
A101: 83 | B101: =IF(A101<>0,VLOOKUP(A101,Liste!$A$10:$D$159,4,FALSE),"") -> LEBON - BOUIC | C101: 0 | D101: 0 | E101: 0 | F101: 0 | I101: 0 | J101: 0 | K101: =IF(AND($I101=1,$H101>0),VLOOKUP($H101,$A$14:AD$63,11,FALSE),0) -> 0 | L101: =IF(AND($I101=1,$H101>0),VLOOKUP($H101,$A$14:AE$63,12,FALSE),0) -> 0 | M101: =IF(AND($I101=1,$H101>0),VLOOKUP($H101,$A$14:AF$63,13,FALSE),0) -> 0 | Q101: =IF(A101<>0,VLOOKUP(A101,Liste!$A$10:$K$159,8,FALSE),"") -> 72 | S101: 129 | AB101: 0 | AC101: 0 | AD101: 0 | AE101: 1000
A102: 84 | B102: =IF(A102<>0,VLOOKUP(A102,Liste!$A$10:$D$159,4,FALSE),"") -> LEBON Elisabeth | C102: 0 | D102: 0 | E102: 0 | F102: 0 | I102: 0 | J102: 0 | K102: =IF(AND($I102=1,$H102>0),VLOOKUP($H102,$A$14:AD$63,11,FALSE),0) -> 0 | L102: =IF(AND($I102=1,$H102>0),VLOOKUP($H102,$A$14:AE$63,12,FALSE),0) -> 0 | M102: =IF(AND($I102=1,$H102>0),VLOOKUP($H102,$A$14:AF$63,13,FALSE),0) -> 0 | Q102: =IF(A102<>0,VLOOKUP(A102,Liste!$A$10:$K$159,8,FALSE),"") -> 90 | S102: 162 | AB102: 0 | AC102: 0 | AD102: 0 | AE102: 1000
A103: 85 | B103: =IF(A103<>0,VLOOKUP(A103,Liste!$A$10:$D$159,4,FALSE),"") -> LEBORGNE Claudine | C103: 0 | D103: 0 | E103: 0 | F103: 0 | I103: 0 | J103: 0 | K103: =IF(AND($I103=1,$H103>0),VLOOKUP($H103,$A$14:AD$63,11,FALSE),0) -> 0 | L103: =IF(AND($I103=1,$H103>0),VLOOKUP($H103,$A$14:AE$63,12,FALSE),0) -> 0 | M103: =IF(AND($I103=1,$H103>0),VLOOKUP($H103,$A$14:AF$63,13,FALSE),0) -> 0 | Q103: =IF(A103<>0,VLOOKUP(A103,Liste!$A$10:$K$159,8,FALSE),"") -> 87 | S103: 156 | AB103: 0 | AC103: 0 | AD103: 0 | AE103: 1000
A104: 86 | B104: =IF(A104<>0,VLOOKUP(A104,Liste!$A$10:$D$159,4,FALSE),"") -> LEFOLLET-LANGLET | C104: 0 | D104: 0 | E104: 0 | F104: 0 | I104: 0 | J104: 0 | K104: =IF(AND($I104=1,$H104>0),VLOOKUP($H104,$A$14:AD$63,11,FALSE),0) -> 0 | L104: =IF(AND($I104=1,$H104>0),VLOOKUP($H104,$A$14:AE$63,12,FALSE),0) -> 0 | M104: =IF(AND($I104=1,$H104>0),VLOOKUP($H104,$A$14:AF$63,13,FALSE),0) -> 0 | Q104: =IF(A104<>0,VLOOKUP(A104,Liste!$A$10:$K$159,8,FALSE),"") -> 70 | S104: 126 | AB104: 0 | AC104: 0 | AD104: 0 | AE104: 1000
A105: 87 | B105: =IF(A105<>0,VLOOKUP(A105,Liste!$A$10:$D$159,4,FALSE),"") -> LEGRAS Simone | C105: 0 | D105: 0 | E105: 0 | F105: 0 | I105: 0 | J105: 0 | K105: =IF(AND($I105=1,$H105>0),VLOOKUP($H105,$A$14:AD$63,11,FALSE),0) -> 0 | L105: =IF(AND($I105=1,$H105>0),VLOOKUP($H105,$A$14:AE$63,12,FALSE),0) -> 0 | M105: =IF(AND($I105=1,$H105>0),VLOOKUP($H105,$A$14:AF$63,13,FALSE),0) -> 0 | Q105: =IF(A105<>0,VLOOKUP(A105,Liste!$A$10:$K$159,8,FALSE),"") -> 100 | S105: 180 | AB105: 0 | AC105: 0 | AD105: 0 | AE105: 1000
A106: 88 | B106: =IF(A106<>0,VLOOKUP(A106,Liste!$A$10:$D$159,4,FALSE),"") -> LESTOURNELLE | C106: 0 | D106: 0 | E106: 0 | F106: 0 | I106: 0 | J106: 0 | K106: =IF(AND($I106=1,$H106>0),VLOOKUP($H106,$A$14:AD$63,11,FALSE),0) -> 0 | L106: =IF(AND($I106=1,$H106>0),VLOOKUP($H106,$A$14:AE$63,12,FALSE),0) -> 0 | M106: =IF(AND($I106=1,$H106>0),VLOOKUP($H106,$A$14:AF$63,13,FALSE),0) -> 0 | Q106: =IF(A106<>0,VLOOKUP(A106,Liste!$A$10:$K$159,8,FALSE),"") -> 86 | S106: 155 | AB106: 0 | AC106: 0 | AD106: 0 | AE106: 1000
A107: 89 | B107: =IF(A107<>0,VLOOKUP(A107,Liste!$A$10:$D$159,4,FALSE),"") -> LIGOT Jacques | C107: 0 | D107: 0 | E107: 0 | F107: 0 | I107: 0 | J107: 0 | K107: =IF(AND($I107=1,$H107>0),VLOOKUP($H107,$A$14:AD$63,11,FALSE),0) -> 0 | L107: =IF(AND($I107=1,$H107>0),VLOOKUP($H107,$A$14:AE$63,12,FALSE),0) -> 0 | M107: =IF(AND($I107=1,$H107>0),VLOOKUP($H107,$A$14:AF$63,13,FALSE),0) -> 0 | Q107: =IF(A107<>0,VLOOKUP(A107,Liste!$A$10:$K$159,8,FALSE),"") -> 50 | S107: 90 | AB107: 0 | AC107: 0 | AD107: 0 | AE107: 1000
A108: 90 | B108: =IF(A108<>0,VLOOKUP(A108,Liste!$A$10:$D$159,4,FALSE),"") -> LOPEZ Pierre | C108: 0 | D108: 0 | E108: 0 | F108: 0 | I108: 0 | J108: 0 | K108: =IF(AND($I108=1,$H108>0),VLOOKUP($H108,$A$14:AD$63,11,FALSE),0) -> 0 | L108: =IF(AND($I108=1,$H108>0),VLOOKUP($H108,$A$14:AE$63,12,FALSE),0) -> 0 | M108: =IF(AND($I108=1,$H108>0),VLOOKUP($H108,$A$14:AF$63,13,FALSE),0) -> 0 | Q108: =IF(A108<>0,VLOOKUP(A108,Liste!$A$10:$K$159,8,FALSE),"") -> 40 | S108: 72 | AB108: 0 | AC108: 0 | AD108: 0 | AE108: 1000
A109: 91 | B109: =IF(A109<>0,VLOOKUP(A109,Liste!$A$10:$D$159,4,FALSE),"") -> LOUNES Jeannette | C109: 0 | D109: 0 | E109: 0 | F109: 0 | I109: 0 | J109: 0 | K109: =IF(AND($I109=1,$H109>0),VLOOKUP($H109,$A$14:AD$63,11,FALSE),0) -> 0 | L109: =IF(AND($I109=1,$H109>0),VLOOKUP($H109,$A$14:AE$63,12,FALSE),0) -> 0 | M109: =IF(AND($I109=1,$H109>0),VLOOKUP($H109,$A$14:AF$63,13,FALSE),0) -> 0 | Q109: =IF(A109<>0,VLOOKUP(A109,Liste!$A$10:$K$159,8,FALSE),"") -> 96 | S109: 173 | AB109: 0 | AC109: 0 | AD109: 0 | AE109: 1000
A110: 92 | B110: =IF(A110<>0,VLOOKUP(A110,Liste!$A$10:$D$159,4,FALSE),"") -> MAACK - BRUNETEAU Dominique | C110: =F110*(K110=1) -> 0 | D110: =F110*(L110=1) -> 0 | E110: =F110*(M110=1) -> 0 | F110: =IF(I110=1,VLOOKUP(A110,$A$14:$AA$163,16+$B$4,0),0) -> 0 | I110: =1*(IF(G110>=1,VLOOKUP(A110,$A$14:$AA$163,16+$B$4,0)>0)) -> 0 | J110: =IF(F110>0,F110,0) -> 0 | K110: =IF(AND($I110=1,$H110>0),VLOOKUP($H110,$A$14:AD$63,11,FALSE),0) -> 0 | L110: =IF(AND($I110=1,$H110>0),VLOOKUP($H110,$A$14:AE$63,12,FALSE),0) -> 0 | M110: =IF(AND($I110=1,$H110>0),VLOOKUP($H110,$A$14:AF$63,13,FALSE),0) -> 0 | N110: =IF(AND(I110>0,K110+L110+M110=0),"EN ATTENTE",IF(K110+L110+M110>1,"ERREUR","")) ->  | O110: =IF(AND(AC110>3,AD110>$D$10*$O$12),1,"") ->  | P110: =IF(I110=1,K110*(K110=1)+L110*2*(L110=1)+M110*3*(M110=1),"") ->  | Q110: =IF(A110<>0,VLOOKUP(A110,Liste!$A$10:$K$159,8,FALSE),"") -> 50 | S110: 90 | AB110: =(H110+I110)*(J110>0) -> 0 | AC110: =COUNTIF($H$14:$H$163,A110) -> 0 | AD110: =SUMIF($H$14:$H$163,A110,$J$14:$J$163)+(J110*(AC110>0)) -> 0 | AE110: =IF(H110>0,H110+0.5*(I110=1),A110*(I110=1))+(1000*(I110<1)) -> 1000
A111: 93 | B111: =IF(A111<>0,VLOOKUP(A111,Liste!$A$10:$D$159,4,FALSE),"") -> MAACK - BUREU Denise | C111: 0 | D111: 0 | E111: 0 | F111: 0 | I111: 0 | J111: 0 | K111: =IF(AND($I111=1,$H111>0),VLOOKUP($H111,$A$14:AD$63,11,FALSE),0) -> 0 | L111: =IF(AND($I111=1,$H111>0),VLOOKUP($H111,$A$14:AE$63,12,FALSE),0) -> 0 | M111: =IF(AND($I111=1,$H111>0),VLOOKUP($H111,$A$14:AF$63,13,FALSE),0) -> 0 | Q111: =IF(A111<>0,VLOOKUP(A111,Liste!$A$10:$K$159,8,FALSE),"") -> 80 | S111: 144 | AB111: 0 | AC111: 0 | AD111: 0 | AE111: 1000
A112: 94 | B112: =IF(A112<>0,VLOOKUP(A112,Liste!$A$10:$D$159,4,FALSE),"") -> MACQUET | C112: 0 | D112: 0 | E112: 0 | F112: 0 | I112: 0 | J112: 0 | K112: =IF(AND($I112=1,$H112>0),VLOOKUP($H112,$A$14:AD$63,11,FALSE),0) -> 0 | L112: =IF(AND($I112=1,$H112>0),VLOOKUP($H112,$A$14:AE$63,12,FALSE),0) -> 0 | M112: =IF(AND($I112=1,$H112>0),VLOOKUP($H112,$A$14:AF$63,13,FALSE),0) -> 0 | Q112: =IF(A112<>0,VLOOKUP(A112,Liste!$A$10:$K$159,8,FALSE),"") -> 62 | S112: 111 | AB112: 0 | AC112: 0 | AD112: 0 | AE112: 1000
A113: 95 | B113: =IF(A113<>0,VLOOKUP(A113,Liste!$A$10:$D$159,4,FALSE),"") -> MALARTIC Odile | C113: 0 | D113: 0 | E113: 0 | F113: 0 | I113: 0 | J113: 0 | K113: =IF(AND($I113=1,$H113>0),VLOOKUP($H113,$A$14:AD$63,11,FALSE),0) -> 0 | L113: =IF(AND($I113=1,$H113>0),VLOOKUP($H113,$A$14:AE$63,12,FALSE),0) -> 0 | M113: =IF(AND($I113=1,$H113>0),VLOOKUP($H113,$A$14:AF$63,13,FALSE),0) -> 0 | Q113: =IF(A113<>0,VLOOKUP(A113,Liste!$A$10:$K$159,8,FALSE),"") -> 63 | S113: 113 | AB113: 0 | AC113: 0 | AD113: 0 | AE113: 1000
A114: 96 | B114: =IF(A114<>0,VLOOKUP(A114,Liste!$A$10:$D$159,4,FALSE),"") -> MANDARD Jacqueline | C114: 0 | D114: 0 | E114: 0 | F114: 0 | I114: 0 | J114: 0 | K114: =IF(AND($I114=1,$H114>0),VLOOKUP($H114,$A$14:AD$63,11,FALSE),0) -> 0 | L114: =IF(AND($I114=1,$H114>0),VLOOKUP($H114,$A$14:AE$63,12,FALSE),0) -> 0 | M114: =IF(AND($I114=1,$H114>0),VLOOKUP($H114,$A$14:AF$63,13,FALSE),0) -> 0 | Q114: =IF(A114<>0,VLOOKUP(A114,Liste!$A$10:$K$159,8,FALSE),"") -> 70 | S114: 126 | AB114: 0 | AC114: 0 | AD114: 0 | AE114: 1000
A115: 97 | B115: =IF(A115<>0,VLOOKUP(A115,Liste!$A$10:$D$159,4,FALSE),"") -> Marinacce - Chatain Jeanne | C115: 0 | D115: 0 | E115: 0 | F115: 0 | I115: 0 | J115: 0 | K115: =IF(AND($I115=1,$H115>0),VLOOKUP($H115,$A$14:AD$63,11,FALSE),0) -> 0 | L115: =IF(AND($I115=1,$H115>0),VLOOKUP($H115,$A$14:AE$63,12,FALSE),0) -> 0 | M115: =IF(AND($I115=1,$H115>0),VLOOKUP($H115,$A$14:AF$63,13,FALSE),0) -> 0 | Q115: =IF(A115<>0,VLOOKUP(A115,Liste!$A$10:$K$159,8,FALSE),"") -> 76 | S115: 137 | AB115: 0 | AC115: 0 | AD115: 0 | AE115: 1000
A116: 98 | B116: =IF(A116<>0,VLOOKUP(A116,Liste!$A$10:$D$159,4,FALSE),"") -> MATTEI Andrée | C116: 0 | D116: 0 | E116: 0 | F116: 0 | I116: 0 | J116: 0 | K116: =IF(AND($I116=1,$H116>0),VLOOKUP($H116,$A$14:AD$63,11,FALSE),0) -> 0 | L116: =IF(AND($I116=1,$H116>0),VLOOKUP($H116,$A$14:AE$63,12,FALSE),0) -> 0 | M116: =IF(AND($I116=1,$H116>0),VLOOKUP($H116,$A$14:AF$63,13,FALSE),0) -> 0 | Q116: =IF(A116<>0,VLOOKUP(A116,Liste!$A$10:$K$159,8,FALSE),"") -> 103 | S116: 185 | AB116: 0 | AC116: 0 | AD116: 0 | AE116: 1000
A117: 99 | B117: =IF(A117<>0,VLOOKUP(A117,Liste!$A$10:$D$159,4,FALSE),"") -> MAUDUIT Trobert | C117: 0 | D117: 0 | E117: 0 | F117: 0 | I117: 0 | J117: 0 | K117: =IF(AND($I117=1,$H117>0),VLOOKUP($H117,$A$14:AD$63,11,FALSE),0) -> 0 | L117: =IF(AND($I117=1,$H117>0),VLOOKUP($H117,$A$14:AE$63,12,FALSE),0) -> 0 | M117: =IF(AND($I117=1,$H117>0),VLOOKUP($H117,$A$14:AF$63,13,FALSE),0) -> 0 | Q117: =IF(A117<>0,VLOOKUP(A117,Liste!$A$10:$K$159,8,FALSE),"") -> 50 | S117: 90 | AB117: 0 | AC117: 0 | AD117: 0 | AE117: 1000
A118: 100 | B118: =IF(A118<>0,VLOOKUP(A118,Liste!$A$10:$D$159,4,FALSE),"") -> MEAILLE Simone | C118: 0 | D118: 0 | E118: 0 | F118: 0 | I118: 0 | J118: 0 | K118: =IF(AND($I118=1,$H118>0),VLOOKUP($H118,$A$14:AD$63,11,FALSE),0) -> 0 | L118: =IF(AND($I118=1,$H118>0),VLOOKUP($H118,$A$14:AE$63,12,FALSE),0) -> 0 | M118: =IF(AND($I118=1,$H118>0),VLOOKUP($H118,$A$14:AF$63,13,FALSE),0) -> 0 | Q118: =IF(A118<>0,VLOOKUP(A118,Liste!$A$10:$K$159,8,FALSE),"") -> 63 | S118: 169 | AB118: 0 | AC118: 0 | AD118: 0 | AE118: 1000
A119: 102 | B119: =IF(A119<>0,VLOOKUP(A119,Liste!$A$10:$D$159,4,FALSE),"") -> MEYNARD Armande | C119: 0 | D119: 0 | E119: 0 | F119: 0 | I119: 0 | J119: 0 | K119: =IF(AND($I119=1,$H119>0),VLOOKUP($H119,$A$14:AD$63,11,FALSE),0) -> 0 | L119: =IF(AND($I119=1,$H119>0),VLOOKUP($H119,$A$14:AE$63,12,FALSE),0) -> 0 | M119: =IF(AND($I119=1,$H119>0),VLOOKUP($H119,$A$14:AF$63,13,FALSE),0) -> 0 | Q119: =IF(A119<>0,VLOOKUP(A119,Liste!$A$10:$K$159,8,FALSE),"") -> 62 | S119: 180 | AB119: 0 | AC119: 0 | AD119: 0 | AE119: 1000
A120: 103 | B120: =IF(A120<>0,VLOOKUP(A120,Liste!$A$10:$D$159,4,FALSE),"") -> MIALHE André | C120: 0 | D120: 0 | E120: 0 | F120: 0 | I120: 0 | J120: 0 | K120: =IF(AND($I120=1,$H120>0),VLOOKUP($H120,$A$14:AD$63,11,FALSE),0) -> 0 | L120: =IF(AND($I120=1,$H120>0),VLOOKUP($H120,$A$14:AE$63,12,FALSE),0) -> 0 | M120: =IF(AND($I120=1,$H120>0),VLOOKUP($H120,$A$14:AF$63,13,FALSE),0) -> 0 | Q120: =IF(A120<>0,VLOOKUP(A120,Liste!$A$10:$K$159,8,FALSE),"") -> 97 | S120: 111 | AB120: 0 | AC120: 0 | AD120: 0 | AE120: 1000
A121: 104 | B121: =IF(A121<>0,VLOOKUP(A121,Liste!$A$10:$D$159,4,FALSE),"") -> MICHEL Gérard | C121: 0 | D121: 0 | E121: 0 | F121: 0 | I121: 0 | J121: 0 | K121: =IF(AND($I121=1,$H121>0),VLOOKUP($H121,$A$14:AD$63,11,FALSE),0) -> 0 | L121: =IF(AND($I121=1,$H121>0),VLOOKUP($H121,$A$14:AE$63,12,FALSE),0) -> 0 | M121: =IF(AND($I121=1,$H121>0),VLOOKUP($H121,$A$14:AF$63,13,FALSE),0) -> 0 | Q121: =IF(A121<>0,VLOOKUP(A121,Liste!$A$10:$K$159,8,FALSE),"") -> 100 | S121: 174 | AB121: 0 | AC121: 0 | AD121: 0 | AE121: 1000
A122: 105 | B122: =IF(A122<>0,VLOOKUP(A122,Liste!$A$10:$D$159,4,FALSE),"") -> MORERA Suzanne | C122: 0 | D122: 0 | E122: 0 | F122: 0 | I122: 0 | J122: 0 | K122: =IF(AND($I122=1,$H122>0),VLOOKUP($H122,$A$14:AD$63,11,FALSE),0) -> 0 | L122: =IF(AND($I122=1,$H122>0),VLOOKUP($H122,$A$14:AE$63,12,FALSE),0) -> 0 | M122: =IF(AND($I122=1,$H122>0),VLOOKUP($H122,$A$14:AF$63,13,FALSE),0) -> 0 | Q122: =IF(A122<>0,VLOOKUP(A122,Liste!$A$10:$K$159,8,FALSE),"") -> 100 | S122: 180 | AB122: 0 | AC122: 0 | AD122: 0 | AE122: 1000
A123: 106 | B123: =IF(A123<>0,VLOOKUP(A123,Liste!$A$10:$D$159,4,FALSE),"") -> MOTTIN Marcel | C123: 0 | D123: 0 | E123: 0 | F123: 0 | I123: 0 | J123: 0 | K123: =IF(AND($I123=1,$H123>0),VLOOKUP($H123,$A$14:AD$63,11,FALSE),0) -> 0 | L123: =IF(AND($I123=1,$H123>0),VLOOKUP($H123,$A$14:AE$63,12,FALSE),0) -> 0 | M123: =IF(AND($I123=1,$H123>0),VLOOKUP($H123,$A$14:AF$63,13,FALSE),0) -> 0 | Q123: =IF(A123<>0,VLOOKUP(A123,Liste!$A$10:$K$159,8,FALSE),"") -> 50 | S123: 180 | AB123: 0 | AC123: 0 | AD123: 0 | AE123: 1000
A124: 107 | B124: =IF(A124<>0,VLOOKUP(A124,Liste!$A$10:$D$159,4,FALSE),"") -> MOURRE Jeanine | C124: 0 | D124: 0 | E124: 0 | F124: 0 | I124: 0 | J124: 0 | K124: =IF(AND($I124=1,$H124>0),VLOOKUP($H124,$A$14:AD$63,11,FALSE),0) -> 0 | L124: =IF(AND($I124=1,$H124>0),VLOOKUP($H124,$A$14:AE$63,12,FALSE),0) -> 0 | M124: =IF(AND($I124=1,$H124>0),VLOOKUP($H124,$A$14:AF$63,13,FALSE),0) -> 0 | Q124: =IF(A124<>0,VLOOKUP(A124,Liste!$A$10:$K$159,8,FALSE),"") -> 49 | S124: 90 | AB124: 0 | AC124: 0 | AD124: 0 | AE124: 1000
A125: 108 | B125: =IF(A125<>0,VLOOKUP(A125,Liste!$A$10:$D$159,4,FALSE),"") -> MULARDEC Paul | C125: 0 | D125: 0 | E125: 0 | F125: 0 | I125: 0 | J125: 0 | K125: =IF(AND($I125=1,$H125>0),VLOOKUP($H125,$A$14:AD$63,11,FALSE),0) -> 0 | L125: =IF(AND($I125=1,$H125>0),VLOOKUP($H125,$A$14:AE$63,12,FALSE),0) -> 0 | M125: =IF(AND($I125=1,$H125>0),VLOOKUP($H125,$A$14:AF$63,13,FALSE),0) -> 0 | Q125: =IF(A125<>0,VLOOKUP(A125,Liste!$A$10:$K$159,8,FALSE),"") -> 64 | S125: 88 | AB125: 0 | AC125: 0 | AD125: 0 | AE125: 1000
A126: 109 | B126: =IF(A126<>0,VLOOKUP(A126,Liste!$A$10:$D$159,4,FALSE),"") -> NICOLAS Jean | C126: 0 | D126: 0 | E126: 0 | F126: 0 | I126: 0 | J126: 0 | K126: =IF(AND($I126=1,$H126>0),VLOOKUP($H126,$A$14:AD$63,11,FALSE),0) -> 0 | L126: =IF(AND($I126=1,$H126>0),VLOOKUP($H126,$A$14:AE$63,12,FALSE),0) -> 0 | M126: =IF(AND($I126=1,$H126>0),VLOOKUP($H126,$A$14:AF$63,13,FALSE),0) -> 0 | Q126: =IF(A126<>0,VLOOKUP(A126,Liste!$A$10:$K$159,8,FALSE),"") -> 93 | S126: 115 | AB126: 0 | AC126: 0 | AD126: 0 | AE126: 1000
A127: 110 | B127: =IF(A127<>0,VLOOKUP(A127,Liste!$A$10:$D$159,4,FALSE),"") -> NICOLE Solange | C127: 0 | D127: 0 | E127: 0 | F127: 0 | I127: 0 | J127: 0 | K127: =IF(AND($I127=1,$H127>0),VLOOKUP($H127,$A$14:AD$63,11,FALSE),0) -> 0 | L127: =IF(AND($I127=1,$H127>0),VLOOKUP($H127,$A$14:AE$63,12,FALSE),0) -> 0 | M127: =IF(AND($I127=1,$H127>0),VLOOKUP($H127,$A$14:AF$63,13,FALSE),0) -> 0 | Q127: =IF(A127<>0,VLOOKUP(A127,Liste!$A$10:$K$159,8,FALSE),"") -> 90 | S127: 167 | AB127: 0 | AC127: 0 | AD127: 0 | AE127: 1000
A128: 112 | B128: =IF(A128<>0,VLOOKUP(A128,Liste!$A$10:$D$159,4,FALSE),"") -> OLIVA | C128: 0 | D128: 0 | E128: 0 | F128: 0 | I128: 0 | J128: 0 | K128: =IF(AND($I128=1,$H128>0),VLOOKUP($H128,$A$14:AD$63,11,FALSE),0) -> 0 | L128: =IF(AND($I128=1,$H128>0),VLOOKUP($H128,$A$14:AE$63,12,FALSE),0) -> 0 | M128: =IF(AND($I128=1,$H128>0),VLOOKUP($H128,$A$14:AF$63,13,FALSE),0) -> 0 | Q128: =IF(A128<>0,VLOOKUP(A128,Liste!$A$10:$K$159,8,FALSE),"") -> 80 | S128: 108 | AB128: 0 | AC128: 0 | AD128: 0 | AE128: 1000
A129: 113 | B129: =IF(A129<>0,VLOOKUP(A129,Liste!$A$10:$D$159,4,FALSE),"") -> OLIVA Stéphane | C129: 0 | D129: 0 | E129: 0 | F129: 0 | I129: 0 | J129: 0 | K129: =IF(AND($I129=1,$H129>0),VLOOKUP($H129,$A$14:AD$63,11,FALSE),0) -> 0 | L129: =IF(AND($I129=1,$H129>0),VLOOKUP($H129,$A$14:AE$63,12,FALSE),0) -> 0 | M129: =IF(AND($I129=1,$H129>0),VLOOKUP($H129,$A$14:AF$63,13,FALSE),0) -> 0 | Q129: =IF(A129<>0,VLOOKUP(A129,Liste!$A$10:$K$159,8,FALSE),"") -> 59 | S129: 144 | AB129: 0 | AC129: 0 | AD129: 0 | AE129: 1000
A130: 114 | B130: =IF(A130<>0,VLOOKUP(A130,Liste!$A$10:$D$159,4,FALSE),"") -> PEIRANO Olga | C130: 0 | D130: 0 | E130: 0 | F130: 0 | I130: 0 | J130: 0 | K130: =IF(AND($I130=1,$H130>0),VLOOKUP($H130,$A$14:AD$63,11,FALSE),0) -> 0 | L130: =IF(AND($I130=1,$H130>0),VLOOKUP($H130,$A$14:AE$63,12,FALSE),0) -> 0 | M130: =IF(AND($I130=1,$H130>0),VLOOKUP($H130,$A$14:AF$63,13,FALSE),0) -> 0 | Q130: =IF(A130<>0,VLOOKUP(A130,Liste!$A$10:$K$159,8,FALSE),"") -> 59 | S130: 106 | AB130: 0 | AC130: 0 | AD130: 0 | AE130: 1000
A131: 115 | B131: =IF(A131<>0,VLOOKUP(A131,Liste!$A$10:$D$159,4,FALSE),"") -> PELLEGRIN Jean ierre | C131: 0 | D131: 0 | E131: 0 | F131: 0 | I131: 0 | J131: 0 | K131: =IF(AND($I131=1,$H131>0),VLOOKUP($H131,$A$14:AD$63,11,FALSE),0) -> 0 | L131: =IF(AND($I131=1,$H131>0),VLOOKUP($H131,$A$14:AE$63,12,FALSE),0) -> 0 | M131: =IF(AND($I131=1,$H131>0),VLOOKUP($H131,$A$14:AF$63,13,FALSE),0) -> 0 | Q131: =IF(A131<>0,VLOOKUP(A131,Liste!$A$10:$K$159,8,FALSE),"") -> 40 | S131: 106 | AB131: 0 | AC131: 0 | AD131: 0 | AE131: 1000
A132: 116 | B132: =IF(A132<>0,VLOOKUP(A132,Liste!$A$10:$D$159,4,FALSE),"") -> PETROV Nicolas | C132: 0 | D132: 0 | E132: 0 | F132: 0 | I132: 0 | J132: 0 | K132: =IF(AND($I132=1,$H132>0),VLOOKUP($H132,$A$14:AD$63,11,FALSE),0) -> 0 | L132: =IF(AND($I132=1,$H132>0),VLOOKUP($H132,$A$14:AE$63,12,FALSE),0) -> 0 | M132: =IF(AND($I132=1,$H132>0),VLOOKUP($H132,$A$14:AF$63,13,FALSE),0) -> 0 | Q132: =IF(A132<>0,VLOOKUP(A132,Liste!$A$10:$K$159,8,FALSE),"") -> 60 | S132: 72 | AB132: 0 | AC132: 0 | AD132: 0 | AE132: 1000
A133: 117 | B133: =IF(A133<>0,VLOOKUP(A133,Liste!$A$10:$D$159,4,FALSE),"") -> PEZTITON René | C133: 0 | D133: 0 | E133: 0 | F133: 0 | I133: 0 | J133: 0 | K133: =IF(AND($I133=1,$H133>0),VLOOKUP($H133,$A$14:AD$63,11,FALSE),0) -> 0 | L133: =IF(AND($I133=1,$H133>0),VLOOKUP($H133,$A$14:AE$63,12,FALSE),0) -> 0 | M133: =IF(AND($I133=1,$H133>0),VLOOKUP($H133,$A$14:AF$63,13,FALSE),0) -> 0 | Q133: =IF(A133<>0,VLOOKUP(A133,Liste!$A$10:$K$159,8,FALSE),"") -> 47 | S133: 108 | AB133: 0 | AC133: 0 | AD133: 0 | AE133: 1000
A134: 118 | B134: =IF(A134<>0,VLOOKUP(A134,Liste!$A$10:$D$159,4,FALSE),"") -> PISTONE Georges | C134: 0 | D134: 0 | E134: 0 | F134: 0 | I134: 0 | J134: 0 | K134: =IF(AND($I134=1,$H134>0),VLOOKUP($H134,$A$14:AD$63,11,FALSE),0) -> 0 | L134: =IF(AND($I134=1,$H134>0),VLOOKUP($H134,$A$14:AE$63,12,FALSE),0) -> 0 | M134: =IF(AND($I134=1,$H134>0),VLOOKUP($H134,$A$14:AF$63,13,FALSE),0) -> 0 | Q134: =IF(A134<>0,VLOOKUP(A134,Liste!$A$10:$K$159,8,FALSE),"") -> 70 | S134: 84 | AB134: 0 | AC134: 0 | AD134: 0 | AE134: 1000
A135: 119 | B135: =IF(A135<>0,VLOOKUP(A135,Liste!$A$10:$D$159,4,FALSE),"") -> PONCELET Didier | C135: 0 | D135: 0 | E135: 0 | F135: 0 | I135: 0 | J135: 0 | K135: =IF(AND($I135=1,$H135>0),VLOOKUP($H135,$A$14:AD$63,11,FALSE),0) -> 0 | L135: =IF(AND($I135=1,$H135>0),VLOOKUP($H135,$A$14:AE$63,12,FALSE),0) -> 0 | M135: =IF(AND($I135=1,$H135>0),VLOOKUP($H135,$A$14:AF$63,13,FALSE),0) -> 0 | Q135: =IF(A135<>0,VLOOKUP(A135,Liste!$A$10:$K$159,8,FALSE),"") -> 52 | S135: 126 | AB135: 0 | AC135: 0 | AD135: 0 | AE135: 1000
A136: 120 | B136: =IF(A136<>0,VLOOKUP(A136,Liste!$A$10:$D$159,4,FALSE),"") -> PROUVOST Jean | C136: 0 | D136: 0 | E136: 0 | F136: 0 | I136: 0 | J136: 0 | K136: =IF(AND($I136=1,$H136>0),VLOOKUP($H136,$A$14:AD$63,11,FALSE),0) -> 0 | L136: =IF(AND($I136=1,$H136>0),VLOOKUP($H136,$A$14:AE$63,12,FALSE),0) -> 0 | M136: =IF(AND($I136=1,$H136>0),VLOOKUP($H136,$A$14:AF$63,13,FALSE),0) -> 0 | Q136: =IF(A136<>0,VLOOKUP(A136,Liste!$A$10:$K$159,8,FALSE),"") -> 90 | S136: 93 | AB136: 0 | AC136: 0 | AD136: 0 | AE136: 1000
A137: 122 | B137: =IF(A137<>0,VLOOKUP(A137,Liste!$A$10:$D$159,4,FALSE),"") -> RAYNAUD Laurence | C137: 0 | D137: 0 | E137: 0 | F137: 0 | I137: 0 | J137: 0 | K137: =IF(AND($I137=1,$H137>0),VLOOKUP($H137,$A$14:AD$63,11,FALSE),0) -> 0 | L137: =IF(AND($I137=1,$H137>0),VLOOKUP($H137,$A$14:AE$63,12,FALSE),0) -> 0 | M137: =IF(AND($I137=1,$H137>0),VLOOKUP($H137,$A$14:AF$63,13,FALSE),0) -> 0 | Q137: =IF(A137<>0,VLOOKUP(A137,Liste!$A$10:$K$159,8,FALSE),"") -> 83 | S137: 185 | AB137: 0 | AC137: 0 | AD137: 0 | AE137: 1000
A138: 123 | B138: =IF(A138<>0,VLOOKUP(A138,Liste!$A$10:$D$159,4,FALSE),"") -> RENAUD Cécile | C138: 0 | D138: 0 | E138: 0 | F138: 0 | I138: 0 | J138: 0 | K138: =IF(AND($I138=1,$H138>0),VLOOKUP($H138,$A$14:AD$63,11,FALSE),0) -> 0 | L138: =IF(AND($I138=1,$H138>0),VLOOKUP($H138,$A$14:AE$63,12,FALSE),0) -> 0 | M138: =IF(AND($I138=1,$H138>0),VLOOKUP($H138,$A$14:AF$63,13,FALSE),0) -> 0 | Q138: =IF(A138<>0,VLOOKUP(A138,Liste!$A$10:$K$159,8,FALSE),"") -> 91 | S138: 149 | AB138: 0 | AC138: 0 | AD138: 0 | AE138: 1000
A139: 124 | B139: =IF(A139<>0,VLOOKUP(A139,Liste!$A$10:$D$159,4,FALSE),"") -> RICHOUX Alexandra | C139: 0 | D139: 0 | E139: 0 | F139: 0 | I139: 0 | J139: 0 | K139: =IF(AND($I139=1,$H139>0),VLOOKUP($H139,$A$14:AD$63,11,FALSE),0) -> 0 | L139: =IF(AND($I139=1,$H139>0),VLOOKUP($H139,$A$14:AE$63,12,FALSE),0) -> 0 | M139: =IF(AND($I139=1,$H139>0),VLOOKUP($H139,$A$14:AF$63,13,FALSE),0) -> 0 | Q139: =IF(A139<>0,VLOOKUP(A139,Liste!$A$10:$K$159,8,FALSE),"") -> 55 | S139: 164 | AB139: 0 | AC139: 0 | AD139: 0 | AE139: 1000
A140: 125 | B140: =IF(A140<>0,VLOOKUP(A140,Liste!$A$10:$D$159,4,FALSE),"") -> ROBERT MARMO Josiane | C140: 0 | D140: 0 | E140: 0 | F140: 0 | I140: 0 | J140: 0 | K140: =IF(AND($I140=1,$H140>0),VLOOKUP($H140,$A$14:AD$63,11,FALSE),0) -> 0 | L140: =IF(AND($I140=1,$H140>0),VLOOKUP($H140,$A$14:AE$63,12,FALSE),0) -> 0 | M140: =IF(AND($I140=1,$H140>0),VLOOKUP($H140,$A$14:AF$63,13,FALSE),0) -> 0 | Q140: =IF(A140<>0,VLOOKUP(A140,Liste!$A$10:$K$159,8,FALSE),"") -> 92 | S140: 99 | AB140: 0 | AC140: 0 | AD140: 0 | AE140: 1000
A141: 126 | B141: =IF(A141<>0,VLOOKUP(A141,Liste!$A$10:$D$159,4,FALSE),"") -> ROCHETEAU-SOONEKINDT | C141: 0 | D141: 0 | E141: 0 | F141: 0 | I141: 0 | J141: 0 | K141: =IF(AND($I141=1,$H141>0),VLOOKUP($H141,$A$14:AD$63,11,FALSE),0) -> 0 | L141: =IF(AND($I141=1,$H141>0),VLOOKUP($H141,$A$14:AE$63,12,FALSE),0) -> 0 | M141: =IF(AND($I141=1,$H141>0),VLOOKUP($H141,$A$14:AF$63,13,FALSE),0) -> 0 | Q141: =IF(A141<>0,VLOOKUP(A141,Liste!$A$10:$K$159,8,FALSE),"") -> 100 | S141: 165 | AB141: 0 | AC141: 0 | AD141: 0 | AE141: 1000
A142: 127 | B142: =IF(A142<>0,VLOOKUP(A142,Liste!$A$10:$D$159,4,FALSE),"") -> RUIZ José | C142: =F142*(K142=1) -> 0 | D142: =F142*(L142=1) -> 0 | E142: =F142*(M142=1) -> 0 | F142: =IF(I142=1,VLOOKUP(A142,$A$14:$AA$163,16+$B$4,0),0) -> 0 | I142: =1*(IF(G142>=1,VLOOKUP(A142,$A$14:$AA$163,16+$B$4,0)>0)) -> 0 | J142: =IF(F142>0,F142,0) -> 0 | K142: =IF(AND($I142=1,$H142>0),VLOOKUP($H142,$A$14:AD$63,11,FALSE),0) -> 0 | L142: =IF(AND($I142=1,$H142>0),VLOOKUP($H142,$A$14:AE$63,12,FALSE),0) -> 0 | M142: =IF(AND($I142=1,$H142>0),VLOOKUP($H142,$A$14:AF$63,13,FALSE),0) -> 0 | N142: =IF(AND(I142>0,K142+L142+M142=0),"EN ATTENTE",IF(K142+L142+M142>1,"ERREUR","")) ->  | O142: =IF(AND(AC142>3,AD142>$D$10*$O$12),1,"") ->  | P142: =IF(I142=1,K142*(K142=1)+L142*2*(L142=1)+M142*3*(M142=1),"") ->  | Q142: =IF(A142<>0,VLOOKUP(A142,Liste!$A$10:$K$159,8,FALSE),"") -> 98 | S142: 180 | AB142: =(H142+I142)*(J142>0) -> 0 | AC142: =COUNTIF($H$14:$H$163,A142) -> 0 | AD142: =SUMIF($H$14:$H$163,A142,$J$14:$J$163)+(J142*(AC142>0)) -> 0 | AE142: =IF(H142>0,H142+0.5*(I142=1),A142*(I142=1))+(1000*(I142<1)) -> 1000
A143: 128 | B143: =IF(A143<>0,VLOOKUP(A143,Liste!$A$10:$D$159,4,FALSE),"") -> RUIZ Marcel | C143: 0 | D143: 0 | E143: 0 | F143: 0 | I143: 0 | J143: 0 | K143: =IF(AND($I143=1,$H143>0),VLOOKUP($H143,$A$14:AD$63,11,FALSE),0) -> 0 | L143: =IF(AND($I143=1,$H143>0),VLOOKUP($H143,$A$14:AE$63,12,FALSE),0) -> 0 | M143: =IF(AND($I143=1,$H143>0),VLOOKUP($H143,$A$14:AF$63,13,FALSE),0) -> 0 | Q143: =IF(A143<>0,VLOOKUP(A143,Liste!$A$10:$K$159,8,FALSE),"") -> 91 | S143: 176 | AB143: 0 | AC143: 0 | AD143: 0 | AE143: 1000
A144: 129 | B144: =IF(A144<>0,VLOOKUP(A144,Liste!$A$10:$D$159,4,FALSE),"") -> RUSSEAU Thomas | C144: 0 | D144: 0 | E144: 0 | F144: 0 | I144: 0 | J144: 0 | K144: =IF(AND($I144=1,$H144>0),VLOOKUP($H144,$A$14:AD$63,11,FALSE),0) -> 0 | L144: =IF(AND($I144=1,$H144>0),VLOOKUP($H144,$A$14:AE$63,12,FALSE),0) -> 0 | M144: =IF(AND($I144=1,$H144>0),VLOOKUP($H144,$A$14:AF$63,13,FALSE),0) -> 0 | Q144: =IF(A144<>0,VLOOKUP(A144,Liste!$A$10:$K$159,8,FALSE),"") -> 101 | S144: 164 | AB144: 0 | AC144: 0 | AD144: 0 | AE144: 1000
A145: 130 | B145: =IF(A145<>0,VLOOKUP(A145,Liste!$A$10:$D$159,4,FALSE),"") -> SALDOT Sylviane | C145: 0 | D145: 0 | E145: 0 | F145: 0 | I145: 0 | J145: 0 | K145: =IF(AND($I145=1,$H145>0),VLOOKUP($H145,$A$14:AD$63,11,FALSE),0) -> 0 | L145: =IF(AND($I145=1,$H145>0),VLOOKUP($H145,$A$14:AE$63,12,FALSE),0) -> 0 | M145: =IF(AND($I145=1,$H145>0),VLOOKUP($H145,$A$14:AF$63,13,FALSE),0) -> 0 | Q145: =IF(A145<>0,VLOOKUP(A145,Liste!$A$10:$K$159,8,FALSE),"") -> 53 | S145: 182 | AB145: 0 | AC145: 0 | AD145: 0 | AE145: 1000
A146: 132 | B146: =IF(A146<>0,VLOOKUP(A146,Liste!$A$10:$D$159,4,FALSE),"") -> SANNA - DVORAK Laurent - Isabel | C146: 0 | D146: 0 | E146: 0 | F146: 0 | I146: 0 | J146: 0 | K146: =IF(AND($I146=1,$H146>0),VLOOKUP($H146,$A$14:AD$63,11,FALSE),0) -> 0 | L146: =IF(AND($I146=1,$H146>0),VLOOKUP($H146,$A$14:AE$63,12,FALSE),0) -> 0 | M146: =IF(AND($I146=1,$H146>0),VLOOKUP($H146,$A$14:AF$63,13,FALSE),0) -> 0 | Q146: =IF(A146<>0,VLOOKUP(A146,Liste!$A$10:$K$159,8,FALSE),"") -> 92 | S146: 102 | AB146: 0 | AC146: 0 | AD146: 0 | AE146: 1000
A147: 133 | B147: =IF(A147<>0,VLOOKUP(A147,Liste!$A$10:$D$159,4,FALSE),"") -> SARLIN / MAUREL Jocelyne | C147: 0 | D147: 0 | E147: 0 | F147: 0 | I147: 0 | J147: 0 | K147: =IF(AND($I147=1,$H147>0),VLOOKUP($H147,$A$14:AD$63,11,FALSE),0) -> 0 | L147: =IF(AND($I147=1,$H147>0),VLOOKUP($H147,$A$14:AE$63,12,FALSE),0) -> 0 | M147: =IF(AND($I147=1,$H147>0),VLOOKUP($H147,$A$14:AF$63,13,FALSE),0) -> 0 | Q147: =IF(A147<>0,VLOOKUP(A147,Liste!$A$10:$K$159,8,FALSE),"") -> 94 | S147: 165 | AB147: 0 | AC147: 0 | AD147: 0 | AE147: 1000
A148: 134 | B148: =IF(A148<>0,VLOOKUP(A148,Liste!$A$10:$D$159,4,FALSE),"") -> SCALIA Serge | C148: 0 | D148: 0 | E148: 0 | F148: 0 | I148: 0 | J148: 0 | K148: =IF(AND($I148=1,$H148>0),VLOOKUP($H148,$A$14:AD$63,11,FALSE),0) -> 0 | L148: =IF(AND($I148=1,$H148>0),VLOOKUP($H148,$A$14:AE$63,12,FALSE),0) -> 0 | M148: =IF(AND($I148=1,$H148>0),VLOOKUP($H148,$A$14:AF$63,13,FALSE),0) -> 0 | Q148: =IF(A148<>0,VLOOKUP(A148,Liste!$A$10:$K$159,8,FALSE),"") -> 53 | S148: 95 | AB148: 0 | AC148: 0 | AD148: 0 | AE148: 1000
A149: 135 | B149: =IF(A149<>0,VLOOKUP(A149,Liste!$A$10:$D$159,4,FALSE),"") -> SCHMIT Isabelle | C149: 0 | D149: 0 | E149: 0 | F149: 0 | I149: 0 | J149: 0 | K149: =IF(AND($I149=1,$H149>0),VLOOKUP($H149,$A$14:AD$63,11,FALSE),0) -> 0 | L149: =IF(AND($I149=1,$H149>0),VLOOKUP($H149,$A$14:AE$63,12,FALSE),0) -> 0 | M149: =IF(AND($I149=1,$H149>0),VLOOKUP($H149,$A$14:AF$63,13,FALSE),0) -> 0 | Q149: =IF(A149<>0,VLOOKUP(A149,Liste!$A$10:$K$159,8,FALSE),"") -> 40 | S149: 72 | AB149: 0 | AC149: 0 | AD149: 0 | AE149: 1000
A150: 136 | B150: =IF(A150<>0,VLOOKUP(A150,Liste!$A$10:$D$159,4,FALSE),"") -> SCIALON Victor | C150: 0 | D150: 0 | E150: 0 | F150: 0 | I150: 0 | J150: 0 | K150: =IF(AND($I150=1,$H150>0),VLOOKUP($H150,$A$14:AD$63,11,FALSE),0) -> 0 | L150: =IF(AND($I150=1,$H150>0),VLOOKUP($H150,$A$14:AE$63,12,FALSE),0) -> 0 | M150: =IF(AND($I150=1,$H150>0),VLOOKUP($H150,$A$14:AF$63,13,FALSE),0) -> 0 | Q150: =IF(A150<>0,VLOOKUP(A150,Liste!$A$10:$K$159,8,FALSE),"") -> 48 | S150: 86 | AB150: 0 | AC150: 0 | AD150: 0 | AE150: 1000
A151: 137 | B151: =IF(A151<>0,VLOOKUP(A151,Liste!$A$10:$D$159,4,FALSE),"") -> SERREE Patrick | C151: 0 | D151: 0 | E151: 0 | F151: 0 | I151: 0 | J151: 0 | K151: =IF(AND($I151=1,$H151>0),VLOOKUP($H151,$A$14:AD$63,11,FALSE),0) -> 0 | L151: =IF(AND($I151=1,$H151>0),VLOOKUP($H151,$A$14:AE$63,12,FALSE),0) -> 0 | M151: =IF(AND($I151=1,$H151>0),VLOOKUP($H151,$A$14:AF$63,13,FALSE),0) -> 0 | Q151: =IF(A151<>0,VLOOKUP(A151,Liste!$A$10:$K$159,8,FALSE),"") -> 56 | S151: 101 | AB151: 0 | AC151: 0 | AD151: 0 | AE151: 1000
A152: 138 | B152: =IF(A152<>0,VLOOKUP(A152,Liste!$A$10:$D$159,4,FALSE),"") -> SIEURAC Philippe | C152: 0 | D152: 0 | E152: 0 | F152: 0 | I152: 0 | J152: 0 | K152: =IF(AND($I152=1,$H152>0),VLOOKUP($H152,$A$14:AD$63,11,FALSE),0) -> 0 | L152: =IF(AND($I152=1,$H152>0),VLOOKUP($H152,$A$14:AE$63,12,FALSE),0) -> 0 | M152: =IF(AND($I152=1,$H152>0),VLOOKUP($H152,$A$14:AF$63,13,FALSE),0) -> 0 | Q152: =IF(A152<>0,VLOOKUP(A152,Liste!$A$10:$K$159,8,FALSE),"") -> 60 | S152: 108 | AB152: 0 | AC152: 0 | AD152: 0 | AE152: 1000
A153: 139 | B153: =IF(A153<>0,VLOOKUP(A153,Liste!$A$10:$D$159,4,FALSE),"") -> SIMON Josette | C153: 0 | D153: 0 | E153: 0 | F153: 0 | I153: 0 | J153: 0 | K153: =IF(AND($I153=1,$H153>0),VLOOKUP($H153,$A$14:AD$63,11,FALSE),0) -> 0 | L153: =IF(AND($I153=1,$H153>0),VLOOKUP($H153,$A$14:AE$63,12,FALSE),0) -> 0 | M153: =IF(AND($I153=1,$H153>0),VLOOKUP($H153,$A$14:AF$63,13,FALSE),0) -> 0 | Q153: =IF(A153<>0,VLOOKUP(A153,Liste!$A$10:$K$159,8,FALSE),"") -> 51 | S153: 92 | AB153: 0 | AC153: 0 | AD153: 0 | AE153: 1000
A154: 140 | B154: =IF(A154<>0,VLOOKUP(A154,Liste!$A$10:$D$159,4,FALSE),"") -> SIMON Piaul | C154: 0 | D154: 0 | E154: 0 | F154: 0 | I154: 0 | J154: 0 | K154: =IF(AND($I154=1,$H154>0),VLOOKUP($H154,$A$14:AD$63,11,FALSE),0) -> 0 | L154: =IF(AND($I154=1,$H154>0),VLOOKUP($H154,$A$14:AE$63,12,FALSE),0) -> 0 | M154: =IF(AND($I154=1,$H154>0),VLOOKUP($H154,$A$14:AF$63,13,FALSE),0) -> 0 | Q154: =IF(A154<>0,VLOOKUP(A154,Liste!$A$10:$K$159,8,FALSE),"") -> 53 | S154: 95 | AB154: 0 | AC154: 0 | AD154: 0 | AE154: 1000
A155: 142 | B155: =IF(A155<>0,VLOOKUP(A155,Liste!$A$10:$D$159,4,FALSE),"") -> STURM Philippe | C155: 0 | D155: 0 | E155: 0 | F155: 0 | I155: 0 | J155: 0 | K155: =IF(AND($I155=1,$H155>0),VLOOKUP($H155,$A$14:AD$63,11,FALSE),0) -> 0 | L155: =IF(AND($I155=1,$H155>0),VLOOKUP($H155,$A$14:AE$63,12,FALSE),0) -> 0 | M155: =IF(AND($I155=1,$H155>0),VLOOKUP($H155,$A$14:AF$63,13,FALSE),0) -> 0 | Q155: =IF(A155<>0,VLOOKUP(A155,Liste!$A$10:$K$159,8,FALSE),"") -> 90 | S155: 162 | AB155: 0 | AC155: 0 | AD155: 0 | AE155: 1000
A156: 143 | B156: =IF(A156<>0,VLOOKUP(A156,Liste!$A$10:$D$159,4,FALSE),"") -> TANDY G&érard | C156: 0 | D156: 0 | E156: 0 | F156: 0 | I156: 0 | J156: 0 | K156: =IF(AND($I156=1,$H156>0),VLOOKUP($H156,$A$14:AD$63,11,FALSE),0) -> 0 | L156: =IF(AND($I156=1,$H156>0),VLOOKUP($H156,$A$14:AE$63,12,FALSE),0) -> 0 | M156: =IF(AND($I156=1,$H156>0),VLOOKUP($H156,$A$14:AF$63,13,FALSE),0) -> 0 | Q156: =IF(A156<>0,VLOOKUP(A156,Liste!$A$10:$K$159,8,FALSE),"") -> 40 | S156: 72 | AB156: 0 | AC156: 0 | AD156: 0 | AE156: 1000
A157: 144 | B157: =IF(A157<>0,VLOOKUP(A157,Liste!$A$10:$D$159,4,FALSE),"") -> THUMERELLE Sébastien | C157: 0 | D157: 0 | E157: 0 | F157: 0 | I157: 0 | J157: 0 | K157: =IF(AND($I157=1,$H157>0),VLOOKUP($H157,$A$14:AD$63,11,FALSE),0) -> 0 | L157: =IF(AND($I157=1,$H157>0),VLOOKUP($H157,$A$14:AE$63,12,FALSE),0) -> 0 | M157: =IF(AND($I157=1,$H157>0),VLOOKUP($H157,$A$14:AF$63,13,FALSE),0) -> 0 | Q157: =IF(A157<>0,VLOOKUP(A157,Liste!$A$10:$K$159,8,FALSE),"") -> 80 | S157: 144 | AB157: 0 | AC157: 0 | AD157: 0 | AE157: 1000
A158: 145 | B158: =IF(A158<>0,VLOOKUP(A158,Liste!$A$10:$D$159,4,FALSE),"") -> TONDU Simon | C158: 0 | D158: 0 | E158: 0 | F158: 0 | I158: 0 | J158: 0 | K158: =IF(AND($I158=1,$H158>0),VLOOKUP($H158,$A$14:AD$63,11,FALSE),0) -> 0 | L158: =IF(AND($I158=1,$H158>0),VLOOKUP($H158,$A$14:AE$63,12,FALSE),0) -> 0 | M158: =IF(AND($I158=1,$H158>0),VLOOKUP($H158,$A$14:AF$63,13,FALSE),0) -> 0 | Q158: =IF(A158<>0,VLOOKUP(A158,Liste!$A$10:$K$159,8,FALSE),"") -> 40 | S158: 72 | AB158: 0 | AC158: 0 | AD158: 0 | AE158: 1000
A159: 146 | B159: =IF(A159<>0,VLOOKUP(A159,Liste!$A$10:$D$159,4,FALSE),"") -> VERMONT André | C159: 0 | D159: 0 | E159: 0 | F159: 0 | I159: 0 | J159: 0 | K159: =IF(AND($I159=1,$H159>0),VLOOKUP($H159,$A$14:AD$63,11,FALSE),0) -> 0 | L159: =IF(AND($I159=1,$H159>0),VLOOKUP($H159,$A$14:AE$63,12,FALSE),0) -> 0 | M159: =IF(AND($I159=1,$H159>0),VLOOKUP($H159,$A$14:AF$63,13,FALSE),0) -> 0 | Q159: =IF(A159<>0,VLOOKUP(A159,Liste!$A$10:$K$159,8,FALSE),"") -> 52 | S159: 93 | AB159: 0 | AC159: 0 | AD159: 0 | AE159: 1000
A160: 147 | B160: =IF(A160<>0,VLOOKUP(A160,Liste!$A$10:$D$159,4,FALSE),"") -> VIGLIONE Léa | C160: 0 | D160: 0 | E160: 0 | F160: 0 | I160: 0 | J160: 0 | K160: =IF(AND($I160=1,$H160>0),VLOOKUP($H160,$A$14:AD$63,11,FALSE),0) -> 0 | L160: =IF(AND($I160=1,$H160>0),VLOOKUP($H160,$A$14:AE$63,12,FALSE),0) -> 0 | M160: =IF(AND($I160=1,$H160>0),VLOOKUP($H160,$A$14:AF$63,13,FALSE),0) -> 0 | Q160: =IF(A160<>0,VLOOKUP(A160,Liste!$A$10:$K$159,8,FALSE),"") -> 61 | S160: 110 | AB160: 0 | AC160: 0 | AD160: 0 | AE160: 1000
A161: 148 | B161: =IF(A161<>0,VLOOKUP(A161,Liste!$A$10:$D$159,4,FALSE),"") -> WINGERT Philippe | C161: 0 | D161: 0 | E161: 0 | F161: 0 | I161: 0 | J161: 0 | K161: =IF(AND($I161=1,$H161>0),VLOOKUP($H161,$A$14:AD$63,11,FALSE),0) -> 0 | L161: =IF(AND($I161=1,$H161>0),VLOOKUP($H161,$A$14:AE$63,12,FALSE),0) -> 0 | M161: =IF(AND($I161=1,$H161>0),VLOOKUP($H161,$A$14:AF$63,13,FALSE),0) -> 0 | Q161: =IF(A161<>0,VLOOKUP(A161,Liste!$A$10:$K$159,8,FALSE),"") -> 80 | S161: 144 | AB161: 0 | AC161: 0 | AD161: 0 | AE161: 1000
A162: 149 | B162: =IF(A162<>0,VLOOKUP(A162,Liste!$A$10:$D$159,4,FALSE),"") -> YOUSEF Amed | C162: 0 | D162: 0 | E162: 0 | F162: 0 | I162: 0 | J162: 0 | K162: =IF(AND($I162=1,$H162>0),VLOOKUP($H162,$A$14:AD$63,11,FALSE),0) -> 0 | L162: =IF(AND($I162=1,$H162>0),VLOOKUP($H162,$A$14:AE$63,12,FALSE),0) -> 0 | M162: =IF(AND($I162=1,$H162>0),VLOOKUP($H162,$A$14:AF$63,13,FALSE),0) -> 0 | Q162: =IF(A162<>0,VLOOKUP(A162,Liste!$A$10:$K$159,8,FALSE),"") -> 52 | S162: 93 | AB162: 0 | AC162: 0 | AD162: 0 | AE162: 1000
A163: 150 | B163: =IF(A163<>0,VLOOKUP(A163,Liste!$A$10:$D$159,4,FALSE),"") -> ZIADI MONGI | C163: 0 | D163: 0 | E163: 0 | F163: 0 | I163: 0 | J163: 0 | K163: =IF(AND($I163=1,$H163>0),VLOOKUP($H163,$A$14:AD$63,11,FALSE),0) -> 0 | L163: =IF(AND($I163=1,$H163>0),VLOOKUP($H163,$A$14:AE$63,12,FALSE),0) -> 0 | M163: =IF(AND($I163=1,$H163>0),VLOOKUP($H163,$A$14:AF$63,13,FALSE),0) -> 0 | Q163: =IF(A163<>0,VLOOKUP(A163,Liste!$A$10:$K$159,8,FALSE),"") -> 53 | S163: 95 | AB163: 0 | AC163: 0 | AD163: 0 | AE163: 1000

Sheet Lisez-moi
A3: G E S T I O N D E S V O T E S
A5: La gestion des Votes en A.G. de copropriété, sur Excel, repose sur l' utilisation d'une feuille "MERE" qui est la copie
A6: de la feuille de présence;
A7: A partir de cette feuille on crée une feuille de vote pour chaque question à l' ordre du jour de l' A.G.
A10: Feuille "Liste"
A11: Comporte le numéro d' ordre, les noms et adresses, les numéros de lots et leur désignation et tantièmes généraux.
A12: Cette feuille sert à l' établissement automatique de la feuille de présence (F.P.)
A14: Feuille F.P., fveuille de présence.
A15: Cette feuille doit être imprimée pour servir à l' émargement.
A17: La feuille "MERE" peut être créé dés que la convocation de l' A.G. est faite.
A18: Elle comporte la liste de tous les copropriétaires avec leurs tantièmes dans les différentes clés.
A19: Cliquez sur le boutron "Nouveau dossier" pour ouvrir un dossier pour la nouvelle A.G.
A20: Le logiciel renomme le nouveau dossier automatiquement avec référence à la date de la nouvelle A.G.
A21: Le numéro d' ordre attribué à un copropriétaire ne sert qu' à faire le lien entre les mandants et le mandataire
A22: Dans la feuille "Liste" faire les modifications éventuelles suite à des mutations et cliquez sur "Mise à jour", la liste
A23: des copropriétaires est alors trier par ordre,
A24: aphabétique et numérotée,
A25: Le numéro d' ordre attribué à un copropriétaire ne sert qu' à faire le lien entre les mandants et le mandataire
A26: il ne faut pas trier la feuille "MERE" en cours d' A.G.
A27: Un bouton "Réduire/Afficher" permet de basculer d' un affichage à un autre,
A28: Vous pouvez maintenant, à partir de la feuille de présence papier émargée par les copropriétaires, enregistrer
A29: les présents et représentés,
A30: Pour les représentés mettre en colonne "H" le numéro du mandataire.
A31: Le logiciel vérifie pour chaque copropriétaire les limites, nombre de pouvoirs et nombre de voix:
A32: Colonne "AC" - Nombre de représentés.
A33: Colonne "AD" - Total des voix disponibles pour le mandataire.
A34: Colonne "O" - Avertissement en cas de dépassement : "1" en rouge.
A35: Cellule G7, Cadre rouge clair :avertissement si nombre de représentés et nombre de voix dépassées
A37: Vous pouvez maintenant cliquer sur le bouton "Feuille de Votes"
A38: Le logiciel refusera cet accès si les limites sont dépassées.
A40: Vous alllez entrer les informations demandées par le programme: Référence de la résolution, Objet de la résolution,
A41: Numéro de majorité nécessaire (24 ,25, 25,1, 26 ), numéro ,de clé applicable.
A42: Les colonnes "D" à "F" sont masqués pour faciliter la saisie des votes.
A43: Pour les afficher à nouveau il suffit de cliquer sur le bouton bleu "Afficher tout".
A45: Vous pouvez maintenant enregistrer les votes. Par défaut les votes sont "ABSTENTION", il faut donc enregistrer
A46: les votes "Pour" ou "CONTRE"
A47: Les votes des mandants sont, sauf expression particulière, celui du mandataire.
A48: Il faut donc faire attention en cas de départ d'un mandataire en cours d' A.G.
A49: De même un mandataire peut ne pas être "votant" dans une clé particulière, il faut alors exprimer le vote manuellement.
A50: Il ne faut jamais trier une feuille de vote en cours d' A.G.sauf l' opération facultative "Trier Valider" en fin de votes
A53: Explication sur les couleurs de fonds :
A54: Colonne A couleur "BLEU" : Mandataires
A55: Lignes de couleur "JAUNE" : Présents
A56: Lignes de couleur "GRISE" : Absents,
A58: Bouton :" TRIER VALIDER"
A59: La validation n' est pas obligatoire, l' opération est irréversible.
A60: La validation trie les copropriétaires suivant les votes exprimés, cela permet de faire un "copier" des votes des opposants
A61: à la résolution et de faire un "coller" dans le P.V. d' A.G.
A62: Le logiciel indique quels sont les "Opposants à la décision prise".
A64: Les boutons "DEB" ; "+6", +12", +24",……"Fin" servent à la navigation dans la feuille de votes.
A65: Les boutons "DEB" ; "+6", +12", +24",……"Fin" servent à la navigation dans la feuille de votes.
A67: NOUVELLE ASSEMBLEE GENERALE
A68: Le bouton rouge "Nouveau dossier" permet de créer un dossier pour une nouvelle A.G.
A69: Le dossier de l' A.G. précédente est conservé.
A70: Il faut mettre à jour la feuille "Liste" des mutations et changements d' adresse intervenus depuis l' A.G. précédente,
A71: ensuite cliquer sur le bouton "Mise à jour",
A73: NOUVELLE COPROPRIETE
A74: Dans la feuille "Liste" cliquer sur le bouton "NOUVELLE COPROPRIETE,
A75: Dans la feuille "Lste" enregistrer tous les noms et adreses des copropriétaires ainsi que leurs lots et tantièmes,
A76: Enregistrer tous les noms adresses , lots et tantièmes de tous les copropriétaires.
A77: Dans la feuille "F.MERE" supprimer les tantièmes spécifiques (Colonnes R à AA, et les remplacer par ceux
A78: du nouveau syndicat,
A79: La "feuille de présence" esr créé automatiquement,
A81: VOTES PAR CORRESPONDANCE;
A82: Une procédure, facultative, perme d' enregistrer avant la tenue de l' A.G.les votes exprimés par les copropriétaires ayant
A83: sayant retourné dans les délais leur formulaire de votes par correspondance.
A84: Il faut créer un nouvau_ dossier pour la prochaine A.G.
A85: Dans le feuille "F.MERE" enregistrer les votants par correspondance, code 3,
A86: Dans le feuille "F.MERE" cliquer ur le bouton Feuille de votes, Entrer le numéro de résolution 99 et la clé 1,
A87: Vous obrenez une liste des participants, sélectionner la colonne A des numéros de participant, et faire "Copier",
A88: Ouvrir la feuille "VPC", sélectionner la première cellele vide de la colonne C et faire Collage spécial, les valeurs"
A89: En colonne A le numéro de question et en B le numéro de CLES, recopier vers le bas
A90: Vous recopier la liste des numéros dans la colonne C autant de fois que vous avez de question en CLE 1
A91: Dés que vous avez une question sur une autre clé vous créer un autres feuille de votes
A92: N° de question 999 et n° de clé 2,3 ou,,,,et vous reprenez la procédure comme pour la cle 1,
A93: Si vous avez d' autres questions en clé 1 vous recopier la liste des numéro de la clé 1
A94: Vous obtenez une feuille de votes classées par question, cliquer sur le bouton "trier par Copropriétaire",
A95: Vous pouvez maintenant avec les votes exprimés dans les formulaires individuels.
A96: Cliquer sur le bouton "Trier par Question",
A97: "Vous etes prêt pour ouvri la nouvelle A,G, en enregistrant dans la feuille MERE" les présents et représentés code 1
A98: et les votants pa vidéo conférence, code 2,
A99: Pour chaque résolution vous ferez un copier des votes de le feuille VPC, colonne E,F,G, et un coller,
A100: dans la résolution en cours,
A101: Vous pouvez maintenant enregistrer les votes des présents et en vidéos
A103: ETATS ET MATRICES,
A104: Deux modéles de feuilles à joindre à la convocation d’ A.G., Un "POUVOIR"
A105: et un "Formulaire de vote par correspondance",
A106: Une matrice "Convocation d' A.G"., à complèter
A107: Une matrice "Procès-verbal de l' A.G.", à compléter
A109: Mise à jour le 14 mai 2021
A110: Jean Braconnier
A111: braconnier,jean@free,fr

Sheet Conv,AG
A1: RECOMMANDEE A,R, | F1: =+Liste!A1 -> Résid.Tartampion
F2: =+Liste!A2 -> 13 Rue de l' espoir
F3: =+Liste!A3 -> 75016 | G3: =+Liste!B3 -> PARIS
B5: Convocation à l' Aasemblée générale ordinaire
A7: Madame, Monsieur,
A9: Nous vous prions de bien vouloir participer à l' Assemblée Générale des Copropriétaires qui se tiendra le
C11: Lundi 5 Juillet 2021 à 17 Heures 30
D13: Cabinet DUDULE
D14: 7 rue de l' Avenir
D15: 75016 | E15: PARIS
A17: à l' effet de délivbérer sur l' ordre du jour suivant
A19: 1, ELECTION DU PRESIDENT DE SCEANCE -Majorité article 24
B20: M,,,,,,,,,,,,,,,,,,,,,,,,,,,,,,,,,,,,,, | D20: est élu(e) président(e) de séance
A22: 2, ELECTION DU SCRUTATEUR -Majorité article 24
B23: M,,,,,,,,,,,,,,,,,,,,,,,,,,,,,,,,,,,,,,
A25: 3, ELECTION D' UN SECRETAIRE, Majorité article 24
B26: M,,,,,,,,,,,,,,,,,,,,,,,,,,,,,,,,,,,,,, | D26: représentant le
D27: est élu(e) secrétaire
A28: 4, COMPTE RENDU DU CONSEIL SYNDICAL SUR SES MISSIONS ET AVIS
B29: RENDUS AU COURS DE L'EXERCICE ECOULE, sans vote,
A31: 5, APPROBATION DES COMPTES DE L'EXERCICE DU
B32: Majorité article 24
B33: Les comptes peuvent être vérifiés par tout copropriétaire, les six jours qui prfcédent l' AG
B34: ou sur rendez vous au bureau du syndic
B35: Projet de résolution,
B36: L' asselblée générale approuve les comptes de charges de l' exercice qui s' élèvent à
A38: 6_ DESIGNATION DU SYNDIC, Majorité article 25 (possibilité 2e vote à l' article 25-1 majorité 24 )
B39: Projet de résolution,
B40: L' assemblée générale désigne M en qualité de syndic, selon contrart joint à la cinvocation,
B41: L' assemblée générale mandate le Président de séance pour signer le contrrart de syndic,
A43: 7, DESIGNATION DES MEMBRES DU CONSEIL SYNDICAL
B44: Majorité article 25 (possibilité 2e vote à l' article 25-1 majorité 24 )
B45: Projet de Résolution:
B46: Monsieur est élu membre du conseil syndicdal
B47: Monsieur est élu membre du conseil syndicdal
A49: 8, MODALITES DE CONSULTATION DU CONSEIL SYNDICAL, majorité 25,
B50: Majorité article 25 (possibilité 2e vote à l' article 25-1 majorité 24 )
B51: Projet de résolution,
B52: L' Assemblé Générale fixe à euros TTC le montant des marchés et contrats
B53: à partir duquel le Conseil Syndcal est consulté,
A55: 9, MISE EN CONCURRENCE DES MARCHES ET CONTRATS, Majorité 25
B56: Projet de résolution,
B57: L' Assemblée Générale fixe à,,,,,,,,euros le montant à partir duquel la mise en concurrence
B58: des marchés et contrats est rendue obligatoire,
A60: 10,VOTE DU BUDGET PREVISIONNELDE L' EXERCICE N+2 majorité 24
B61: Projet de résolution,
B62: L' Assemblée Générale fixe le budget de l' exercice N+2 à la somme de ,,,,,,,,,,,,,,,, euros
B63: Elle autorise le syndic à procéder aux appels provisionnels à proportion de 1/4 du budget voté,
B64: le 1er jour de chaque trimestre,
A66: 11,REALISATION DE TRAVAUX Majorité
B67: Conditions essentielles des marchés,
B68: Devis
B69: Devis
B70: Projet de résolution,
B71: L'Assemblée Générale décide l' éxécution des travaux et confie la réalisation de ces travaux
B72: à l' entreprise,,,,,,,,,,,,,,pour pour un montant de,,,,,,,,,euros TTC
B73: auquel s' ajoute l' Assurance Dommage Ouvrages obligatoire d' un monant de,,,,,euros
B75: L' assemblée Générale autorise le syndic à procéder, selon la clé de répartition,,,,,
B76: aux appels de provisions exigibles comme suit
B77: ,,,,,, | C77: % le
B78: ,,,,,,, | C78: % le
B79: ,,,,,,, | C79: % le
B80: L' Assemblée Générale décide de financer les travaux par le " Fonds travaux" à hauteur de,,,, %
B81: de la participation aux travaux et dans la limite de ce que dispose chaque lot dans le "Fonds travaux",
A83: 12, HONORAIRES SUR TRAVAUX Majorité,,,,,
B84: Projet de résolution,
B85: Dans le cadre des travaux l' Assemblée Générale décide de fixer le montant des honoraires comme suit, à
B86: % HT du montant HT des travaux, soit un montant de,,,,,,,,,,,,TTC,

Sheet P.V.A.G.
F1: =+Liste!A1 -> Résid.Tartampion
F2: =+Liste!A2 -> 13 Rue de l' espoir
F3: =+Liste!A3 -> 75016 | G3: PARIS
B5: Proces-Verbal de l' Assemblée générale ordinaire
C6: Du | D6: 2021-06-25
A8: Les copropriétaitres de l' immmeuble sis
D10: ,,,,,,
D11: ,,,,,,
D12: ,,,,,,
A14: Se sont réunis
D15: ,,,,,
D16: ,,,,,
D17: ,,,,,
A19: Sur convocation régulière qui leur a été adressée par le syndic
A21: Il est constaté, à l' examen de la feuille de présence, dûment émargée par chaque copropriétaire
A22: en entrant en séance, que,,,,,,,copropriétaires représentant,,,,,,voix sur ,,,,,,,constituant le
A23: Syndicat des copropriétaires, sont présents ou représentés,
A25: N' ont pas participé aux votes des résolutions prévues à l' ordre du jour, les absents non représentés
A26: Soit un total de,,,,,,voix, et dont les noms suivant :
A27: ,,,,
A28: ,,,,
A29: ,,,,
A30: 1, ELECTION DU PRESIDENT DE SEANCE Majorité 24
B32: Monsieur est élu président de séance
B34: POUR :
B35: CONTRE
B36: ABSTENTIONS
B37: Ce sont opposés à la décision prise
B38: ,,,,,,,
B39: Ce sont abstenus
B40: ,,,,,,,
B41: CETTE RESOLUTION EST ADOPRTEE A L'UNANIMITE DES PRESENTS ET REPRESENTES
A43: 2, ELECTION DU SCRUTATEUR Majoité article 24
B45: Monsieur est élu scrutateur
B47: POUR :
B48: CONTRE
B49: ABSTENTIONS
B50: Ce sont opposés à la décision prise
B51: ,,,,,,,
B52: Ce sont abstenus
B53: ,,,,,,,
B54: CETTE RESOLUTION EST ADOPRTEE A L'UNANIMITE DES PRESENTS ET REPRESENTES
A59: 3, ELECTION D' UN SECRETAIRE Majorité article 24
B61: Monsieur est élu secrétaire
B63: POUR :
B64: CONTRE
B65: ABSTENTIONS
B66: Ce sont opposés à la décision prise
B67: ,,,,,,,
B68: Ce sont abstenus
B69: ,,,,,,,
B70: CETTE RESOLUTION EST ADOPRTEE A L'UNANIMITE DES PRESENTS ET REPRESENTES
A72: 5,APPROBATION DES COMPTES DE L'EXERCICE DU,,,,,,,AU,,,,
B73: Majorité article 24
B74: L' assemblée Générale approuve les comptes de charges de l' exercice s' élevant à
B76: POUR :
B77: CONTRE
B78: ABSTENTIONS
B79: Ce sont opposés à la décision prise
B80: ,,,,,,,
B81: Ce sont abstenus
B82: ,,,,,,,
B83: CETTE RESOLUTION EST ADOPTEE A L'UNANIMITE DES PRESENTS ET REPRESENTES
A85: 6_ DESIGNATION DU SYNDIC, Majorité article 25 (possibilité 2e vote à l' article 25-1 majorité 24 )
B86: L' Assemblée Générale désigne,,,,,,,,,,,, en qualite=e de syndic, selon contrat joint
B87: pour la période du,,,,,,,,,,,,au,,,,,,,
B88: Mandate le Président de séance pour signer le conrtrat de Syndic,
B90: POUR :
B91: CONTRE
B92: ABSTENTIONS
B93: Ce sont opposés à la décision prise
B94: ,,,,,,,
B95: Ce sont abstenus
B96: ,,,,,,,
B97: CETTE RESOLUTION EST ADOPTEE A L'UNANIMITE DES PRESENTS ET REPRESENTES
A99: 7, DESIGNATION DES MEMBRES DU CONSEIL SYNDICAL
B100: Majorité article 25 (possibilité 2e vote à l' article 25-1 majorité 24 )
A101: 7.1 | B101: Monsieur est élu membre du Conseil syndical
B102: POUR :
B103: CONTRE
B104: ABSTENTIONS
B105: Ce sont opposés à la décision prise
B106: ,,,,,,,
B107: Ce sont abstenus
B108: ,,,,,,,
B109: CETTE RESOLUTION EST ADOPTEE A L'UNANIMITE DES PRESENTS ET REPRESENTES
A111: 7.2 | B111: Monsieur est élu membre du Conseil syndical
B112: POUR :
B113: CONTRE
B114: ABSTENTIONS
B115: Ce sont opposés à la décision prise
B116: ,,,,,,,
B117: Ce sont abstenus
B118: ,,,,,,,
B119: CETTE RESOLUTION EST ADOPTEE A L'UNANIMITE DES PRESENTS ET REPRESENTES
A121: 8, MODALITES DE CONSULTATION DU CONSEIL SYNDICAL, majorité 25,
B122: L' Assemblé Générale fixe à euros TTC le montant des marchés et contrats
B123: à partir duquel le Conseil Syndcal est consulté,
B124: POUR
B125: CONTRE
B126: ABSTENTIONS
B127: Ce sont opposés à la décision prise
B128: ,,,,,,,
B129: Ce sont abstenus
B130: ,,,,,,,
B131: CETTE RESOLUTION EST ADOPTEE A L'UNANIMITE DES PRESENTS ET REPRESENTES
A133: 9, MISE EN CONCURRENCE DES MARCHES ET CONTRATS, Majorité 25
B134: L' Assemblée Générale fixe à,,,,,,,,euros le montant à partir duquel la mise en concurrence
B135: des marchés et contrats est rendue obligatoire,
B136: POUR
B137: CONTRE
B138: ABSTENTIONS
B139: Ce sont opposés à la décision prise
B140: ,,,,,,,
B141: Ce sont abstenus
B142: ,,,,,,,
B143: CETTE RESOLUTION EST ADOPTEE A L'UNANIMITE DES PRESENTS ET REPRESENTES
A145: 10,VOTE DU BUDGET PREVISIONNELDE L' EXERCICE N+2 majorité 24
B146: L' Assemblée Générale fixe le budget de l' exercice N+2 à la somme de ,,,,,,,,,,,,,,,, euros
B147: Elle autorise le syndic à procéder aux appels provisionnels à proportion de 1/4 du budget voté,
B148: le 1er jour de chaque trimestre,
B149: POUR
B150: CONTRE
B151: ABSTENTIONS
B152: Ce sont opposés à la décision prise
B153: ,,,,,,,
B154: Ce sont abstenus
B155: ,,,,,,,
B156: CETTE RESOLUTION EST ADOPTEE A L'UNANIMITE DES PRESENTS ET REPRESENTES
A158: 11,REALISATION DE TRAVAUX Majorité
B159: L'Assemblée Générale décide l' éxécution des travaux et confie la réalisation de ces travaux
B160: à l' entreprise,,,,,,,,,,,,,,pour pour un montant de,,,,,,,,,euros TTC
B161: auquel s' ajoute l' Assurance Dommage Ouvrages obligatoire d' un monant de,,,,,euros
B163: L' assemblée Générale autorise le syndic )àprocéder, selon la clé de répartition,,,,,
B164: et aux appels de provisions exigibles comme suit
B165: ,,,,,,
B166: ,,,,,,,
B167: ,,,,,,,
B168: L' Assemblée Générale décide de financer les travaux par le " Fonds travaux" à hauteur de,,,, %
B169: de la participation aux travaux et dans la limite de ce que dispose chaque lot dans le "Fonds travaux",
B170: POUR
B171: CONTRE
B172: ABSTENTIONS
B173: Ce sont opposés à la décision prise
B174: ,,,,,,,
B175: Ce sont abstenus
B176: ,,,,,,,
B177: CETTE RESOLUTION EST ADOPTEE A L'UNANIMITE DES PRESENTS ET REPRESENTES
A180: 12, HONORAIRES SUR TRAVAUX Majorité,,,,,
B181: Dans le cadre des travaux l' Assemblée Générale décide de fixer le montant des honoraires
B182: commze suit, à % HT du montant HT des travaux, soit un montant de,,,,,,,,,,,,TTC,
B183: POUR
B184: CONTRE
B185: ABSTENTIONS
B186: Ce sont opposés à la décision prise
B187: ,,,,,,,
B188: Ce sont abstenus
B189: ,,,,,,,
B190: CETTE RESOLUTION EST ADOPTEE A L'UNANIMITE DES PRESENTS ET REPRESENTES
A194: L' ordre du jour étant épuisé et personne ne demandant la parole, le président, aprçs émargement de la feuille
A195: de présence par les membres du bureau, lève la séance à,,,,,
B197: Le scrutateur | D197: Le secrétaire | F197: Le Prsident
A202: Extrait de l' article 42 de la loi du 10 juillet 1965
A203: Les actions qui ont pour objet de contester les décisions d' Assembléen Générale doivent, à peine de déchéance, être
A204: introduites par les copropiétaires opposants ou défaillants, dans un délai de deux mois à compter de la notification desdites
A205: décisions qui leur est faite à la diligence du syndic (loi n° 85-1470 du 31 décembre 1985), dans un délai de deux mois
A206: à compter de la tenue de l' Assemblée Générale,
A207: Sauf en cas d' urgence, l' éxecution par le syndic des travaux décidés par l' Assemblée Générale en application des articles
A208: 25 et 26 est suspendue jusqu' à l'expiration du délai mentionné à la première phrase du présent alinéa,"

Sheet POUV
C10: P O U V O I R
A12: Je soussigné,,,,,,,,,,,,,,,,,,,,,,,,,,,,,,,,,,,,,,,,,,,,,,,,,,,,,,,,,,,,,,,,,,,,,,,,,,,,,,,,,,,,,,,,,,,,,,,,,,,,,,,,
A14: Copropriétaire et titulaire de lot(s) de copropriété au sein de l' immzuble
B16: =Liste!A1 &" " &Liste!A2 &" " &Liste!A3&" " &Liste!B3 -> Résid.Tartampion 13 Rue de l' espoir 75016 PARIS
A18: Donne par la présente, pouvoir, avec la faculté de le subdéléguer à la personne de son choix,
A19: à,,,,,,,,,,,,,,,,,,,,,,,,,,,,,,,,,,,,,,,,,,,,,,,,,,,,,,,,,,,,,,,,,,,,,,,,,,,,,,,,,,,,,,,,,,,,,,,,,,,,,,,,,,,,,,,,,,,,,,,,,,
A20: de, pour moi et en mon nom, se présenter à l' Assemblée générale du syndicat des copropriétaires
A21: de l'immeuble ci-dessus visé, le ;
C22: 2020-12-15 | D22: à ,,,,,,,,,,,,,,,,,,heures
B23: ( lieu de l' AG, ),,,,,,,,,,,,,,,,,,,,,,,,,,,,,,,,,,,,,,,,,,,,,,,,,,,,,,,,,,,,,,,,,,,,,,,,,,,,,,,,,
A25: de, en mon nom, délibérer, prendre toutes résolutions nécessaires, émettre tous votes, donner
A26: tous avis, et de me représenter à toutes Assemblées qui seraient convoquées ultérieuremnt,
A27: avec le même ordre du jour, en cas de défaut de majorité pour la première Assemblée
A30: A défaut d' avoir porté le nom d' un mandataire, j' autorise expréssément la remise de ce pouvoir
A31: à tout participanr à l' assemblée générale,
A32: Fait à,,,,,,,,,,,,,,,,,,,,,,,,,,,,,,,,,,,,,,,,,,,,,,,,,,,,,,,,,,,,,,,,,,,,,,,,,,,,,le,,,,,,,,,,,,,,,,,,,,,,,,,,,,,,,,,,,,,,,,,,,,,,,,,,,,,,
A34: BON POUR POUVOIR (mention manuscrite ) | D34: Signature

Sheet FormVPC
A1: =Liste!A1 -> Résid.Tartampion
A2: =Liste!A2 -> 13 Rue de l' espoir | H2: FORMULAIRE DE VOTE PAR CORRESPONDANCE
A3: =Liste!A3 -> 75016 | B3: =Liste!B3 -> PARIS | I3: Page 1
A5: Objet | G5: Assemblée Générale Ordinaire du | H5: =Liste!C1 -> 00:00:00
A6: Date et lieu | B6: =Liste!C1 -> 00:00:00 | C6: à | D6: 17 Heures | E6: 33 rue de l' Abreuvoir 75016 PARIS
F8: Ce formulaire doit être adressé à | H8: Cabinet DUDULE
H9: 27 rue de l' Avenir
H10: 75016 PARIS
E11: Avant la date limite de réxception le | F11: 2021-08-12
A13: Je soussigné('e):
A14: domicilié(e) au
A16: après avoir pris connaissance de l' ordre du jour et des documents annexés à la conocation ou
A17: mis à disposition sur le site en ligne sécurisé de la copropriété,
A18: souhaite émettre sur chacune des questions soumises à la délibération de l' assemblée générale
A19: des copropriétaires convoquée le | D19: =Liste!C1 -> 00:00:00 | E19: à | F19: =D6&" "&E6 -> 17 Heures 33 rue de l' Abreuvoir 75016 PARIS
A20: Signature du Copropriétaire de l' associé ou du mandataire commun
F21: Fait à le
A23: 1.01 | B23: Election Président de séance | E23: CLE | F23: 1 Charges générales | H23: Majorité : | I23: Article 24
D25: POUR | F25: CONTRE | H25: ABSTENTION
A27: 2.01 | B27: Election scutateur Mr Lafolie Gérard | E27: CLE 1 Charges générales Majorite | I27: Article 24
D29: POUR | F29: CONTRE | H29: ABSTENTION
E31: CLE 1 Charges générales Majorite | I31: Article 24
D33: POUR | F33: CONTRE | H33: ABSTENTION
E35: CLE 1 Charges générales Majorite | I35: Article 24
D37: POUR | F37: CONTRE | H37: ABSTENTION
E39: CLE 1 Charges générales Majorite | I39: Article 24
D41: POUR | F41: CONTRE | H41: ABSTENTION
E43: CLE 1 Charges générales Majorite | I43: Article 24
D45: POUR | F45: CONTRE | H45: ABSTENTION
E47: CLE 1 Charges générales Majorite | I47: Article 24
D49: POUR | F49: CONTRE | H49: ABSTENTION
E51: CLE 1 Charges générales Majorite | I51: Article 24
D53: POUR | F53: CONTRE | H53: ABSTENTION
E55: CLE 1 Charges générales Majorite | I55: Article 24
D57: POUR | F57: CONTRE | H57: ABSTENTION
I59: Page 2
G62: Assemblée Générale Ordinaire du | H62: =Liste!C1 -> 00:00:00
B63: =Liste!C1 -> 00:00:00 | C63: à | D63: 17 Heures | E63: 33 rue de l' Abreuvoir 75016 PARIS
E65: CLE 1 Charges générales Majorite | I65: Article 24
D67: POUR | F67: CONTRE | H67: ABSTENTION
E69: CLE 1 Charges générales Majorite | I69: Article 24
D71: POUR | F71: CONTRE | H71: ABSTENTION
E73: CLE 1 Charges générales Majorite | I73: Article 24
D75: POUR | F75: CONTRE | H75: ABSTENTION
E77: CLE 1 Charges générales Majorite | I77: Article 24
D79: POUR | F79: CONTRE | H79: ABSTENTION
E81: CLE 1 Charges générales Majorite | I81: Article 24
D83: POUR | F83: CONTRE | H83: ABSTENTION
E85: CLE 1 Charges générales Majorite | I85: Article 24
D87: POUR | F87: CONTRE | H87: ABSTENTION
E89: CLE 1 Charges générales Majorite | I89: Article 24
D91: POUR | F91: CONTRE | H91: ABSTENTION
E93: CLE 1 Charges générales Majorite | I93: Article 24
D95: POUR | F95: CONTRE | H95: ABSTENTION
E97: CLE 1 Charges générales Majorite | I97: Article 24
D99: POUR | F99: CONTRE | H99: ABSTENTION
E101: CLE 1 Charges générales Majorite | I101: Article 24
D103: POUR | F103: CONTRE | H103: ABSTENTION
E105: CLE 1 Charges générales Majorite | I105: Article 24
D107: POUR | F107: CONTRE | H107: ABSTENTION
E109: CLE 1 Charges générales Majorite | I109: Article 24
D111: POUR | F111: CONTRE | H111: ABSTENTION
A114: Nom du copropriétaire :
A115: Signature du Copropriétaire de l' associé ou du mandataire commun
